Workbook

Sheet Segmento (hidden)
B1: SIMULADOR COMBUSTIBLE NACIONAL | O1: Categorización | P1: Ruta consolidar | Q1: Rol | AA1: Etapa
O2: N/A | P2: C:\CCE\OneDrive - Colombia Compra Eficiente\2022\Ejecución\3. Combustible nacional\Pruebas\Ciclo2\seg3 | Q2: Entidad_compradora | AA2: 1
A3: Versión: 1.0 | B3: ELECCION DE CATEGORIA O SEGMENTO
A4: 2022-12-05
A5: MENÚ DE NAVEGACIÓN
A8: ENTIDAD COMPRADORA | C8: CATEGORIAS O SEGMENTOS DISPONIBLES
C9: Categoría A | G9: Categoría C | K9: Segmento 3
A10: Elección Categoria/Segmento | C10: Distribuidor Minorista que suministra el combustible en Municipios con Sistema de Control Obligatorio y Libertad Vigilada. | G10: Proveedor de Medios de Pago Alternativos con Sistema de Control Obligatorio. | K10: Distribuidor Mayorista y/o Distribuidor Minorista que transporta el combustible vía terrestre.
A12: Solicitud de Cotización
A14: Resumen Cotización
A16: Ver Hoja Cotización
A18: Consolidar respuestas
A20: PROVEEDOR
A22: Cotización
A24: ADMINISTRACIÓN SIMULADOR
A26: Tabla Maestra de precios

Sheet SolCotizacion
F1: SOLICITUD DE COTIZACIÓN
F3: ="Versión:" & Var!$F$10 -> Versión:14 12/04/2025 | L3: Software por Catalogo II
A5: MENÚ DE NAVEGACIÓN
A8: ENTIDAD COMPRADORA
A10: Solicitud de Cotización | F10: Información de la Entidad Compradora
A12: Resumen Cotización | F12: Nombre de la Entidad: | K12: Secretaria General de Alcaldia Mayor de Bogota | T12: NIT: | Y12: 899999061
A14: Ver Hoja Cotización | F14: Dirección de la Entidad: | K14: Carrera 8 10 65 | T14: Municipio | Y14: Bogotá D.C
A16: PROVEEDOR | F16: Nombre funcionario Comprador: | K16: Arleth Patricia Saurith Contreras | T16: Teléfono de contacto: | Y16: 3813000
A18: Cotización | F18: Correo de comprador: | K18: apsaurith@alcaldiabogota.gov.co | T18: Numero RFI: | Y18: 190892
A20: ADMINISTRACIÓN SIMULADOR | F20: Solicitud de cotización
A22: Configuración | F22: Segmento | J22: Suite Corporativa | O22: Propósito | R22: N/A | W22: =+IF(SolCotizacion!$J$22="Suite Corporativa","Catálogo","Fabricante") -> Catálogo | Y22: MICROSOFT | AB22: Categoria | AD22: Enterprise Agreement-Educativo
F25: TRM | J25: 4194.18 | O25: Presupuesto estimado (COP) | R25: 100000 | W25: Limitación a MIPYME | Y25: NO | AB25: =+IF(AND(R25<=Var!$F$14,R25<>"",R25<>0),"El Evento de cotización puede ser limitado a MIPYME de acuerdo con la minuta del IAD","") -> El Evento de cotización puede ser limitado a MIPYME de acuerdo con la minuta del IAD
F28: Descripción general de la solución de software requerido
B33: paq | F33: Ítem | G33: Código del producto | I33: Nombre | L33: Descripción | S33: Tipo | T33: Asistencia | V33: Perfil | X33: Unidad | Y33: Zona | Z33: Información adicional | AD33: Forma de pago | AF33: Cantidad
F34: =IFERROR(IF(F33="Ítem",1,ROW()-ROW(SolCotizacion!$F$33)),ROW()-ROW(SolCotizacion!$F$33)) -> 1 | G34: T6A-00024EAEASENT | I34: =+IFERROR(VLOOKUP($G34,Cat_Filtro1!$D:$U,MATCH(SolCotizacion!I$33,Cat_Filtro1!$1:$1,0)-3,FALSE),"") -> Microsoft O365 E1 Exist Cust Subscription Per User_EAEASENT | L34: =+IFERROR(VLOOKUP($G34,Cat_Filtro1!$D:$U,MATCH(SolCotizacion!L$33,Cat_Filtro1!$1:$1,0)-3,FALSE),"") -> O365 E1 Exist Cust (Sujeto a condiciones. Validar con el Proveedor y/o Fabricante antes de publicar.) | S34: =+IFERROR(VLOOKUP($G34,Cat_Filtro1!$D:$U,MATCH(SolCotizacion!S$33,Cat_Filtro1!$1:$1,0)-3,FALSE),"") -> Monthly Subscriptions | T34: =+IFERROR(VLOOKUP($G34,Cat_Filtro1!$D:$U,MATCH(SolCotizacion!T$33,Cat_Filtro1!$1:$1,0)-3,FALSE),"") -> N/A | V34: =+IFERROR(VLOOKUP($G34,Cat_Filtro1!$D:$U,MATCH(SolCotizacion!V$33,Cat_Filtro1!$1:$1,0)-3,FALSE),"") -> N/A | X34: =+IFERROR(VLOOKUP($G34,Cat_Filtro1!$D:$U,MATCH(SolCotizacion!X$33,Cat_Filtro1!$1:$1,0)-3,FALSE),"") -> N/A | Y34: =+IFERROR(VLOOKUP($G34,Cat_Filtro1!$D:$U,MATCH(SolCotizacion!Y$33,Cat_Filtro1!$1:$1,0)-3,FALSE),"") -> N/A | Z34: =+IFERROR(VLOOKUP($G34,Cat_Filtro1!$D:$U,MATCH(SolCotizacion!Z$33,Cat_Filtro1!$1:$1,0)-3,FALSE),"") -> Acuerdos Microsoft: EA/EAS GOBIERNO Categoria: ENTERPRISE | AD34: =+IFERROR(VLOOKUP($G34,Cat_Filtro1!$D:$U,MATCH(SolCotizacion!AD$33,Cat_Filtro1!$1:$1,0)-3,FALSE),"") -> Suscripción mensual con pago anual | AF34: 7560
F35: =IFERROR(IF(F34="Ítem",1,ROW()-ROW(SolCotizacion!$F$33)),ROW()-ROW(SolCotizacion!$F$33)) -> 2 | G35: AAA-10842EAEASENT | I35: =+IFERROR(VLOOKUP($G35,Cat_Filtro1!$D:$U,MATCH(SolCotizacion!I$33,Cat_Filtro1!$1:$1,0)-3,FALSE),"") -> Microsoft O365 E3 Exist Cust Subscription Per User_EAEASENT | L35: =+IFERROR(VLOOKUP($G35,Cat_Filtro1!$D:$U,MATCH(SolCotizacion!L$33,Cat_Filtro1!$1:$1,0)-3,FALSE),"") -> O365 E3 Exist Cust (Sujeto a condiciones. Validar con el Proveedor y/o Fabricante antes de publicar.) | S35: =+IFERROR(VLOOKUP($G35,Cat_Filtro1!$D:$U,MATCH(SolCotizacion!S$33,Cat_Filtro1!$1:$1,0)-3,FALSE),"") -> Monthly Subscriptions | T35: =+IFERROR(VLOOKUP($G35,Cat_Filtro1!$D:$U,MATCH(SolCotizacion!T$33,Cat_Filtro1!$1:$1,0)-3,FALSE),"") -> N/A | V35: =+IFERROR(VLOOKUP($G35,Cat_Filtro1!$D:$U,MATCH(SolCotizacion!V$33,Cat_Filtro1!$1:$1,0)-3,FALSE),"") -> N/A | X35: =+IFERROR(VLOOKUP($G35,Cat_Filtro1!$D:$U,MATCH(SolCotizacion!X$33,Cat_Filtro1!$1:$1,0)-3,FALSE),"") -> N/A | Y35: =+IFERROR(VLOOKUP($G35,Cat_Filtro1!$D:$U,MATCH(SolCotizacion!Y$33,Cat_Filtro1!$1:$1,0)-3,FALSE),"") -> N/A | Z35: =+IFERROR(VLOOKUP($G35,Cat_Filtro1!$D:$U,MATCH(SolCotizacion!Z$33,Cat_Filtro1!$1:$1,0)-3,FALSE),"") -> Acuerdos Microsoft: EA/EAS GOBIERNO Categoria: ENTERPRISE | AD35: =+IFERROR(VLOOKUP($G35,Cat_Filtro1!$D:$U,MATCH(SolCotizacion!AD$33,Cat_Filtro1!$1:$1,0)-3,FALSE),"") -> Suscripción mensual con pago anual | AF35: 8040
F36: =IFERROR(IF(F35="Ítem",1,ROW()-ROW(SolCotizacion!$F$33)),ROW()-ROW(SolCotizacion!$F$33)) -> 3 | G36: 4DS-00001EAEASAP | I36: =+IFERROR(VLOOKUP($G36,Cat_Filtro1!$D:$U,MATCH(SolCotizacion!I$33,Cat_Filtro1!$1:$1,0)-3,FALSE),"") -> Microsoft EOA Exchange Online Subscription Per User_EAEASAP | L36: =+IFERROR(VLOOKUP($G36,Cat_Filtro1!$D:$U,MATCH(SolCotizacion!L$33,Cat_Filtro1!$1:$1,0)-3,FALSE),"") -> EOA Exchange Online | S36: =+IFERROR(VLOOKUP($G36,Cat_Filtro1!$D:$U,MATCH(SolCotizacion!S$33,Cat_Filtro1!$1:$1,0)-3,FALSE),"") -> Monthly Subscriptions | T36: =+IFERROR(VLOOKUP($G36,Cat_Filtro1!$D:$U,MATCH(SolCotizacion!T$33,Cat_Filtro1!$1:$1,0)-3,FALSE),"") -> N/A | V36: =+IFERROR(VLOOKUP($G36,Cat_Filtro1!$D:$U,MATCH(SolCotizacion!V$33,Cat_Filtro1!$1:$1,0)-3,FALSE),"") -> N/A | X36: =+IFERROR(VLOOKUP($G36,Cat_Filtro1!$D:$U,MATCH(SolCotizacion!X$33,Cat_Filtro1!$1:$1,0)-3,FALSE),"") -> N/A | Y36: =+IFERROR(VLOOKUP($G36,Cat_Filtro1!$D:$U,MATCH(SolCotizacion!Y$33,Cat_Filtro1!$1:$1,0)-3,FALSE),"") -> N/A | Z36: =+IFERROR(VLOOKUP($G36,Cat_Filtro1!$D:$U,MATCH(SolCotizacion!Z$33,Cat_Filtro1!$1:$1,0)-3,FALSE),"") -> Acuerdos Microsoft: EA/EAS GOBIERNO Categoria: ENTERPRISE | AD36: =+IFERROR(VLOOKUP($G36,Cat_Filtro1!$D:$U,MATCH(SolCotizacion!AD$33,Cat_Filtro1!$1:$1,0)-3,FALSE),"") -> Suscripción mensual con pago anual | AF36: 1800
F37: =IFERROR(IF(F36="Ítem",1,ROW()-ROW(SolCotizacion!$F$33)),ROW()-ROW(SolCotizacion!$F$33)) -> 4 | G37: 9EA-00039EAAP | I37: =+IFERROR(VLOOKUP($G37,Cat_Filtro1!$D:$U,MATCH(SolCotizacion!I$33,Cat_Filtro1!$1:$1,0)-3,FALSE),"") -> Microsoft Win Server Datacenter Core All Languages License & Software Assurance 2 Licenses_EAAP | L37: =+IFERROR(VLOOKUP($G37,Cat_Filtro1!$D:$U,MATCH(SolCotizacion!L$33,Cat_Filtro1!$1:$1,0)-3,FALSE),"") -> Win Server Datacenter Core | S37: =+IFERROR(VLOOKUP($G37,Cat_Filtro1!$D:$U,MATCH(SolCotizacion!S$33,Cat_Filtro1!$1:$1,0)-3,FALSE),"") -> License/Software Assurance Pack | T37: =+IFERROR(VLOOKUP($G37,Cat_Filtro1!$D:$U,MATCH(SolCotizacion!T$33,Cat_Filtro1!$1:$1,0)-3,FALSE),"") -> N/A | V37: =+IFERROR(VLOOKUP($G37,Cat_Filtro1!$D:$U,MATCH(SolCotizacion!V$33,Cat_Filtro1!$1:$1,0)-3,FALSE),"") -> N/A | X37: =+IFERROR(VLOOKUP($G37,Cat_Filtro1!$D:$U,MATCH(SolCotizacion!X$33,Cat_Filtro1!$1:$1,0)-3,FALSE),"") -> N/A | Y37: =+IFERROR(VLOOKUP($G37,Cat_Filtro1!$D:$U,MATCH(SolCotizacion!Y$33,Cat_Filtro1!$1:$1,0)-3,FALSE),"") -> N/A | Z37: =+IFERROR(VLOOKUP($G37,Cat_Filtro1!$D:$U,MATCH(SolCotizacion!Z$33,Cat_Filtro1!$1:$1,0)-3,FALSE),"") -> Acuerdos Microsoft: EA GOBIERNO Categoria: ENTERPRISE | AD37: =+IFERROR(VLOOKUP($G37,Cat_Filtro1!$D:$U,MATCH(SolCotizacion!AD$33,Cat_Filtro1!$1:$1,0)-3,FALSE),"") -> Licencia | AF37: 96
F38: =IFERROR(IF(F37="Ítem",1,ROW()-ROW(SolCotizacion!$F$33)),ROW()-ROW(SolCotizacion!$F$33)) -> 5 | G38: NK4-00002EAEASAP | I38: =+IFERROR(VLOOKUP($G38,Cat_Filtro1!$D:$U,MATCH(SolCotizacion!I$33,Cat_Filtro1!$1:$1,0)-3,FALSE),"") -> Microsoft Power BI Pro Subscription Per User_EAEASAP | L38: =+IFERROR(VLOOKUP($G38,Cat_Filtro1!$D:$U,MATCH(SolCotizacion!L$33,Cat_Filtro1!$1:$1,0)-3,FALSE),"") -> Power BI Pro | S38: =+IFERROR(VLOOKUP($G38,Cat_Filtro1!$D:$U,MATCH(SolCotizacion!S$33,Cat_Filtro1!$1:$1,0)-3,FALSE),"") -> Monthly Subscriptions | T38: =+IFERROR(VLOOKUP($G38,Cat_Filtro1!$D:$U,MATCH(SolCotizacion!T$33,Cat_Filtro1!$1:$1,0)-3,FALSE),"") -> N/A | V38: =+IFERROR(VLOOKUP($G38,Cat_Filtro1!$D:$U,MATCH(SolCotizacion!V$33,Cat_Filtro1!$1:$1,0)-3,FALSE),"") -> N/A | X38: =+IFERROR(VLOOKUP($G38,Cat_Filtro1!$D:$U,MATCH(SolCotizacion!X$33,Cat_Filtro1!$1:$1,0)-3,FALSE),"") -> N/A | Y38: =+IFERROR(VLOOKUP($G38,Cat_Filtro1!$D:$U,MATCH(SolCotizacion!Y$33,Cat_Filtro1!$1:$1,0)-3,FALSE),"") -> N/A | Z38: =+IFERROR(VLOOKUP($G38,Cat_Filtro1!$D:$U,MATCH(SolCotizacion!Z$33,Cat_Filtro1!$1:$1,0)-3,FALSE),"") -> Acuerdos Microsoft: EA/EAS GOBIERNO Categoria: ENTERPRISE | AD38: =+IFERROR(VLOOKUP($G38,Cat_Filtro1!$D:$U,MATCH(SolCotizacion!AD$33,Cat_Filtro1!$1:$1,0)-3,FALSE),"") -> Suscripción mensual con pago anual | AF38: 240
F39: =IFERROR(IF(F38="Ítem",1,ROW()-ROW(SolCotizacion!$F$33)),ROW()-ROW(SolCotizacion!$F$33)) -> 6 | G39: 83I-00001EAEASAP | I39: =+IFERROR(VLOOKUP($G39,Cat_Filtro1!$D:$U,MATCH(SolCotizacion!I$33,Cat_Filtro1!$1:$1,0)-3,FALSE),"") -> Microsoft M365 Copilot Sub Add-on_EAEASAP | L39: =+IFERROR(VLOOKUP($G39,Cat_Filtro1!$D:$U,MATCH(SolCotizacion!L$33,Cat_Filtro1!$1:$1,0)-3,FALSE),"") -> M365 Copilot | S39: =+IFERROR(VLOOKUP($G39,Cat_Filtro1!$D:$U,MATCH(SolCotizacion!S$33,Cat_Filtro1!$1:$1,0)-3,FALSE),"") -> Monthly Subscriptions | T39: =+IFERROR(VLOOKUP($G39,Cat_Filtro1!$D:$U,MATCH(SolCotizacion!T$33,Cat_Filtro1!$1:$1,0)-3,FALSE),"") -> N/A | V39: =+IFERROR(VLOOKUP($G39,Cat_Filtro1!$D:$U,MATCH(SolCotizacion!V$33,Cat_Filtro1!$1:$1,0)-3,FALSE),"") -> N/A | X39: =+IFERROR(VLOOKUP($G39,Cat_Filtro1!$D:$U,MATCH(SolCotizacion!X$33,Cat_Filtro1!$1:$1,0)-3,FALSE),"") -> N/A | Y39: =+IFERROR(VLOOKUP($G39,Cat_Filtro1!$D:$U,MATCH(SolCotizacion!Y$33,Cat_Filtro1!$1:$1,0)-3,FALSE),"") -> N/A | Z39: =+IFERROR(VLOOKUP($G39,Cat_Filtro1!$D:$U,MATCH(SolCotizacion!Z$33,Cat_Filtro1!$1:$1,0)-3,FALSE),"") -> Acuerdos Microsoft: EA/EAS GOBIERNO Categoria: ENTERPRISE | AD39: =+IFERROR(VLOOKUP($G39,Cat_Filtro1!$D:$U,MATCH(SolCotizacion!AD$33,Cat_Filtro1!$1:$1,0)-3,FALSE),"") -> Suscripción mensual con pago anual | AF39: 72
F40: =IFERROR(IF(F39="Ítem",1,ROW()-ROW(SolCotizacion!$F$33)),ROW()-ROW(SolCotizacion!$F$33)) -> 7 | G40: 7LS-00002EAEASAP | I40: =+IFERROR(VLOOKUP($G40,Cat_Filtro1!$D:$U,MATCH(SolCotizacion!I$33,Cat_Filtro1!$1:$1,0)-3,FALSE),"") -> Microsoft Planner & Project P3 Subsciption Per User_EAEASAP | L40: =+IFERROR(VLOOKUP($G40,Cat_Filtro1!$D:$U,MATCH(SolCotizacion!L$33,Cat_Filtro1!$1:$1,0)-3,FALSE),"") -> Planner & Project P3 | S40: =+IFERROR(VLOOKUP($G40,Cat_Filtro1!$D:$U,MATCH(SolCotizacion!S$33,Cat_Filtro1!$1:$1,0)-3,FALSE),"") -> Monthly Subscriptions | T40: =+IFERROR(VLOOKUP($G40,Cat_Filtro1!$D:$U,MATCH(SolCotizacion!T$33,Cat_Filtro1!$1:$1,0)-3,FALSE),"") -> N/A | V40: =+IFERROR(VLOOKUP($G40,Cat_Filtro1!$D:$U,MATCH(SolCotizacion!V$33,Cat_Filtro1!$1:$1,0)-3,FALSE),"") -> N/A | X40: =+IFERROR(VLOOKUP($G40,Cat_Filtro1!$D:$U,MATCH(SolCotizacion!X$33,Cat_Filtro1!$1:$1,0)-3,FALSE),"") -> N/A | Y40: =+IFERROR(VLOOKUP($G40,Cat_Filtro1!$D:$U,MATCH(SolCotizacion!Y$33,Cat_Filtro1!$1:$1,0)-3,FALSE),"") -> N/A | Z40: =+IFERROR(VLOOKUP($G40,Cat_Filtro1!$D:$U,MATCH(SolCotizacion!Z$33,Cat_Filtro1!$1:$1,0)-3,FALSE),"") -> Acuerdos Microsoft: EA/EAS GOBIERNO Categoria: ENTERPRISE | AD40: =+IFERROR(VLOOKUP($G40,Cat_Filtro1!$D:$U,MATCH(SolCotizacion!AD$33,Cat_Filtro1!$1:$1,0)-3,FALSE),"") -> Suscripción mensual con pago anual | AF40: 72
G42: Filas a agregar o eliminar:
G43: 1
F45: Gravámenes adicionales
B48: grav | F48: No | G48: Descripción Gravámen | AE48: Porcentaje
F49: =+IF(F48="No",1,F48+1) -> 1 | AE49: 0.041
G50: Total porcentaje: | AE50: =SUM(AE49:OFFSET(W50,-1,-1)) -> 0.041
G51: Filas a agregar o eliminar Gravámenes:
G52: 1
B54: fin_hoja

Sheet Anexo (hidden)
B1: Con el objetivo de complementar el entendimiento sobre la solicitud de Productos y Servicios, por favor diligencie la totalidad de la información que se pide a continuación. Recuerde que la información suministrada en este Anexo es con el fin de brindar claridad a los proveedores, sin embargo, esta NO DEBE IR EN CONTRAVIA DE LAS DISPOSICIONES DEL INSTRUMENTO.
B3: Tenga en cuenta que esta información es de utilidad para que el Proveedor pueda cotizar de la manera más precisa posible los Productos y Servicios solicitados, por lo cual la exactitud y completitud es muy importante.
A4: No | B4: Requerimiento adicional | C4: Descripción | D4: INFORMACION SUMINISTRADA POR LA ENTIDAD COMPRADORA
B5: Nombre y Nit de la Entidad Estatal a la cual se le entregará la titularidad de las licencias adquiridas.
A6: 1 | B6: Lugar de entrega de los Productos y Servicios. (Especificar dirección y ciudad de entrega).
A7: 2 | B7: Datos Contacto de entrega (Especificar nombre, teléfono y correo electrónico).
A8: 3 | B8: Funciones a realizar el soporte en sitio.
A9: 4 | B9: Área de conocimiento de las personas que prestan el servicio de soporte técnico proactivo.
A10: 5 | B10: Área de conocimiento de las personas que prestan el servicio de soporte técnico reactivo.
A11: 6 | B11: Mecanismo de solicitud del soporte reactivo.
A12: 7 | B12: Especificar que información o que bases de datos se van a migrar. Aplica en el caso que la Entidad Compradora solicite el servicio de migración de información o de bases de datos.
A13: 8 | B13: Actividades del gerente de cuenta.
A14: 9 | B14: Indique número de personas que requieren de capacitación. En caso que la Entidad Compradora solicite el servicio de capacitación usuario final o usuario técnico.
A15: 10 | B15: Especificar características de configuración y descripción de las tareas a realizar. En caso que la Entidad Compradora solicite el servicio de configuración y parametrización.
A16: 12 | B16: Establecer las políticas de respaldo de información.

Sheet ResCotizacion
F1: RESUMEN DE COTIZACIÓN
F3: ="Versión:" & Var!$F$10 -> Versión:14 12/04/2025 | L3: Software por Catálogo II
A5: MENÚ DE NAVEGACIÓN | F5: Software por Catálogo II
A8: ENTIDAD COMPRADORA
A10: Solicitud de Cotización | F10: Información de la Entidad Compradora
A12: Resumen Cotización | F12: Nombre de la Entidad: | K12: Secretaria General de Alcaldia Mayor de Bogota | T12: NIT: | Y12: 899999061
A14: Ver Hoja Cotización | F14: Dirección de la Entidad: | K14: Carrera 8 10 65 | T14: Municipio | Y14: Bogotá D.C
A16: PROVEEDOR | F16: Nombre funcionario Comprador: | K16: Arleth Patricia Saurith Contreras | T16: Teléfono de contacto: | Y16: 3813000
A18: Cotización | F18: Correo de comprador: | K18: apsaurith@alcaldiabogota.gov.co | T18: Numero RFI: | Y18: 190892
A20: ADMINISTRACIÓN SIMULADOR | F20: Solicitud de cotización
A22: Configuración | F22: Segmento | J22: Suite Corporativa | O22: Propósito | R22: N/A | W22: Catálogo | Y22: MICROSOFT | AB22: Categoria | AD22: Enterprise Agreement-Educativo
F25: TRM | J25: 4194.18 | O25: Presupuesto estimado (COP) | R25: 100000 | W25: Limitación a MIPYME | Y25: NO | AB25: El Evento de cotización puede ser limitado a MIPYME de acuerdo con la minuta del IAD
F28: Descripción general de la solución de software requerido
B33: paq | F33: Ítem | G33: Código del producto | I33: Nombre | L33: Descripción | S33: Tipo | T33: Asistencia | V33: Perfil | X33: Unidad | Y33: Zona | Z33: Información adicional | AD33: Forma de pago | AF33: Cantidad | AH33: Precio unitario | AK33: Precio unitario + Gravámenes | AN33: Precio total
F34: 1 | G34: T6A-00024EAEASENT | I34: Microsoft O365 E1 Exist Cust Subscription Per User_EAEASENT | L34: O365 E1 Exist Cust (Sujeto a condiciones. Validar con el Proveedor y/o Fabricante antes de publicar.) | S34: Monthly Subscriptions | T34: N/A | V34: N/A | X34: N/A | Y34: N/A | Z34: Acuerdos Microsoft: EA/EAS GOBIERNO Categoria: ENTERPRISE | AD34: Suscripción mensual con pago anual | AF34: 7560 | AH34: =+IFERROR(ROUND(VLOOKUP(F34&"_"&G34,Cat_resumido!$C:$CZ,Var!$F$2-2,FALSE)/AF34,0),"") -> 38167 | AK34: =+IFERROR(ROUND(AH34/(1-Var!$F$3),0),"") -> 39799 | AN34: =IFERROR(ROUND(AF34*AK34,2),"") -> 300880440
F35: 2 | G35: AAA-10842EAEASENT | I35: Microsoft O365 E3 Exist Cust Subscription Per User_EAEASENT | L35: O365 E3 Exist Cust (Sujeto a condiciones. Validar con el Proveedor y/o Fabricante antes de publicar.) | S35: Monthly Subscriptions | T35: N/A | V35: N/A | X35: N/A | Y35: N/A | Z35: Acuerdos Microsoft: EA/EAS GOBIERNO Categoria: ENTERPRISE | AD35: Suscripción mensual con pago anual | AF35: 8040 | AH35: =+IFERROR(ROUND(VLOOKUP(F35&"_"&G35,Cat_resumido!$C:$CZ,Var!$F$2-2,FALSE)/AF35,0),"") -> 87658 | AK35: =+IFERROR(ROUND(AH35/(1-Var!$F$3),0),"") -> 91406 | AN35: 734904240
F36: 3 | G36: 4DS-00001EAEASAP | I36: Microsoft EOA Exchange Online Subscription Per User_EAEASAP | L36: EOA Exchange Online | S36: Monthly Subscriptions | T36: N/A | V36: N/A | X36: N/A | Y36: N/A | Z36: Acuerdos Microsoft: EA/EAS GOBIERNO Categoria: ENTERPRISE | AD36: Suscripción mensual con pago anual | AF36: 1800 | AH36: =+IFERROR(ROUND(VLOOKUP(F36&"_"&G36,Cat_resumido!$C:$CZ,Var!$F$2-2,FALSE)/AF36,0),"") -> 13002 | AK36: =+IFERROR(ROUND(AH36/(1-Var!$F$3),0),"") -> 13558 | AN36: 24404400
F37: 4 | G37: 9EA-00039EAAP | I37: Microsoft Win Server Datacenter Core All Languages License & Software Assurance 2 Licenses_EAAP | L37: Win Server Datacenter Core | S37: License/Software Assurance Pack | T37: N/A | V37: N/A | X37: N/A | Y37: N/A | Z37: Acuerdos Microsoft: EA GOBIERNO Categoria: ENTERPRISE | AD37: Licencia | AF37: 96 | AH37: =+IFERROR(ROUND(VLOOKUP(F37&"_"&G37,Cat_resumido!$C:$CZ,Var!$F$2-2,FALSE)/AF37,0),"") -> 3730723 | AK37: =+IFERROR(ROUND(AH37/(1-Var!$F$3),0),"") -> 3890222 | AN37: 373461312
F38: 5 | G38: NK4-00002EAEASAP | I38: Microsoft Power BI Pro Subscription Per User_EAEASAP | L38: Power BI Pro | S38: Monthly Subscriptions | T38: N/A | V38: N/A | X38: N/A | Y38: N/A | Z38: Acuerdos Microsoft: EA/EAS GOBIERNO Categoria: ENTERPRISE | AD38: Suscripción mensual con pago anual | AF38: 240 | AH38: =+IFERROR(ROUND(VLOOKUP(F38&"_"&G38,Cat_resumido!$C:$CZ,Var!$F$2-2,FALSE)/AF38,0),"") -> 53686 | AK38: =+IFERROR(ROUND(AH38/(1-Var!$F$3),0),"") -> 55981 | AN38: 13435440
F39: 6 | G39: 83I-00001EAEASAP | I39: Microsoft M365 Copilot Sub Add-on_EAEASAP | L39: M365 Copilot | S39: Monthly Subscriptions | T39: N/A | V39: N/A | X39: N/A | Y39: N/A | Z39: Acuerdos Microsoft: EA/EAS GOBIERNO Categoria: ENTERPRISE | AD39: Suscripción mensual con pago anual | AF39: 72 | AH39: =+IFERROR(ROUND(VLOOKUP(F39&"_"&G39,Cat_resumido!$C:$CZ,Var!$F$2-2,FALSE)/AF39,0),"") -> 130020 | AK39: =+IFERROR(ROUND(AH39/(1-Var!$F$3),0),"") -> 135579 | AN39: 9761688
F40: 7 | G40: 7LS-00002EAEASAP | I40: Microsoft Planner & Project P3 Subsciption Per User_EAEASAP | L40: Planner & Project P3 | S40: Monthly Subscriptions | T40: N/A | V40: N/A | X40: N/A | Y40: N/A | Z40: Acuerdos Microsoft: EA/EAS GOBIERNO Categoria: ENTERPRISE | AD40: Suscripción mensual con pago anual | AF40: 72 | AH40: =+IFERROR(ROUND(VLOOKUP(F40&"_"&G40,Cat_resumido!$C:$CZ,Var!$F$2-2,FALSE)/AF40,0),"") -> 114501 | AK40: =+IFERROR(ROUND(AH40/(1-Var!$F$3),0),"") -> 119396 | AN40: 8596512
AK41: Subtotal | AN41: =+SUM(OFFSET(AK$1,0,3,MATCH("Subtotal",AK:AK,0)-1)) -> 1465444032
AK42: IVA | AN42: 278434367
AK43: Valor Total | AN43: =+AN42+AN41 -> 1743878399
F45: Gravámenes adicionales
B48: grav | F48: No | G48: Descripción Gravámen | AE48: Porcentaje
F49: 1 | AE49: 0.041
G50: Total porcentaje: | AE50: 0.041
B52: fin_hoja

Sheet Cotizacion
F1: COTIZACIÓN
F3: ="Versión:" & Var!$F$10 -> Versión:14 12/04/2025 | L3: Software por Catálogo II
A5: MENÚ DE NAVEGACIÓN | F5: Software por Catálogo II
A8: ENTIDAD COMPRADORA
A10: Solicitud de Cotización | F10: Información de la Entidad Compradora
A12: Resumen Cotización | F12: Nombre de la Entidad: | K12: Secretaria General de Alcaldia Mayor de Bogota | T12: NIT: | Y12: 899999061
A14: Ver Hoja Cotización | F14: Dirección de la Entidad: | K14: Carrera 8 10 65 | T14: Municipio | Y14: Bogotá D.C
A16: PROVEEDOR | F16: Nombre funcionario Comprador: | K16: Arleth Patricia Saurith Contreras | T16: Teléfono de contacto: | Y16: 3813000
A18: Cotización | F18: Correo de comprador: | K18: apsaurith@alcaldiabogota.gov.co | T18: Numero RFI: | Y18: 190892
A20: ADMINISTRACIÓN SIMULADOR | F20: Solicitud de cotización
A22: Configuración | F22: Segmento | J22: Suite Corporativa | O22: Propósito | R22: N/A | W22: Catálogo | Y22: MICROSOFT | AB22: Categoria | AD22: Enterprise Agreement-Educativo
F25: TRM | J25: 4194.18 | O25: Presupuesto estimado (COP) | R25: 100000 | W25: Limitación a MIPYME | Y25: NO | AB25: El Evento de cotización puede ser limitado a MIPYME de acuerdo con la minuta del IAD
F28: Descripción general de la solución de software requerido
F32: Proveedor | I32: CONTROLES EMPRESARIALES S.A.S
B33: paq | F33: Ítem | G33: Código del producto | I33: Nombre | L33: Descripción | S33: Tipo | T33: Asistencia | V33: Perfil | X33: Unidad | Y33: Zona | Z33: Información adicional | AD33: Forma de pago | AF33: Cantidad | AH33: Precio unitario | AK33: Precio Unitario + Gravámenes | AN33: Descuento | AP33: Precio Unitario con Descuento | AS33: Precio Total | AV33: IVA | AX33: % IVA | AZ33: Valor IVA | BC33: Total
F34: 1 | G34: T6A-00024EAEASENT | I34: Microsoft O365 E1 Exist Cust Subscription Per User_EAEASENT | L34: O365 E1 Exist Cust (Sujeto a condiciones. Validar con el Proveedor y/o Fabricante antes de publicar.) | S34: Monthly Subscriptions | T34: N/A | V34: N/A | X34: N/A | Y34: N/A | Z34: Acuerdos Microsoft: EA/EAS GOBIERNO Categoria: ENTERPRISE | AD34: Suscripción mensual con pago anual | AF34: 7560 | AH34: =+IFERROR(ROUND(VLOOKUP(F34&"_"&G34,Cat_resumido!$C:$CZ,Var!$F$6-2,FALSE)/AF34,0),"") -> 38167 | AK34: =+IFERROR(ROUND(AH34/(1-Var!$F$3),0),"") -> 39799 | AP34: =IFERROR(ROUND(AK34*(1-AN34),0),"") -> 39799 | AS34: =IFERROR(ROUND(AP34*AF34,0),"") -> 300880440 | AZ34: =+IFERROR(IF(AV34="SI",ROUND(AS34*AX34,0),0),"") -> 0 | BC34: =+IFERROR(AS34+AZ34,"") -> 300880440
F35: 2 | G35: AAA-10842EAEASENT | I35: Microsoft O365 E3 Exist Cust Subscription Per User_EAEASENT | L35: O365 E3 Exist Cust (Sujeto a condiciones. Validar con el Proveedor y/o Fabricante antes de publicar.) | S35: Monthly Subscriptions | T35: N/A | V35: N/A | X35: N/A | Y35: N/A | Z35: Acuerdos Microsoft: EA/EAS GOBIERNO Categoria: ENTERPRISE | AD35: Suscripción mensual con pago anual | AF35: 8040 | AH35: =+IFERROR(ROUND(VLOOKUP(F35&"_"&G35,Cat_resumido!$C:$CZ,Var!$F$6-2,FALSE)/AF35,0),"") -> 87658 | AK35: =+IFERROR(ROUND(AH35/(1-Var!$F$3),0),"") -> 91406 | AP35: 91406 | AS35: 734904240 | AZ35: 0 | BC35: 734904240
F36: 3 | G36: 4DS-00001EAEASAP | I36: Microsoft EOA Exchange Online Subscription Per User_EAEASAP | L36: EOA Exchange Online | S36: Monthly Subscriptions | T36: N/A | V36: N/A | X36: N/A | Y36: N/A | Z36: Acuerdos Microsoft: EA/EAS GOBIERNO Categoria: ENTERPRISE | AD36: Suscripción mensual con pago anual | AF36: 1800 | AH36: =+IFERROR(ROUND(VLOOKUP(F36&"_"&G36,Cat_resumido!$C:$CZ,Var!$F$6-2,FALSE)/AF36,0),"") -> 13002 | AK36: =+IFERROR(ROUND(AH36/(1-Var!$F$3),0),"") -> 13558 | AP36: 13558 | AS36: 24404400 | AZ36: 0 | BC36: 24404400
F37: 4 | G37: 9EA-00039EAAP | I37: Microsoft Win Server Datacenter Core All Languages License & Software Assurance 2 Licenses_EAAP | L37: Win Server Datacenter Core | S37: License/Software Assurance Pack | T37: N/A | V37: N/A | X37: N/A | Y37: N/A | Z37: Acuerdos Microsoft: EA GOBIERNO Categoria: ENTERPRISE | AD37: Licencia | AF37: 96 | AH37: =+IFERROR(ROUND(VLOOKUP(F37&"_"&G37,Cat_resumido!$C:$CZ,Var!$F$6-2,FALSE)/AF37,0),"") -> 3730723 | AK37: =+IFERROR(ROUND(AH37/(1-Var!$F$3),0),"") -> 3890222 | AP37: 3890222 | AS37: 373461312 | AV37: SI | AX37: 0.19 | AZ37: 70957649 | BC37: 444418961
F38: 5 | G38: NK4-00002EAEASAP | I38: Microsoft Power BI Pro Subscription Per User_EAEASAP | L38: Power BI Pro | S38: Monthly Subscriptions | T38: N/A | V38: N/A | X38: N/A | Y38: N/A | Z38: Acuerdos Microsoft: EA/EAS GOBIERNO Categoria: ENTERPRISE | AD38: Suscripción mensual con pago anual | AF38: 240 | AH38: =+IFERROR(ROUND(VLOOKUP(F38&"_"&G38,Cat_resumido!$C:$CZ,Var!$F$6-2,FALSE)/AF38,0),"") -> 53686 | AK38: =+IFERROR(ROUND(AH38/(1-Var!$F$3),0),"") -> 55981 | AP38: 55981 | AS38: 13435440 | AZ38: 0 | BC38: 13435440
F39: 6 | G39: 83I-00001EAEASAP | I39: Microsoft M365 Copilot Sub Add-on_EAEASAP | L39: M365 Copilot | S39: Monthly Subscriptions | T39: N/A | V39: N/A | X39: N/A | Y39: N/A | Z39: Acuerdos Microsoft: EA/EAS GOBIERNO Categoria: ENTERPRISE | AD39: Suscripción mensual con pago anual | AF39: 72 | AH39: =+IFERROR(ROUND(VLOOKUP(F39&"_"&G39,Cat_resumido!$C:$CZ,Var!$F$6-2,FALSE)/AF39,0),"") -> 130020 | AK39: =+IFERROR(ROUND(AH39/(1-Var!$F$3),0),"") -> 135579 | AP39: 135579 | AS39: 9761688 | AZ39: 0 | BC39: 9761688
F40: 7 | G40: 7LS-00002EAEASAP | I40: Microsoft Planner & Project P3 Subsciption Per User_EAEASAP | L40: Planner & Project P3 | S40: Monthly Subscriptions | T40: N/A | V40: N/A | X40: N/A | Y40: N/A | Z40: Acuerdos Microsoft: EA/EAS GOBIERNO Categoria: ENTERPRISE | AD40: Suscripción mensual con pago anual | AF40: 72 | AH40: =+IFERROR(ROUND(VLOOKUP(F40&"_"&G40,Cat_resumido!$C:$CZ,Var!$F$6-2,FALSE)/AF40,0),"") -> 114501 | AK40: =+IFERROR(ROUND(AH40/(1-Var!$F$3),0),"") -> 119396 | AP40: 119396 | AS40: 8596512 | AZ40: 0 | BC40: 8596512
AH41: Subtotales | AS41: =+SUM(OFFSET(AH$1,0,11,MATCH("Subtotales",AH:AH,0)-1)) -> 1465444032 | AV41: Subtotales | AZ41: =+SUM(OFFSET(AH$1,0,18,MATCH("Subtotales",AH:AH,0)-1)) -> 70957649 | BC41: =+SUM(OFFSET(AH$1,0,21,MATCH("Subtotales",AH:AH,0)-1)) -> 1536401681
F43: Gravámenes adicionales
B46: grav | F46: No | G46: Descripción Gravámen | AE46: Porcentaje
F47: 1 | AE47: 0.041
G48: Total porcentaje: | AE48: 0.041
B50: fin_hoja

Sheet Resultados (hidden)
F1: SIMULADOR COMBUSTIBLE NACIONAL
A3: Versión: 1.0 | F3: CONSOLIDACIÓN Y RESULTADOS
A4: 2022-12-05
A5: MENÚ DE NAVEGACIÓN
A8: ENTIDAD COMPRADORA
A10: Elección Categoría/Segmento | F10: CONSOLIDACIÓN PROPUESTAS
A12: Solicitud de Cotización | AC12: DESCUENTO INTEGRAL | AH12: DESCUENTO EXTRA | AM12: CANTIDAD DE ESTACIONES DE SERVICIOS
F13: Ítem | G13: Departamento | K13: Ciudad / Municipio | O13: Ciudad referencia | S13: Capital / Cobertura | W13: Margen Mayorista | Z13: Margen Minorista | CA13: PROVEEDOR SELECCIONADO
A14: Resumen Cotización | F14: =+IF(F13="Ítem",1,F13+1) -> 1 | G14: Antioquia | K14: Caldas | O14: Medellín | S14: Cobertura | W14: 460.7 | Z14: 845.12
F15: =+IF(F14="Ítem",1,F14+1) -> 2 | G15: Antioquia | K15: La Estrella | O15: Medellín | S15: Cobertura | W15: 460.7 | Z15: 845.12
A16: Ver Hoja Cotización
A18: Consolidar respuestas
A20: PROVEEDOR
A22: Cotización
A24: ADMINISTRACIÓN SIMULADOR
A26: Tabla Maestra de precios

Sheet Configuracion (hidden)
F1: CONFIGURACIÓN
F3: =+SolCotizacion!F3 -> Versión:14 12/04/2025 | L3: Software por catalogo II
F4: =+SolCotizacion!F4 -> 00:00:00
A5: MENÚ DE NAVEGACIÓN | F5: Acuerdo marco de precios para la adquisición de servicios de apoyo al modelo de Gestión Territorial
A8: ENTIDAD COMPRADORA
F9: Parametrización de accesos
A10: Solicitud de Cotización | F10: Rol | K10: Contraseña
A12: Resumen Cotización | F12: Entidad_compradora | K12: 123
A14: Ver Hoja Cotización | F14: Proveedor
A16: PROVEEDOR | F16: Administracion | K16: 123U
A18: Cotización
A20: ADMINISTRACIÓN SIMULADOR
A22: Configuración

Sheet Listas (hidden)
A1: Proveedor | E1: Departamento CatA | F1: Departamento seg3 | H1: Municipios CatA | Z1: Municipios seg3 | AK1: Desde aquí las listas de Unbiformes | AO1: Categorías | AW1: REGIÓN (SEGÚN EL PND) | BD1: Llave | BE1: DEPARTAMENTO | BF1: MUNICIPIO | BG1: REGIÓN (SEGÚN EL PND) | BH1: Cluster | BL1: DEPARTAMENTO | BP1: Modalidades de entrega | BU1: Logo corporativo | BV1: Nombre Original | CB1: Lista Booleana | CE1: Código del producto | CF1: Este campo es calculado mediante filtro avanzado | CL1: Lista proveedores admitidos | CQ1: Proponente CtelEP (validado mediante codigo si es MIPYME) | CU1: Proponente CtelEP (Lista completa) | CX1: Observaciones | DA1: Segmentos
A2: CatA | B2: CatC | C2: seg3 | E2: Cundinamarca | F2: Cundinamarca | H2: Cundinamarca | I2: Antioquia | J2: Santander | K2: Atlántico | L2: Bolívar | M2: Boyacá | N2: Caldas | O2: Córdoba | P2: Huila | Q2: Magdalena | R2: Meta | S2: Quindío | T2: Risaralda | U2: Sucre | V2: Tolima | W2: Valle del Cauca | Z2: Cundinamarca | AA2: Antioquia | AO2: Uno (1) - Uniformes formales hombre | AW2: REGIÓN UNO (1) ALTIPLANO | BD2: =IF(BF2<>"Otro",BE2&"_"&BF2,BE2&"_zzzz"&BF2) -> Amazonas_Leticia | BE2: Amazonas | BF2: Leticia | BG2: REGIÓN DOS (2) AMAZONÍA | BH2: 3 | BL2: Amazonas | BP2: Set de tallas | BR2: Catálogo esta modalidad se coloca mediante codigo para la cat 5 y cat 10 | BU2: Bordado tam. bolsillo. | BV2: Logo corporativo bordado tamaño bolsillo. | CB2: Si | CE2: CAT1-001 | CL2: CONSORCIO IAD DINAMICO SOFTWAREONE | CQ2: CLOUD LABS. SAS | CU2: CLOUD LABS. SAS | CX2: 18/12/2024---Se elimina el proveedor GAVITI CONSULTING SAS de acuerdo a solicitud GLPI: 1288954 | DA2: Suite Corporativa
A3: GRUPO EDS AUTOGAS SAS | B3: SODEXO SERVICIOS DE BENEFICIOS E INCENTIVOS COLOMBIA S.A.S. | C3: GRUPO EDS AUTOGAS SAS | E3: Antioquia | F3: Antioquia | H3: Bogotá D.C | I3: Medellín | J3: Bucaramanga | K3: Barranquilla | L3: Cartagena | M3: Tunja | N3: Manizales | O3: Montería | P3: Neiva | Q3: Santa Marta | R3: Villavicencio | S3: Armenia | T3: Pereira | U3: Sincelejo | V3: Ibagué | W3: Cali | Z3: Bogotá D.C | AA3: Medellín | AO3: Dos (2) - Uniformes deportivos hombre | AW3: REGIÓN DOS (2) AMAZONÍA | BD3: Amazonas_Puerto Nariño | BE3: Amazonas | BF3: Puerto Nariño | BG3: REGIÓN DOS (2) AMAZONÍA | BH3: 3 | BL3: Antioquia | BP3: Toma de medidas | BU3: Bordado tam. espalda. | BV3: Logo corporativo bordado tamaño espalda. | CB3: No | CE3: CAT1-002 | CL3: CONTROLES EMPRESARIALES S.A.S | CQ3: GOVTECH | CU3: GOVTECH | DA3: Software General
A4: GLOBOLLANTAS LTDA | B4: BIG PASS S.A.S. | C4: DISTRACOM SA | E4: Santander | H4: Chía | I4: Caldas | J4: Girón | K4: Soledad | T4: Dosquebradas | W4: Palmira | Z4: Cajicá | AA4: Caldas | AO4: Tres (3) - Uniformes varios para hombre | AW4: REGIÓN TRES (3) ANTIOQUIA | BD4: Amazonas_zzzzOtro | BE4: Amazonas | BF4: Otro | BG4: REGIÓN DOS (2) AMAZONÍA | BH4: 3 | BL4: Arauca | BU4: Estamp. tam. bolsillo a una tinta. | BV4: Logo corporativo estampado tamaño bolsillo a una tinta. | CE4: CAT1-003 | CL4: UNION TEMPORAL BGH 2024 | CQ4: INFO-VISIBLE | CU4: INFO-VISIBLE | DA4: CteI/EP
A5: ORGANIZACIÓN TERPEL S.A | B5: DISTRACOM SA | E5: Atlántico | H5: Cota | I5: La Estrella | K5: Malambo | W5: Jamundí | Z5: Chía | AA5: La Estrella | AO5: Cuatro (4) - Uniformes antifluido para hombre | AW5: REGIÓN CUATRO (4) CARIBE CENTRAL | BD5: Antioquia_Abejorral | BE5: Antioquia | BF5: Abejorral | BG5: REGIÓN TRES (3) ANTIOQUIA | BH5: 3 | BL5: Archipiélago De San Andrés Y Providencia | BU5: Estamp. tam. bolsillo a dos tintas. | BV5: Logo corporativo estampado tamaño bolsillo a dos tintas. | CE5: CAT1-004 | CQ5: INNCORE ADVISORS SAS | CU5: INNCORE ADVISORS SAS
A6: DISTRACOM SA | E6: Bolívar | H6: Facatativá | I6: Sabaneta | K6: Galapa | W6: Yumbo | Z6: Cota | AA6: Sabaneta | AO6: Cinco (5) - Calzado hombre | AW6: REGIÓN CINCO (5) CARIBE OCCIDENTAL | BD6: Antioquia_Abriaquí | BE6: Antioquia | BF6: Abriaquí | BG6: REGIÓN TRES (3) ANTIOQUIA | BH6: 3 | BL6: Atlántico | BU6: Estamp. tam. bolsillo a tres tintas. | BV6: Logo corporativo estampado tamaño bolsillo a tres tintas. | CE6: CAT1-005 | CQ6: INNLAB S.A.S | CU6: INNLAB S.A.S
A7: COESCO COLOMBIA SAS | E7: Boyacá | H7: Madrid | I7: Itagüí | W7: x | Z7: Facatativá | AA7: Itagüí | AO7: Seis (6) - Uniformes formales mujer | AW7: REGIÓN SEIS (6) CARIBE ORIENTAL | BD7: Antioquia_Alejandría | BE7: Antioquia | BF7: Alejandría | BG7: REGIÓN TRES (3) ANTIOQUIA | BH7: 1 | BL7: Bogotá, D. C. | BU7: Estamp. tam. bolsillo a más de tres tintas. | BV7: Logo corporativo estampado tamaño bolsillo a más de tres tintas. | CE7: CAT1-006 | CQ7: MAESTROS DEL CLOUD | CU7: MAESTROS DEL CLOUD
E8: Caldas | H8: Mosquera | I8: Envigado | Z8: Funza | AA8: Envigado | AO8: Siete (7) - Uniformes deportivos mujer | AW8: REGIÓN SIETE (7) EJE CAFETERO | BD8: Antioquia_Amagá | BE8: Antioquia | BF8: Amagá | BG8: REGIÓN TRES (3) ANTIOQUIA | BH8: 2 | BL8: Bolívar | BU8: Estamp. tam. espalda a una tinta. | BV8: Logo corporativo estampado tamaño espalda a una tinta. | CE8: CAT1-007 | CQ8: NIMBU.GOV | CU8: NIMBU.GOV
E9: Córdoba | H9: Soacha | I9: Bello | Z9: La Calera | AA9: Bello | AO9: Ocho (8) - Uniformes varios mujer | AW9: REGIÓN OCHO (8) ORINOQUÍA | BD9: Antioquia_Amalfi | BE9: Antioquia | BF9: Amalfi | BG9: REGIÓN TRES (3) ANTIOQUIA | BH9: 2 | BL9: Boyacá | BU9: Estamp. tam. espalda a dos tintas. | BV9: Logo corporativo estampado tamaño espalda a dos tintas. | CE9: CAT1-008 | CQ9: NUAWI | CU9: NUAWI
E10: Huila | H10: Sibaté | I10: Girardota | Z10: Madrid | AA10: Copacabana | AO10: Nueve (9) - Uniformes antifluido para mujer | AW10: REGIÓN NUEVE (9) PACÍFICO CENTRAL | BD10: Antioquia_Andes | BE10: Antioquia | BF10: Andes | BG10: REGIÓN TRES (3) ANTIOQUIA | BH10: 3 | BL10: Caldas | BU10: Estamp. tam. espalda a tres tintas. | BV10: Logo corporativo estampado tamaño espalda a tres tintas. | CE10: CAT1-009 | CQ10: PLANIDEA | CU10: PLANIDEA
E11: Magdalena | H11: Sopó | Z11: Mosquera | AA11: Girardota | AO11: 10 - Calzado mujer | AW11: REGIÓN 10 PACÍFICO NORTE | BD11: Antioquia_Angelópolis | BE11: Antioquia | BF11: Angelópolis | BG11: REGIÓN TRES (3) ANTIOQUIA | BH11: 3 | BL11: Caquetá | BU11: Estamp. tam. espalda a más de tres tintas. | BV11: Logo corporativo estampado tamaño espalda a más de tres tintas. | CE11: CAT1-010 | CQ11: PLES | CU11: PLES
E12: Meta | Z12: Soacha | AA12: Barbosa | AW12: REGIÓN 11 PACÍFICO SUR | BD12: Antioquia_Angostura | BE12: Antioquia | BF12: Angostura | BG12: REGIÓN TRES (3) ANTIOQUIA | BH12: 3 | BL12: Casanare | BU12: Logo compuesto | CE12: CAT1-011 | CQ12: POINTMIND | CU12: POINTMIND
E13: Quindío | Z13: Sibaté | AW13: REGIÓN 12 SAN ANDRÉS Y PROVIDENCIA | BD13: Antioquia_Anorí | BE13: Antioquia | BF13: Anorí | BG13: REGIÓN TRES (3) ANTIOQUIA | BH13: 2 | BL13: Cauca | CE13: CAT1-012 | CQ13: ROYAL TECH GROUP SAS | CU13: ROYAL TECH GROUP SAS
E14: Risaralda | Z14: Sopó | AW14: REGIÓN 13 SANTANDERES | BD14: Antioquia_Anza | BE14: Antioquia | BF14: Anza | BG14: REGIÓN TRES (3) ANTIOQUIA | BH14: 3 | BL14: Cesar | CE14: CAT1-013 | CQ14: SOFT180 | CU14: SOFT180
E15: Sucre | Z15: Tocancipá | AW15: REGIÓN 14 TOLIMA Y HUILA | BD15: Antioquia_Apartadó | BE15: Antioquia | BF15: Apartadó | BG15: REGIÓN TRES (3) ANTIOQUIA | BH15: 1 | BL15: Chocó | CE15: CAT1-014 | CQ15: UT-SEBE-CCENEG- 075-02-2024 | CU15: UT-SEBE-CCENEG- 075-02-2024
E16: Tolima | Z16: Zipaquirá | BD16: Antioquia_Arboletes | BE16: Antioquia | BF16: Arboletes | BG16: REGIÓN TRES (3) ANTIOQUIA | BH16: 3 | BL16: Córdoba | CE16: CAT1-015
E17: Valle del Cauca | BD17: Antioquia_Argelia | BE17: Antioquia | BF17: Argelia | BG17: REGIÓN TRES (3) ANTIOQUIA | BH17: 3 | BL17: Cundinamarca | CE17: CAT1-016
BD18: Antioquia_Armenia | BE18: Antioquia | BF18: Armenia | BG18: REGIÓN TRES (3) ANTIOQUIA | BH18: 3 | BL18: Guainía
BD19: Antioquia_Barbosa | BE19: Antioquia | BF19: Barbosa | BG19: REGIÓN TRES (3) ANTIOQUIA | BH19: 2 | BL19: Guaviare
BD20: Antioquia_Bello | BE20: Antioquia | BF20: Bello | BG20: REGIÓN TRES (3) ANTIOQUIA | BH20: 1 | BL20: Huila
BD21: Antioquia_Belmira | BE21: Antioquia | BF21: Belmira | BG21: REGIÓN TRES (3) ANTIOQUIA | BH21: 2 | BL21: La Guajira
BD22: Antioquia_Betania | BE22: Antioquia | BF22: Betania | BG22: REGIÓN TRES (3) ANTIOQUIA | BH22: 2 | BL22: Magdalena
BD23: Antioquia_Betulia | BE23: Antioquia | BF23: Betulia | BG23: REGIÓN TRES (3) ANTIOQUIA | BH23: 3 | BL23: Meta
BD24: Antioquia_Briceño | BE24: Antioquia | BF24: Briceño | BG24: REGIÓN TRES (3) ANTIOQUIA | BH24: 2 | BL24: Nariño
BD25: Antioquia_Buriticá | BE25: Antioquia | BF25: Buriticá | BG25: REGIÓN TRES (3) ANTIOQUIA | BH25: 2 | BL25: Norte De Santander
BD26: Antioquia_Cáceres | BE26: Antioquia | BF26: Cáceres | BG26: REGIÓN TRES (3) ANTIOQUIA | BH26: 3 | BL26: Putumayo
BD27: Antioquia_Caicedo | BE27: Antioquia | BF27: Caicedo | BG27: REGIÓN TRES (3) ANTIOQUIA | BH27: 3 | BL27: Quindío
BD28: Antioquia_Caldas | BE28: Antioquia | BF28: Caldas | BG28: REGIÓN TRES (3) ANTIOQUIA | BH28: 1 | BL28: Risaralda
BD29: Antioquia_Campamento | BE29: Antioquia | BF29: Campamento | BG29: REGIÓN TRES (3) ANTIOQUIA | BH29: 3 | BL29: Santander
BD30: Antioquia_Cañasgordas | BE30: Antioquia | BF30: Cañasgordas | BG30: REGIÓN TRES (3) ANTIOQUIA | BH30: 2 | BL30: Sucre
BD31: Antioquia_Caracolí | BE31: Antioquia | BF31: Caracolí | BG31: REGIÓN TRES (3) ANTIOQUIA | BH31: 3 | BL31: Tolima
BD32: Antioquia_Caramanta | BE32: Antioquia | BF32: Caramanta | BG32: REGIÓN TRES (3) ANTIOQUIA | BH32: 3 | BL32: Valle Del Cauca
BD33: Antioquia_Carepa | BE33: Antioquia | BF33: Carepa | BG33: REGIÓN TRES (3) ANTIOQUIA | BH33: 2 | BL33: Vaupés
BD34: Antioquia_Carolina | BE34: Antioquia | BF34: Carolina | BG34: REGIÓN TRES (3) ANTIOQUIA | BH34: 1 | BL34: Vichada
BD35: Antioquia_Caucasia | BE35: Antioquia | BF35: Caucasia | BG35: REGIÓN TRES (3) ANTIOQUIA | BH35: 1
BD36: Antioquia_Chigorodó | BE36: Antioquia | BF36: Chigorodó | BG36: REGIÓN TRES (3) ANTIOQUIA | BH36: 2
BD37: Antioquia_Cisneros | BE37: Antioquia | BF37: Cisneros | BG37: REGIÓN TRES (3) ANTIOQUIA | BH37: 1
BD38: Antioquia_Ciudad Bolívar | BE38: Antioquia | BF38: Ciudad Bolívar | BG38: REGIÓN TRES (3) ANTIOQUIA | BH38: 2
BD39: Antioquia_Cocorná | BE39: Antioquia | BF39: Cocorná | BG39: REGIÓN TRES (3) ANTIOQUIA | BH39: 2
BD40: Antioquia_Concepción | BE40: Antioquia | BF40: Concepción | BG40: REGIÓN TRES (3) ANTIOQUIA | BH40: 2
BD41: Antioquia_Concordia | BE41: Antioquia | BF41: Concordia | BG41: REGIÓN TRES (3) ANTIOQUIA | BH41: 2
BD42: Antioquia_Copacabana | BE42: Antioquia | BF42: Copacabana | BG42: REGIÓN TRES (3) ANTIOQUIA | BH42: 1
BD43: Antioquia_Dabeiba | BE43: Antioquia | BF43: Dabeiba | BG43: REGIÓN TRES (3) ANTIOQUIA | BH43: 2
BD44: Antioquia_Don Matías | BE44: Antioquia | BF44: Don Matías | BG44: REGIÓN TRES (3) ANTIOQUIA | BH44: 2
BD45: Antioquia_Ebéjico | BE45: Antioquia | BF45: Ebéjico | BG45: REGIÓN TRES (3) ANTIOQUIA | BH45: 3
BD46: Antioquia_El Bagre | BE46: Antioquia | BF46: El Bagre | BG46: REGIÓN TRES (3) ANTIOQUIA | BH46: 2
BD47: Antioquia_El Carmen De Viboral | BE47: Antioquia | BF47: El Carmen De Viboral | BG47: REGIÓN TRES (3) ANTIOQUIA | BH47: 1
BD48: Antioquia_El Santuario | BE48: Antioquia | BF48: El Santuario | BG48: REGIÓN TRES (3) ANTIOQUIA | BH48: 2
BD49: Antioquia_Entrerrios | BE49: Antioquia | BF49: Entrerrios | BG49: REGIÓN TRES (3) ANTIOQUIA | BH49: 2
BD50: Antioquia_Envigado | BE50: Antioquia | BF50: Envigado | BG50: REGIÓN TRES (3) ANTIOQUIA | BH50: 1
BD51: Antioquia_Fredonia | BE51: Antioquia | BF51: Fredonia | BG51: REGIÓN TRES (3) ANTIOQUIA | BH51: 2
BD52: Antioquia_Frontino | BE52: Antioquia | BF52: Frontino | BG52: REGIÓN TRES (3) ANTIOQUIA | BH52: 2
BD53: Antioquia_Giraldo | BE53: Antioquia | BF53: Giraldo | BG53: REGIÓN TRES (3) ANTIOQUIA | BH53: 3
BD54: Antioquia_Girardota | BE54: Antioquia | BF54: Girardota | BG54: REGIÓN TRES (3) ANTIOQUIA | BH54: 1
BD55: Antioquia_Gómez Plata | BE55: Antioquia | BF55: Gómez Plata | BG55: REGIÓN TRES (3) ANTIOQUIA | BH55: 3
BD56: Antioquia_Granada | BE56: Antioquia | BF56: Granada | BG56: REGIÓN TRES (3) ANTIOQUIA | BH56: 2
BD57: Antioquia_Guadalupe | BE57: Antioquia | BF57: Guadalupe | BG57: REGIÓN TRES (3) ANTIOQUIA | BH57: 2
BD58: Antioquia_Guarne | BE58: Antioquia | BF58: Guarne | BG58: REGIÓN TRES (3) ANTIOQUIA | BH58: 1
BD59: Antioquia_Guatape | BE59: Antioquia | BF59: Guatape | BG59: REGIÓN TRES (3) ANTIOQUIA | BH59: 1
BD60: Antioquia_Heliconia | BE60: Antioquia | BF60: Heliconia | BG60: REGIÓN TRES (3) ANTIOQUIA | BH60: 3
BD61: Antioquia_Hispania | BE61: Antioquia | BF61: Hispania | BG61: REGIÓN TRES (3) ANTIOQUIA | BH61: 2
BD62: Antioquia_Itagui | BE62: Antioquia | BF62: Itagui | BG62: REGIÓN TRES (3) ANTIOQUIA | BH62: 1
BD63: Antioquia_Ituango | BE63: Antioquia | BF63: Ituango | BG63: REGIÓN TRES (3) ANTIOQUIA | BH63: 2
BD64: Antioquia_Jardín | BE64: Antioquia | BF64: Jardín | BG64: REGIÓN TRES (3) ANTIOQUIA | BH64: 2
BD65: Antioquia_Jericó | BE65: Antioquia | BF65: Jericó | BG65: REGIÓN TRES (3) ANTIOQUIA | BH65: 2
BD66: =IF(BF66<>"Otro",BE66&"_"&BF66,BE66&"_zzzz"&BF66) -> Antioquia_La Ceja | BE66: Antioquia | BF66: La Ceja | BG66: REGIÓN TRES (3) ANTIOQUIA | BH66: 1
BD67: Antioquia_La Estrella | BE67: Antioquia | BF67: La Estrella | BG67: REGIÓN TRES (3) ANTIOQUIA | BH67: 1
BD68: Antioquia_La Pintada | BE68: Antioquia | BF68: La Pintada | BG68: REGIÓN TRES (3) ANTIOQUIA | BH68: 2
BD69: Antioquia_La Unión | BE69: Antioquia | BF69: La Unión | BG69: REGIÓN TRES (3) ANTIOQUIA | BH69: 2
BD70: Antioquia_Liborina | BE70: Antioquia | BF70: Liborina | BG70: REGIÓN TRES (3) ANTIOQUIA | BH70: 2
BD71: Antioquia_Maceo | BE71: Antioquia | BF71: Maceo | BG71: REGIÓN TRES (3) ANTIOQUIA | BH71: 2
BD72: Antioquia_Marinilla | BE72: Antioquia | BF72: Marinilla | BG72: REGIÓN TRES (3) ANTIOQUIA | BH72: 1
BD73: Antioquia_Medellín | BE73: Antioquia | BF73: Medellín | BG73: REGIÓN TRES (3) ANTIOQUIA | BH73: 1
BD74: Antioquia_Montebello | BE74: Antioquia | BF74: Montebello | BG74: REGIÓN TRES (3) ANTIOQUIA | BH74: 3
BD75: Antioquia_Murindó | BE75: Antioquia | BF75: Murindó | BG75: REGIÓN TRES (3) ANTIOQUIA | BH75: 3
BD76: Antioquia_Mutatá | BE76: Antioquia | BF76: Mutatá | BG76: REGIÓN TRES (3) ANTIOQUIA | BH76: 2
BD77: Antioquia_Nariño | BE77: Antioquia | BF77: Nariño | BG77: REGIÓN TRES (3) ANTIOQUIA | BH77: 3
BD78: Antioquia_Nechí | BE78: Antioquia | BF78: Nechí | BG78: REGIÓN TRES (3) ANTIOQUIA | BH78: 3
BD79: Antioquia_Necoclí | BE79: Antioquia | BF79: Necoclí | BG79: REGIÓN TRES (3) ANTIOQUIA | BH79: 3
BD80: Antioquia_Olaya | BE80: Antioquia | BF80: Olaya | BG80: REGIÓN TRES (3) ANTIOQUIA | BH80: 2
BD81: Antioquia_Peñol | BE81: Antioquia | BF81: Peñol | BG81: REGIÓN TRES (3) ANTIOQUIA | BH81: 2
BD82: Antioquia_Peque | BE82: Antioquia | BF82: Peque | BG82: REGIÓN TRES (3) ANTIOQUIA | BH82: 2
BD83: Antioquia_Pueblorrico | BE83: Antioquia | BF83: Pueblorrico | BG83: REGIÓN TRES (3) ANTIOQUIA | BH83: 2
BD84: Antioquia_Puerto Berrío | BE84: Antioquia | BF84: Puerto Berrío | BG84: REGIÓN TRES (3) ANTIOQUIA | BH84: 2
BD85: Antioquia_Puerto Nare | BE85: Antioquia | BF85: Puerto Nare | BG85: REGIÓN TRES (3) ANTIOQUIA | BH85: 2
BD86: Antioquia_Puerto Triunfo | BE86: Antioquia | BF86: Puerto Triunfo | BG86: REGIÓN TRES (3) ANTIOQUIA | BH86: 2
BD87: Antioquia_Remedios | BE87: Antioquia | BF87: Remedios | BG87: REGIÓN TRES (3) ANTIOQUIA | BH87: 2
BD88: Antioquia_Retiro | BE88: Antioquia | BF88: Retiro | BG88: REGIÓN TRES (3) ANTIOQUIA | BH88: 1
BD89: Antioquia_Rionegro | BE89: Antioquia | BF89: Rionegro | BG89: REGIÓN TRES (3) ANTIOQUIA | BH89: 1
BD90: Antioquia_Sabanalarga | BE90: Antioquia | BF90: Sabanalarga | BG90: REGIÓN TRES (3) ANTIOQUIA | BH90: 2
BD91: Antioquia_Sabaneta | BE91: Antioquia | BF91: Sabaneta | BG91: REGIÓN TRES (3) ANTIOQUIA | BH91: 1
BD92: Antioquia_Salgar | BE92: Antioquia | BF92: Salgar | BG92: REGIÓN TRES (3) ANTIOQUIA | BH92: 2
BD93: Antioquia_San Andrés De Cuerquía | BE93: Antioquia | BF93: San Andrés De Cuerquía | BG93: REGIÓN TRES (3) ANTIOQUIA | BH93: 2
BD94: Antioquia_San Carlos | BE94: Antioquia | BF94: San Carlos | BG94: REGIÓN TRES (3) ANTIOQUIA | BH94: 3
BD95: Antioquia_San Francisco | BE95: Antioquia | BF95: San Francisco | BG95: REGIÓN TRES (3) ANTIOQUIA | BH95: 3
BD96: Antioquia_San Jerónimo | BE96: Antioquia | BF96: San Jerónimo | BG96: REGIÓN TRES (3) ANTIOQUIA | BH96: 2
BD97: Antioquia_San José De La Montaña | BE97: Antioquia | BF97: San José De La Montaña | BG97: REGIÓN TRES (3) ANTIOQUIA | BH97: 2
BD98: Antioquia_San Juan De Urabá | BE98: Antioquia | BF98: San Juan De Urabá | BG98: REGIÓN TRES (3) ANTIOQUIA | BH98: 3
BD99: Antioquia_San Luis | BE99: Antioquia | BF99: San Luis | BG99: REGIÓN TRES (3) ANTIOQUIA | BH99: 2
BD100: Antioquia_San Pedro | BE100: Antioquia | BF100: San Pedro | BG100: REGIÓN TRES (3) ANTIOQUIA | BH100: 2
BD101: Antioquia_San Pedro De Uraba | BE101: Antioquia | BF101: San Pedro De Uraba | BG101: REGIÓN TRES (3) ANTIOQUIA | BH101: 3
BD102: Antioquia_San Rafael | BE102: Antioquia | BF102: San Rafael | BG102: REGIÓN TRES (3) ANTIOQUIA | BH102: 2
BD103: Antioquia_San Roque | BE103: Antioquia | BF103: San Roque | BG103: REGIÓN TRES (3) ANTIOQUIA | BH103: 1
BD104: Antioquia_San Vicente | BE104: Antioquia | BF104: San Vicente | BG104: REGIÓN TRES (3) ANTIOQUIA | BH104: 2
BD105: Antioquia_Santa Bárbara | BE105: Antioquia | BF105: Santa Bárbara | BG105: REGIÓN TRES (3) ANTIOQUIA | BH105: 2
BD106: Antioquia_Santa Rosa De Osos | BE106: Antioquia | BF106: Santa Rosa De Osos | BG106: REGIÓN TRES (3) ANTIOQUIA | BH106: 1
BD107: Antioquia_Santafé De Antioquia | BE107: Antioquia | BF107: Santafé De Antioquia | BG107: REGIÓN TRES (3) ANTIOQUIA | BH107: 1
BD108: Antioquia_Santo Domingo | BE108: Antioquia | BF108: Santo Domingo | BG108: REGIÓN TRES (3) ANTIOQUIA | BH108: 2
BD109: Antioquia_Segovia | BE109: Antioquia | BF109: Segovia | BG109: REGIÓN TRES (3) ANTIOQUIA | BH109: 2
BD110: Antioquia_Sonson | BE110: Antioquia | BF110: Sonson | BG110: REGIÓN TRES (3) ANTIOQUIA | BH110: 2
BD111: Antioquia_Sopetrán | BE111: Antioquia | BF111: Sopetrán | BG111: REGIÓN TRES (3) ANTIOQUIA | BH111: 2
BD112: Antioquia_Támesis | BE112: Antioquia | BF112: Támesis | BG112: REGIÓN TRES (3) ANTIOQUIA | BH112: 2
BD113: Antioquia_Tarazá | BE113: Antioquia | BF113: Tarazá | BG113: REGIÓN TRES (3) ANTIOQUIA | BH113: 3
BD114: Antioquia_Tarso | BE114: Antioquia | BF114: Tarso | BG114: REGIÓN TRES (3) ANTIOQUIA | BH114: 2
BD115: Antioquia_Titiribí | BE115: Antioquia | BF115: Titiribí | BG115: REGIÓN TRES (3) ANTIOQUIA | BH115: 3
BD116: Antioquia_Toledo | BE116: Antioquia | BF116: Toledo | BG116: REGIÓN TRES (3) ANTIOQUIA | BH116: 3
BD117: Antioquia_Turbo | BE117: Antioquia | BF117: Turbo | BG117: REGIÓN TRES (3) ANTIOQUIA | BH117: 2
BD118: Antioquia_Uramita | BE118: Antioquia | BF118: Uramita | BG118: REGIÓN TRES (3) ANTIOQUIA | BH118: 3
BD119: Antioquia_Urrao | BE119: Antioquia | BF119: Urrao | BG119: REGIÓN TRES (3) ANTIOQUIA | BH119: 3
BD120: Antioquia_Valdivia | BE120: Antioquia | BF120: Valdivia | BG120: REGIÓN TRES (3) ANTIOQUIA | BH120: 3
BD121: Antioquia_Valparaíso | BE121: Antioquia | BF121: Valparaíso | BG121: REGIÓN TRES (3) ANTIOQUIA | BH121: 2
BD122: Antioquia_Vegachí | BE122: Antioquia | BF122: Vegachí | BG122: REGIÓN TRES (3) ANTIOQUIA | BH122: 2
BD123: Antioquia_Venecia | BE123: Antioquia | BF123: Venecia | BG123: REGIÓN TRES (3) ANTIOQUIA | BH123: 1
BD124: Antioquia_Vigía Del Fuerte | BE124: Antioquia | BF124: Vigía Del Fuerte | BG124: REGIÓN TRES (3) ANTIOQUIA | BH124: 3
BD125: Antioquia_Yalí | BE125: Antioquia | BF125: Yalí | BG125: REGIÓN TRES (3) ANTIOQUIA | BH125: 2
BD126: Antioquia_Yarumal | BE126: Antioquia | BF126: Yarumal | BG126: REGIÓN TRES (3) ANTIOQUIA | BH126: 2
BD127: Antioquia_Yolombó | BE127: Antioquia | BF127: Yolombó | BG127: REGIÓN TRES (3) ANTIOQUIA | BH127: 3
BD128: Antioquia_Yondó | BE128: Antioquia | BF128: Yondó | BG128: REGIÓN TRES (3) ANTIOQUIA | BH128: 3
BD129: Antioquia_Zaragoza | BE129: Antioquia | BF129: Zaragoza | BG129: REGIÓN TRES (3) ANTIOQUIA | BH129: 3
BD130: =IF(BF130<>"Otro",BE130&"_"&BF130,BE130&"_zzzz"&BF130) -> Antioquia_zzzzOtro | BE130: Antioquia | BF130: Otro | BG130: REGIÓN TRES (3) ANTIOQUIA | BH130: 3
BD131: Arauca_Arauca | BE131: Arauca | BF131: Arauca | BG131: REGIÓN OCHO (8) ORINOQUÍA | BH131: 2
BD132: Arauca_Arauquita | BE132: Arauca | BF132: Arauquita | BG132: REGIÓN OCHO (8) ORINOQUÍA | BH132: 2
BD133: Arauca_Cravo Norte | BE133: Arauca | BF133: Cravo Norte | BG133: REGIÓN OCHO (8) ORINOQUÍA | BH133: 2
BD134: Arauca_Fortul | BE134: Arauca | BF134: Fortul | BG134: REGIÓN OCHO (8) ORINOQUÍA | BH134: 3
BD135: Arauca_Puerto Rondón | BE135: Arauca | BF135: Puerto Rondón | BG135: REGIÓN OCHO (8) ORINOQUÍA | BH135: 3
BD136: Arauca_Saravena | BE136: Arauca | BF136: Saravena | BG136: REGIÓN OCHO (8) ORINOQUÍA | BH136: 2
BD137: Arauca_Tame | BE137: Arauca | BF137: Tame | BG137: REGIÓN OCHO (8) ORINOQUÍA | BH137: 3
BD138: Arauca_zzzzOtro | BE138: Arauca | BF138: Otro | BG138: REGIÓN OCHO (8) ORINOQUÍA | BH138: 3
BD139: Archipiélago De San Andrés Y Providencia_Providencia | BE139: Archipiélago De San Andrés Y Providencia | BF139: Providencia | BG139: REGIÓN 12 SAN ANDRÉS Y PROVIDENCIA | BH139: 3
BD140: Archipiélago De San Andrés Y Providencia_zzzzOtro | BE140: Archipiélago De San Andrés Y Providencia | BF140: Otro | BG140: REGIÓN 12 SAN ANDRÉS Y PROVIDENCIA | BH140: 3
BD141: Atlántico_Baranoa | BE141: Atlántico | BF141: Baranoa | BG141: REGIÓN CUATRO (4) CARIBE CENTRAL | BH141: 2
BD142: Atlántico_Barranquilla | BE142: Atlántico | BF142: Barranquilla | BG142: REGIÓN CUATRO (4) CARIBE CENTRAL | BH142: 1
BD143: Atlántico_Campo De La Cruz | BE143: Atlántico | BF143: Campo De La Cruz | BG143: REGIÓN CUATRO (4) CARIBE CENTRAL | BH143: 3
BD144: Atlántico_Candelaria | BE144: Atlántico | BF144: Candelaria | BG144: REGIÓN CUATRO (4) CARIBE CENTRAL | BH144: 3
BD145: Atlántico_Galapa | BE145: Atlántico | BF145: Galapa | BG145: REGIÓN CUATRO (4) CARIBE CENTRAL | BH145: 1
BD146: Atlántico_Juan De Acosta | BE146: Atlántico | BF146: Juan De Acosta | BG146: REGIÓN CUATRO (4) CARIBE CENTRAL | BH146: 3
BD147: Atlántico_Luruaco | BE147: Atlántico | BF147: Luruaco | BG147: REGIÓN CUATRO (4) CARIBE CENTRAL | BH147: 3
BD148: Atlántico_Malambo | BE148: Atlántico | BF148: Malambo | BG148: REGIÓN CUATRO (4) CARIBE CENTRAL | BH148: 2
BD149: Atlántico_Manatí | BE149: Atlántico | BF149: Manatí | BG149: REGIÓN CUATRO (4) CARIBE CENTRAL | BH149: 3
BD150: Atlántico_Palmar De Varela | BE150: Atlántico | BF150: Palmar De Varela | BG150: REGIÓN CUATRO (4) CARIBE CENTRAL | BH150: 3
BD151: Atlántico_Piojó | BE151: Atlántico | BF151: Piojó | BG151: REGIÓN CUATRO (4) CARIBE CENTRAL | BH151: 3
BD152: Atlántico_Polonuevo | BE152: Atlántico | BF152: Polonuevo | BG152: REGIÓN CUATRO (4) CARIBE CENTRAL | BH152: 3
BD153: Atlántico_Ponedera | BE153: Atlántico | BF153: Ponedera | BG153: REGIÓN CUATRO (4) CARIBE CENTRAL | BH153: 2
BD154: Atlántico_Puerto Colombia | BE154: Atlántico | BF154: Puerto Colombia | BG154: REGIÓN CUATRO (4) CARIBE CENTRAL | BH154: 1
BD155: Atlántico_Repelón | BE155: Atlántico | BF155: Repelón | BG155: REGIÓN CUATRO (4) CARIBE CENTRAL | BH155: 3
BD156: Atlántico_Sabanagrande | BE156: Atlántico | BF156: Sabanagrande | BG156: REGIÓN CUATRO (4) CARIBE CENTRAL | BH156: 2
BD157: Atlántico_Sabanalarga | BE157: Atlántico | BF157: Sabanalarga | BG157: REGIÓN CUATRO (4) CARIBE CENTRAL | BH157: 3
BD158: Atlántico_Santa Lucía | BE158: Atlántico | BF158: Santa Lucía | BG158: REGIÓN CUATRO (4) CARIBE CENTRAL | BH158: 3
BD159: Atlántico_Santo Tomás | BE159: Atlántico | BF159: Santo Tomás | BG159: REGIÓN CUATRO (4) CARIBE CENTRAL | BH159: 2
BD160: Atlántico_Soledad | BE160: Atlántico | BF160: Soledad | BG160: REGIÓN CUATRO (4) CARIBE CENTRAL | BH160: 1
BD161: Atlántico_Suan | BE161: Atlántico | BF161: Suan | BG161: REGIÓN CUATRO (4) CARIBE CENTRAL | BH161: 3
BD162: Atlántico_Tubará | BE162: Atlántico | BF162: Tubará | BG162: REGIÓN CUATRO (4) CARIBE CENTRAL | BH162: 2
BD163: Atlántico_Usiacurí | BE163: Atlántico | BF163: Usiacurí | BG163: REGIÓN CUATRO (4) CARIBE CENTRAL | BH163: 2
BD164: Atlántico_zzzzOtro | BE164: Atlántico | BF164: Otro | BG164: REGIÓN CUATRO (4) CARIBE CENTRAL | BH164: 3
BD165: Bogotá, D. C._Bogotá, D. C. | BE165: Bogotá, D. C. | BF165: Bogotá, D. C. | BG165: REGIÓN UNO (1) ALTIPLANO | BH165: 1
BD166: Bogotá, D. C._zzzzOtro | BE166: Bogotá, D. C. | BF166: Otro | BG166: REGIÓN UNO (1) ALTIPLANO | BH166: 3
BD167: Bolívar_Achí | BE167: Bolívar | BF167: Achí | BG167: REGIÓN CUATRO (4) CARIBE CENTRAL | BH167: 3
BD168: Bolívar_Altos Del Rosario | BE168: Bolívar | BF168: Altos Del Rosario | BG168: REGIÓN CUATRO (4) CARIBE CENTRAL | BH168: 3
BD169: Bolívar_Arenal | BE169: Bolívar | BF169: Arenal | BG169: REGIÓN CUATRO (4) CARIBE CENTRAL | BH169: 3
BD170: Bolívar_Arjona | BE170: Bolívar | BF170: Arjona | BG170: REGIÓN CUATRO (4) CARIBE CENTRAL | BH170: 3
BD171: Bolívar_Arroyohondo | BE171: Bolívar | BF171: Arroyohondo | BG171: REGIÓN CUATRO (4) CARIBE CENTRAL | BH171: 3
BD172: Bolívar_Barranco De Loba | BE172: Bolívar | BF172: Barranco De Loba | BG172: REGIÓN CUATRO (4) CARIBE CENTRAL | BH172: 2
BD173: Bolívar_Calamar | BE173: Bolívar | BF173: Calamar | BG173: REGIÓN CUATRO (4) CARIBE CENTRAL | BH173: 3
BD174: Bolívar_Cantagallo | BE174: Bolívar | BF174: Cantagallo | BG174: REGIÓN CUATRO (4) CARIBE CENTRAL | BH174: 3
BD175: Bolívar_Cartagena | BE175: Bolívar | BF175: Cartagena | BG175: REGIÓN CUATRO (4) CARIBE CENTRAL | BH175: 1
BD176: Bolívar_Cicuco | BE176: Bolívar | BF176: Cicuco | BG176: REGIÓN CUATRO (4) CARIBE CENTRAL | BH176: 3
BD177: Bolívar_Clemencia | BE177: Bolívar | BF177: Clemencia | BG177: REGIÓN CUATRO (4) CARIBE CENTRAL | BH177: 3
BD178: Bolívar_Córdoba | BE178: Bolívar | BF178: Córdoba | BG178: REGIÓN CUATRO (4) CARIBE CENTRAL | BH178: 3
BD179: Bolívar_El Carmen De Bolívar | BE179: Bolívar | BF179: El Carmen De Bolívar | BG179: REGIÓN CUATRO (4) CARIBE CENTRAL | BH179: 2
BD180: Bolívar_El Guamo | BE180: Bolívar | BF180: El Guamo | BG180: REGIÓN CUATRO (4) CARIBE CENTRAL | BH180: 3
BD181: Bolívar_El Peñón | BE181: Bolívar | BF181: El Peñón | BG181: REGIÓN CUATRO (4) CARIBE CENTRAL | BH181: 3
BD182: Bolívar_Hatillo De Loba | BE182: Bolívar | BF182: Hatillo De Loba | BG182: REGIÓN CUATRO (4) CARIBE CENTRAL | BH182: 3
BD183: Bolívar_Magangué | BE183: Bolívar | BF183: Magangué | BG183: REGIÓN CUATRO (4) CARIBE CENTRAL | BH183: 2
BD184: Bolívar_Mahates | BE184: Bolívar | BF184: Mahates | BG184: REGIÓN CUATRO (4) CARIBE CENTRAL | BH184: 3
BD185: Bolívar_Margarita | BE185: Bolívar | BF185: Margarita | BG185: REGIÓN CUATRO (4) CARIBE CENTRAL | BH185: 3
BD186: Bolívar_María La Baja | BE186: Bolívar | BF186: María La Baja | BG186: REGIÓN CUATRO (4) CARIBE CENTRAL | BH186: 3
BD187: Bolívar_Mompós | BE187: Bolívar | BF187: Mompós | BG187: REGIÓN CUATRO (4) CARIBE CENTRAL | BH187: 3
BD188: Bolívar_Montecristo | BE188: Bolívar | BF188: Montecristo | BG188: REGIÓN CUATRO (4) CARIBE CENTRAL | BH188: 3
BD189: Bolívar_Morales | BE189: Bolívar | BF189: Morales | BG189: REGIÓN CUATRO (4) CARIBE CENTRAL | BH189: 3
BD190: Bolívar_Norosí | BE190: Bolívar | BF190: Norosí | BG190: REGIÓN CUATRO (4) CARIBE CENTRAL | BH190: 3
BD191: Bolívar_Pinillos | BE191: Bolívar | BF191: Pinillos | BG191: REGIÓN CUATRO (4) CARIBE CENTRAL | BH191: 3
BD192: Bolívar_Regidor | BE192: Bolívar | BF192: Regidor | BG192: REGIÓN CUATRO (4) CARIBE CENTRAL | BH192: 3
BD193: Bolívar_Río Viejo | BE193: Bolívar | BF193: Río Viejo | BG193: REGIÓN CUATRO (4) CARIBE CENTRAL | BH193: 3
BD194: =IF(BF194<>"Otro",BE194&"_"&BF194,BE194&"_zzzz"&BF194) -> Bolívar_San Cristóbal | BE194: Bolívar | BF194: San Cristóbal | BG194: REGIÓN CUATRO (4) CARIBE CENTRAL | BH194: 3
BD195: Bolívar_San Estanislao | BE195: Bolívar | BF195: San Estanislao | BG195: REGIÓN CUATRO (4) CARIBE CENTRAL | BH195: 3
BD196: Bolívar_San Fernando | BE196: Bolívar | BF196: San Fernando | BG196: REGIÓN CUATRO (4) CARIBE CENTRAL | BH196: 3
BD197: Bolívar_San Jacinto | BE197: Bolívar | BF197: San Jacinto | BG197: REGIÓN CUATRO (4) CARIBE CENTRAL | BH197: 3
BD198: Bolívar_San Jacinto Del Cauca | BE198: Bolívar | BF198: San Jacinto Del Cauca | BG198: REGIÓN CUATRO (4) CARIBE CENTRAL | BH198: 3
BD199: Bolívar_San Juan Nepomuceno | BE199: Bolívar | BF199: San Juan Nepomuceno | BG199: REGIÓN CUATRO (4) CARIBE CENTRAL | BH199: 3
BD200: Bolívar_San Martín De Loba | BE200: Bolívar | BF200: San Martín De Loba | BG200: REGIÓN CUATRO (4) CARIBE CENTRAL | BH200: 3
... 935 more rows

Sheet Cuadros (hidden)
A1: ID Cuadro>>>>>>> | J1: 1 | AK1: 1c | AT1: 2 | BJ1: 3 | BW1: 4 | CJ1: 5 | DB1: 6 | DS1: 7 | EJ1: 7c | EY1: 8 | FS1: 9 | GZ1: 10 | ID1: 11 | JG1: 12 | KA1: 13 | KI1: 14 | KS1: 15 | LB1: 16 | LP1: 17 | LZ1: 18 | NA1: 19 | NU1: 20 | PG1: 21 | PQ1: 22 | RK1: 23 | TX1: >>>>> Software por catalogo | UI1: 24 | VP1: 25 | WW1: 26 | XV1: 27 | YU1: 28 | ZG1: 29
A2: Descripción | J2: Categoría A y seg3 | AK2: Categoría C | AT2: Categoría D | BJ2: Completitud_resCot | BW2: Completitud_resCot | CJ2: Galones estimados | DB2: Completitud_Cot | DS2: Completitud_Cot | EJ2: Completitud_Cot | EY2: Proveedor Hoja Cotización | FS2: Encabezado Resumen cotización | GZ2: Encabezado cotización | ID2: Encabezado resultados | JG2: Encabezado TABLAS resultados | KA2: Encabezado TABLAS resultados | KI2: Encabezado TABLAS resultados | KS2: Otro municipio | LB2: rescot | LP2: rescot subtotales | LZ2: cotizacion | NA2: Lista Proveedores - Cot | NU2: Subtotales hoja cotizacion | PG2: Menu de navegación | PQ2: Adicionar fila logo | RK2: Adicionar fila logo combinado | UI2: Suite Corporativa y Software General | VP2: Innovación (Ctel_ep) | WW2: Suite Corporativa y Software general | XV2: Innovación (Ctel_ep) | YU2: rescot subtotales | ZG2: cotizacion
A3: Observaciones | J3: para el segmento tres en la rescotizacion se le agregan unas columnas de más | AT3: Solo se pide el presupuesto | BJ3: Aplica para CatA | BW3: Aplica para seg3 | CJ3: Aplica para todas las categorias | DB3: Aplica para CatA | DS3: Aplica para seg3 | EJ3: Aplica para CatC | EY3: Aplica para todos las caracterizaciones | FS3: Aplica para todo | GZ3: Aplica para todo | ID3: Aplica para todo | JG3: Aplica CatA | KA3: Aplica seg3 | KI3: Aplica CatC | KS3: General | LB3: General | LP3: General | LZ3: General | NA3: General | NU3: General | PG3: General | PQ3: Solcot | RK3: Solcot | UI3: Se utiliza cuando se selecciona Suite General o Software Corporativo Nota: Ojo que las formulas estan diseñadas para que funcionen cuando se peguen en el destino, y por lo tanto aquí puyede que no tengan mucho sentido | VP3: Se utiliza cuando se selecciona Ctel_ep (innovación) | WW3: Se utiliza cuando se selecciona Suite General o Software Corporativo | XV3: Se utiliza cuando se selecciona CtelEP para "borrar" los cuadors de las otras categorias | YU3: Aplica para CetlEP | ZG3: Aplica para CetlEP
A4: Frase y/o palabra clave | J4: paq | AK4: paq | AT4: C | BJ4: CatA | BW4: seg3 | CJ4: Todo | DB4: CatA | DS4: CatA | EJ4: paq | EY4: Todos | FS4: Todos | GZ4: Todos | ID4: Todos | JG4: CatA | KA4: seg3 | KI4: CatC | KS4: todos | LB4: todos | LP4: todos | LZ4: Todos | NA4: Todos | NU4: Todos | PG4: Todos | PQ4: Todos | RK4: Todos | UI4: paq | VP4: paq | WW4: paq | XV4: paq | YU4: todos | ZG4: Todos
A5: Filas | J5: 2 | AK5: 2 | AT5: 1 | BJ5: 2 | BW5: 2 | CJ5: 1 | DB5: 2 | DS5: 2 | EJ5: 2 | EY5: 1 | FS5: 5 | GZ5: 5 | ID5: 4 | JG5: 3 | KA5: 3 | KI5: 3 | KS5: 2 | LB5: 2 | LP5: 3 | LZ5: 2 | NA5: 1 | NU5: 1 | PG5: 19 | PQ5: 1 | QX5: ojo, en esta columna hay texto en blanco que sirve de control | RK5: 1 | SR5: ojo, en esta columna hay texto en blanco que sirve de control | UI5: 2 | VP5: 6 | WW5: 2 | XV5: 2 | YU5: 3 | ZG5: 2
A6: Columnas | J6: 0 | AK6: 0 | AT6: 0 | BJ6: 0
J8: x | K8: x | L8: x | M8: x | N8: x | O8: x | P8: x | Q8: x | R8: x | S8: x | T8: x | U8: x | V8: x | W8: x | X8: x | Y8: x | Z8: x | AA8: x | AB8: x | AC8: x | AD8: x | AE8: x | AF8: x | AK8: x | AL8: x | AM8: x | AN8: x | AO8: x | AT8: x | AU8: x | AV8: x | AW8: x | AX8: x | AY8: x | AZ8: x | BA8: x | BB8: x | BJ8: x | BK8: x | BL8: x | BM8: x | BN8: x | BO8: x | BW8: x | BX8: x | BY8: x | BZ8: x | CA8: x | CB8: x | CJ8: x | CK8: x | CL8: x | CM8: x | CN8: x | CO8: x | CP8: x | CQ8: x | CR8: x | CS8: x | CT8: x | CU8: x | DB8: x | DC8: x | DD8: x | DE8: x | DF8: x | DG8: x | DH8: x | DI8: x | DJ8: x | DK8: x | DL8: x | DM8: x | DS8: x | DT8: x | DU8: x | DV8: x | DW8: x | DX8: x | DY8: x | DZ8: x | EA8: x | EB8: x | EC8: x | ED8: x | EE8: x | EF8: x | EG8: x | EJ8: x | EK8: x | EL8: x | EM8: x | EN8: x | EO8: x | EP8: x | EQ8: x | EY8: x | EZ8: x | FA8: x | FB8: x | FC8: x | FD8: x | FE8: x | FF8: x | FG8: x | FH8: x | FI8: x | FJ8: x | FK8: x | FS8: x | FT8: x | FU8: x | FV8: x | FW8: x | FX8: x | FY8: x | FZ8: x | GA8: x | GB8: x | GC8: x | GD8: x | GE8: x | GF8: x | GG8: x | GH8: x | GI8: x | GJ8: x | GK8: x | GL8: x | GM8: x | GN8: x | GO8: x | GP8: x | GQ8: x | GR8: x | GS8: x | GT8: x | GZ8: x | HA8: x | HB8: x | HC8: x | HD8: x | HE8: x | HF8: x | HG8: x | HH8: x | HI8: x | HJ8: x | HK8: x | HL8: x | HM8: x | HN8: x | HO8: x | HP8: x | HQ8: x | HR8: x | HS8: x | HT8: x | HU8: x | HV8: x | HW8: x | HX8: x | HY8: x | HZ8: x | IA8: x | ID8: x | IE8: x | IF8: x | IG8: x | IH8: x | II8: x | IJ8: x | IK8: x | IL8: x | IM8: x | IN8: x | IO8: x | IP8: x | IQ8: x | IR8: x | IS8: x | IT8: x | IU8: x | IV8: x | IW8: x | IX8: x | IY8: x | IZ8: x | JG8: x | JH8: x | JI8: x | JJ8: x | JK8: x | JL8: x | JM8: x | JN8: x | JO8: x | JP8: x | JQ8: x | JR8: x | JS8: x | JT8: x | JU8: x | KA8: x | KB8: x | KC8: x | KD8: x | KI8: x | KJ8: x | KK8: x | KL8: x | KM8: x | KN8: x | KO8: x | KS8: x | KT8: x | KU8: x | KV8: x | KW8: x | LB8: x | LC8: x | LD8: x | LE8: x | LF8: x | LG8: x | LH8: x | LI8: x | LJ8: x | LK8: x | LP8: x | LQ8: x | LR8: x | LS8: x | LT8: x | LU8: x | LV8: x | LZ8: x | MA8: x | MB8: x | MC8: x | MD8: x | ME8: x | MF8: x | MG8: x | MH8: x | MI8: x | MJ8: x | MK8: x | ML8: x | MM8: x | MN8: x | MO8: x | MP8: x | MQ8: x | MR8: x | MS8: x | MT8: x | MU8: x | MV8: x | MW8: x | NA8: x | NB8: x | NC8: x | ND8: x | NE8: x | NF8: x | NG8: x | NH8: x | NI8: x | NJ8: x | NK8: x | NL8: x | NM8: x | NN8: x | NU8: x | NV8: x | NW8: x | NX8: x | NY8: x | NZ8: x | OA8: x | OB8: x | OC8: x | OD8: x | OE8: x | OF8: x | OG8: x | OH8: x | OI8: x | OJ8: x | OK8: x | OL8: x | OM8: x | ON8: x | OO8: x | OP8: x | OQ8: x | OR8: x | PG8: x | PQ8: x | PR8: x | PS8: x | PT8: x | PU8: x | PV8: x | PW8: x | PX8: x | PY8: x | PZ8: x | QA8: x | QB8: x | QC8: x | QD8: x | QE8: x | QF8: x | QG8: x | QH8: x | QI8: x | QJ8: x | QK8: x | QL8: x | QM8: x | QN8: x | QO8: x | QP8: x | QQ8: x | QR8: x | QS8: x | QT8: x | QU8: x | QV8: x | QW8: x | QX8: x | RK8: x | RL8: x | RM8: x | RN8: x | RO8: x | RP8: x | RQ8: x | RR8: x | RS8: x | RT8: x | RU8: x | RV8: x | RW8: x | RX8: x | RY8: x | RZ8: x | SA8: x | SB8: x | SC8: x | SD8: x | SE8: x | SF8: x | SG8: x | SH8: x | SI8: x | SJ8: x | SK8: x | SL8: x | SM8: x | SN8: x | SO8: x | SP8: x | SQ8: x | SR8: x | UI8: x | UJ8: x | UK8: x | UL8: x | UM8: x | UN8: x | UO8: x | UP8: x | UQ8: x | UR8: x | US8: x | UT8: x | UU8: x | UV8: x | UW8: x | UX8: x | UY8: x | UZ8: x | VA8: x | VB8: x | VC8: x | VD8: x | VE8: x | VF8: x | VG8: x | VH8: x | VI8: x | VJ8: x | VP8: x | VQ8: x | VR8: x | VS8: x | VT8: x | VU8: x | VV8: x | VW8: x | VX8: x | VY8: x | VZ8: x | WA8: x | WB8: x | WC8: x | WD8: x | WE8: x | WF8: x | WG8: x | WH8: x | WI8: x | WJ8: x | WK8: x | WL8: x | WM8: x | WN8: x | WO8: x | WP8: x | WQ8: x | WW8: x | WX8: x | WY8: x | WZ8: x | XA8: x | XB8: x | XC8: x | XD8: x | XE8: x | XF8: x | XG8: x | XH8: x | XI8: x | XJ8: x | XK8: x | XL8: x | XM8: x | XN8: x | XO8: x | XV8: x | XW8: x | XX8: x | XY8: x | XZ8: x | YA8: x | YB8: x | YC8: x | YD8: x | YE8: x | YF8: x | YG8: x | YH8: x | YI8: x | YJ8: x | YK8: x | YL8: x | YM8: x | YN8: x | YU8: x | YV8: x | YW8: x | YX8: x | YY8: x | YZ8: x | ZA8: x | ZG8: x | ZH8: x | ZI8: x | ZJ8: x | ZK8: x | ZL8: x | ZM8: x | ZN8: x | ZO8: x | ZP8: x | ZQ8: x | ZR8: x | ZS8: x | ZT8: x | ZU8: x | ZV8: x
J9: Ítem | K9: Departamento | O9: Ciudad / Municipio | S9: Ciudad referencia | W9: Capital / Cobertura | AA9: Margen Mayorista | AD9: Margen Minorista | AK9: Ítem | AL9: Porcentaje de comisión más baja | AT9: Presupuesto | BJ9: Descuento integral más alto | BM9: Descuento extra más alto | BW9: Descuento integral más alto | BZ9: Flete más bajo | CJ9: Galones estimados | DB9: Descuento Integral Prov | DE9: Descuento Margen Mayorista | DH9: Descuento Margen Minorista | DK9: Descuento Extra | DS9: Descuento Integral Prov | DV9: Descuento Margen Mayorista | DY9: Descuento Margen Minorista | EB9: Valor Flete | EE9: Descuento Flete (%) | EJ9: Porcentaje máximo de comisión del proveedor | EY9: Proveedor | FS9: RESUMEN DE COTIZACIÓN | GZ9: COTIZACIÓN | ID9: SIMULADOR COMBUSTIBLE NACIONAL | JG9: DESCUENTO INTEGRAL | JL9: DESCUENTO EXTRA | JQ9: CANTIDAD DE ESTACIONES DE SERVICIOS | KA9: DESCUENTO INTEGRAL | KC9: VALOR FLETE | KJ9: MENOR COMISIÓN | KM9: CANTIDAD DE ESTACIONES DE SERVICIOS | KS9: ¿Cuál? | LB9: Precio unitario | LE9: Precio unitario + Gravámenes | LH9: Precio total | LP9: Subtotal | LS9: =+SUM(OFFSET(LP$1,0,3,MATCH("Subtotal",LP:LP,0)-1)) -> 0 | LZ9: Precio unitario | MC9: Precio Unitario + Gravámenes | MF9: Descuento | MH9: Precio Unitario con Descuento | MK9: Precio Total | MN9: IVA | MP9: % IVA | MR9: Valor IVA | MU9: Total | NA9: Proveedor | NU9: Subtotales | OF9: =+SUM(OFFSET(NU$1,0,11,MATCH("Subtotales",NU:NU,0)-1)) -> 0 | OI9: Subtotales | OM9: =+SUM(OFFSET(NU$1,0,18,MATCH("Subtotales",NU:NU,0)-1)) -> 0 | OP9: =+SUM(OFFSET(NU$1,0,21,MATCH("Subtotales",NU:NU,0)-1)) -> 0 | PG9: MENÚ DE NAVEGACIÓN | PU9: =+IF(PU8="Ítem",1,ROW()-29) -> -20 | PV9: =IFERROR(INDEX(Cat_Filtro1!$A:$D,MATCH(PX9,Cat_Filtro1!$D:$D,0),3),"") ->  | PX9: =+IFERROR(VLOOKUP(QN8,Listas!$BU:$BV,2,FALSE),"") ->  | QE9: N/A | QG9: N/A | QI9: N/A | QL9: N/A | QN9: N/A | QP9: N/A | QR9: N/A | QX9: fila_logo | RO9: =+IF(RO8="Ítem",1,ROW()-29) -> -20 | RR9: =+IFERROR(VLOOKUP(RP9,Cat_Filtro1!$C:$D,2,FALSE),"") ->  | RY9: N/A | SA9: N/A | SC9: N/A | SF9: N/A | SH9: N/A | SJ9: N/A | SL9: N/A | SR9: fila_logo | UI9: Ítem | UJ9: Código del producto | UL9: Nombre | UO9: Descripción | UV9: Tipo | UW9: Asistencia | UY9: Perfil | VA9: Unidad | VB9: Zona | VC9: Información adicional | VG9: Forma de pago | VI9: Cantidad | VP9: Ítem | VQ9: Concepto | WC9: Observaciones | WW9: Propósito | XE9: =+IF(SolCotizacion!$J$22="Suite Corporativa","Catálogo","Fabricante") -> Catálogo | XJ9: Categoria | YU9: Subtotal | YX9: =+ResCotizacion!$R$25 -> 100000 | ZG9: Precio (COP) | ZJ9: Precio + Gravámenes | ZM9: IVA | ZO9: % IVA | ZQ9: Valor IVA | ZT9: Total
J10: =+IF(J9="Ítem",1,J9+1) -> 1 | S10: =+IF(Segmento!$O$2="CatA",IFERROR(VLOOKUP(O10,#REF!,2,FALSE),""),IFERROR(VLOOKUP(O10,#REF!,2,FALSE),"")) ->  | W10: =IF(Segmento!$O$2="CatA",IFERROR(VLOOKUP(O10,#REF!,3,FALSE),""),IFERROR(VLOOKUP(O10,#REF!,3,FALSE),"")) ->  | AA10: =IF(Segmento!$O$2="CatA",IFERROR(VLOOKUP(O10,#REF!,6,FALSE),""),IFERROR(VLOOKUP(O10,#REF!,6,FALSE),"")) ->  | AD10: =IF(Segmento!$O$2="CatA",IFERROR(VLOOKUP(O10,#REF!,7,FALSE),""),IFERROR(VLOOKUP(O10,#REF!,7,FALSE),"")) ->  | AK10: =+IF(AK9="Ítem",1,AK9+1) -> 1 | KI10: Ítem | LB10: =+IFERROR(ROUND(VLOOKUP(JZ10&"_"&KA10,Cat_resumido!$C:$CZ,Var!$F$2-2,FALSE)/KZ10,0),"") ->  | LE10: =+IFERROR(ROUND(LB10/(1-Var!$F$3),0),"") ->  | LH10: =IFERROR(ROUND(KZ10*LE10,2),"") ->  | LP10: IVA | LS10: =+ROUND(LS9*0.19,0) -> 0 | LZ10: =+IFERROR(ROUND(VLOOKUP(KX10&"_"&KY10,Cat_resumido!$C:$CZ,Var!$F$6-2,FALSE)/LX10,0),"") ->  | MC10: =+IFERROR(ROUND(LZ10/(1-Var!$F$3),0),"") ->  | MH10: =IFERROR(ROUND(MC10*(1-MF10),0),"") ->  | MK10: =IFERROR(ROUND(MH10*LX10,0),"") ->  | MR10: =+IFERROR(IF(MN10="SI",ROUND(MK10*MP10,0),0),"") -> 0 | MU10: =+IFERROR(MK10+MR10,"") ->  | UI10: =IFERROR(IF(UI9="Ítem",1,ROW()-ROW(SolCotizacion!$F$33)),ROW()-ROW(SolCotizacion!$F$33)) -> 1 | UL10: =+IFERROR(VLOOKUP($G10,Cat_Filtro1!$D:$U,MATCH(SolCotizacion!UL$33,Cat_Filtro1!$1:$1,0)-3,FALSE),"") ->  | UO10: =+IFERROR(VLOOKUP($G10,Cat_Filtro1!$D:$U,MATCH(SolCotizacion!UO$33,Cat_Filtro1!$1:$1,0)-3,FALSE),"") ->  | UV10: =+IFERROR(VLOOKUP($G10,Cat_Filtro1!$D:$U,MATCH(SolCotizacion!UV$33,Cat_Filtro1!$1:$1,0)-3,FALSE),"") ->  | UW10: =+IFERROR(VLOOKUP($G10,Cat_Filtro1!$D:$U,MATCH(SolCotizacion!UW$33,Cat_Filtro1!$1:$1,0)-3,FALSE),"") ->  | UY10: =+IFERROR(VLOOKUP($G10,Cat_Filtro1!$D:$U,MATCH(SolCotizacion!UY$33,Cat_Filtro1!$1:$1,0)-3,FALSE),"") ->  | VA10: =+IFERROR(VLOOKUP($G10,Cat_Filtro1!$D:$U,MATCH(SolCotizacion!VA$33,Cat_Filtro1!$1:$1,0)-3,FALSE),"") ->  | VB10: =+IFERROR(VLOOKUP($G10,Cat_Filtro1!$D:$U,MATCH(SolCotizacion!VB$33,Cat_Filtro1!$1:$1,0)-3,FALSE),"") ->  | VC10: =+IFERROR(VLOOKUP($G10,Cat_Filtro1!$D:$U,MATCH(SolCotizacion!VC$33,Cat_Filtro1!$1:$1,0)-3,FALSE),"") ->  | VG10: =+IFERROR(VLOOKUP($G10,Cat_Filtro1!$D:$U,MATCH(SolCotizacion!VG$33,Cat_Filtro1!$1:$1,0)-3,FALSE),"") ->  | VP10: =IFERROR(IF(VP9="Ítem",1,ROW()-ROW(SolCotizacion!$F$33)),ROW()-ROW(SolCotizacion!$F$33)) -> 1 | VQ10: Costos de Desarrollo | YU10: IVA | YX10: =+ROUND(YX9*0.19,0) -> 19000 | ZJ10: =+IFERROR(ROUND(ZG10/(1-Var!$F$3),2),"") -> 0 | ZQ10: =+IFERROR(IF(ZM10="SI",ROUND(ZO10*ZJ10,0),0),"") -> 0 | ZT10: =+IFERROR(ZQ10+ZJ10,"") -> 0
FS11: ="Versión:" & Var!$F$10 -> Versión:14 12/04/2025 | FY11: Software por Catálogo II | GZ11: ="Versión:" & Var!$F$10 -> Versión:14 12/04/2025 | HF11: Software por Catálogo II | ID11: CONSOLIDACIÓN Y RESULTADOS | KI11: 1 | LP11: Valor Total | LS11: =+LS10+LS9 -> 0 | VP11: =IFERROR(IF(VP10="Ítem",1,ROW()-ROW(SolCotizacion!$F$33)),ROW()-ROW(SolCotizacion!$F$33)) -> -22 | VQ11: Costos de Gestion y Planificacion | YU11: Valor Total | YX11: =+YX10+YX9 -> 119000
PG12: ENTIDAD COMPRADORA | RO12: voy configutando las rutinas de logo si y logo no | VP12: =IFERROR(IF(VP11="Ítem",1,ROW()-ROW(SolCotizacion!$F$33)),ROW()-ROW(SolCotizacion!$F$33)) -> -21 | VQ12: Costos de Pruebas y Control de Calidad
FS13: Software por Catálogo II | GZ13: Software por Catálogo II | VP13: =IFERROR(IF(VP12="Ítem",1,ROW()-ROW(SolCotizacion!$F$33)),ROW()-ROW(SolCotizacion!$F$33)) -> -20 | VQ13: Costos de Implementacion y Despliegue
PG14: Solicitud de Cotización | RO14: hacenfalta los codigos d la hoja | VP14: =IFERROR(IF(VP13="Ítem",1,ROW()-ROW(SolCotizacion!$F$33)),ROW()-ROW(SolCotizacion!$F$33)) -> -19 | VQ14: Costos de Mantenimiento y Soporte
PG16: Resumen Cotización | RO16: estot estabilizando el uso de los logos ompuestos
RO17: me falta acomodar para que cuando se cambie la cantidad se adicionen las filas o se borren filas
PG18: Ver Hoja Cotización | RO18: me falta cambiar para que cuando se cambie el tipo de logo a "Logo compuesto" me elimine lo que previamente habia (de pronto puede alicar para todos los tipos de logos
A19: =+ROUND(A21,0) -> 45
PG20: PROVEEDOR
A21: 45.384512
A22: 12 | PG22: Cotización
PG24: ADMINISTRACIÓN SIMULADOR
A25: =+A22*A21 -> 544.614144
A26: =+A25/A22 -> 45.384512 | PG26: Configuración

Sheet Var (hidden)
A1: Simulador | B1: Campo disponible 1 | C1: Campo disponible 2 | D1: Campo disponible 3 | E1: Variable | F1: Valor | G1: Observaciones | AF1: Contraseñas
A2: Software por Catalogo II | E2: col_ganador_rescot | F2: 12 | G2: Variable que sirve para el buscarv del precio mas bajo | AF2: Rol | AG2: Contraseña
A3: Software por Catalogo II | E3: total_grav | F3: =+SolCotizacion!$AE$50 -> 0.041 | AF3: Entidad_compradora | AG3: =IF(Configuracion!K12<>"",Configuracion!K12,"") -> 123
A4: Software por Catalogo II | E4: Categorizacion | F4: =+IF(SolCotizacion!$J$22="","N/A",SolCotizacion!$J$22) -> Suite Corporativa | AF4: Proveedor | AG4: =IF(Configuracion!K14<>"",Configuracion!K14,"") -> 
A5: Software por Catalogo II | E5: Etapa | F5: 3 | AF5: Administración | AG5: =IF(Configuracion!K16<>"",Configuracion!K16,"") -> 123U
A6: Software por Catalogo II | E6: col_prov_seleccionado | F6: 13 | G6: Variable que sirve para el buscarv del proveedor seleccionado
A7: Software por Catalogo II | E7: cod_tabla | F7: =+IFERROR(VLOOKUP(SolCotizacion!$J$22 &"_" & SolCotizacion!$R$22 &"_" & SolCotizacion!$Y$22 &"_" & SolCotizacion!$AD$22,Prov_x_cat_grup!$B:$G,6,FALSE),"sxc02") -> sxc02
A8: Software por Catalogo II | E8: col_descripcion | F8: 7,j22,r22,y22,ad22,19,20,22,24,25,30,9
A9: Software por Catalogo II | E9: Rol | F9: Entidad_compradora
A10: Software por Catalogo II | E10: Versión del simulador | F10: 14 12/04/2025
A11: Software por Catalogo II | E11: fecha del simulador | F11: 2025-04-12
A12: Software por Catalogo II | E12: csv_generado | F12: SI | G12: Sirve para activar la imagen de "Generar cotización"
A13: Software por Catalogo II | E13: Proveedor_precio_minimo | F13: CONSORCIO IAD DINAMICO SOFTWAREONE
A14: Software por Catalogo II | E14: Umbral MIPYME | F14: 532338092
A15: Software por Catalogo II | E15: TRM | F15: =+SolCotizacion!$J$25 -> 4194.18

Sheet Validaciones (hidden)
A1: Celdas Obligatorias
A2: Etapa | B2: Proceso/hoja | C2: Celda Obligatoria | D2: Tipo | E2: Referencia celda /Columna Tabla | F2: Referencia Merge /referencia while Tabla | G2: Mensaje | H2: Observaciones | I2: Categoria
A3: 1 | B3: SolCotizacion | C3: SI | D3: Normal | E3: $K$12 | F3: $K$12:$S$12 | G3: Nombre de la Entidad | I3: Suite Corporativa, Software General, CteI/EP, N/A
A4: 1 | B4: SolCotizacion | C4: SI | D4: Normal | E4: $K$14 | F4: $K$14:$S$14 | G4: Dirección de la Entidad | I4: Suite Corporativa, Software General, CteI/EP, N/A
A5: 1 | B5: SolCotizacion | C5: SI | D5: Normal | E5: $K$16 | F5: $K$16:$S$16 | G5: Nombre del funcionario comprador | I5: Suite Corporativa, Software General, CteI/EP, N/A
A6: 1 | B6: SolCotizacion | C6: SI | D6: Normal | E6: $K$18 | F6: $K$18:$S$18 | G6: Correo de comprador | I6: Suite Corporativa, Software General, CteI/EP, N/A
A7: 1 | B7: SolCotizacion | C7: SI | D7: Normal | E7: $Y$12 | F7: $Y$12:$AG$12 | G7: Nit | I7: Suite Corporativa, Software General, CteI/EP, N/A
A8: 1 | B8: SolCotizacion | C8: SI | D8: Normal | E8: $Y$14 | F8: $Y$14:$AG$14 | G8: Municipio/Dirección | I8: Suite Corporativa, Software General, CteI/EP, N/A
A9: 1 | B9: SolCotizacion | C9: SI | D9: Normal | E9: $Y$16 | F9: $Y$16:$AG$16 | G9: Teléfono de contacto | I9: Suite Corporativa, Software General, CteI/EP, N/A
A10: 1 | B10: SolCotizacion | C10: SI | D10: Normal | E10: $Y$18 | F10: $Y$18:$AG$18 | G10: RFI | I10: Suite Corporativa, Software General, CteI/EP, N/A
A11: 1 | B11: SolCotizacion | C11: SI | D11: Normal | E11: $J$22 | F11: $J$22:$M$23 | G11: Segmento | I11: Suite Corporativa, Software General, CteI/EP, N/A
A12: 1 | B12: SolCotizacion | C12: SI | D12: Normal | E12: $J$25 | F12: $J$25:$M$26 | G12: TRM | I12: Suite Corporativa, Software General, CteI/EP, N/A
A13: 1 | B13: SolCotizacion | C13: SI | D13: Normal | E13: $R$22 | F13: $R$22:$U$23 | G13: Proposito | I13: Suite Corporativa, Software General, N/A
A14: 1 | B14: SolCotizacion | C14: SI | D14: Normal | E14: $R$25 | F14: $R$25:$U$26 | G14: Presupuesto | I14: Suite Corporativa, Software General, CteI/EP, N/A
A15: 1 | B15: SolCotizacion | C15: SI | D15: Normal | E15: $Y$22 | F15: $Y$22:$AA$23 | G15: =IF(SolCotizacion!$J$22="Software General","Catálogo","Fabricante") -> Fabricante | I15: Suite Corporativa, Software General, N/A
A16: 1 | B16: SolCotizacion | C16: SI | D16: Normal | E16: $Y$25 | F16: $Y$25:$AA$26 | G16: Limitación a MIPYME | I16: Suite Corporativa, Software General, CteI/EP, N/A
A17: 1 | B17: SolCotizacion | C17: SI | D17: Normal | E17: $AD$22 | F17: $AD$22:$AG$23 | G17: Categoria | I17: Suite Corporativa, Software General, N/A
A18: 1 | B18: SolCotizacion | C18: NO | D18: Normal | E18: $AD$25 | F18: $AD$25:$AG$26 | G18: Campo disponible | H18: Campo no aplica ya que es formulado y sin edición | I18: Suite Corporativa, Software General, N/A
A19: 1 | B19: SolCotizacion | C19: SI | D19: Tabla | E19: g | F19: f | G19: Código del producto | H19: paq | I19: Suite Corporativa, Software General, N/A
A20: 1 | B20: SolCotizacion | C20: SI | D20: Tabla | E20: af | F20: f | G20: Cantidad | H20: paq | I20: Suite Corporativa, Software General, N/A
A21: 1 | B21: SolCotizacion | C21: SI | D21: Tabla | E21: g | F21: f | G21: Descripción gravamen | H21: grav | I21: Suite Corporativa, Software General, CteI/EP, N/A | J21: Tiene una excepción en el código al poderse dejar sin gravamenes
A22: 1 | B22: SolCotizacion | C22: SI | D22: Tabla | E22: ae | F22: f | G22: Porcentaje gravamen | H22: grav | I22: Suite Corporativa, Software General, CteI/EP, N/A | J22: Tiene una excepción en el código al poderse dejar sin gravamenes
A23: 1 | B23: SolCotizacion | C23: SI | D23: Normal | E23: $J$28 | F23: $J$28:$AG$30 | G23: Descripción general de la solución de software requerida | I23: CteI/EP
A24: 1 | B24: SolCotizacion | C24: SI | D24: Tabla | E24: g | F24: f | G24: Código del producto | H24: paq | I24: CteI/EP
A25: 1 | B25: SolCotizacion | C25: NO | D25: Tabla | E25: s | F25: f | G25: Observaciones | H25: paq | I25: CteI/EP, N/A
A32: 1 | B32: SolCotizacion | C32: SI | D32: Normal | E32: $K$12 | F32: $K$12:$S$12 | G32: Nombre de la Entidad | I32: CatA,seg3,CatC
A33: 1 | B33: SolCotizacion | C33: SI | D33: Normal | E33: $K$14 | F33: $K$14:$S$14 | G33: Dirección de la Entidad | I33: CatA,seg3,CatC
A34: 1 | B34: SolCotizacion | C34: SI | D34: Normal | E34: $K$16 | F34: $K$16:$S$16 | G34: Nombre del funcionario comprador | I34: CatA,seg3,CatC
A35: 1 | B35: SolCotizacion | C35: SI | D35: Normal | E35: $K$18 | F35: $K$18:$S$18 | G35: Correo de comprador | I35: CatA,seg3,CatC
A36: 1 | B36: SolCotizacion | C36: SI | D36: Normal | E36: $Y$12 | F36: $Y$12:$AB$12 | G36: Nit | I36: CatA,seg3,CatC
A37: 1 | B37: SolCotizacion | C37: SI | D37: Normal | E37: $Y$14 | F37: $Y$14:$AB$14 | G37: Municipio/Dirección | I37: CatA,seg3,CatC
A38: 1 | B38: SolCotizacion | C38: SI | D38: Normal | E38: $Y$16 | F38: $Y$16:$AB$16 | G38: Teléfono de contacto | I38: CatA,seg3,CatC
A39: 1 | B39: SolCotizacion | C39: SI | D39: Normal | E39: $J$22 | F39: $J$22:$M$22 | G39: Fecha creación solicitud cotización | I39: CatA,seg3,CatC
A40: 1 | B40: SolCotizacion | C40: SI | D40: Normal | E40: $R$22 | F40: $R$22:$T$22 | G40: Fecha generación OC (Orden de compra) | I40: CatA,seg3,CatC
A41: 1 | B41: SolCotizacion | C41: SI | D41: Normal | E41: $Y$22 | F41: $Y$22:$AB$22 | G41: Fecha vencimiento OC (Orden de compra) | I41: CatA,seg3,CatC
A42: 1 | B42: SolCotizacion | C42: SI | D42: Normal | E42: $I$29 | F42: $I$29:$N$29 | G42: Presupuesto | I42: CatA,seg3,CatC
A43: 1 | B43: SolCotizacion | C43: SI | D43: Tabla | E43: k | F43: f | G43: Ciudad / Municipio | H43: paq | I43: CatA,seg3
A44: 1 | B44: SolCotizacion | C44: SI | D44: Tabla | E44: g | F44: f | G44: Descripción gravamen | H44: grav | I44: CatA,seg3,CatC | J44: Tiene una excepción en el código al poderse dejar sin gravamenes
A45: 1 | B45: SolCotizacion | C45: SI | D45: Tabla | E45: ae | F45: f | G45: Porcentaje gravamen | H45: grav | I45: CatA,seg3,CatC | J45: Tiene una excepción en el código al poderse dejar sin gravamenes
A51: 1 | B51: SolCotizacion | C51: SI | D51: Normal | E51: $R$24 | F51: $R$24:$T$24 | G51: Vigencia estimada OC (Orden de compra) | I51: CatA,seg3,CatC

Sheet Tipo_proveedor (hidden)
A1: Nombre | B1: Nit | C1: Tipo Proveedor | D1: No. Oferta | E1: Nombre legal del Proponente | F1: Representante legal UT o Proponente singular | G1: Cédula | H1: Correo electronico | I1: Tamaño empresrial | J1: Departamento | K1: Municipio | L1: Integrante 1 Proponente plural (Si Aplica) | M1: Integrante 1 Tamañ | N1: Integrante 1 Representante legal | O1: Nit integrante 1 | P1: Departamento | Q1: Municipio | R1: Integrante 2 Representante legal | S1: Nit integrante 2 | T1: Departamento | U1: Municipio | V1: Integrante 3 Representante legal | W1: Nit integrante 3 | X1: Departamento | Y1: Municipio
A2: INFO-VISIBLE | B2: 900778927-6 | C2: MIPYME | D2: 1 | E2: Infovisible S.A.S | F2: Ricardo Acosta Niño | I2: Micro | J2: Bogotá | K2: Bogotá
A3: CEIBA SOFTWARE | B3: 900022972-3 | C3: GRANDE | D3: 2 | E3: Ceiba Software House S.A.S. | F3: Stibenzon Cañas Sánchez | I3: Grande | J3: ANTIOQUIA | K3: MEDELLÍN
A4: ADVANTAGE MICROSYSTEMS COLOMBIA LTDA | B4: 830141901-7 | C4: MIPYME | D4: 3 | E4: Advantage Microsystems Colombia Ltda | F4: Paez Beltran Pablo Emilio | I4: Mediana | J4: CUNDINAMARCA | K4: BOGOTÁ D.C.
A5: NIMBU.GOV | B5: 901799612-5 | C5: MIPYME | D5: 5 | E5: Nimbu.Gov Sas | F5: Norman Alexander Aldana Patiño | I5: Micro | J5: Bogotá | K5: Bogotá
A6: E-DEA NETWORKS SAS | B6: 900265026-3 | C6: MIPYME | D6: 7 | E6: E-Dea Networks S.A.S | F6: Pedro Andrés Echeverri Gómez | I6: Mediana | J6: Bogotá | K6: Bogotá
A7: INTEGRASOFT S.A.S. | B7: 900332071-2 | C7: MIPYME | D7: 8 | E7: Integrasoft S.A.S. | F7: Jorge Hernán Salazar Baena | I7: Pequeña
A8: UNIÓN TEMPORAL NEWSOURCE | C8: MIPYME | D8: 9 | E8: Unión Temporal Newsource | F8: Juan Carlos Gomez Londoño | I8: Mipyme | J8: CUNDINAMARCA | K8: BOGOTÁ
A9: NEWSAT SAS | B9: 830513366-3 | C9: MIPYME | D9: 10 | E9: Newsat Sas | F9: Diego Alejandro Salazar Vasquez | I9: Mediana | J9: Bogotá | K9: Bogotá
A10: SOLUCIONES ORION SUCURSAL COLOMBIA | B10: 901010523-1 | C10: MIPYME | D10: 11 | E10: Soluciones Orion Sucursal Colombia | F10: Pedro Pablo González Barrera | I10: Mediana | J10: Bogotá | K10: Bogotá
A11: NUVA S.A.S | B11: 900480786-3 | C11: MIPYME | D11: 12 | E11: Nuva S.A.S. | F11: Gabriel Jaime Gómez Gómez | I11: Mediana | J11: Antioquia | K11: Medellín
A12: SYSMAN S.A.S | B12: 900364710-8 | C12: MIPYME | D12: 13 | E12: Software Colombia Servicios Informaticos Sas | F12: Alex Vicente Chacón Jiménez | I12: Pequeña | J12: Bogotá | K12: Bogotá
A13: SEVEN SOLUCIONES INFORMÁTICAS S.A.S. | B13: 900687199-1 | C13: MIPYME | D13: 14 | E13: Seven Soluciones Informáticas S.A.S. | F13: Luis José Ballestero Toro | I13: Pequeña | J13: Aarmenia | K13: Quindio
A14: ANALITICA | B14: 830113019-6 | C14: MIPYME | D14: 15 | E14: Analitica S.A.S | F14: Andres Schlesinger Cruz | I14: Mediana | J14: Bogotá | K14: Bogotá
A15: AXENTRIA CONSULTING GROUP SAS | B15: 901678618-1 | C15: MIPYME | D15: 16 | E15: Gaviti Consulting S.A.S. | F15: Pablo Emilio Páez Beltrán | I15: Micro | J15: Antioquia | K15: Sabaneta
A16: TNS SAS | B16: 860034714-7 | C16: MIPYME | D16: 17 | E16: Procalculo Prosis S.A.S | F16: Felipe Trujillo Gutierrez | I16: Mediana | J16: Bogotá | K16: Bogotá
A17: GENTEMOVIL S A S | B17: 900664193-7 | C17: MIPYME | D17: 18 | E17: Gentemovil S A S | F17: Jaime Rafael Abella Alvarez | I17: Pequeña | J17: Bogotá | K17: Bogotá
A18: INNCORE ADVISORS SAS | B18: 901069566-2 | C18: MIPYME | D18: 19 | E18: Inncore Advisors Sas | F18: Sonia De Jesus Rios Rodas | I18: Micro | J18: Bogotá | K18: Bogotá
A19: ROYAL TECH GROUP SAS | B19: 901394655-2 | C19: MIPYME | D19: 21 | E19: Royal Tech Group S.A.S | F19: Mendoza Arroyo Hector David | I19: Micro | J19: atlantico | K19: Barranquilla
A20: ALFAPEOPLE ANDINO S.A.S | B20: 830013988-9 | C20: GRANDE | D20: 22 | E20: Alfapeople Andino S.A.S | F20: Felipe De Vidts Sabelle / Félix Sastoque Del Castillo | I20: Grande | J20: Bogotá | K20: Bogotá
A21: ANALITICA & GESTIÓN S.A.S | B21: 901092038-1 | C21: MIPYME | D21: 24 | E21: Analitica & Gestion S A S | F21: Mario G. Barbosa M. | I21: Pequeña | J21: Bogotá | K21: Bogotá
A22: PLES | B22: 901156404-0 | C22: MIPYME | D22: 25 | E22: Ples Sas | F22: Ana Isabel Sanchez Oliveros | I22: Micro | J22: Bolivar | K22: Cartagena
A23: AUTENTIC | B23: 900898001-6 | C23: MIPYME | D23: 26 | E23: Autentic Soluciones Tecnologicas Y Juridicas S.A.S | F23: Luis Miguel González Ulloa | I23: Pequeña | J23: Bogotá | K23: Bogotá
A24: PERCEPTIO S.A.S. | B24: 811022765-2 | C24: GRANDE | D24: 27 | E24: Perceptio S.A.S. | F24: Julio Cesar Medina Arboleda | I24: Grande | J24: Antioquia | K24: Medellín
A25: PENSEMOS SA | B25: 804002893-6 | C25: MIPYME | D25: 28 | E25: Pensemos Sa | F25: Gamaliel Vesga Florez | I25: Mediana | J25: Santander | K25: Bucaramanga
A26: SEMINTEL | B26: 900450643-0 | C26: MIPYME | D26: 29 | E26: Semintel | F26: Walter Rolando Gálvez Rendón | I26: Micro
A27: PLANIDEA | B27: 900597971-3 | C27: MIPYME | D27: 32 | E27: Planidea S.A.S | F27: Diego Alexander Gonzalez Flórez | I27: Micro | J27: ANTIOQUIA | K27: MEDELLÍN
A28: ITERIA SAS | B28: 805023132-3 | C28: MIPYME | D28: 33 | E28: Iteria Sas | F28: Jaime Andres Millan Mahecha | I28: Mediana | J28: VALLE DEL CAUCA | K28: CALI
A29: NUAWI | B29: 901613760-9 | C29: MIPYME | D29: 34 | E29: Nuawi Technologies S.A.S | F29: Miguel Ignacio Benavides Pazmiño | I29: Micro | J29: Bogotá | K29: Bogotá
A30: HR SOLUTIONS SAS | B30: 79058076 | C30: MIPYME | D30: 36 | E30: Hr Solutions Sas | F30: Carlos Humberto Ríos González | I30: Mediana | J30: Bogotá | K30: Bogotá
A31: GROW DATA S.A.S. | B31: 900238438-1 | C31: GRANDE | D31: 37 | E31: Grow Data S.A.S. | F31: Zulma Dayfeny Urbano | I31: Grande | J31: CUNDINAMARCA | K31: BOGOTÁ
A32: CREANGEL | B32: 830141562-3 | C32: MIPYME | D32: 39 | E32: Creangel Ltda. | F32: Angelo Roberto Rodríguez Rodríguez | I32: Mediana | J32: Bogotá | K32: Bogotá
A33: CONSORCIO IAD DINAMICO SOFTWAREONE | B33: N/A | C33: GRANDE | D33: 40 | E33: Consorcio Iad Dinámico Softwareone | F33: Jose Luis Rodriguez Castellanos | I33: Grande | J33: Bogotá | K33: Bogotá
A34: TEK SOLUCIONES TECNOLOGICAS S.A.S | B34: 900480656-4 | C34: MIPYME | D34: 41 | E34: Tek Soluciones Tecnologicas S.A.S. | F34: Diego Alexander Restrepo Londoño | I34: Mediana
A35: COMERCIALIZADORA SERLE.COM | B35: 800089897-4 | C35: MIPYME | D35: 42 | E35: Comercializadora Serle.Com S.A.S | F35: Rodolfo Antonio Albarracín Medina | I35: Pequeña | J35: CUNDINAMARCA | K35: BOGOTÁ D.C.
A36: CONTROL ONLINE INTERNATIONAL | B36: 901428945-1 | C36: MIPYME | D36: 43 | E36: Control Online International S.A.S | F36: Bertha Carolina Mogollón Becerra | I36: Pequeña | J36: norte de santander | K36: Cucuta
A37: NEWNET S.A. | B37: 8300172098 | C37: MIPYME | D37: 45 | E37: Newnet S.A. | F37: Alvaro Jose Trujillo Mejia | I37: Pequeña | J37: CUNDINAMARCA | K37: BOGOTÁ D.C.
A38: NETWORK & ACCESORIES SAS | B38: 830131674-7 | C38: MIPYME | D38: 50 | E38: Network & Accesories Sas | F38: Carlos Humberto Ríos González | I38: Mediana | J38: Bogotá | K38: Bogotá
A39: UNION TEMPORAL CATALOGO DE SOFTWARE ARCGIS DE ESRI | C39: GRANDE | D39: 52 | E39: Union Temporal Catalogo De Software Arcgis De Esri | F39: Manuel Francisco Lemos Ortega | I39: Grande
A40: SERVINFORMACION | B40: 830062674-0 | C40: GRANDE | D40: 54 | E40: Informacion Localizada S.A.S. (Servinformacion) | F40: Carlos Giovanni Parada Avila | I40: Grande | J40: Bogotá | K40: Bogotá
A41: COMWARE | B41: 860045379-1 | C41: GRANDE | D41: 58 | E41: Comware S.A. | F41: Monica Del Pilar Camacho Casado | I41: Grande | J41: CUNDINAMARCA | K41: BOGOTÁ
A42: CORBAN SAS | B42: 9004960139 | C42: MIPYME | D42: 59 | E42: Corban Computadores S A S | F42: Jonatan Rojas Muñoz | I42: Pequeña | J42: CUNDINAMARCA | K42: BOGOTÁ D.C.
A43: FISE CONSULTORES ECP SAS | B43: 900744007-9 | C43: MIPYME | D43: 60 | E43: Fise Consultores Ecp Sas | F43: Ever Enrique Castrillo Chaparro | I43: Pequeña | J43: VALLEDUPAR | K43: CESAR
A44: TIQAL | B44: 900184755-6 | C44: MIPYME | D44: 61 | E44: Tiqal Sas | F44: Alejandro Bermudez Restrepo | I44: Mediana | J44: VALLE DEL CAUCA | K44: CALI
A45: CONS-ROYAL-SOTELCO | C45: GRANDE | D45: 62 | E45: Consorcio Royal Sotelco Tecnologías Integradas | F45: Héctor David Mendoza Arroyo | I45: Grande | J45: Atlantico | K45: Barranquilla
A46: UNIÓN TEMPORAL SIGNA INGNOVATICS | B46: 901640786-4 | C46: MIPYME | D46: 64 | E46: Unión Temporal Signa Ingnovatics | F46: Daniel Estrada Duque | I46: Mipyme | J46: Bogotá | K46: Bogotá
A47: SOFTMANAGEMENT S.A. | B47: 830026014-7 | C47: MIPYME | D47: 66 | E47: Softmanagement S A | F47: Adriana Lucia Falla Lozano | I47: Mediana | J47: Bogotá | K47: Bogotá
A48: POINTMIND | B48: 830147140-6 | C48: MIPYME | D48: 70 | E48: Pointmind S.A.S | F48: Ramiro Ortiz Rios | I48: Micro | J48: CUNDINAMARCA | K48: BOGOTÁ
A49: NOVASOFT SAS | B49: 800028326-1 | C49: GRANDE | D49: 71 | E49: Novasoft S.A.S | F49: Wilson Armando Mendieta Mendieta | I49: Grande | J49: Bogotá | K49: Bogotá
A50: COLSOF S.A.S | B50: 800015583-1 | C50: GRANDE | D50: 72 | E50: Colsof S.A.S | F50: Erica Maria Oviedo | I50: Grande | J50: cUNDINAMARCA | K50: COTA
A51: REDCOMPUTO LTDA | B51: 8300160040 | C51: MIPYME | D51: 73 | E51: Redcomputo Limitada | F51: Lucia Nieto De La Torre | I51: Mediana | J51: CUNDINAMARCA | K51: BOGOTÁ D.C.
A52: NIMBUTECH | B52: 900672953-1 | C52: MIPYME | D52: 75 | E52: Nimbutech Sas | F52: Norman Alexander Aldana Patiño | I52: Mediana | J52: Bogotá | K52: Bogotá
A53: INGENIUM | B53: 900500876-5 | C53: MIPYME | D53: 76 | E53: Ingenium Colombia Sas | F53: Andrés Felipe Méndez Antolínez | I53: Mediana | J53: Bogotá | K53: Bogotá
A54: COMCEL S.A. | B54: 800153993-7 | C54: GRANDE | D54: 77 | E54: Comunicación Celular S.A. Comcel S.A. | F54: Santiago Pardo Fajardo | I54: Grande | J54: Bogotá | K54: Bogotá
A55: XERTICA | B55: 830077380-6 | C55: GRANDE | D55: 78 | E55: Xertica | F55: Andrés Cifuentes Corté | I55: Grande | J55: Bogotá | K55: Bogotá
A56: DIGITAL SOLUTIONS FOR BUSINESS SAS | B56: 900965503-9 | C56: MIPYME | D56: 79 | E56: Digital Solutions For Business Sas | F56: Edward Andrés Gutierrez Aponte | I56: Mediana | J56: CUNDINAMARCA | K56: BOGOTÁ
A57: BMIND | B57: 900105979-1 | C57: GRANDE | D57: 80 | E57: Bmind S.A.S Bic | F57: Carolina Garcia Sánchez | I57: Grande | J57: Bogotá | K57: Bogotá
A58: NEXURA INTERNACIONAL | B58: 805025355-8 | C58: GRANDE | D58: 81 | E58: Nexura Internacional S A S | F58: Johanna Regina Ruiz Huertas | I58: Grande | J58: Bogotá | K58: Bogotá
A59: MACRO PROYECTOS S.A.S | B59: 830033498-7 | C59: MIPYME | D59: 85 | E59: Macro Proyectos S.A.S | F59: José Mario Martínez | I59: Mediana | J59: Bogotá | K59: Bogotá
A60: CUANTICO | B60: 900418462-1 | C60: MIPYME | D60: 86 | E60: Cuanticore S.A.S. | F60: Daniel Lorenzo Medina Salcedo | I60: Pequeña | J60: CUNDINAMARCA | K60: BOGOTÁ
A61: IDEALOGIC | B61: 901157921-1 | C61: MIPYME | D61: 88 | E61: Idealogic Sas | F61: Jorge Enrique Ardila Suarez | I61: Pequeña | J61: Bogotá | K61: Bogotá
A62: CLOUD LABS. SAS | B62: 901831589-1 | C62: MIPYME | D62: 89 | E62: Cloud Labs. Sas | F62: Felipe Ortiz Beltran | I62: Micro | J62: Bogotá | K62: Bogotá
A63: INDRACOL | B63: 830013774-1 | C63: GRANDE | D63: 90 | E63: Indra Colombia S.A.S | F63: Victor Manuel De La Rosa Duran Y Eduardo Enrique Carrasquilla Mancilla | I63: Grande | J63: Bogotá | K63: Bogotá
A64: CONSULTORIA ORGANIZACIONAL S.A.S | B64: 830079434-4 | C64: GRANDE | D64: 92 | E64: Consultoria Organizacional S.A.S | F64: Victor Manuel De La Rosa Duran, Eduardo Enrique Carrasquilla | I64: Grande | J64: Bogotá | K64: Bogotá
A65: PROCIBERNETICA S.A. | B65: 860039333-7 | C65: MIPYME | D65: 93 | E65: Procibernetica S.A. | F65: Felipe Groot Montoya | I65: Mediana | J65: CUNDINAMARCA | K65: BOGOTÁ
A66: SONDA DE COLOMBIA S.A. | B66: 830001637-7 | C66: GRANDE | D66: 94 | E66: Sonda De Colombia S. A. | F66: Yesid Santamaría Ardila | I66: Grande | J66: Bogotá | K66: Bogotá
A67: GAVITI CONSULTING SAS | B67: 901678618-1 | C67: MIPYME | D67: 95 | E67: Gaviti Consulting S.A.S. | F67: Jennifer Atehortúa López | I67: Micro | J67: Antioquia | K67: Sabaneta
A68: UT-SEBE-CCENEG- 075-02-2024 | B68: N/A | C68: MIPYME | D68: 96 | E68: Unión Temporal Ut-Sebe-Cceneg-075-02-2024 | F68: Yessica Julieth Carmona Vergara | I68: Mipyme | J68: Bogotá | K68: Bogotá
A69: SOFT180 | B69: 901383431-2 | C69: MIPYME | D69: 97 | E69: Soft 180 Sas | F69: Edna Paola Rojas Uzeta | I69: Micro | J69: Bogotá | K69: Bogotá
A70: UNIÓN TEMPORAL RICOH-ORIGIN IAD SOFTWARE 2024 | B70: 800026212-1 | C70: MIPYME | D70: 98 | E70: Unión Temporal Ricoh-Origin Iad Software 2024 | F70: Matias Eillman | I70: Mipyme | J70: CUNDINAMARCA | K70: BOGOTÁ D.C.
A71: M&Q | B71: 900150121-0 | C71: MIPYME | D71: 99 | E71: Management And Quality S.A.S | F71: Germán José Morante García | I71: Mediana | J71: Bogotá | K71: Bogotá
A72: REALTIME CONSULTING & SERVICES S.A.S. | B72: 9001274179 | C72: MIPYME | D72: 101 | E72: Realtime Consulting & Services S A S | F72: Ana Milena Morales Lopez | I72: Mediana | J72: CUNDINAMARCA | K72: BOGOTÁ D.C.
A73: IKUSI REDES | B73: 830073329-1 | C73: MIPYME | D73: 105 | E73: Ikusi Redes Colombia, S.A.S | F73: Cesar Augusto Villamil Gordillo | I73: Mediana | J73: Bogotá | K73: Bogotá
A74: MAESTROS DEL CLOUD | B74: 901150131-8 | C74: MIPYME | D74: 108 | E74: Los Maestros Del Cloud Sas | F74: Manuel Castro Amaya | I74: Micro | J74: Bogotá | K74: Bogotá
A75: PROCALCULO | B75: 860034714-7 | C75: MIPYME | D75: 109 | E75: Procalculo Prosis S.A.S | F75: Felipe Trujillo Gutierrez | I75: Mediana | J75: Bogotá | K75: Bogotá
A76: DACARTEC INTERNATIONAL SERVICES ANDINA S.A.S | B76: 900256903-1 | C76: MIPYME | D76: 111 | E76: Dacartec International Services Andina S.A.S | F76: David Cano Torres | I76: Mediana | J76: Bogotá | K76: Bogotá
A77: GLOBAL TECHNOLOGY SERVICES GTS SA | B77: 830060020-5 | C77: MIPYME | D77: 114 | E77: Global Technology Services Gts Sa | F77: Cesar Enrique Agudelo | I77: Mediana | J77: CUNDINAMARCA | K77: BOGOTÁ
A78: GRUPO CUBO LTDA | B78: 830129409-5 | C78: MIPYME | D78: 116 | E78: Grupo Cubo Ltda | F78: Samuel Alejandro Lopez Mora | I78: Pequeña | J78: Bogotá | K78: Bogotá
A79: UNION TEMPORAL BGH 2024 | C79: GRANDE | D79: 117 | E79: Union Temporal Bgh 2024 | F79: Hector Martin Rodriguez | I79: Grande | J79: Bogotá | K79: Bogotá
A80: M.S.L. DISTRIBUCIONES Y CIA S.A.S | B80: 830031855-4 | C80: MIPYME | D80: 118 | E80: M S L Distribuciones & Cia S.A.S | F80: Camilo Montenegro Cajigas | I80: Mediana | J80: Bogotá | K80: Bogotá
A81: LINKTIC S.A.S | B81: 900037743-9 | C81: GRANDE | D81: 120 | E81: Linktic S.A.S | F81: Alejandro Posada Zuluaga | I81: Grande | J81: CUNDINAMARCA | K81: BOGOTÁ D.C.
A82: CONTROLES EMPRESARIALES S.A.S | B82: 800058607-2 | C82: GRANDE | D82: 121 | E82: Controles Empresariales S.A.S | F82: Adriana Márquez Pardo | I82: Grande | J82: CUNDINAMARCA | K82: BOGOTÁ
A83: SANOLIVAR S.A.S | B83: 900497625-0 | C83: MIPYME | D83: 122 | E83: Sanolivar S A S | F83: Héctor Julio Sanabria Diaz | I83: Pequeña | J83: Bogotá | K83: Bogotá
A84: INTERKONT SAS | B84: 900155576-0 | C84: MIPYME | D84: 124 | E84: Interkont Sas | F84: Alejandro Gutiérrez Suarez | I84: Pequeña | J84: Bogotá | K84: Bogotá
A85: SOAIN SOFTWARE ASSOCIATES SAS | B85: 900197910-8 | C85: GRANDE | D85: 125 | E85: Soain Software Associates S.A.S | F85: Edwin Orlando Rozo Medellín | I85: Grande | J85: Bogotá | K85: Bogotá
A86: GREEN SERVICES AND SOLUTIONS S.A.S. | B86: 900571849-1 | C86: GRANDE | D86: 126 | E86: Green Services And Solutions Sas | F86: Isabel Cristina Rivas Ruiz | I86: Grande | J86: ANTIOQUIA | K86: MEDELLÍN
A87: SKG TECNOLOGIA | B87: 900711074-0 | C87: GRANDE | D87: 128 | E87: Skg Tecnologia S.A.S. | F87: Fredy Fernando López Roa | I87: Grande | J87: CUNDINAMARCA | K87: BOGOTÁ
A88: COGNOS ONLINE S.A. | B88: 830074045-1 | C88: MIPYME | D88: 130 | E88: Cognosonline Solutions Colombia S. A | F88: Fernelly Morales Fonseca | I88: Mediana | J88: Bogotá | K88: Bogotá
A89: HARDWARE ASESORÍAS SOFTWARE LTDA | B89: 804000673-3 | C89: MIPYME | D89: 132 | E89: Hardware Asesorias Software Ltda | F89: Ramiro H. Vergara Rodríguez | I89: Mediana | J89: Santander | K89: Bucaramanga
A90: HIGHTECH | B90: 900718336-7 | C90: GRANDE | D90: 133 | E90: High Tech Software S.A.S | F90: Andrés Barrantes Bernal | I90: Grande | J90: Bogotá | K90: Bogotá
A91: CNID SAS | B91: 830039961-3 | C91: MIPYME | D91: 134 | E91: Cnid Sas | F91: Felipe Pelaez Patiño | I91: Mediana | J91: Bogotá | K91: Bogotá
A92: SINERGY | B92: 830078090-1 | C92: MIPYME | D92: 135 | E92: Sinergy & Lowells S.A.S. | F92: Evis Isabel Rios | I92: Mediana | J92: CUNDINAMARCA | K92: BOGOTÁ
A93: WEXLER S.A.S | B93: 900390198-6 | C93: MIPYME | D93: 136 | E93: Wexler S. A. S. | F93: Andrés David Tabares Telles | I93: Mediana | J93: Bogotá | K93: Bogotá
A94: DATA INTEGRAL | B94: 901052834-7 | C94: MIPYME | D94: 138 | E94: Data Integral Sas | F94: Anderson Gonzalez Cabra | I94: Mediana | J94: Bogotá | K94: Bogotá
A95: GOVTECH | B95: 901770704-8 | C95: MIPYME | D95: 140 | E95: Govtech Colombia S.A.S. | F95: Lina Mercedes Salcedo Salazar | I95: Micro | J95: CUNDINAMARCA | K95: BOGOTÁ D.C.
A96: NUA | B96: 901144257-2 | C96: MIPYME | D96: 141 | E96: Nua Technology S.A.S | F96: Carlos Andrés Balcázar Cárdenas | I96: Pequeña | J96: Bogotá | K96: Bogotá
A97: INFINITUM SCI TECH S.A.S. | B97: 900792593-8 | C97: MIPYME | D97: 142 | E97: Infinitum Sci Tech S.A.S. | F97: Doris Saray Bray Bohórquez | I97: Pequeña | J97: CUNDINAMARCA | K97: BOGOTÁ
A98: ENTELGY | B98: 9003604825 | C98: GRANDE | D98: 143 | E98: Entelgy Colombia Sas | F98: Luz Miryam Fontecha Mateus | I98: Grande | J98: CUNDINAMARCA | K98: BOGOTÁ D.C.
A99: INFOTECH | B99: 805019778-5 | C99: MIPYME | D99: 144 | E99: Infotech De Colombia Sas | F99: Jorge Mario Bedoya | I99: Pequeña | J99: Valle del Cauca | K99: Cali
A100: INNLAB S.A.S | B100: 900976532-1 | C100: MIPYME | D100: 147 | E100: Corporacion Innlab S.A.S. | F100: Narvaez Perez Tony Ricardo | I100: Micro | J100: MAGDALENA | K100: SANTA MARTA

Sheet Prov_x_cat_grup (hidden)
A1: Campo dispponible | B1: Llave | C1: Segmento | D1: Proposito | E1: Catálogo | F1: Categoria | G1: Codigo valida Item | H1: Proveedores autorizados
B2: Suite Corporativa_N/A_ESRI_Actualización | C2: Suite Corporativa | D2: N/A | E2: ESRI | F2: Actualización | G2: sxc02 | H2: UNION TEMPORAL CATALOGO DE SOFTWARE ARCGIS DE ESRI
B3: Suite Corporativa_N/A_ESRI_Acuerdo de licenciamiento | C3: Suite Corporativa | D3: N/A | E3: ESRI | F3: Acuerdo de licenciamiento | G3: sxc02 | H3: UNION TEMPORAL CATALOGO DE SOFTWARE ARCGIS DE ESRI
B4: Suite Corporativa_N/A_ESRI_Licencia de Suscripción Anual | C4: Suite Corporativa | D4: N/A | E4: ESRI | F4: Licencia de Suscripción Anual | G4: sxc02 | H4: UNION TEMPORAL CATALOGO DE SOFTWARE ARCGIS DE ESRI
B5: Suite Corporativa_N/A_ESRI_Licencia de Suscripción Mensual | C5: Suite Corporativa | D5: N/A | E5: ESRI | F5: Licencia de Suscripción Mensual | G5: sxc02 | H5: UNION TEMPORAL CATALOGO DE SOFTWARE ARCGIS DE ESRI
B6: Suite Corporativa_N/A_ESRI_Licencia Nueva | C6: Suite Corporativa | D6: N/A | E6: ESRI | F6: Licencia Nueva | G6: sxc02 | H6: UNION TEMPORAL CATALOGO DE SOFTWARE ARCGIS DE ESRI
B7: Suite Corporativa_N/A_ESRI_Licencia Perpetua | C7: Suite Corporativa | D7: N/A | E7: ESRI | F7: Licencia Perpetua | G7: sxc02 | H7: UNION TEMPORAL CATALOGO DE SOFTWARE ARCGIS DE ESRI
B8: Suite Corporativa_N/A_ESRI_Servicios Complementarios | C8: Suite Corporativa | D8: N/A | E8: ESRI | F8: Servicios Complementarios | G8: sxc02 | H8: UNION TEMPORAL CATALOGO DE SOFTWARE ARCGIS DE ESRI
B9: Suite Corporativa_N/A_ESRI_Productos ESRI | C9: Suite Corporativa | D9: N/A | E9: ESRI | F9: Productos ESRI | G9: sxc02 | H9: UNION TEMPORAL CATALOGO DE SOFTWARE ARCGIS DE ESRI
B10: Suite Corporativa_N/A_GOOGLE_AI Meetings and Messaging | C10: Suite Corporativa | D10: N/A | E10: GOOGLE | F10: AI Meetings and Messaging | G10: sxc02 | H10: CONS-ROYAL-SOTELCO | I10: MAESTROS DEL CLOUD | J10: NETWORK & ACCESORIES SAS | K10: NEXURA INTERNACIONAL | L10: NUVA S.A.S | M10: PROCIBERNETICA S.A. | N10: SERVINFORMACION | O10: SOLUCIONES ORION SUCURSAL COLOMBIA | P10: UNIÓN TEMPORAL NEWSOURCE | Q10: XERTICA
B11: Suite Corporativa_N/A_GOOGLE_AI Security | C11: Suite Corporativa | D11: N/A | E11: GOOGLE | F11: AI Security | G11: sxc02 | H11: CONS-ROYAL-SOTELCO | I11: MAESTROS DEL CLOUD | J11: NETWORK & ACCESORIES SAS | K11: NEXURA INTERNACIONAL | L11: NUVA S.A.S | M11: PROCIBERNETICA S.A. | N11: SERVINFORMACION | O11: SOLUCIONES ORION SUCURSAL COLOMBIA | P11: UNIÓN TEMPORAL NEWSOURCE | Q11: XERTICA
B12: Suite Corporativa_N/A_GOOGLE_Gemini Business for Workspace | C12: Suite Corporativa | D12: N/A | E12: GOOGLE | F12: Gemini Business for Workspace | G12: sxc02 | H12: CONS-ROYAL-SOTELCO | I12: MAESTROS DEL CLOUD | J12: NETWORK & ACCESORIES SAS | K12: NEXURA INTERNACIONAL | L12: NUVA S.A.S | M12: PROCIBERNETICA S.A. | N12: SERVINFORMACION | O12: SOLUCIONES ORION SUCURSAL COLOMBIA | P12: UNIÓN TEMPORAL NEWSOURCE | Q12: XERTICA
B13: Suite Corporativa_N/A_GOOGLE_Gemini Enterprise for Workspace | C13: Suite Corporativa | D13: N/A | E13: GOOGLE | F13: Gemini Enterprise for Workspace | G13: sxc02 | H13: CONS-ROYAL-SOTELCO | I13: MAESTROS DEL CLOUD | J13: NETWORK & ACCESORIES SAS | K13: NEXURA INTERNACIONAL | L13: NUVA S.A.S | M13: PROCIBERNETICA S.A. | N13: SERVINFORMACION | O13: SOLUCIONES ORION SUCURSAL COLOMBIA | P13: UNIÓN TEMPORAL NEWSOURCE | Q13: XERTICA
B14: Suite Corporativa_N/A_GOOGLE_Google | C14: Suite Corporativa | D14: N/A | E14: GOOGLE | F14: Google | G14: sxc02 | H14: CONS-ROYAL-SOTELCO | I14: MAESTROS DEL CLOUD | J14: NETWORK & ACCESORIES SAS | K14: NEXURA INTERNACIONAL | L14: NUVA S.A.S | M14: PROCIBERNETICA S.A. | N14: SERVINFORMACION | O14: SOLUCIONES ORION SUCURSAL COLOMBIA | P14: UNIÓN TEMPORAL NEWSOURCE | Q14: XERTICA
B15: Suite Corporativa_N/A_GOOGLE_Servicios Complementarios | C15: Suite Corporativa | D15: N/A | E15: GOOGLE | F15: Servicios Complementarios | G15: sxc02 | H15: CONS-ROYAL-SOTELCO | I15: MAESTROS DEL CLOUD | J15: NETWORK & ACCESORIES SAS | K15: NEXURA INTERNACIONAL | L15: NUVA S.A.S | M15: PROCIBERNETICA S.A. | N15: SERVINFORMACION | O15: SOLUCIONES ORION SUCURSAL COLOMBIA | P15: UNIÓN TEMPORAL NEWSOURCE | Q15: XERTICA
B16: Suite Corporativa_N/A_GOOGLE_Workspace | C16: Suite Corporativa | D16: N/A | E16: GOOGLE | F16: Workspace | G16: sxc02 | H16: CONS-ROYAL-SOTELCO | I16: MAESTROS DEL CLOUD | J16: NETWORK & ACCESORIES SAS | K16: NEXURA INTERNACIONAL | L16: NUVA S.A.S | M16: PROCIBERNETICA S.A. | N16: SERVINFORMACION | O16: SOLUCIONES ORION SUCURSAL COLOMBIA | P16: UNIÓN TEMPORAL NEWSOURCE | Q16: XERTICA
B17: Suite Corporativa_N/A_GOOGLE_Productos GOOGLE | C17: Suite Corporativa | D17: N/A | E17: GOOGLE | F17: Productos GOOGLE | G17: sxc02 | H17: CONS-ROYAL-SOTELCO | I17: MAESTROS DEL CLOUD | J17: NETWORK & ACCESORIES SAS | K17: NEXURA INTERNACIONAL | L17: NUVA S.A.S | M17: PROCIBERNETICA S.A. | N17: SERVINFORMACION | O17: SOLUCIONES ORION SUCURSAL COLOMBIA | P17: UNIÓN TEMPORAL NEWSOURCE | Q17: XERTICA
B18: Suite Corporativa_N/A_IBM_Application Modernization | C18: Suite Corporativa | D18: N/A | E18: IBM | F18: Application Modernization | G18: sxc02 | H18: ANALITICA & GESTIÓN S.A.S | I18: COLSOF S.A.S | J18: CONTROLES EMPRESARIALES S.A.S | K18: DACARTEC INTERNATIONAL SERVICES ANDINA S.A.S | L18: GLOBAL TECHNOLOGY SERVICES GTS SA | M18: IDEALOGIC | N18: REDCOMPUTO LTDA | O18: SOAIN SOFTWARE ASSOCIATES SAS | P18: SONDA DE COLOMBIA S.A. | Q18: UNIÓN TEMPORAL RICOH-ORIGIN IAD SOFTWARE 2024
B19: Suite Corporativa_N/A_IBM_Automation IT | C19: Suite Corporativa | D19: N/A | E19: IBM | F19: Automation IT | G19: sxc02 | H19: ANALITICA & GESTIÓN S.A.S | I19: COLSOF S.A.S | J19: CONTROLES EMPRESARIALES S.A.S | K19: DACARTEC INTERNATIONAL SERVICES ANDINA S.A.S | L19: GLOBAL TECHNOLOGY SERVICES GTS SA | M19: IDEALOGIC | N19: REDCOMPUTO LTDA | O19: SOAIN SOFTWARE ASSOCIATES SAS | P19: SONDA DE COLOMBIA S.A. | Q19: UNIÓN TEMPORAL RICOH-ORIGIN IAD SOFTWARE 2024
B20: Suite Corporativa_N/A_IBM_Datos e IA | C20: Suite Corporativa | D20: N/A | E20: IBM | F20: Datos e IA | G20: sxc02 | H20: ANALITICA & GESTIÓN S.A.S | I20: COLSOF S.A.S | J20: CONTROLES EMPRESARIALES S.A.S | K20: DACARTEC INTERNATIONAL SERVICES ANDINA S.A.S | L20: GLOBAL TECHNOLOGY SERVICES GTS SA | M20: IDEALOGIC | N20: REDCOMPUTO LTDA | O20: SOAIN SOFTWARE ASSOCIATES SAS | P20: SONDA DE COLOMBIA S.A. | Q20: UNIÓN TEMPORAL RICOH-ORIGIN IAD SOFTWARE 2024
B21: Suite Corporativa_N/A_IBM_Servicios Complementarios | C21: Suite Corporativa | D21: N/A | E21: IBM | F21: Servicios Complementarios | G21: sxc02 | H21: ANALITICA & GESTIÓN S.A.S | I21: COLSOF S.A.S | J21: CONTROLES EMPRESARIALES S.A.S | K21: DACARTEC INTERNATIONAL SERVICES ANDINA S.A.S | L21: GLOBAL TECHNOLOGY SERVICES GTS SA | M21: IDEALOGIC | N21: REDCOMPUTO LTDA | O21: SOAIN SOFTWARE ASSOCIATES SAS | P21: SONDA DE COLOMBIA S.A. | Q21: UNIÓN TEMPORAL RICOH-ORIGIN IAD SOFTWARE 2024
B22: Suite Corporativa_N/A_IBM_Sustainability Software | C22: Suite Corporativa | D22: N/A | E22: IBM | F22: Sustainability Software | G22: sxc02 | H22: ANALITICA & GESTIÓN S.A.S | I22: COLSOF S.A.S | J22: CONTROLES EMPRESARIALES S.A.S | K22: DACARTEC INTERNATIONAL SERVICES ANDINA S.A.S | L22: GLOBAL TECHNOLOGY SERVICES GTS SA | M22: IDEALOGIC | N22: REDCOMPUTO LTDA | O22: SOAIN SOFTWARE ASSOCIATES SAS | P22: SONDA DE COLOMBIA S.A. | Q22: UNIÓN TEMPORAL RICOH-ORIGIN IAD SOFTWARE 2024
B23: Suite Corporativa_N/A_IBM_Productos IBM | C23: Suite Corporativa | D23: N/A | E23: IBM | F23: Productos IBM | G23: sxc02 | H23: ANALITICA & GESTIÓN S.A.S | I23: COLSOF S.A.S | J23: CONTROLES EMPRESARIALES S.A.S | K23: DACARTEC INTERNATIONAL SERVICES ANDINA S.A.S | L23: GLOBAL TECHNOLOGY SERVICES GTS SA | M23: IDEALOGIC | N23: REDCOMPUTO LTDA | O23: SOAIN SOFTWARE ASSOCIATES SAS | P23: SONDA DE COLOMBIA S.A. | Q23: UNIÓN TEMPORAL RICOH-ORIGIN IAD SOFTWARE 2024
B24: Suite Corporativa_N/A_MICROSOFT_Open Value - CSP | C24: Suite Corporativa | D24: N/A | E24: MICROSOFT | F24: Open Value - CSP | G24: sxc02 | H24: ALFAPEOPLE ANDINO S.A.S | I24: COLSOF S.A.S | J24: COMCEL S.A. | K24: COMERCIALIZADORA SERLE.COM | L24: CONSORCIO IAD DINAMICO SOFTWAREONE | M24: CONTROLES EMPRESARIALES S.A.S | N24: NIMBUTECH | O24: SOLUCIONES ORION SUCURSAL COLOMBIA | P24: UNION TEMPORAL BGH 2024
B25: Suite Corporativa_N/A_MICROSOFT_Open Value y CSP-Ent NoCualf | C25: Suite Corporativa | D25: N/A | E25: MICROSOFT | F25: Open Value y CSP-Ent NoCualf | G25: sxc02 | H25: ALFAPEOPLE ANDINO S.A.S | I25: COLSOF S.A.S | J25: COMCEL S.A. | K25: COMERCIALIZADORA SERLE.COM | L25: CONSORCIO IAD DINAMICO SOFTWAREONE | M25: CONTROLES EMPRESARIALES S.A.S | N25: NIMBUTECH | O25: SOLUCIONES ORION SUCURSAL COLOMBIA | P25: UNION TEMPORAL BGH 2024
B26: Suite Corporativa_N/A_MICROSOFT_Enterprise Agreement-Educativo | C26: Suite Corporativa | D26: N/A | E26: MICROSOFT | F26: Enterprise Agreement-Educativo | G26: sxc02 | H26: CONSORCIO IAD DINAMICO SOFTWAREONE | I26: CONTROLES EMPRESARIALES S.A.S | J26: UNION TEMPORAL BGH 2024
B27: Suite Corporativa_N/A_MICROSOFT_Enterprise Agreement-Ent NoCualf | C27: Suite Corporativa | D27: N/A | E27: MICROSOFT | F27: Enterprise Agreement-Ent NoCualf | G27: sxc02 | H27: CONSORCIO IAD DINAMICO SOFTWAREONE | I27: CONTROLES EMPRESARIALES S.A.S | J27: UNION TEMPORAL BGH 2024
B28: Suite Corporativa_N/A_MICROSOFT_Servicios Complementarios | C28: Suite Corporativa | D28: N/A | E28: MICROSOFT | F28: Servicios Complementarios | G28: sxc02 | H28: ALFAPEOPLE ANDINO S.A.S | I28: COLSOF S.A.S | J28: COMCEL S.A. | K28: COMERCIALIZADORA SERLE.COM | L28: CONSORCIO IAD DINAMICO SOFTWAREONE | M28: CONTROLES EMPRESARIALES S.A.S | N28: NIMBUTECH | O28: SOLUCIONES ORION SUCURSAL COLOMBIA | P28: UNION TEMPORAL BGH 2024
B29: Suite Corporativa_N/A_ORACLE_CSS | C29: Suite Corporativa | D29: N/A | E29: ORACLE | F29: CSS | G29: sxc02 | H29: BMIND | I29: COMWARE | J29: ENTELGY | K29: GLOBAL TECHNOLOGY SERVICES GTS SA | L29: POINTMIND | M29: SOAIN SOFTWARE ASSOCIATES SAS
B30: Suite Corporativa_N/A_ORACLE_Oracle Base Porfolio | C30: Suite Corporativa | D30: N/A | E30: ORACLE | F30: Oracle Base Porfolio | G30: sxc02 | H30: BMIND | I30: COMWARE | J30: ENTELGY | K30: GLOBAL TECHNOLOGY SERVICES GTS SA | L30: ITERIA SAS | M30: POINTMIND | N30: SOAIN SOFTWARE ASSOCIATES SAS
B31: Suite Corporativa_N/A_ORACLE_Oracle CX Marketing Cloud B2B/B2C | C31: Suite Corporativa | D31: N/A | E31: ORACLE | F31: Oracle CX Marketing Cloud B2B/B2C | G31: sxc02 | H31: ENTELGY | I31: GLOBAL TECHNOLOGY SERVICES GTS SA
B32: Suite Corporativa_N/A_ORACLE_Oracle CX Service Cloud | C32: Suite Corporativa | D32: N/A | E32: ORACLE | F32: Oracle CX Service Cloud | G32: sxc02 | H32: ENTELGY | I32: GLOBAL TECHNOLOGY SERVICES GTS SA | J32: SONDA DE COLOMBIA S.A.
B33: Suite Corporativa_N/A_ORACLE_Oracle Enterprise Resource Planning (ERP) | C33: Suite Corporativa | D33: N/A | E33: ORACLE | F33: Oracle Enterprise Resource Planning (ERP) | G33: sxc02 | H33: AXENTRIA CONSULTING GROUP SAS | I33: ENTELGY | J33: GLOBAL TECHNOLOGY SERVICES GTS SA | K33: ITERIA SAS
A34: Se puede eliminar debido a que esta categoria paso a ser "Oracle Enterprise Resource Planning (ERP)" | B34: Suite Corporativa_N/A_ORACLE_Oracle EPM Cloud | C34: Suite Corporativa | D34: N/A | E34: ORACLE | F34: Oracle EPM Cloud | G34: sxc02 | H34: AXENTRIA CONSULTING GROUP SAS | I34: ENTELGY | J34: GLOBAL TECHNOLOGY SERVICES GTS SA
B35: Suite Corporativa_N/A_ORACLE_Oracle Fusion Human Capital Management (HCM) Cloud Service | C35: Suite Corporativa | D35: N/A | E35: ORACLE | F35: Oracle Fusion Human Capital Management (HCM) Cloud Service | G35: sxc02 | H35: AXENTRIA CONSULTING GROUP SAS | I35: ENTELGY | J35: GLOBAL TECHNOLOGY SERVICES GTS SA
B36: Suite Corporativa_N/A_ORACLE_Oracle Fusion Sales and Service Cloud Service | C36: Suite Corporativa | D36: N/A | E36: ORACLE | F36: Oracle Fusion Sales and Service Cloud Service | G36: sxc02 | H36: ENTELGY | I36: GLOBAL TECHNOLOGY SERVICES GTS SA
B37: Suite Corporativa_N/A_ORACLE_Oracle Linux | C37: Suite Corporativa | D37: N/A | E37: ORACLE | F37: Oracle Linux | G37: sxc02 | H37: BMIND | I37: COMWARE | J37: ENTELGY | K37: GLOBAL TECHNOLOGY SERVICES GTS SA | L37: POINTMIND
B38: Suite Corporativa_N/A_ORACLE_Oracle Primavera P6 EPPM and Primavera Cloud | C38: Suite Corporativa | D38: N/A | E38: ORACLE | F38: Oracle Primavera P6 EPPM and Primavera Cloud | G38: sxc02 | H38: ITERIA SAS | I38: SOAIN SOFTWARE ASSOCIATES SAS
B39: Suite Corporativa_N/A_ORACLE_Oracle Java SE Universal Subscription to Public Sector | C39: Suite Corporativa | D39: N/A | E39: ORACLE | F39: Oracle Java SE Universal Subscription to Public Sector | G39: sxc02 | H39: BMIND | I39: COMWARE | J39: GLOBAL TECHNOLOGY SERVICES GTS SA | K39: POINTMIND
B40: Suite Corporativa_N/A_ORACLE_Servicios Complementarios | C40: Suite Corporativa | D40: N/A | E40: ORACLE | F40: Servicios Complementarios | G40: sxc02 | H40: AXENTRIA CONSULTING GROUP SAS | I40: BMIND | J40: COMWARE | K40: ENTELGY | L40: GLOBAL TECHNOLOGY SERVICES GTS SA | M40: ITERIA SAS | N40: POINTMIND | O40: SOAIN SOFTWARE ASSOCIATES SAS | P40: SONDA DE COLOMBIA S.A.
B41: Suite Corporativa_N/A_ORACLE_Servicios de Educación | C41: Suite Corporativa | D41: N/A | E41: ORACLE | F41: Servicios de Educación | G41: sxc02 | H41: AXENTRIA CONSULTING GROUP SAS | I41: BMIND | J41: COMWARE | K41: ENTELGY | L41: SOAIN SOFTWARE ASSOCIATES SAS
B42: Suite Corporativa_N/A_ORACLE_Oracle Fusion Suite | C42: Suite Corporativa | D42: N/A | E42: ORACLE | F42: Oracle Fusion Suite | G42: sxc02 | H42: AXENTRIA CONSULTING GROUP SAS | I42: GLOBAL TECHNOLOGY SERVICES GTS SA | J42: ENTELGY | K42: ITERIA SAS
B43: Suite Corporativa_N/A_VMWARE_AVI LOAD BALANCER | C43: Suite Corporativa | D43: N/A | E43: VMWARE | F43: AVI LOAD BALANCER | G43: sxc02 | H43: COLSOF S.A.S | I43: CONSORCIO IAD DINAMICO SOFTWAREONE | J43: CONTROLES EMPRESARIALES S.A.S | K43: GREEN SERVICES AND SOLUTIONS S.A.S. | L43: M.S.L. DISTRIBUCIONES Y CIA S.A.S | M43: REDCOMPUTO LTDA
B44: Suite Corporativa_N/A_VMWARE_DATA | C44: Suite Corporativa | D44: N/A | E44: VMWARE | F44: DATA | G44: sxc02 | H44: COLSOF S.A.S | I44: CONSORCIO IAD DINAMICO SOFTWAREONE | J44: CONTROLES EMPRESARIALES S.A.S | K44: GREEN SERVICES AND SOLUTIONS S.A.S. | L44: M.S.L. DISTRIBUCIONES Y CIA S.A.S | M44: REDCOMPUTO LTDA
B45: Suite Corporativa_N/A_VMWARE_DATA PROTECTION | C45: Suite Corporativa | D45: N/A | E45: VMWARE | F45: DATA PROTECTION | G45: sxc02 | H45: COLSOF S.A.S | I45: CONSORCIO IAD DINAMICO SOFTWAREONE | J45: CONTROLES EMPRESARIALES S.A.S | K45: GREEN SERVICES AND SOLUTIONS S.A.S. | L45: M.S.L. DISTRIBUCIONES Y CIA S.A.S | M45: REDCOMPUTO LTDA
B46: Suite Corporativa_N/A_VMWARE_EDGE COMPUTING | C46: Suite Corporativa | D46: N/A | E46: VMWARE | F46: EDGE COMPUTING | G46: sxc02 | H46: COLSOF S.A.S | I46: CONSORCIO IAD DINAMICO SOFTWAREONE | J46: CONTROLES EMPRESARIALES S.A.S | K46: GREEN SERVICES AND SOLUTIONS S.A.S. | L46: M.S.L. DISTRIBUCIONES Y CIA S.A.S | M46: REDCOMPUTO LTDA
B47: Suite Corporativa_N/A_VMWARE_PRIVATE AI FOUNDATION | C47: Suite Corporativa | D47: N/A | E47: VMWARE | F47: PRIVATE AI FOUNDATION | G47: sxc02 | H47: COLSOF S.A.S | I47: CONSORCIO IAD DINAMICO SOFTWAREONE | J47: CONTROLES EMPRESARIALES S.A.S | K47: GREEN SERVICES AND SOLUTIONS S.A.S. | L47: M.S.L. DISTRIBUCIONES Y CIA S.A.S | M47: REDCOMPUTO LTDA
B48: Suite Corporativa_N/A_VMWARE_SAM-VCF | C48: Suite Corporativa | D48: N/A | E48: VMWARE | F48: SAM-VCF | G48: sxc02 | H48: COLSOF S.A.S | I48: CONSORCIO IAD DINAMICO SOFTWAREONE | J48: CONTROLES EMPRESARIALES S.A.S | K48: GREEN SERVICES AND SOLUTIONS S.A.S. | L48: M.S.L. DISTRIBUCIONES Y CIA S.A.S | M48: REDCOMPUTO LTDA
B49: Suite Corporativa_N/A_VMWARE_Servicios Complementarios | C49: Suite Corporativa | D49: N/A | E49: VMWARE | F49: Servicios Complementarios | G49: sxc02 | H49: COLSOF S.A.S | I49: CONSORCIO IAD DINAMICO SOFTWAREONE | J49: CONTROLES EMPRESARIALES S.A.S | K49: GREEN SERVICES AND SOLUTIONS S.A.S. | L49: M.S.L. DISTRIBUCIONES Y CIA S.A.S | M49: REDCOMPUTO LTDA
B50: Suite Corporativa_N/A_VMWARE_SPRING | C50: Suite Corporativa | D50: N/A | E50: VMWARE | F50: SPRING | G50: sxc02 | H50: COLSOF S.A.S | I50: CONSORCIO IAD DINAMICO SOFTWAREONE | J50: CONTROLES EMPRESARIALES S.A.S | K50: GREEN SERVICES AND SOLUTIONS S.A.S. | L50: M.S.L. DISTRIBUCIONES Y CIA S.A.S | M50: REDCOMPUTO LTDA
B51: Suite Corporativa_N/A_VMWARE_TAM-VCF | C51: Suite Corporativa | D51: N/A | E51: VMWARE | F51: TAM-VCF | G51: sxc02 | H51: COLSOF S.A.S | I51: CONSORCIO IAD DINAMICO SOFTWAREONE | J51: CONTROLES EMPRESARIALES S.A.S | K51: GREEN SERVICES AND SOLUTIONS S.A.S. | L51: M.S.L. DISTRIBUCIONES Y CIA S.A.S | M51: REDCOMPUTO LTDA
B52: Suite Corporativa_N/A_VMWARE_TANZU UNIT | C52: Suite Corporativa | D52: N/A | E52: VMWARE | F52: TANZU UNIT | G52: sxc02 | H52: COLSOF S.A.S | I52: CONSORCIO IAD DINAMICO SOFTWAREONE | J52: CONTROLES EMPRESARIALES S.A.S | K52: GREEN SERVICES AND SOLUTIONS S.A.S. | L52: M.S.L. DISTRIBUCIONES Y CIA S.A.S | M52: REDCOMPUTO LTDA
B53: Suite Corporativa_N/A_VMWARE_TIS | C53: Suite Corporativa | D53: N/A | E53: VMWARE | F53: TIS | G53: sxc02 | H53: COLSOF S.A.S | I53: CONSORCIO IAD DINAMICO SOFTWAREONE | J53: CONTROLES EMPRESARIALES S.A.S | K53: GREEN SERVICES AND SOLUTIONS S.A.S. | L53: M.S.L. DISTRIBUCIONES Y CIA S.A.S | M53: REDCOMPUTO LTDA
B54: Suite Corporativa_N/A_VMWARE_VCF | C54: Suite Corporativa | D54: N/A | E54: VMWARE | F54: VCF | G54: sxc02 | H54: COLSOF S.A.S | I54: CONSORCIO IAD DINAMICO SOFTWAREONE | J54: CONTROLES EMPRESARIALES S.A.S | K54: GREEN SERVICES AND SOLUTIONS S.A.S. | L54: M.S.L. DISTRIBUCIONES Y CIA S.A.S | M54: REDCOMPUTO LTDA
B55: Suite Corporativa_N/A_VMWARE_VELOCLOUD | C55: Suite Corporativa | D55: N/A | E55: VMWARE | F55: VELOCLOUD | G55: sxc02 | H55: COLSOF S.A.S | I55: CONSORCIO IAD DINAMICO SOFTWAREONE | J55: CONTROLES EMPRESARIALES S.A.S | K55: GREEN SERVICES AND SOLUTIONS S.A.S. | L55: M.S.L. DISTRIBUCIONES Y CIA S.A.S | M55: REDCOMPUTO LTDA
B56: Suite Corporativa_N/A_VMWARE_VSAN | C56: Suite Corporativa | D56: N/A | E56: VMWARE | F56: VSAN | G56: sxc02 | H56: COLSOF S.A.S | I56: CONSORCIO IAD DINAMICO SOFTWAREONE | J56: CONTROLES EMPRESARIALES S.A.S | K56: GREEN SERVICES AND SOLUTIONS S.A.S. | L56: M.S.L. DISTRIBUCIONES Y CIA S.A.S | M56: REDCOMPUTO LTDA
B57: Suite Corporativa_N/A_VMWARE_VSPHERE | C57: Suite Corporativa | D57: N/A | E57: VMWARE | F57: VSPHERE | G57: sxc02 | H57: COLSOF S.A.S | I57: CONSORCIO IAD DINAMICO SOFTWAREONE | J57: CONTROLES EMPRESARIALES S.A.S | K57: GREEN SERVICES AND SOLUTIONS S.A.S. | L57: M.S.L. DISTRIBUCIONES Y CIA S.A.S | M57: REDCOMPUTO LTDA
B58: Suite Corporativa_N/A_VMWARE_Productos VMWARE | C58: Suite Corporativa | D58: N/A | E58: VMWARE | F58: Productos VMWARE | G58: sxc02 | H58: COLSOF S.A.S | I58: CONSORCIO IAD DINAMICO SOFTWAREONE | J58: CONTROLES EMPRESARIALES S.A.S | K58: GREEN SERVICES AND SOLUTIONS S.A.S. | L58: M.S.L. DISTRIBUCIONES Y CIA S.A.S | M58: REDCOMPUTO LTDA
B59: Suite Corporativa_N/A_SAP_Cloud - Analytics & Insight | C59: Suite Corporativa | D59: N/A | E59: SAP | F59: Cloud - Analytics & Insight | G59: sxc02 | H59: HR SOLUTIONS SAS | I59: CONSULTORIA ORGANIZACIONAL S.A.S | J59: PERCEPTIO S.A.S.
B60: Suite Corporativa_N/A_SAP_Cloud - Business Process Intelligence | C60: Suite Corporativa | D60: N/A | E60: SAP | F60: Cloud - Business Process Intelligence | G60: sxc02 | H60: HR SOLUTIONS SAS | I60: CONSULTORIA ORGANIZACIONAL S.A.S | J60: PERCEPTIO S.A.S.
B61: Suite Corporativa_N/A_SAP_Cloud - Customer Experience | C61: Suite Corporativa | D61: N/A | E61: SAP | F61: Cloud - Customer Experience | G61: sxc02 | H61: HR SOLUTIONS SAS | I61: CONSULTORIA ORGANIZACIONAL S.A.S | J61: PERCEPTIO S.A.S.
B62: Suite Corporativa_N/A_SAP_Cloud - Digital Supply Chain | C62: Suite Corporativa | D62: N/A | E62: SAP | F62: Cloud - Digital Supply Chain | G62: sxc02 | H62: CONSULTORIA ORGANIZACIONAL S.A.S
B63: Suite Corporativa_N/A_SAP_Cloud - Education | C63: Suite Corporativa | D63: N/A | E63: SAP | F63: Cloud - Education | G63: sxc02 | H63: HR SOLUTIONS SAS | I63: CONSULTORIA ORGANIZACIONAL S.A.S | J63: PERCEPTIO S.A.S.
B64: Suite Corporativa_N/A_SAP_Cloud - Enterprise Information Management | C64: Suite Corporativa | D64: N/A | E64: SAP | F64: Cloud - Enterprise Information Management | G64: sxc02 | H64: HR SOLUTIONS SAS | I64: CONSULTORIA ORGANIZACIONAL S.A.S | J64: PERCEPTIO S.A.S.
B65: Suite Corporativa_N/A_SAP_Cloud - ERP | C65: Suite Corporativa | D65: N/A | E65: SAP | F65: Cloud - ERP | G65: sxc02 | H65: HR SOLUTIONS SAS | I65: CONSULTORIA ORGANIZACIONAL S.A.S | J65: PERCEPTIO S.A.S.
B66: Suite Corporativa_N/A_SAP_Cloud - Finance & Governance, Risk and Compliance | C66: Suite Corporativa | D66: N/A | E66: SAP | F66: Cloud - Finance & Governance, Risk and Compliance | G66: sxc02 | H66: HR SOLUTIONS SAS | I66: CONSULTORIA ORGANIZACIONAL S.A.S | J66: PERCEPTIO S.A.S.
B67: Suite Corporativa_N/A_SAP_Cloud - Human Capital Management (HCM) | C67: Suite Corporativa | D67: N/A | E67: SAP | F67: Cloud - Human Capital Management (HCM) | G67: sxc02 | H67: HR SOLUTIONS SAS | I67: CONSULTORIA ORGANIZACIONAL S.A.S | J67: PERCEPTIO S.A.S.
B68: Suite Corporativa_N/A_SAP_Cloud - Integration and Extension | C68: Suite Corporativa | D68: N/A | E68: SAP | F68: Cloud - Integration and Extension | G68: sxc02 | H68: HR SOLUTIONS SAS | I68: CONSULTORIA ORGANIZACIONAL S.A.S | J68: PERCEPTIO S.A.S.
B69: Suite Corporativa_N/A_SAP_Cloud - Leonardo Technology | C69: Suite Corporativa | D69: N/A | E69: SAP | F69: Cloud - Leonardo Technology | G69: sxc02 | H69: HR SOLUTIONS SAS | I69: CONSULTORIA ORGANIZACIONAL S.A.S | J69: PERCEPTIO S.A.S.
B70: Suite Corporativa_N/A_SAP_Cloud - Middleware | C70: Suite Corporativa | D70: N/A | E70: SAP | F70: Cloud - Middleware | G70: sxc02 | H70: HR SOLUTIONS SAS | I70: CONSULTORIA ORGANIZACIONAL S.A.S | J70: PERCEPTIO S.A.S.
B71: Suite Corporativa_N/A_SAP_Cloud - Other | C71: Suite Corporativa | D71: N/A | E71: SAP | F71: Cloud - Other | G71: sxc02 | H71: HR SOLUTIONS SAS | I71: CONSULTORIA ORGANIZACIONAL S.A.S | J71: PERCEPTIO S.A.S.
B72: Suite Corporativa_N/A_SAP_Cloud - Procurement | C72: Suite Corporativa | D72: N/A | E72: SAP | F72: Cloud - Procurement | G72: sxc02 | H72: CONSULTORIA ORGANIZACIONAL S.A.S
B73: Suite Corporativa_N/A_SAP_Cloud - S/4HANA Procurement | C73: Suite Corporativa | D73: N/A | E73: SAP | F73: Cloud - S/4HANA Procurement | G73: sxc02 | H73: CONSULTORIA ORGANIZACIONAL S.A.S
B74: Suite Corporativa_N/A_SAP_Cloud - S/4HANA Utilities | C74: Suite Corporativa | D74: N/A | E74: SAP | F74: Cloud - S/4HANA Utilities | G74: sxc02 | H74: HR SOLUTIONS SAS | I74: CONSULTORIA ORGANIZACIONAL S.A.S | J74: PERCEPTIO S.A.S.
B75: Suite Corporativa_N/A_SAP_Cloud - S/4HANA Defense & Security | C75: Suite Corporativa | D75: N/A | E75: SAP | F75: Cloud - S/4HANA Defense & Security | G75: sxc02 | H75: HR SOLUTIONS SAS | I75: CONSULTORIA ORGANIZACIONAL S.A.S | J75: PERCEPTIO S.A.S.
B76: Suite Corporativa_N/A_SAP_Cloud - S/4HANA Human Capital Management (HCM) | C76: Suite Corporativa | D76: N/A | E76: SAP | F76: Cloud - S/4HANA Human Capital Management (HCM) | G76: sxc02 | H76: HR SOLUTIONS SAS | I76: CONSULTORIA ORGANIZACIONAL S.A.S | J76: PERCEPTIO S.A.S.
B77: Suite Corporativa_N/A_SAP_Cloud - S/4HANA Digital Supply Chain | C77: Suite Corporativa | D77: N/A | E77: SAP | F77: Cloud - S/4HANA Digital Supply Chain | G77: sxc02 | H77: CONSULTORIA ORGANIZACIONAL S.A.S
B78: Suite Corporativa_N/A_SAP_Cloud - S/4HANA Customer Experience | C78: Suite Corporativa | D78: N/A | E78: SAP | F78: Cloud - S/4HANA Customer Experience | G78: sxc02 | H78: HR SOLUTIONS SAS | I78: CONSULTORIA ORGANIZACIONAL S.A.S | J78: PERCEPTIO S.A.S.
B79: Suite Corporativa_N/A_SAP_Cloud - S/4HANA Analytics & Insight | C79: Suite Corporativa | D79: N/A | E79: SAP | F79: Cloud - S/4HANA Analytics & Insight | G79: sxc02 | H79: HR SOLUTIONS SAS | I79: CONSULTORIA ORGANIZACIONAL S.A.S | J79: PERCEPTIO S.A.S.
B80: Suite Corporativa_N/A_SAP_Cloud - S/4HANA Applications | C80: Suite Corporativa | D80: N/A | E80: SAP | F80: Cloud - S/4HANA Applications | G80: sxc02 | H80: HR SOLUTIONS SAS | I80: CONSULTORIA ORGANIZACIONAL S.A.S | J80: PERCEPTIO S.A.S.
B81: Suite Corporativa_N/A_SAP_Cloud - S/4HANA Digital Platform | C81: Suite Corporativa | D81: N/A | E81: SAP | F81: Cloud - S/4HANA Digital Platform | G81: sxc02 | H81: HR SOLUTIONS SAS | I81: CONSULTORIA ORGANIZACIONAL S.A.S | J81: PERCEPTIO S.A.S.
B82: Suite Corporativa_N/A_SAP_Cloud - S/4HANA Enterprise Information Management | C82: Suite Corporativa | D82: N/A | E82: SAP | F82: Cloud - S/4HANA Enterprise Information Management | G82: sxc02 | H82: HR SOLUTIONS SAS | I82: CONSULTORIA ORGANIZACIONAL S.A.S | J82: PERCEPTIO S.A.S.
B83: Suite Corporativa_N/A_SAP_Cloud - S/4HANA Finance & Governance, Risk and Compliance | C83: Suite Corporativa | D83: N/A | E83: SAP | F83: Cloud - S/4HANA Finance & Governance, Risk and Compliance | G83: sxc02 | H83: HR SOLUTIONS SAS | I83: CONSULTORIA ORGANIZACIONAL S.A.S | J83: PERCEPTIO S.A.S.
B84: Suite Corporativa_N/A_SAP_Cloud - S/4HANA Middleware | C84: Suite Corporativa | D84: N/A | E84: SAP | F84: Cloud - S/4HANA Middleware | G84: sxc02 | H84: HR SOLUTIONS SAS | I84: CONSULTORIA ORGANIZACIONAL S.A.S | J84: PERCEPTIO S.A.S.
B85: Suite Corporativa_N/A_SAP_Cloud - S/4HANA Public Sector | C85: Suite Corporativa | D85: N/A | E85: SAP | F85: Cloud - S/4HANA Public Sector | G85: sxc02 | H85: HR SOLUTIONS SAS | I85: CONSULTORIA ORGANIZACIONAL S.A.S | J85: PERCEPTIO S.A.S.
B86: Suite Corporativa_N/A_SAP_Cloud - S/4HANA Support | C86: Suite Corporativa | D86: N/A | E86: SAP | F86: Cloud - S/4HANA Support | G86: sxc02 | H86: HR SOLUTIONS SAS | I86: CONSULTORIA ORGANIZACIONAL S.A.S | J86: PERCEPTIO S.A.S.
B87: Suite Corporativa_N/A_SAP_Cloud - Support | C87: Suite Corporativa | D87: N/A | E87: SAP | F87: Cloud - Support | G87: sxc02 | H87: HR SOLUTIONS SAS | I87: CONSULTORIA ORGANIZACIONAL S.A.S | J87: PERCEPTIO S.A.S.
B88: Suite Corporativa_N/A_SAP_Cloud - Utilities | C88: Suite Corporativa | D88: N/A | E88: SAP | F88: Cloud - Utilities | G88: sxc02 | H88: HR SOLUTIONS SAS | I88: CONSULTORIA ORGANIZACIONAL S.A.S | J88: PERCEPTIO S.A.S.
B89: Suite Corporativa_N/A_SAP_SAP Cloud Applications | C89: Suite Corporativa | D89: N/A | E89: SAP | F89: SAP Cloud Applications | G89: sxc02 | H89: HR SOLUTIONS SAS | I89: CONSULTORIA ORGANIZACIONAL S.A.S | J89: PERCEPTIO S.A.S.
B131: CteI/EP___ | C131: CteI/EP | G131: sxc02

Sheet L3 (hidden)
A2: Lista desplegable de Segmento | L2: Lista desplegable de Propósito | Y2: Lista desplegable de Catálogo | AN2: Lista desplegable de Categorias | BA2: Filtro1 catalogo | BN2: Filtro2 catalogo | BY2: Proveedores filtro2 | CE2: Proveedores | CQ2: Cargue catálogo - Filtro grupos proveedor | DC2: Cargue catálogo - cat_filtro1
A4: Segmento | C4: Observaciones | I4: Segmento | J4: Propósito | L4: Segmento | M4: Propósito | N4: Habilitado | P4: Observaciones | U4: Segmento | V4: Propósito | W4: Catálogo/Fabricante | Y4: Segmento | Z4: Propósito | AA4: Catálogo/Fabricante | AB4: Habilitado | AD4: Observaciones | AI4: Segmento | AJ4: Propósito | AK4: Catálogo/Fabricante | AL4: Categoria | AN4: Segmento | AO4: Propósito | AP4: Catálogo/Fabricante | AQ4: Categoria | AR4: Habilitado | AT4: Observaciones | AY4: Codigo | BA4: Segmento | BB4: Propósito | BC4: Catálogo/Fabricante | BD4: Categoria | BE4: Habilitado | BG4: Observaciones | BL4: Codigo | BN4: Codigo | BO4: Categoria | BQ4: Observaciones | BW4: Proveedor | BY4: Proveedor | CA4: Observaciones | CE4: Proveedores | CK4: Segmento | CL4: Propósito | CM4: Catálogo/Fabricante | CN4: Categoria | CO4: Proveedor | CQ4: Proveedor | CU4: <<<<Este filtro se hace en otro archivo, pero aquí se colocan los criterios, se usa para los procesos de cargues de catalogo y saber para el proveedor que se va a actualizar, en cuales tiene representación | DA4: Segmento | DC4: Segmento | DD4: Propósito | DE4: Catálogo/Fabricante | DF4: Categoria | DG4: Proveedor | DH4: Habilitado
A5: Suite Corporativa | C5: <<<<Esta es la lista inicial, no tiene ningun tipo de programación | I5: Suite Corporativa | J5: N/A | L5: =+SolCotizacion!J22 -> Suite Corporativa | M5: <>*Software General* | N5: 1 | P5: <<<<Lista desplegable de Propositos dependiente del segmento (Para Suite Corporativa es N/A) Se trabaja mediante un filtro avanzado en el codigo | U5: Suite Corporativa | V5: N/A | W5: ESRI | Y5: =+SolCotizacion!J22 -> Suite Corporativa | Z5: =+SolCotizacion!R22 -> N/A | AA5: <>*Software General* | AB5: 1 | AD5: <<<<Lista desplegable de cataálogos del segmento y propósito Se trabaja mediante un filtro avanzado en el codigo | AI5: Suite Corporativa | AJ5: N/A | AK5: MICROSOFT | AL5: Enterprise Agreement-Educativo | AN5: =+SolCotizacion!$J$22 -> Suite Corporativa | AO5: =+SolCotizacion!$R$22 -> N/A | AP5: =+SolCotizacion!$Y$22 -> MICROSOFT | AQ5: <>*Servicios Complementarios* | AR5: 1 | AT5: <<<<Lista desplegable de Categorias dependiente del segmento, proposito y catalogo Se trabaja mediante un filtro avanzado en el codigo | AY5: 076-01776EAAP | BA5: =+SolCotizacion!$J$22 -> Suite Corporativa | BB5: =IF(BA5="Software General","*",SolCotizacion!$R$22) -> N/A | BC5: =+SolCotizacion!$Y$22 -> MICROSOFT | BD5: =+SolCotizacion!$AD$22 -> Enterprise Agreement-Educativo | BE5: 1 | BG5: <<<<Filtro para generar el listado de productos para el primer universo muestral (todos los codigos de productos permitidos según las selecciones previas Se trabaja mediante un filtro avanzado en el codigo Nota: El destino de este filtro es cat_filtro1 y el unique es false | BN5: T6A-00024EAEASENT | BQ5: <<<<Filtro para generar el listado de productos para el universo muestral reducido (solo los productos seleccionados en la Solcotizacion, este filktro se activa generando el resumen cotización y la hoja destino es Cat_filtro2) Se trabaja mediante un filtro avanzado en el codigo Nota: El destino de este filtro es cat_filtro1 y el unique es false Nota2: tener presente que el valor de la categoria se coloca mediante codigo y se debe colocar en la fila despues del ultimo codigo para que el filtro se ejcute como se desea: Filtrar esos codigos y todas las categorias que digan "Servicios complementarios Nota3: Los codigos los saca mediante codigo de la tabla de solcotizacion mediante un copy | BW5: PROPIO | CA5: <<<<Filtro para generar el listado de Proveedores Potenciales con base al filtro 2, se usa para mejorar rendimiento y evitar ciclos largos de analisis del resumen cotización Se trabaja mediante un filtro avanzado en el codigo Nota: Este listado no es el de la hoja cotización, pero es la base, pues de esta base se debe eliminar los proveedores que no contengan X producto y/o si aplica o no para mipyme Nota2: Este filtro no tiene argumentos y basicamente lo que busco es la lista de valores unicos | CE5: DEYCI BRAVO JOJOA | CK5: Suite Corporativa | CL5: N/A | CM5: ORACLE | CN5: CSS | CO5: PROPIO | CQ5: ="PROPIO" -> PROPIO | DA5: No importa, este campo no se llena | DC5: Suite Corporativa | DD5: N/A | DE5: ORACLE | DF5: CSS | DG5: PROPIO | DH5: 1
A6: Software General | U6: Suite Corporativa | V6: N/A | W6: GOOGLE | AI6: Suite Corporativa | AJ6: N/A | AK6: MICROSOFT | AL6: Enterprise Agreement-Ent NoCualf | AY6: 076-01776EAAPTUP | BA6: =+SolCotizacion!$J$22 -> Suite Corporativa | BB6: =IF(BA6="Software General","*",SolCotizacion!$R$22) -> N/A | BC6: =IF(BA6="Software General",BA6,SolCotizacion!$Y$22) -> MICROSOFT | BD6: *Servicios Complementarios* | BE6: 1 | BN6: AAA-10842EAEASENT | BW6: ALFAPEOPLE ANDINO S.A.S | CE6: GIOVANI RAMIRO PEREZ CHARRIS | CK6: Suite Corporativa | CL6: N/A | CM6: ORACLE | CN6: Oracle Base Porfolio | CO6: PROPIO | DC6: Suite Corporativa | DD6: N/A | DE6: ORACLE | DF6: Oracle Base Porfolio | DG6: PROPIO | DH6: 1
A7: CteI/EP | U7: Suite Corporativa | V7: N/A | W7: IBM | AI7: Suite Corporativa | AJ7: N/A | AK7: MICROSOFT | AL7: Open Value - CSP | AY7: 076-01776EASAPLICSUBS | BN7: 4DS-00001EAEASAP | BW7: COLSOF S.A.S | CK7: Suite Corporativa | CL7: N/A | CM7: ORACLE | CN7: Oracle CX Marketing Cloud B2B/B2C | CO7: PROPIO | DC7: Suite Corporativa | DD7: N/A | DE7: ORACLE | DF7: Oracle CX Marketing Cloud B2B/B2C | DG7: PROPIO | DH7: 1
U8: Suite Corporativa | V8: N/A | W8: MICROSOFT | AI8: Suite Corporativa | AJ8: N/A | AK8: MICROSOFT | AL8: Open Value y CSP-Ent NoCualf | AY8: 076-01912EAAP | BN8: 9EA-00039EAAP | BW8: COMCEL S.A. | CK8: Suite Corporativa | CL8: N/A | CM8: ORACLE | CN8: Oracle CX Service Cloud | CO8: PROPIO | DC8: Suite Corporativa | DD8: N/A | DE8: ORACLE | DF8: Oracle CX Service Cloud | DG8: PROPIO | DH8: 1
L9: ^^^^^^^ Criterios de filtro avanzado | U9: Suite Corporativa | V9: N/A | W9: ORACLE | Y9: ^^^^^^^ Criterios de filtro avanzado | AN9: ^^^^^^^ Criterios de filtro avanzado | AY9: 125-00110AP | BA9: ^^^^^^^ Criterios de filtro avanzado | BN9: NK4-00002EAEASAP | BW9: COMERCIALIZADORA SERLE.COM | CK9: Suite Corporativa | CL9: N/A | CM9: ORACLE | CN9: Oracle Enterprise Resource Planning (ERP) | CO9: PROPIO | CQ9: ^^^^^^^ Criterios de filtro avanzado | DC9: Suite Corporativa | DD9: N/A | DE9: ORACLE | DF9: Oracle Enterprise Resource Planning (ERP) | DG9: PROPIO | DH9: 1
U10: Suite Corporativa | V10: N/A | W10: SAP | AY10: 125-00110EAAP | BN10: 83I-00001EAEASAP | BW10: CONSORCIO IAD DINAMICO SOFTWAREONE | CK10: Suite Corporativa | CL10: N/A | CM10: ORACLE | CN10: Oracle Fusion Human Capital Management (HCM) Cloud Service | CO10: PROPIO | DC10: Suite Corporativa | DD10: N/A | DE10: ORACLE | DF10: Oracle Fusion Human Capital Management (HCM) Cloud Service | DG10: PROPIO | DH10: 1
U11: Suite Corporativa | V11: N/A | W11: VMWARE | AY11: 125-00110EAAPTUP | BN11: 7LS-00002EAEASAP | BW11: CONTROLES EMPRESARIALES S.A.S | CK11: Suite Corporativa | CL11: N/A | CM11: ORACLE | CN11: Oracle Fusion Sales and Service Cloud Service | CO11: PROPIO | DC11: Suite Corporativa | DD11: N/A | DE11: ORACLE | DF11: Oracle Fusion Sales and Service Cloud Service | DG11: PROPIO | DH11: 1
AY12: 125-00110EASAPLICSUBS | BO12: *Servicios Complementarios* | BW12: NIMBUTECH | CK12: Suite Corporativa | CL12: N/A | CM12: ORACLE | CN12: Oracle Linux | CO12: PROPIO | DC12: Suite Corporativa | DD12: N/A | DE12: ORACLE | DF12: Oracle Linux | DG12: PROPIO | DH12: 1
AY13: 125-00124EAAP | BW13: SOLUCIONES ORION SUCURSAL COLOMBIA | CK13: Suite Corporativa | CL13: N/A | CM13: ORACLE | CN13: Oracle Primavera P6 EPPM and Primavera Cloud | CO13: PROPIO | DC13: Suite Corporativa | DD13: N/A | DE13: ORACLE | DF13: Oracle Primavera P6 EPPM and Primavera Cloud | DG13: PROPIO | DH13: 1
AY14: 126-00156AP | BW14: UNION TEMPORAL BGH 2024 | CK14: Suite Corporativa | CL14: N/A | CM14: ORACLE | CN14: Oracle Java SE Universal Subscription to Public Sector | CO14: PROPIO | DC14: Suite Corporativa | DD14: N/A | DE14: ORACLE | DF14: Oracle Java SE Universal Subscription to Public Sector | DG14: PROPIO | DH14: 1
AY15: 126-00156EAAP | CK15: Suite Corporativa | CL15: N/A | CM15: ORACLE | CN15: Servicios de Educación | CO15: PROPIO | DC15: Suite Corporativa | DD15: N/A | DE15: ORACLE | DF15: Servicios de Educación | DG15: PROPIO | DH15: 1
AY16: 126-00156EAAPTUP
AY17: 126-00156EASAPLICSUBS
AY18: 126-00156SCE
AY19: 126-00156SCETUP
AY20: 126-00169EAAP
AY21: 126-00169EAAPTUP
AY22: 126-00169EASAPLICSUBS
Y23: =+IF(Y22="Software General",Y22,"") ->  | Z23: =+IF(Y23<>"",Y23,"") ->  | AY23: 126-00169SCE
AY24: 126-00169SCETUP
AY25: 126-00183EAAP
AY26: 126-00183SCE
AY27: 126-00196EAAP
AY28: 126-00196SCE
AY29: 126-01981SCELICSUBS
AY30: 126-01982SCELICSUBS
AY31: 151-00001AP
AY32: 151-00001STU
AY33: 16A-00001EAEASAP
AY34: 16B-00001EAEASAP
AY35: 1C9-00002EAEASAP
AY36: 1CB-00001EAEASAP
AY37: 1CC-00001EAEASAP
AY38: 1CD-00001FACA
AY39: 1CD-00001FACB
AY40: 1CD-00001FACC
AY41: 1CD-00001FACD
AY42: 1CD-00001STUA
AY43: 1CD-00001STUB
AY44: 1CD-00001STUC
AY45: 1CD-00001STUD
AY46: 1CG-00001FACA
AY47: 1CG-00001FACB
AY48: 1CG-00001FACC
AY49: 1CG-00001FACD
AY50: 1CG-00001STUA
AY51: 1CG-00001STUB
AY52: 1CG-00001STUC
AY53: 1CG-00001STUD
AY54: 1CH-00001FACA
AY55: 1CH-00001FACB
AY56: 1CH-00001FACC
AY57: 1CH-00001FACD
AY58: 1CH-00001STUA
AY59: 1CH-00001STUB
AY60: 1CH-00001STUC
AY61: 1CH-00001STUD
AY62: 1GJ-00001EAEASENT
AY63: 1LL-00005EAEASAP
AY64: 1O4-00001EAEASAP
AY65: 1O8-00001EAEASAP
AY66: 1P6-00013AP
AY67: 1P6-00013STU
AY68: 1PI-00001EAEASAP
AY69: 1R5-00002EAEASAP
AY70: 1RA-00003AP
AY71: 1RA-00003STU
AY72: 1S7-00015EAEASAP
AY73: 1S7-00017EAEASAP
AY74: 1S7-00018EAEASAP
AY75: 1S7-00019EAEASAP
AY76: 1S9-00003EAEASAP
AY77: 1SA-00007AP
AY78: 1SA-00007STU
AY79: 1SA-00009AP
AY80: 1SA-00009STU
AY81: 1SA-00010AP
AY82: 1SA-00010STU
AY83: 1SA-00011AP
AY84: 1SA-00011STU
AY85: 1SD-00014EAEASAP
AY86: 1SG-00003EAEASAP
AY87: 1SH-00007AP
AY88: 1SH-00007STU
AY89: 1SM-00001AP
AY90: 1SM-00001STU
AY91: 1SO-00001AP
AY92: 1SO-00001STU
AY93: 1UC-00009EAEASAP
AY94: 228-04433EAAP
AY95: 228-04433SCE
AY96: 228-04437AP
AY97: 228-04437EAAP
AY98: 228-04437EAAPTUP
AY99: 228-04437EASAPLICSUBS
AY100: 228-04437SCE
AY101: 228-04437SCETUP
AY102: 228-10025SCELICSUBS
AY103: 269-05623EAENT
AY104: 269-05623EAENTTUP
AY105: 269-05623EASENTLICSUBS
AY106: 269-05704EAENT
AY107: 2P8-00009AP
AY108: 2P8-00009STU
AY109: 2U1-00001EAEASAP
AY110: 2U8-00001EAEASAP
AY111: 2UB-00001EAEASAP
AY112: 2UI-00001EAEASAP
AY113: 2V1-00001EAEASAP
AY114: 2V8-00001EAEASAP
AY115: 2VB-00001EAEASAP
AY116: 2VI-00001EAEASAP
AY117: 2W1-00001EAEASAP
AY118: 2ZA-00001SUB
AY119: 2ZA-00002AP
AY120: 2ZA-00002FAC
AY121: 2ZA-00002STU
AY122: 312-02177AP
AY123: 312-02177EAAP
AY124: 312-02177EAAPTUP
AY125: 312-02177EASAPLICSUBS
AY126: 312-02257EAAP
AY127: 32M-00001AP
AY128: 32M-00001STU
AY129: 359-00765AP
AY130: 359-00765EAAP
AY131: 359-00765EAAPTUP
AY132: 359-00765EASAPLICSUBS
AY133: 359-00765FAC
AY134: 359-00765SCE
AY135: 359-00765SCETUP
AY136: 359-00765STU
AY137: 359-00792EAAP
AY138: 359-00792SCE
AY139: 359-00960EAAP
AY140: 359-00960EAAPTUP
AY141: 359-00960EASAPLICSUBS
AY142: 359-00960SCE
AY143: 359-00960SCETUP
AY144: 359-00961EAAP
AY145: 359-00961SCE
AY146: 359-05813SCELICSUBS
AY147: 359-05814SCELICSUBS
AY148: 395-02412AP
AY149: 395-02412EAAP
AY150: 395-02412EAAPTUP
AY151: 395-02412EASAPLICSUBS
AY152: 395-02504EAAP
AY153: 395-03039AP
AY154: 395-03039EAAP
AY155: 3IC-00007EAEASAP
AY156: 3IV-00007EAEASAP
AY157: 3JJ-00003EAEASENT
AY158: 3ND-00524EAAP
AY159: 3ND-00524EAAPTUP
AY160: 3ND-00524EASAPLICSUBS
AY161: 3ND-00524FAC
AY162: 3ND-00524STU
AY163: 3ND-00525EAAP
AY164: 3ND-00525EAAPTUP
AY165: 3ND-00525EASAPLICSUBS
AY166: 3ND-00527EAAP
AY167: 3ND-00528EAAP
AY168: 3NM-00004EAEASAP
AY169: 3Q2-00002EAEASAP
AY170: 3R2-00002EAEASAP
AY171: 3R3-00001AP
AY172: 3R3-00001STU
AY173: 3R3-00004SUB
AY174: 3VU-00043AP
AY175: 3VU-00043EAAP
AY176: 3VU-00043EAAPTUP
AY177: 3VU-00043EASAPLICSUBS
AY178: 3VU-00043SCE
AY179: 3VU-00043SCETUP
AY180: 3VU-00044EAAP
AY181: 3VU-00044SCE
AY182: 3VU-00047SCELICSUBS
AY183: 3ZK-00193EAAP
AY184: 3ZK-00193EAAPTUP
AY185: 3ZK-00193EASAPLICSUBS
AY186: 3ZK-00193FAC
AY187: 3ZK-00193STU
AY188: 3ZK-00194EAAP
AY189: 3ZK-00194EAAPTUP
AY190: 3ZK-00194EASAPLICSUBS
AY191: 3ZK-00195EAAP
AY192: 3ZK-00196EAAP
AY193: 41F-00007EAEASAP
AY194: 41F-00008EAEASAP
AY195: 41F-00009EAEASAP
AY196: 41F-00010EAEASAP
AY197: 41G-00007AP
AY198: 41G-00007STU
AY199: 41G-00008AP
AY200: 41G-00008STU
AY201: 438-00009AP
AY202: 438-00009EAEASAP
... 923 more rows

Sheet Cri_fil (hidden)
R1: Filtro para realizar los calculos del valor minimo mucho mas facil
A2: Filtro principal del catalago | H2: Filtro para codigos de productos sin duplicados (El filtro esta en la hoja listas)
A3: Región | B3: Categoría | H3: Región | I3: Categoría | J3: Uniforme | O3: Código del producto | P3: Uniforme
A4: =+SolCotizacion!$R$25 -> 100000 | B4: =+SolCotizacion!$J$22 -> Suite Corporativa | H4: =+SolCotizacion!$R$25 -> 100000 | I4: =+SolCotizacion!$J$22 -> Suite Corporativa | J4: <>*logo* | O4: CAT1-002 | P4: Uniforme tipo 1 recomendable para personal de banda sinfónica, entre otros. Clima frío y cálido.
O5: CAT1-018-8 | P5: Logo corporativo estampado tamaño espalda a más de tres tintas.
O6: CAT1-010 | P6: Corbata.
H14: =+SolCotizacion!$R$25 -> 100000 | I14: =+SolCotizacion!$J$22 -> Suite Corporativa | J14: <>*logo*
J16: * | K16: con * si quiero que filtren TODOS

Sheet Cat_Filtro1 (hidden)
A1: Llave disponible | B1: Llave Disponible 2 | C1: Llave | D1: Codigo | E1: Proveedor | F1: Moneda | G1: Precio | H1: Habilitado | I1: Segmento | J1: Propósito | K1: Catálogo/Fabricante | L1: Categoria | M1: Nombre | N1: Descripción | O1: Tipo | P1: Asistencia | Q1: Perfil | R1: Unidad | S1: Zona | T1: Información Adicional | U1: Forma de pago | V1: Tipo de Proveedor | W1: Tipo2 | X1: Enlace Web de Fabricante con los detalles de operación del Producto | Y1: No Oferta | Z1: Tamaño Proveedor | AA1: Observaciones
A2: PROPIO_Suite Corporativa_N/A_MICROSOFT_Enterprise Agreement-Educativo_076-01776EAAP | C2: PROPIO_076-01776EAAP | D2: 076-01776EAAP | E2: PROPIO | F2: USD | G2: 736.96 | H2: 1 | I2: Suite Corporativa | J2: N/A | K2: MICROSOFT | L2: Enterprise Agreement-Educativo | M2: Microsoft Project Standard All Languages License & Software Assurance_EAAP | N2: Project Standard | O2: License/Software Assurance Pack | P2: N/A | Q2: N/A | R2: N/A | S2: N/A | T2: Acuerdos Microsoft: EA GOBIERNO Categoria: ENTERPRISE | U2: Licencia | V2: N/A | W2: N/A | X2: N/A | Y2: N/A | Z2: N/A
A3: PROPIO_Suite Corporativa_N/A_MICROSOFT_Enterprise Agreement-Educativo_076-01776EAAPTUP | C3: PROPIO_076-01776EAAPTUP | D3: 076-01776EAAPTUP | E3: PROPIO | F3: USD | G3: 654 | H3: 1 | I3: Suite Corporativa | J3: N/A | K3: MICROSOFT | L3: Enterprise Agreement-Educativo | M3: Microsoft Project Standard All Languages License & Software Assurance_EAAP_TUP | N3: Project Standard | O3: License/Software Assurance Pack | P3: N/A | Q3: N/A | R3: N/A | S3: N/A | T3: Acuerdos Microsoft: EA GOBIERNO Categoria: ENTERPRISE | U3: Licencia | V3: N/A | W3: N/A | X3: N/A | Y3: N/A | Z3: N/A
A4: PROPIO_Suite Corporativa_N/A_MICROSOFT_Enterprise Agreement-Educativo_076-01776EASAPLICSUBS | C4: PROPIO_076-01776EASAPLICSUBS | D4: 076-01776EASAPLICSUBS | E4: PROPIO | F4: USD | G4: 261 | H4: 1 | I4: Suite Corporativa | J4: N/A | K4: MICROSOFT | L4: Enterprise Agreement-Educativo | M4: Microsoft Project Standard All Languages License & Software Assurance_EASAP_LICSUBS | N4: Project Standard | O4: License/Software Assurance Pack | P4: N/A | Q4: N/A | R4: N/A | S4: N/A | T4: Acuerdos Microsoft: EAS GOBIERNO Categoria: ENTERPRISE | U4: Suscripción Anual | V4: N/A | W4: N/A | X4: N/A | Y4: N/A | Z4: N/A
A5: PROPIO_Suite Corporativa_N/A_MICROSOFT_Enterprise Agreement-Educativo_076-01912EAAP | C5: PROPIO_076-01912EAAP | D5: 076-01912EAAP | E5: PROPIO | F5: USD | G5: 166 | H5: 1 | I5: Suite Corporativa | J5: N/A | K5: MICROSOFT | L5: Enterprise Agreement-Educativo | M5: Microsoft Project Standard All Languages Software Assurance_EAAP | N5: Project Standard | O5: Software Assurance | P5: N/A | Q5: N/A | R5: N/A | S5: N/A | T5: Acuerdos Microsoft: EA GOBIERNO Categoria: ENTERPRISE | U5: Licencia | V5: N/A | W5: N/A | X5: N/A | Y5: N/A | Z5: N/A
A6: PROPIO_Suite Corporativa_N/A_MICROSOFT_Enterprise Agreement-Educativo_125-00110AP | C6: PROPIO_125-00110AP | D6: 125-00110AP | E6: PROPIO | F6: USD | G6: 41 | H6: 1 | I6: Suite Corporativa | J6: N/A | K6: MICROSOFT | L6: Enterprise Agreement-Educativo | M6: Microsoft Azure DevOps Server All Languages License & Software Assurance_AP | N6: Azure DevOps Server | O6: License/Software Assurance Pack | P6: N/A | Q6: N/A | R6: N/A | S6: N/A | T6: Acuerdos Microsoft: EES ACADEMICO Categoria: EDUCATIVO | U6: Suscripción Anual | V6: N/A | W6: N/A | X6: N/A | Y6: N/A | Z6: N/A
A7: PROPIO_Suite Corporativa_N/A_MICROSOFT_Enterprise Agreement-Educativo_125-00110EAAP | C7: PROPIO_125-00110EAAP | D7: 125-00110EAAP | E7: PROPIO | F7: USD | G7: 406.96 | H7: 1 | I7: Suite Corporativa | J7: N/A | K7: MICROSOFT | L7: Enterprise Agreement-Educativo | M7: Microsoft Azure DevOps Server All Languages License & Software Assurance_EAAP | N7: Azure DevOps Server | O7: License/Software Assurance Pack | P7: N/A | Q7: N/A | R7: N/A | S7: N/A | T7: Acuerdos Microsoft: EA GOBIERNO Categoria: ENTERPRISE | U7: Licencia | V7: N/A | W7: N/A | X7: N/A | Y7: N/A | Z7: N/A
A8: PROPIO_Suite Corporativa_N/A_MICROSOFT_Enterprise Agreement-Educativo_125-00110EAAPTUP | C8: PROPIO_125-00110EAAPTUP | D8: 125-00110EAAPTUP | E8: PROPIO | F8: USD | G8: 366 | H8: 1 | I8: Suite Corporativa | J8: N/A | K8: MICROSOFT | L8: Enterprise Agreement-Educativo | M8: Microsoft Azure DevOps Server All Languages License & Software Assurance_EAAP_TUP | N8: Azure DevOps Server | O8: License/Software Assurance Pack | P8: N/A | Q8: N/A | R8: N/A | S8: N/A | T8: Acuerdos Microsoft: EA GOBIERNO Categoria: ENTERPRISE | U8: Licencia | V8: N/A | W8: N/A | X8: N/A | Y8: N/A | Z8: N/A
A9: PROPIO_Suite Corporativa_N/A_MICROSOFT_Enterprise Agreement-Educativo_125-00110EASAPLICSUBS | C9: PROPIO_125-00110EASAPLICSUBS | D9: 125-00110EASAPLICSUBS | E9: PROPIO | F9: USD | G9: 129 | H9: 1 | I9: Suite Corporativa | J9: N/A | K9: MICROSOFT | L9: Enterprise Agreement-Educativo | M9: Microsoft Azure DevOps Server All Languages License & Software Assurance_EASAP_LICSUBS | N9: Azure DevOps Server | O9: License/Software Assurance Pack | P9: N/A | Q9: N/A | R9: N/A | S9: N/A | T9: Acuerdos Microsoft: EAS GOBIERNO Categoria: ENTERPRISE | U9: Suscripción Anual | V9: N/A | W9: N/A | X9: N/A | Y9: N/A | Z9: N/A
A10: PROPIO_Suite Corporativa_N/A_MICROSOFT_Enterprise Agreement-Educativo_125-00124EAAP | C10: PROPIO_125-00124EAAP | D10: 125-00124EAAP | E10: PROPIO | F10: USD | G10: 82 | H10: 1 | I10: Suite Corporativa | J10: N/A | K10: MICROSOFT | L10: Enterprise Agreement-Educativo | M10: Microsoft Azure DevOps Server All Languages Software Assurance_EAAP | N10: Azure DevOps Server | O10: Software Assurance | P10: N/A | Q10: N/A | R10: N/A | S10: N/A | T10: Acuerdos Microsoft: EA GOBIERNO Categoria: ENTERPRISE | U10: Licencia | V10: N/A | W10: N/A | X10: N/A | Y10: N/A | Z10: N/A
A11: PROPIO_Suite Corporativa_N/A_MICROSOFT_Enterprise Agreement-Educativo_126-00156AP | C11: PROPIO_126-00156AP | D11: 126-00156AP | E11: PROPIO | F11: USD | G11: 41 | H11: 1 | I11: Suite Corporativa | J11: N/A | K11: MICROSOFT | L11: Enterprise Agreement-Educativo | M11: Microsoft Azure DevOps Server CAL All Languages License & Software Assurance Device CAL_AP | N11: Azure DevOps Server CAL | O11: License/Software Assurance Pack | P11: N/A | Q11: N/A | R11: N/A | S11: N/A | T11: Acuerdos Microsoft: EES ACADEMICO Categoria: EDUCATIVO | U11: Suscripción Anual | V11: N/A | W11: N/A | X11: N/A | Y11: N/A | Z11: N/A
A12: PROPIO_Suite Corporativa_N/A_MICROSOFT_Enterprise Agreement-Educativo_126-00156EAAP | C12: PROPIO_126-00156EAAP | D12: 126-00156EAAP | E12: PROPIO | F12: USD | G12: 406.96 | H12: 1 | I12: Suite Corporativa | J12: N/A | K12: MICROSOFT | L12: Enterprise Agreement-Educativo | M12: Microsoft Azure DevOps Server CAL All Languages License & Software Assurance Device CAL_EAAP | N12: Azure DevOps Server CAL | O12: License/Software Assurance Pack | P12: N/A | Q12: N/A | R12: N/A | S12: N/A | T12: Acuerdos Microsoft: EA GOBIERNO Categoria: ENTERPRISE | U12: Licencia | V12: N/A | W12: N/A | X12: N/A | Y12: N/A | Z12: N/A
A13: PROPIO_Suite Corporativa_N/A_MICROSOFT_Enterprise Agreement-Educativo_126-00156EAAPTUP | C13: PROPIO_126-00156EAAPTUP | D13: 126-00156EAAPTUP | E13: PROPIO | F13: USD | G13: 366 | H13: 1 | I13: Suite Corporativa | J13: N/A | K13: MICROSOFT | L13: Enterprise Agreement-Educativo | M13: Microsoft Azure DevOps Server CAL All Languages License & Software Assurance Device CAL_EAAP_TUP | N13: Azure DevOps Server CAL | O13: License/Software Assurance Pack | P13: N/A | Q13: N/A | R13: N/A | S13: N/A | T13: Acuerdos Microsoft: EA GOBIERNO Categoria: ENTERPRISE | U13: Licencia | V13: N/A | W13: N/A | X13: N/A | Y13: N/A | Z13: N/A
A14: PROPIO_Suite Corporativa_N/A_MICROSOFT_Enterprise Agreement-Educativo_126-00156EASAPLICSUBS | C14: PROPIO_126-00156EASAPLICSUBS | D14: 126-00156EASAPLICSUBS | E14: PROPIO | F14: USD | G14: 129 | H14: 1 | I14: Suite Corporativa | J14: N/A | K14: MICROSOFT | L14: Enterprise Agreement-Educativo | M14: Microsoft Azure DevOps Server CAL All Languages License & Software Assurance Device CAL_EASAP_LICSUBS | N14: Azure DevOps Server CAL | O14: License/Software Assurance Pack | P14: N/A | Q14: N/A | R14: N/A | S14: N/A | T14: Acuerdos Microsoft: EAS GOBIERNO Categoria: ENTERPRISE | U14: Suscripción Anual | V14: N/A | W14: N/A | X14: N/A | Y14: N/A | Z14: N/A
A15: PROPIO_Suite Corporativa_N/A_MICROSOFT_Enterprise Agreement-Educativo_126-00156SCE | C15: PROPIO_126-00156SCE | D15: 126-00156SCE | E15: PROPIO | F15: USD | G15: 355 | H15: 1 | I15: Suite Corporativa | J15: N/A | K15: MICROSOFT | L15: Enterprise Agreement-Educativo | M15: Microsoft Azure DevOps Server CAL All Languages License & Software Assurance Device CAL_SCE | N15: Azure DevOps Server CAL | O15: License/Software Assurance Pack | P15: N/A | Q15: N/A | R15: N/A | S15: N/A | T15: Acuerdos Microsoft: SCE GOBIERNO Categoria: ENTERPRISE | U15: Licencia | V15: N/A | W15: N/A | X15: N/A | Y15: N/A | Z15: N/A
A16: PROPIO_Suite Corporativa_N/A_MICROSOFT_Enterprise Agreement-Educativo_126-00156SCETUP | C16: PROPIO_126-00156SCETUP | D16: 126-00156SCETUP | E16: PROPIO | F16: USD | G16: 312 | H16: 1 | I16: Suite Corporativa | J16: N/A | K16: MICROSOFT | L16: Enterprise Agreement-Educativo | M16: Microsoft Azure DevOps Server CAL All Languages License & Software Assurance Device CAL_SCE_TUP | N16: Azure DevOps Server CAL | O16: License/Software Assurance Pack | P16: N/A | Q16: N/A | R16: N/A | S16: N/A | T16: Acuerdos Microsoft: SCE GOBIERNO Categoria: ENTERPRISE | U16: Licencia | V16: N/A | W16: N/A | X16: N/A | Y16: N/A | Z16: N/A
A17: PROPIO_Suite Corporativa_N/A_MICROSOFT_Enterprise Agreement-Educativo_126-00169EAAP | C17: PROPIO_126-00169EAAP | D17: 126-00169EAAP | E17: PROPIO | F17: USD | G17: 468.54 | H17: 1 | I17: Suite Corporativa | J17: N/A | K17: MICROSOFT | L17: Enterprise Agreement-Educativo | M17: Microsoft Azure DevOps Server CAL All Languages License & Software Assurance User CAL_EAAP | N17: Azure DevOps Server CAL | O17: License/Software Assurance Pack | P17: N/A | Q17: N/A | R17: N/A | S17: N/A | T17: Acuerdos Microsoft: EA GOBIERNO Categoria: ENTERPRISE | U17: Licencia | V17: N/A | W17: N/A | X17: N/A | Y17: N/A | Z17: N/A
A18: PROPIO_Suite Corporativa_N/A_MICROSOFT_Enterprise Agreement-Educativo_126-00169EAAPTUP | C18: PROPIO_126-00169EAAPTUP | D18: 126-00169EAAPTUP | E18: PROPIO | F18: USD | G18: 421 | H18: 1 | I18: Suite Corporativa | J18: N/A | K18: MICROSOFT | L18: Enterprise Agreement-Educativo | M18: Microsoft Azure DevOps Server CAL All Languages License & Software Assurance User CAL_EAAP_TUP | N18: Azure DevOps Server CAL | O18: License/Software Assurance Pack | P18: N/A | Q18: N/A | R18: N/A | S18: N/A | T18: Acuerdos Microsoft: EA GOBIERNO Categoria: ENTERPRISE | U18: Licencia | V18: N/A | W18: N/A | X18: N/A | Y18: N/A | Z18: N/A
A19: PROPIO_Suite Corporativa_N/A_MICROSOFT_Enterprise Agreement-Educativo_126-00169EASAPLICSUBS | C19: PROPIO_126-00169EASAPLICSUBS | D19: 126-00169EASAPLICSUBS | E19: PROPIO | F19: USD | G19: 148 | H19: 1 | I19: Suite Corporativa | J19: N/A | K19: MICROSOFT | L19: Enterprise Agreement-Educativo | M19: Microsoft Azure DevOps Server CAL All Languages License & Software Assurance User CAL_EASAP_LICSUBS | N19: Azure DevOps Server CAL | O19: License/Software Assurance Pack | P19: N/A | Q19: N/A | R19: N/A | S19: N/A | T19: Acuerdos Microsoft: EAS GOBIERNO Categoria: ENTERPRISE | U19: Suscripción Anual | V19: N/A | W19: N/A | X19: N/A | Y19: N/A | Z19: N/A
A20: PROPIO_Suite Corporativa_N/A_MICROSOFT_Enterprise Agreement-Educativo_126-00169SCE | C20: PROPIO_126-00169SCE | D20: 126-00169SCE | E20: PROPIO | F20: USD | G20: 407 | H20: 1 | I20: Suite Corporativa | J20: N/A | K20: MICROSOFT | L20: Enterprise Agreement-Educativo | M20: Microsoft Azure DevOps Server CAL All Languages License & Software Assurance User CAL_SCE | N20: Azure DevOps Server CAL | O20: License/Software Assurance Pack | P20: N/A | Q20: N/A | R20: N/A | S20: N/A | T20: Acuerdos Microsoft: SCE GOBIERNO Categoria: ENTERPRISE | U20: Licencia | V20: N/A | W20: N/A | X20: N/A | Y20: N/A | Z20: N/A
A21: PROPIO_Suite Corporativa_N/A_MICROSOFT_Enterprise Agreement-Educativo_126-00169SCETUP | C21: PROPIO_126-00169SCETUP | D21: 126-00169SCETUP | E21: PROPIO | F21: USD | G21: 358 | H21: 1 | I21: Suite Corporativa | J21: N/A | K21: MICROSOFT | L21: Enterprise Agreement-Educativo | M21: Microsoft Azure DevOps Server CAL All Languages License & Software Assurance User CAL_SCE_TUP | N21: Azure DevOps Server CAL | O21: License/Software Assurance Pack | P21: N/A | Q21: N/A | R21: N/A | S21: N/A | T21: Acuerdos Microsoft: SCE GOBIERNO Categoria: ENTERPRISE | U21: Licencia | V21: N/A | W21: N/A | X21: N/A | Y21: N/A | Z21: N/A
A22: PROPIO_Suite Corporativa_N/A_MICROSOFT_Enterprise Agreement-Educativo_126-00183EAAP | C22: PROPIO_126-00183EAAP | D22: 126-00183EAAP | E22: PROPIO | F22: USD | G22: 82 | H22: 1 | I22: Suite Corporativa | J22: N/A | K22: MICROSOFT | L22: Enterprise Agreement-Educativo | M22: Microsoft Azure DevOps Server CAL All Languages Software Assurance Device CAL_EAAP | N22: Azure DevOps Server CAL | O22: Software Assurance | P22: N/A | Q22: N/A | R22: N/A | S22: N/A | T22: Acuerdos Microsoft: EA GOBIERNO Categoria: ENTERPRISE | U22: Licencia | V22: N/A | W22: N/A | X22: N/A | Y22: N/A | Z22: N/A
A23: PROPIO_Suite Corporativa_N/A_MICROSOFT_Enterprise Agreement-Educativo_126-00183SCE | C23: PROPIO_126-00183SCE | D23: 126-00183SCE | E23: PROPIO | F23: USD | G23: 78 | H23: 1 | I23: Suite Corporativa | J23: N/A | K23: MICROSOFT | L23: Enterprise Agreement-Educativo | M23: Microsoft Azure DevOps Server CAL All Languages Software Assurance Device CAL_SCE | N23: Azure DevOps Server CAL | O23: Software Assurance | P23: N/A | Q23: N/A | R23: N/A | S23: N/A | T23: Acuerdos Microsoft: SCE GOBIERNO Categoria: ENTERPRISE | U23: Licencia | V23: N/A | W23: N/A | X23: N/A | Y23: N/A | Z23: N/A
A24: PROPIO_Suite Corporativa_N/A_MICROSOFT_Enterprise Agreement-Educativo_126-00196EAAP | C24: PROPIO_126-00196EAAP | D24: 126-00196EAAP | E24: PROPIO | F24: USD | G24: 94 | H24: 1 | I24: Suite Corporativa | J24: N/A | K24: MICROSOFT | L24: Enterprise Agreement-Educativo | M24: Microsoft Azure DevOps Server CAL All Languages Software Assurance User CAL_EAAP | N24: Azure DevOps Server CAL | O24: Software Assurance | P24: N/A | Q24: N/A | R24: N/A | S24: N/A | T24: Acuerdos Microsoft: EA GOBIERNO Categoria: ENTERPRISE | U24: Licencia | V24: N/A | W24: N/A | X24: N/A | Y24: N/A | Z24: N/A
A25: PROPIO_Suite Corporativa_N/A_MICROSOFT_Enterprise Agreement-Educativo_126-00196SCE | C25: PROPIO_126-00196SCE | D25: 126-00196SCE | E25: PROPIO | F25: USD | G25: 89 | H25: 1 | I25: Suite Corporativa | J25: N/A | K25: MICROSOFT | L25: Enterprise Agreement-Educativo | M25: Microsoft Azure DevOps Server CAL All Languages Software Assurance User CAL_SCE | N25: Azure DevOps Server CAL | O25: Software Assurance | P25: N/A | Q25: N/A | R25: N/A | S25: N/A | T25: Acuerdos Microsoft: SCE GOBIERNO Categoria: ENTERPRISE | U25: Licencia | V25: N/A | W25: N/A | X25: N/A | Y25: N/A | Z25: N/A
A26: PROPIO_Suite Corporativa_N/A_MICROSOFT_Enterprise Agreement-Educativo_126-01981SCELICSUBS | C26: PROPIO_126-01981SCELICSUBS | D26: 126-01981SCELICSUBS | E26: PROPIO | F26: USD | G26: 13 | H26: 1 | I26: Suite Corporativa | J26: N/A | K26: MICROSOFT | L26: Enterprise Agreement-Educativo | M26: Microsoft Azure DevOps Server CAL All Languages Subscription Device CAL_SCE_LICSUBS | N26: Azure DevOps Server CAL | O26: Monthly Subscriptions | P26: N/A | Q26: N/A | R26: N/A | S26: N/A | T26: Acuerdos Microsoft: SCE GOBIERNO Categoria: ENTERPRISE | U26: Suscripción mensual con pago anual | V26: N/A | W26: N/A | X26: N/A | Y26: N/A | Z26: N/A
A27: PROPIO_Suite Corporativa_N/A_MICROSOFT_Enterprise Agreement-Educativo_126-01982SCELICSUBS | C27: PROPIO_126-01982SCELICSUBS | D27: 126-01982SCELICSUBS | E27: PROPIO | F27: USD | G27: 15 | H27: 1 | I27: Suite Corporativa | J27: N/A | K27: MICROSOFT | L27: Enterprise Agreement-Educativo | M27: Microsoft Azure DevOps Server CAL All Languages Subscription User CAL_SCE_LICSUBS | N27: Azure DevOps Server CAL | O27: Monthly Subscriptions | P27: N/A | Q27: N/A | R27: N/A | S27: N/A | T27: Acuerdos Microsoft: SCE GOBIERNO Categoria: ENTERPRISE | U27: Suscripción mensual con pago anual | V27: N/A | W27: N/A | X27: N/A | Y27: N/A | Z27: N/A
A28: PROPIO_Suite Corporativa_N/A_MICROSOFT_Enterprise Agreement-Educativo_151-00001AP | C28: PROPIO_151-00001AP | D28: 151-00001AP | E28: PROPIO | F28: USD | G28: 3896 | H28: 1 | I28: Suite Corporativa | J28: N/A | K28: MICROSOFT | L28: Enterprise Agreement-Educativo | M28: Microsoft GitHub Enterprise Edu Subscription_AP | N28: GitHub Enterprise Edu | O28: Monthly Subscriptions | P28: N/A | Q28: N/A | R28: N/A | S28: N/A | T28: Acuerdos Microsoft: EES ACADEMICO Categoria: EDUCATIVO | U28: Suscripción mensual con pago anual | V28: N/A | W28: N/A | X28: N/A | Y28: N/A | Z28: N/A
A29: PROPIO_Suite Corporativa_N/A_MICROSOFT_Enterprise Agreement-Educativo_151-00001STU | C29: PROPIO_151-00001STU | D29: 151-00001STU | E29: PROPIO | F29: USD | G29: 3896 | H29: 1 | I29: Suite Corporativa | J29: N/A | K29: MICROSOFT | L29: Enterprise Agreement-Educativo | M29: Microsoft GitHub Enterprise Edu Subscription_STU | N29: GitHub Enterprise Edu | O29: Monthly Subscriptions | P29: N/A | Q29: N/A | R29: N/A | S29: N/A | T29: Acuerdos Microsoft: EES ACADEMICO Categoria: EDUCATIVO | U29: Suscripción mensual con pago anual | V29: N/A | W29: N/A | X29: N/A | Y29: N/A | Z29: N/A
A30: PROPIO_Suite Corporativa_N/A_MICROSOFT_Enterprise Agreement-Educativo_16A-00001EAEASAP | C30: PROPIO_16A-00001EAEASAP | D30: 16A-00001EAEASAP | E30: PROPIO | F30: USD | G30: 1542.3 | H30: 1 | I30: Suite Corporativa | J30: N/A | K30: MICROSOFT | L30: Enterprise Agreement-Educativo | M30: Microsoft D365 Customer Insights Subscription_EAEASAP | N30: D365 Cust Insights | O30: Monthly Subscriptions | P30: N/A | Q30: N/A | R30: N/A | S30: N/A | T30: Acuerdos Microsoft: EA/EAS GOBIERNO Categoria: ENTERPRISE | U30: Suscripción mensual con pago anual | V30: N/A | W30: N/A | X30: N/A | Y30: N/A | Z30: N/A
A31: PROPIO_Suite Corporativa_N/A_MICROSOFT_Enterprise Agreement-Educativo_16B-00001EAEASAP | C31: PROPIO_16B-00001EAEASAP | D31: 16B-00001EAEASAP | E31: PROPIO | F31: USD | G31: 907.2 | H31: 1 | I31: Suite Corporativa | J31: N/A | K31: MICROSOFT | L31: Enterprise Agreement-Educativo | M31: Microsoft D365 Customer Insights Attach Subscription_EAEASAP | N31: D365 Cust Insights Attach | O31: Monthly Subscriptions | P31: N/A | Q31: N/A | R31: N/A | S31: N/A | T31: Acuerdos Microsoft: EA/EAS GOBIERNO Categoria: ENTERPRISE | U31: Suscripción mensual con pago anual | V31: N/A | W31: N/A | X31: N/A | Y31: N/A | Z31: N/A
A32: PROPIO_Suite Corporativa_N/A_MICROSOFT_Enterprise Agreement-Educativo_1C9-00002EAEASAP | C32: PROPIO_1C9-00002EAEASAP | D32: 1C9-00002EAEASAP | E32: PROPIO | F32: USD | G32: 7 | H32: 1 | I32: Suite Corporativa | J32: N/A | K32: MICROSOFT | L32: Enterprise Agreement-Educativo | M32: Microsoft M365 E5 IP & Governance Subsciption Per User_EAEASAP | N32: M365 E5 IP & Governance | O32: Monthly Subscriptions | P32: N/A | Q32: N/A | R32: N/A | S32: N/A | T32: Acuerdos Microsoft: EA/EAS GOBIERNO Categoria: ENTERPRISE | U32: Suscripción mensual con pago anual | V32: N/A | W32: N/A | X32: N/A | Y32: N/A | Z32: N/A
A33: PROPIO_Suite Corporativa_N/A_MICROSOFT_Enterprise Agreement-Educativo_1CB-00001EAEASAP | C33: PROPIO_1CB-00001EAEASAP | D33: 1CB-00001EAEASAP | E33: PROPIO | F33: USD | G33: 6 | H33: 1 | I33: Suite Corporativa | J33: N/A | K33: MICROSOFT | L33: Enterprise Agreement-Educativo | M33: Microsoft M365 E5 Insider Risk Management Subscription Per User_EAEASAP | N33: M365 E5 Insider Risk Management | O33: Monthly Subscriptions | P33: N/A | Q33: N/A | R33: N/A | S33: N/A | T33: Acuerdos Microsoft: EA/EAS GOBIERNO Categoria: ENTERPRISE | U33: Suscripción mensual con pago anual | V33: N/A | W33: N/A | X33: N/A | Y33: N/A | Z33: N/A
A34: PROPIO_Suite Corporativa_N/A_MICROSOFT_Enterprise Agreement-Educativo_1CC-00001EAEASAP | C34: PROPIO_1CC-00001EAEASAP | D34: 1CC-00001EAEASAP | E34: PROPIO | F34: USD | G34: 6 | H34: 1 | I34: Suite Corporativa | J34: N/A | K34: MICROSOFT | L34: Enterprise Agreement-Educativo | M34: Microsoft M365 E5 eDiscovery & Audit Subscription Per User_EAEASAP | N34: M365 E5 eDiscovery & Audit | O34: Monthly Subscriptions | P34: N/A | Q34: N/A | R34: N/A | S34: N/A | T34: Acuerdos Microsoft: EA/EAS GOBIERNO Categoria: ENTERPRISE | U34: Suscripción mensual con pago anual | V34: N/A | W34: N/A | X34: N/A | Y34: N/A | Z34: N/A
A35: PROPIO_Suite Corporativa_N/A_MICROSOFT_Enterprise Agreement-Educativo_1CD-00001FACA | C35: PROPIO_1CD-00001FACA | D35: 1CD-00001FACA | E35: PROPIO | F35: USD | G35: 1.96 | H35: 1 | I35: Suite Corporativa | J35: N/A | K35: MICROSOFT | L35: Enterprise Agreement-Educativo | M35: Microsoft M365 A5 IP & Governance Edu Subsciption Per User_FAC_A | N35: M365 A5 IP & Governance Edu | O35: Monthly Subscriptions | P35: N/A | Q35: N/A | R35: N/A | S35: N/A | T35: Acuerdos Microsoft: EES ACADEMICO Categoria: EDUCATIVO | U35: Suscripción mensual con pago anual | V35: N/A | W35: N/A | X35: N/A | Y35: N/A | Z35: N/A
A36: PROPIO_Suite Corporativa_N/A_MICROSOFT_Enterprise Agreement-Educativo_1CD-00001FACB | C36: PROPIO_1CD-00001FACB | D36: 1CD-00001FACB | E36: PROPIO | F36: USD | G36: 1.83 | H36: 1 | I36: Suite Corporativa | J36: N/A | K36: MICROSOFT | L36: Enterprise Agreement-Educativo | M36: Microsoft M365 A5 IP & Governance Edu Subsciption Per User_FAC_B | N36: M365 A5 IP & Governance Edu | O36: Monthly Subscriptions | P36: N/A | Q36: N/A | R36: N/A | S36: N/A | T36: Acuerdos Microsoft: EES ACADEMICO Categoria: EDUCATIVO | U36: Suscripción mensual con pago anual | V36: N/A | W36: N/A | X36: N/A | Y36: N/A | Z36: N/A
A37: PROPIO_Suite Corporativa_N/A_MICROSOFT_Enterprise Agreement-Educativo_1CD-00001FACC | C37: PROPIO_1CD-00001FACC | D37: 1CD-00001FACC | E37: PROPIO | F37: USD | G37: 1.68 | H37: 1 | I37: Suite Corporativa | J37: N/A | K37: MICROSOFT | L37: Enterprise Agreement-Educativo | M37: Microsoft M365 A5 IP & Governance Edu Subsciption Per User_FAC_C | N37: M365 A5 IP & Governance Edu | O37: Monthly Subscriptions | P37: N/A | Q37: N/A | R37: N/A | S37: N/A | T37: Acuerdos Microsoft: EES ACADEMICO Categoria: EDUCATIVO | U37: Suscripción mensual con pago anual | V37: N/A | W37: N/A | X37: N/A | Y37: N/A | Z37: N/A
A38: PROPIO_Suite Corporativa_N/A_MICROSOFT_Enterprise Agreement-Educativo_1CD-00001FACD | C38: PROPIO_1CD-00001FACD | D38: 1CD-00001FACD | E38: PROPIO | F38: USD | G38: 1.6 | H38: 1 | I38: Suite Corporativa | J38: N/A | K38: MICROSOFT | L38: Enterprise Agreement-Educativo | M38: Microsoft M365 A5 IP & Governance Edu Subsciption Per User_FAC_D | N38: M365 A5 IP & Governance Edu | O38: Monthly Subscriptions | P38: N/A | Q38: N/A | R38: N/A | S38: N/A | T38: Acuerdos Microsoft: EES ACADEMICO Categoria: EDUCATIVO | U38: Suscripción mensual con pago anual | V38: N/A | W38: N/A | X38: N/A | Y38: N/A | Z38: N/A
A39: PROPIO_Suite Corporativa_N/A_MICROSOFT_Enterprise Agreement-Educativo_1CD-00001STUA | C39: PROPIO_1CD-00001STUA | D39: 1CD-00001STUA | E39: PROPIO | F39: USD | G39: 1.61 | H39: 1 | I39: Suite Corporativa | J39: N/A | K39: MICROSOFT | L39: Enterprise Agreement-Educativo | M39: Microsoft M365 A5 IP & Governance Edu Subsciption Per User_STU_A | N39: M365 A5 IP & Governance Edu | O39: Monthly Subscriptions | P39: N/A | Q39: N/A | R39: N/A | S39: N/A | T39: Acuerdos Microsoft: EES ACADEMICO Categoria: EDUCATIVO | U39: Suscripción mensual con pago anual | V39: N/A | W39: N/A | X39: N/A | Y39: N/A | Z39: N/A
A40: PROPIO_Suite Corporativa_N/A_MICROSOFT_Enterprise Agreement-Educativo_1CD-00001STUB | C40: PROPIO_1CD-00001STUB | D40: 1CD-00001STUB | E40: PROPIO | F40: USD | G40: 1.51 | H40: 1 | I40: Suite Corporativa | J40: N/A | K40: MICROSOFT | L40: Enterprise Agreement-Educativo | M40: Microsoft M365 A5 IP & Governance Edu Subsciption Per User_STU_B | N40: M365 A5 IP & Governance Edu | O40: Monthly Subscriptions | P40: N/A | Q40: N/A | R40: N/A | S40: N/A | T40: Acuerdos Microsoft: EES ACADEMICO Categoria: EDUCATIVO | U40: Suscripción mensual con pago anual | V40: N/A | W40: N/A | X40: N/A | Y40: N/A | Z40: N/A
A41: PROPIO_Suite Corporativa_N/A_MICROSOFT_Enterprise Agreement-Educativo_1CD-00001STUC | C41: PROPIO_1CD-00001STUC | D41: 1CD-00001STUC | E41: PROPIO | F41: USD | G41: 1.39 | H41: 1 | I41: Suite Corporativa | J41: N/A | K41: MICROSOFT | L41: Enterprise Agreement-Educativo | M41: Microsoft M365 A5 IP & Governance Edu Subsciption Per User_STU_C | N41: M365 A5 IP & Governance Edu | O41: Monthly Subscriptions | P41: N/A | Q41: N/A | R41: N/A | S41: N/A | T41: Acuerdos Microsoft: EES ACADEMICO Categoria: EDUCATIVO | U41: Suscripción mensual con pago anual | V41: N/A | W41: N/A | X41: N/A | Y41: N/A | Z41: N/A
A42: PROPIO_Suite Corporativa_N/A_MICROSOFT_Enterprise Agreement-Educativo_1CD-00001STUD | C42: PROPIO_1CD-00001STUD | D42: 1CD-00001STUD | E42: PROPIO | F42: USD | G42: 1.31 | H42: 1 | I42: Suite Corporativa | J42: N/A | K42: MICROSOFT | L42: Enterprise Agreement-Educativo | M42: Microsoft M365 A5 IP & Governance Edu Subsciption Per User_STU_D | N42: M365 A5 IP & Governance Edu | O42: Monthly Subscriptions | P42: N/A | Q42: N/A | R42: N/A | S42: N/A | T42: Acuerdos Microsoft: EES ACADEMICO Categoria: EDUCATIVO | U42: Suscripción mensual con pago anual | V42: N/A | W42: N/A | X42: N/A | Y42: N/A | Z42: N/A
A43: PROPIO_Suite Corporativa_N/A_MICROSOFT_Enterprise Agreement-Educativo_1CG-00001FACA | C43: PROPIO_1CG-00001FACA | D43: 1CG-00001FACA | E43: PROPIO | F43: USD | G43: 1.68 | H43: 1 | I43: Suite Corporativa | J43: N/A | K43: MICROSOFT | L43: Enterprise Agreement-Educativo | M43: Microsoft M365 A5 Insider Risk Management Edu Subscription Per User_FAC_A | N43: M365 A5 Insider Risk Management Edu | O43: Monthly Subscriptions | P43: N/A | Q43: N/A | R43: N/A | S43: N/A | T43: Acuerdos Microsoft: EES ACADEMICO Categoria: EDUCATIVO | U43: Suscripción mensual con pago anual | V43: N/A | W43: N/A | X43: N/A | Y43: N/A | Z43: N/A
A44: PROPIO_Suite Corporativa_N/A_MICROSOFT_Enterprise Agreement-Educativo_1CG-00001FACB | C44: PROPIO_1CG-00001FACB | D44: 1CG-00001FACB | E44: PROPIO | F44: USD | G44: 1.57 | H44: 1 | I44: Suite Corporativa | J44: N/A | K44: MICROSOFT | L44: Enterprise Agreement-Educativo | M44: Microsoft M365 A5 Insider Risk Management Edu Subscription Per User_FAC_B | N44: M365 A5 Insider Risk Management Edu | O44: Monthly Subscriptions | P44: N/A | Q44: N/A | R44: N/A | S44: N/A | T44: Acuerdos Microsoft: EES ACADEMICO Categoria: EDUCATIVO | U44: Suscripción mensual con pago anual | V44: N/A | W44: N/A | X44: N/A | Y44: N/A | Z44: N/A
A45: PROPIO_Suite Corporativa_N/A_MICROSOFT_Enterprise Agreement-Educativo_1CG-00001FACC | C45: PROPIO_1CG-00001FACC | D45: 1CG-00001FACC | E45: PROPIO | F45: USD | G45: 1.45 | H45: 1 | I45: Suite Corporativa | J45: N/A | K45: MICROSOFT | L45: Enterprise Agreement-Educativo | M45: Microsoft M365 A5 Insider Risk Management Edu Subscription Per User_FAC_C | N45: M365 A5 Insider Risk Management Edu | O45: Monthly Subscriptions | P45: N/A | Q45: N/A | R45: N/A | S45: N/A | T45: Acuerdos Microsoft: EES ACADEMICO Categoria: EDUCATIVO | U45: Suscripción mensual con pago anual | V45: N/A | W45: N/A | X45: N/A | Y45: N/A | Z45: N/A
A46: PROPIO_Suite Corporativa_N/A_MICROSOFT_Enterprise Agreement-Educativo_1CG-00001FACD | C46: PROPIO_1CG-00001FACD | D46: 1CG-00001FACD | E46: PROPIO | F46: USD | G46: 1.36 | H46: 1 | I46: Suite Corporativa | J46: N/A | K46: MICROSOFT | L46: Enterprise Agreement-Educativo | M46: Microsoft M365 A5 Insider Risk Management Edu Subscription Per User_FAC_D | N46: M365 A5 Insider Risk Management Edu | O46: Monthly Subscriptions | P46: N/A | Q46: N/A | R46: N/A | S46: N/A | T46: Acuerdos Microsoft: EES ACADEMICO Categoria: EDUCATIVO | U46: Suscripción mensual con pago anual | V46: N/A | W46: N/A | X46: N/A | Y46: N/A | Z46: N/A
A47: PROPIO_Suite Corporativa_N/A_MICROSOFT_Enterprise Agreement-Educativo_1CG-00001STUA | C47: PROPIO_1CG-00001STUA | D47: 1CG-00001STUA | E47: PROPIO | F47: USD | G47: 1.38 | H47: 1 | I47: Suite Corporativa | J47: N/A | K47: MICROSOFT | L47: Enterprise Agreement-Educativo | M47: Microsoft M365 A5 Insider Risk Management Edu Subscription Per User_STU_A | N47: M365 A5 Insider Risk Management Edu | O47: Monthly Subscriptions | P47: N/A | Q47: N/A | R47: N/A | S47: N/A | T47: Acuerdos Microsoft: EES ACADEMICO Categoria: EDUCATIVO | U47: Suscripción mensual con pago anual | V47: N/A | W47: N/A | X47: N/A | Y47: N/A | Z47: N/A
A48: PROPIO_Suite Corporativa_N/A_MICROSOFT_Enterprise Agreement-Educativo_1CG-00001STUB | C48: PROPIO_1CG-00001STUB | D48: 1CG-00001STUB | E48: PROPIO | F48: USD | G48: 1.3 | H48: 1 | I48: Suite Corporativa | J48: N/A | K48: MICROSOFT | L48: Enterprise Agreement-Educativo | M48: Microsoft M365 A5 Insider Risk Management Edu Subscription Per User_STU_B | N48: M365 A5 Insider Risk Management Edu | O48: Monthly Subscriptions | P48: N/A | Q48: N/A | R48: N/A | S48: N/A | T48: Acuerdos Microsoft: EES ACADEMICO Categoria: EDUCATIVO | U48: Suscripción mensual con pago anual | V48: N/A | W48: N/A | X48: N/A | Y48: N/A | Z48: N/A
A49: PROPIO_Suite Corporativa_N/A_MICROSOFT_Enterprise Agreement-Educativo_1CG-00001STUC | C49: PROPIO_1CG-00001STUC | D49: 1CG-00001STUC | E49: PROPIO | F49: USD | G49: 1.2 | H49: 1 | I49: Suite Corporativa | J49: N/A | K49: MICROSOFT | L49: Enterprise Agreement-Educativo | M49: Microsoft M365 A5 Insider Risk Management Edu Subscription Per User_STU_C | N49: M365 A5 Insider Risk Management Edu | O49: Monthly Subscriptions | P49: N/A | Q49: N/A | R49: N/A | S49: N/A | T49: Acuerdos Microsoft: EES ACADEMICO Categoria: EDUCATIVO | U49: Suscripción mensual con pago anual | V49: N/A | W49: N/A | X49: N/A | Y49: N/A | Z49: N/A
A50: PROPIO_Suite Corporativa_N/A_MICROSOFT_Enterprise Agreement-Educativo_1CG-00001STUD | C50: PROPIO_1CG-00001STUD | D50: 1CG-00001STUD | E50: PROPIO | F50: USD | G50: 1.13 | H50: 1 | I50: Suite Corporativa | J50: N/A | K50: MICROSOFT | L50: Enterprise Agreement-Educativo | M50: Microsoft M365 A5 Insider Risk Management Edu Subscription Per User_STU_D | N50: M365 A5 Insider Risk Management Edu | O50: Monthly Subscriptions | P50: N/A | Q50: N/A | R50: N/A | S50: N/A | T50: Acuerdos Microsoft: EES ACADEMICO Categoria: EDUCATIVO | U50: Suscripción mensual con pago anual | V50: N/A | W50: N/A | X50: N/A | Y50: N/A | Z50: N/A
A51: PROPIO_Suite Corporativa_N/A_MICROSOFT_Enterprise Agreement-Educativo_1CH-00001FACA | C51: PROPIO_1CH-00001FACA | D51: 1CH-00001FACA | E51: PROPIO | F51: USD | G51: 1.68 | H51: 1 | I51: Suite Corporativa | J51: N/A | K51: MICROSOFT | L51: Enterprise Agreement-Educativo | M51: Microsoft M365 A5 eDiscovery & Audit Edu Subscription Per User_FAC_A | N51: M365 A5 eDiscovery & Audit Edu | O51: Monthly Subscriptions | P51: N/A | Q51: N/A | R51: N/A | S51: N/A | T51: Acuerdos Microsoft: EES ACADEMICO Categoria: EDUCATIVO | U51: Suscripción mensual con pago anual | V51: N/A | W51: N/A | X51: N/A | Y51: N/A | Z51: N/A
A52: PROPIO_Suite Corporativa_N/A_MICROSOFT_Enterprise Agreement-Educativo_1CH-00001FACB | C52: PROPIO_1CH-00001FACB | D52: 1CH-00001FACB | E52: PROPIO | F52: USD | G52: 1.57 | H52: 1 | I52: Suite Corporativa | J52: N/A | K52: MICROSOFT | L52: Enterprise Agreement-Educativo | M52: Microsoft M365 A5 eDiscovery & Audit Edu Subscription Per User_FAC_B | N52: M365 A5 eDiscovery & Audit Edu | O52: Monthly Subscriptions | P52: N/A | Q52: N/A | R52: N/A | S52: N/A | T52: Acuerdos Microsoft: EES ACADEMICO Categoria: EDUCATIVO | U52: Suscripción mensual con pago anual | V52: N/A | W52: N/A | X52: N/A | Y52: N/A | Z52: N/A
A53: PROPIO_Suite Corporativa_N/A_MICROSOFT_Enterprise Agreement-Educativo_1CH-00001FACC | C53: PROPIO_1CH-00001FACC | D53: 1CH-00001FACC | E53: PROPIO | F53: USD | G53: 1.45 | H53: 1 | I53: Suite Corporativa | J53: N/A | K53: MICROSOFT | L53: Enterprise Agreement-Educativo | M53: Microsoft M365 A5 eDiscovery & Audit Edu Subscription Per User_FAC_C | N53: M365 A5 eDiscovery & Audit Edu | O53: Monthly Subscriptions | P53: N/A | Q53: N/A | R53: N/A | S53: N/A | T53: Acuerdos Microsoft: EES ACADEMICO Categoria: EDUCATIVO | U53: Suscripción mensual con pago anual | V53: N/A | W53: N/A | X53: N/A | Y53: N/A | Z53: N/A
A54: PROPIO_Suite Corporativa_N/A_MICROSOFT_Enterprise Agreement-Educativo_1CH-00001FACD | C54: PROPIO_1CH-00001FACD | D54: 1CH-00001FACD | E54: PROPIO | F54: USD | G54: 1.36 | H54: 1 | I54: Suite Corporativa | J54: N/A | K54: MICROSOFT | L54: Enterprise Agreement-Educativo | M54: Microsoft M365 A5 eDiscovery & Audit Edu Subscription Per User_FAC_D | N54: M365 A5 eDiscovery & Audit Edu | O54: Monthly Subscriptions | P54: N/A | Q54: N/A | R54: N/A | S54: N/A | T54: Acuerdos Microsoft: EES ACADEMICO Categoria: EDUCATIVO | U54: Suscripción mensual con pago anual | V54: N/A | W54: N/A | X54: N/A | Y54: N/A | Z54: N/A
A55: PROPIO_Suite Corporativa_N/A_MICROSOFT_Enterprise Agreement-Educativo_1CH-00001STUA | C55: PROPIO_1CH-00001STUA | D55: 1CH-00001STUA | E55: PROPIO | F55: USD | G55: 1.38 | H55: 1 | I55: Suite Corporativa | J55: N/A | K55: MICROSOFT | L55: Enterprise Agreement-Educativo | M55: Microsoft M365 A5 eDiscovery & Audit Edu Subscription Per User_STU_A | N55: M365 A5 eDiscovery & Audit Edu | O55: Monthly Subscriptions | P55: N/A | Q55: N/A | R55: N/A | S55: N/A | T55: Acuerdos Microsoft: EES ACADEMICO Categoria: EDUCATIVO | U55: Suscripción mensual con pago anual | V55: N/A | W55: N/A | X55: N/A | Y55: N/A | Z55: N/A
A56: PROPIO_Suite Corporativa_N/A_MICROSOFT_Enterprise Agreement-Educativo_1CH-00001STUB | C56: PROPIO_1CH-00001STUB | D56: 1CH-00001STUB | E56: PROPIO | F56: USD | G56: 1.3 | H56: 1 | I56: Suite Corporativa | J56: N/A | K56: MICROSOFT | L56: Enterprise Agreement-Educativo | M56: Microsoft M365 A5 eDiscovery & Audit Edu Subscription Per User_STU_B | N56: M365 A5 eDiscovery & Audit Edu | O56: Monthly Subscriptions | P56: N/A | Q56: N/A | R56: N/A | S56: N/A | T56: Acuerdos Microsoft: EES ACADEMICO Categoria: EDUCATIVO | U56: Suscripción mensual con pago anual | V56: N/A | W56: N/A | X56: N/A | Y56: N/A | Z56: N/A
A57: PROPIO_Suite Corporativa_N/A_MICROSOFT_Enterprise Agreement-Educativo_1CH-00001STUC | C57: PROPIO_1CH-00001STUC | D57: 1CH-00001STUC | E57: PROPIO | F57: USD | G57: 1.2 | H57: 1 | I57: Suite Corporativa | J57: N/A | K57: MICROSOFT | L57: Enterprise Agreement-Educativo | M57: Microsoft M365 A5 eDiscovery & Audit Edu Subscription Per User_STU_C | N57: M365 A5 eDiscovery & Audit Edu | O57: Monthly Subscriptions | P57: N/A | Q57: N/A | R57: N/A | S57: N/A | T57: Acuerdos Microsoft: EES ACADEMICO Categoria: EDUCATIVO | U57: Suscripción mensual con pago anual | V57: N/A | W57: N/A | X57: N/A | Y57: N/A | Z57: N/A
A58: PROPIO_Suite Corporativa_N/A_MICROSOFT_Enterprise Agreement-Educativo_1CH-00001STUD | C58: PROPIO_1CH-00001STUD | D58: 1CH-00001STUD | E58: PROPIO | F58: USD | G58: 1.13 | H58: 1 | I58: Suite Corporativa | J58: N/A | K58: MICROSOFT | L58: Enterprise Agreement-Educativo | M58: Microsoft M365 A5 eDiscovery & Audit Edu Subscription Per User_STU_D | N58: M365 A5 eDiscovery & Audit Edu | O58: Monthly Subscriptions | P58: N/A | Q58: N/A | R58: N/A | S58: N/A | T58: Acuerdos Microsoft: EES ACADEMICO Categoria: EDUCATIVO | U58: Suscripción mensual con pago anual | V58: N/A | W58: N/A | X58: N/A | Y58: N/A | Z58: N/A
A59: PROPIO_Suite Corporativa_N/A_MICROSOFT_Enterprise Agreement-Educativo_1GJ-00001EAEASENT | C59: PROPIO_1GJ-00001EAEASENT | D59: 1GJ-00001EAEASENT | E59: PROPIO | F59: USD | G59: 31.7 | H59: 1 | I59: Suite Corporativa | J59: N/A | K59: MICROSOFT | L59: Enterprise Agreement-Educativo | M59: Microsoft M365 Apps Enterprise Device Subscription Per Device_EAEASENT | N59: M365 Apps Enterprise Device | O59: Monthly Subscriptions | P59: N/A | Q59: N/A | R59: N/A | S59: N/A | T59: Acuerdos Microsoft: EA/EAS GOBIERNO Categoria: ENTERPRISE | U59: Suscripción mensual con pago anual | V59: N/A | W59: N/A | X59: N/A | Y59: N/A | Z59: N/A
A60: PROPIO_Suite Corporativa_N/A_MICROSOFT_Enterprise Agreement-Educativo_1LL-00005EAEASAP | C60: PROPIO_1LL-00005EAEASAP | D60: 1LL-00005EAEASAP | E60: PROPIO | F60: USD | G60: 32.7 | H60: 1 | I60: Suite Corporativa | J60: N/A | K60: MICROSOFT | L60: Enterprise Agreement-Educativo | M60: Microsoft M365 E3 Unattended License Exist Cust Subscription Per Bot_EAEASAP | N60: M365 E3 Unattend License Exist Cust (Sujeto a condiciones. Validar con el Proveedor y/o Fabricante antes de publicar.) | O60: Monthly Subscriptions | P60: N/A | Q60: N/A | R60: N/A | S60: N/A | T60: Acuerdos Microsoft: EA/EAS GOBIERNO Categoria: ENTERPRISE | U60: Suscripción mensual con pago anual | V60: N/A | W60: N/A | X60: N/A | Y60: N/A | Z60: N/A | AA60: 11/04/2025---Cambios en: Producto/Servicio, Descripción. Casos GLPI: 1350691, 1350245, 1348489_archivo:Microsoft----Varios(actualizar sin descripcion)---ok.xlsx---
A61: PROPIO_Suite Corporativa_N/A_MICROSOFT_Enterprise Agreement-Educativo_1O4-00001EAEASAP | C61: PROPIO_1O4-00001EAEASAP | D61: 1O4-00001EAEASAP | E61: PROPIO | F61: USD | G61: 13.7 | H61: 1 | I61: Suite Corporativa | J61: N/A | K61: MICROSOFT | L61: Enterprise Agreement-Educativo | M61: Microsoft Power Automate Premium Subscription Per User_EAEASAP | N61: Power Automate Premium | O61: Monthly Subscriptions | P61: N/A | Q61: N/A | R61: N/A | S61: N/A | T61: Acuerdos Microsoft: EA/EAS GOBIERNO Categoria: ENTERPRISE | U61: Suscripción mensual con pago anual | V61: N/A | W61: N/A | X61: N/A | Y61: N/A | Z61: N/A
A62: PROPIO_Suite Corporativa_N/A_MICROSOFT_Enterprise Agreement-Educativo_1O8-00001EAEASAP | C62: PROPIO_1O8-00001EAEASAP | D62: 1O8-00001EAEASAP | E62: PROPIO | F62: USD | G62: 136.1 | H62: 1 | I62: Suite Corporativa | J62: N/A | K62: MICROSOFT | L62: Enterprise Agreement-Educativo | M62: Microsoft Power Automate Unattended RPA AO Subscription Add-on Per Bot_EAEASAP | N62: Power Automate Unatnd RPA AO | O62: Monthly Subscriptions | P62: N/A | Q62: N/A | R62: N/A | S62: N/A | T62: Acuerdos Microsoft: EA/EAS GOBIERNO Categoria: ENTERPRISE | U62: Suscripción mensual con pago anual | V62: N/A | W62: N/A | X62: N/A | Y62: N/A | Z62: N/A
A63: PROPIO_Suite Corporativa_N/A_MICROSOFT_Enterprise Agreement-Educativo_1P6-00013AP | C63: PROPIO_1P6-00013AP | D63: 1P6-00013AP | E63: PROPIO | F63: USD | G63: 6 | H63: 1 | I63: Suite Corporativa | J63: N/A | K63: MICROSOFT | L63: Enterprise Agreement-Educativo | M63: Microsoft M365 A3 Unattended License Edu Subscription Per Bot_AP | N63: M365 A3 Unattend License Edu | O63: Monthly Subscriptions | P63: N/A | Q63: N/A | R63: N/A | S63: N/A | T63: Acuerdos Microsoft: EES ACADEMICO Categoria: EDUCATIVO | U63: Suscripción mensual con pago anual | V63: N/A | W63: N/A | X63: N/A | Y63: N/A | Z63: N/A
A64: PROPIO_Suite Corporativa_N/A_MICROSOFT_Enterprise Agreement-Educativo_1P6-00013STU | C64: PROPIO_1P6-00013STU | D64: 1P6-00013STU | E64: PROPIO | F64: USD | G64: 4.25 | H64: 1 | I64: Suite Corporativa | J64: N/A | K64: MICROSOFT | L64: Enterprise Agreement-Educativo | M64: Microsoft M365 A3 Unattended License Edu Subscription Per Bot_STU | N64: M365 A3 Unattend License Edu | O64: Monthly Subscriptions | P64: N/A | Q64: N/A | R64: N/A | S64: N/A | T64: Acuerdos Microsoft: EES ACADEMICO Categoria: EDUCATIVO | U64: Suscripción mensual con pago anual | V64: N/A | W64: N/A | X64: N/A | Y64: N/A | Z64: N/A
A65: PROPIO_Suite Corporativa_N/A_MICROSOFT_Enterprise Agreement-Educativo_1PI-00001EAEASAP | C65: PROPIO_1PI-00001EAEASAP | D65: 1PI-00001EAEASAP | E65: PROPIO | F65: USD | G65: 1.98 | H65: 1 | I65: Suite Corporativa | J65: N/A | K65: MICROSOFT | L65: Enterprise Agreement-Educativo | M65: Microsoft M365 F1 Subscription Per User_EAEASAP | N65: M365 F1 | O65: Monthly Subscriptions | P65: N/A | Q65: N/A | R65: N/A | S65: N/A | T65: Acuerdos Microsoft: EA/EAS GOBIERNO Categoria: ENTERPRISE | U65: Suscripción mensual con pago anual | V65: N/A | W65: N/A | X65: N/A | Y65: N/A | Z65: N/A
A66: PROPIO_Suite Corporativa_N/A_MICROSOFT_Enterprise Agreement-Educativo_1R5-00002EAEASAP | C66: PROPIO_1R5-00002EAEASAP | D66: 1R5-00002EAEASAP | E66: PROPIO | F66: USD | G66: 45.4 | H66: 1 | I66: Suite Corporativa | J66: N/A | K66: MICROSOFT | L66: Enterprise Agreement-Educativo | M66: Microsoft D365 Field Service Contractor Subscription Per User_EAEASAP | N66: D365 Field Service Contractor | O66: Monthly Subscriptions | P66: N/A | Q66: N/A | R66: N/A | S66: N/A | T66: Acuerdos Microsoft: EA/EAS GOBIERNO Categoria: ENTERPRISE | U66: Suscripción mensual con pago anual | V66: N/A | W66: N/A | X66: N/A | Y66: N/A | Z66: N/A
A67: PROPIO_Suite Corporativa_N/A_MICROSOFT_Enterprise Agreement-Educativo_1RA-00003AP | C67: PROPIO_1RA-00003AP | D67: 1RA-00003AP | E67: PROPIO | F67: USD | G67: 31 | H67: 1 | I67: Suite Corporativa | J67: N/A | K67: MICROSOFT | L67: Enterprise Agreement-Educativo | M67: Microsoft D365 Field Service Contractor Edu Subscription Per User_AP | N67: D365 Field Service Contractor Edu | O67: Monthly Subscriptions | P67: N/A | Q67: N/A | R67: N/A | S67: N/A | T67: Acuerdos Microsoft: EES ACADEMICO Categoria: EDUCATIVO | U67: Suscripción mensual con pago anual | V67: N/A | W67: N/A | X67: N/A | Y67: N/A | Z67: N/A
A68: PROPIO_Suite Corporativa_N/A_MICROSOFT_Enterprise Agreement-Educativo_1RA-00003STU | C68: PROPIO_1RA-00003STU | D68: 1RA-00003STU | E68: PROPIO | F68: USD | G68: 22 | H68: 1 | I68: Suite Corporativa | J68: N/A | K68: MICROSOFT | L68: Enterprise Agreement-Educativo | M68: Microsoft D365 Field Service Contractor Edu Subscription Per User_STU | N68: D365 Field Service Contractor Edu | O68: Monthly Subscriptions | P68: N/A | Q68: N/A | R68: N/A | S68: N/A | T68: Acuerdos Microsoft: EES ACADEMICO Categoria: EDUCATIVO | U68: Suscripción mensual con pago anual | V68: N/A | W68: N/A | X68: N/A | Y68: N/A | Z68: N/A
A69: PROPIO_Suite Corporativa_N/A_MICROSOFT_Enterprise Agreement-Educativo_1S7-00015EAEASAP | C69: PROPIO_1S7-00015EAEASAP | D69: 1S7-00015EAEASAP | E69: PROPIO | F69: USD | G69: 122.5 | H69: 1 | I69: Suite Corporativa | J69: N/A | K69: MICROSOFT | L69: Enterprise Agreement-Educativo | M69: Microsoft D365 Project Operations Subscription Per User_EAEASAP | N69: D365 Project Ops | O69: Monthly Subscriptions | P69: N/A | Q69: N/A | R69: N/A | S69: N/A | T69: Acuerdos Microsoft: EA/EAS GOBIERNO Categoria: ENTERPRISE | U69: Suscripción mensual con pago anual | V69: N/A | W69: N/A | X69: N/A | Y69: N/A | Z69: N/A | AA69: 11/04/2025---Cambios en: Precio. Casos GLPI: 1350691, 1350245, 1348489_archivo:Microsoft----Varios(actualizar sin descripcion)---ok.xlsx---
A70: PROPIO_Suite Corporativa_N/A_MICROSOFT_Enterprise Agreement-Educativo_1S7-00017EAEASAP | C70: PROPIO_1S7-00017EAEASAP | D70: 1S7-00017EAEASAP | E70: PROPIO | F70: USD | G70: 77.2 | H70: 1 | I70: Suite Corporativa | J70: N/A | K70: MICROSOFT | L70: Enterprise Agreement-Educativo | M70: Microsoft D365 Project Operations Step-up D365 Operations Activity Per User_EAEASAP | N70: D365 Project Ops | O70: Step Up | P70: N/A | Q70: N/A | R70: N/A | S70: N/A | T70: Acuerdos Microsoft: EA/EAS GOBIERNO Categoria: ENTERPRISE | U70: Suscripción mensual con pago anual | V70: N/A | W70: N/A | X70: N/A | Y70: N/A | Z70: N/A | AA70: 11/04/2025---Cambios en: Precio. Casos GLPI: 1350691, 1350245, 1348489_archivo:Microsoft----Varios(actualizar sin descripcion)---ok.xlsx---
A71: PROPIO_Suite Corporativa_N/A_MICROSOFT_Enterprise Agreement-Educativo_1S7-00018EAEASAP | C71: PROPIO_1S7-00018EAEASAP | D71: 1S7-00018EAEASAP | E71: PROPIO | F71: USD | G71: 115.3 | H71: 1 | I71: Suite Corporativa | J71: N/A | K71: MICROSOFT | L71: Enterprise Agreement-Educativo | M71: Microsoft D365 Project Operations Step-up D365 Team Members Per User_EAEASAP | N71: D365 Project Ops | O71: Step Up | P71: N/A | Q71: N/A | R71: N/A | S71: N/A | T71: Acuerdos Microsoft: EA/EAS GOBIERNO Categoria: ENTERPRISE | U71: Suscripción mensual con pago anual | V71: N/A | W71: N/A | X71: N/A | Y71: N/A | Z71: N/A | AA71: 11/04/2025---Cambios en: Precio. Casos GLPI: 1350691, 1350245, 1348489_archivo:Microsoft----Varios(actualizar sin descripcion)---ok.xlsx---
A72: PROPIO_Suite Corporativa_N/A_MICROSOFT_Enterprise Agreement-Educativo_1S7-00019EAEASAP | C72: PROPIO_1S7-00019EAEASAP | D72: 1S7-00019EAEASAP | E72: PROPIO | F72: USD | G72: 95.3 | H72: 1 | I72: Suite Corporativa | J72: N/A | K72: MICROSOFT | L72: Enterprise Agreement-Educativo | M72: Microsoft D365 Project Operations Step-up D365 Project Operations Attach Per User_EAEASAP | N72: D365 Project Ops | O72: Step Up | P72: N/A | Q72: N/A | R72: N/A | S72: N/A | T72: Acuerdos Microsoft: EA/EAS GOBIERNO Categoria: ENTERPRISE | U72: Suscripción mensual con pago anual | V72: N/A | W72: N/A | X72: N/A | Y72: N/A | Z72: N/A | AA72: 11/04/2025---Cambios en: Precio. Casos GLPI: 1350691, 1350245, 1348489_archivo:Microsoft----Varios(actualizar sin descripcion)---ok.xlsx---
A73: PROPIO_Suite Corporativa_N/A_MICROSOFT_Enterprise Agreement-Educativo_1S9-00003EAEASAP | C73: PROPIO_1S9-00003EAEASAP | D73: 1S9-00003EAEASAP | E73: PROPIO | F73: USD | G73: 98 | H73: 1 | I73: Suite Corporativa | J73: N/A | K73: MICROSOFT | L73: Enterprise Agreement-Educativo | M73: Microsoft D365 Project Operations FSA Renewal Subscription Per User FSA VL/DPL_EAEASAP | N73: D365 Project Ops FSARenewal | O73: Monthly Subscriptions | P73: N/A | Q73: N/A | R73: N/A | S73: N/A | T73: Acuerdos Microsoft: EA/EAS GOBIERNO Categoria: ENTERPRISE | U73: Suscripción mensual con pago anual | V73: N/A | W73: N/A | X73: N/A | Y73: N/A | Z73: N/A
A74: PROPIO_Suite Corporativa_N/A_MICROSOFT_Enterprise Agreement-Educativo_1SA-00007AP | C74: PROPIO_1SA-00007AP | D74: 1SA-00007AP | E74: PROPIO | F74: USD | G74: 75 | H74: 1 | I74: Suite Corporativa | J74: N/A | K74: MICROSOFT | L74: Enterprise Agreement-Educativo | M74: Microsoft D365 Project Operations Edu Subscription Per User_AP | N74: D365 Project Ops Edu | O74: Monthly Subscriptions | P74: N/A | Q74: N/A | R74: N/A | S74: N/A | T74: Acuerdos Microsoft: EES ACADEMICO Categoria: EDUCATIVO | U74: Suscripción mensual con pago anual | V74: N/A | W74: N/A | X74: N/A | Y74: N/A | Z74: N/A | AA74: 11/04/2025---Cambios en: Precio. Casos GLPI: 1350691, 1350245, 1348489_archivo:Microsoft----Varios(actualizar sin descripcion)---ok.xlsx---
A75: PROPIO_Suite Corporativa_N/A_MICROSOFT_Enterprise Agreement-Educativo_1SA-00007STU | C75: PROPIO_1SA-00007STU | D75: 1SA-00007STU | E75: PROPIO | F75: USD | G75: 55 | H75: 1 | I75: Suite Corporativa | J75: N/A | K75: MICROSOFT | L75: Enterprise Agreement-Educativo | M75: Microsoft D365 Project Operations Edu Subscription Per User_STU | N75: D365 Project Ops Edu | O75: Monthly Subscriptions | P75: N/A | Q75: N/A | R75: N/A | S75: N/A | T75: Acuerdos Microsoft: EES ACADEMICO Categoria: EDUCATIVO | U75: Suscripción mensual con pago anual | V75: N/A | W75: N/A | X75: N/A | Y75: N/A | Z75: N/A | AA75: 11/04/2025---Cambios en: Precio. Casos GLPI: 1350691, 1350245, 1348489_archivo:Microsoft----Varios(actualizar sin descripcion)---ok.xlsx---
A76: PROPIO_Suite Corporativa_N/A_MICROSOFT_Enterprise Agreement-Educativo_1SA-00009AP | C76: PROPIO_1SA-00009AP | D76: 1SA-00009AP | E76: PROPIO | F76: USD | G76: 53 | H76: 1 | I76: Suite Corporativa | J76: N/A | K76: MICROSOFT | L76: Enterprise Agreement-Educativo | M76: Microsoft D365 Project Operations Edu Step-up D365 Operations Activity Per User_AP | N76: D365 Project Ops Edu | O76: Step Up | P76: N/A | Q76: N/A | R76: N/A | S76: N/A | T76: Acuerdos Microsoft: EES ACADEMICO Categoria: EDUCATIVO | U76: Suscripción mensual con pago anual | V76: N/A | W76: N/A | X76: N/A | Y76: N/A | Z76: N/A | AA76: 11/04/2025---Cambios en: Precio. Casos GLPI: 1350691, 1350245, 1348489_archivo:Microsoft----Varios(actualizar sin descripcion)---ok.xlsx---
A77: PROPIO_Suite Corporativa_N/A_MICROSOFT_Enterprise Agreement-Educativo_1SA-00009STU | C77: PROPIO_1SA-00009STU | D77: 1SA-00009STU | E77: PROPIO | F77: USD | G77: 41 | H77: 1 | I77: Suite Corporativa | J77: N/A | K77: MICROSOFT | L77: Enterprise Agreement-Educativo | M77: Microsoft D365 Project Operations Edu Step-up D365 Operations Activity Per User_STU | N77: D365 Project Ops Edu | O77: Step Up | P77: N/A | Q77: N/A | R77: N/A | S77: N/A | T77: Acuerdos Microsoft: EES ACADEMICO Categoria: EDUCATIVO | U77: Suscripción mensual con pago anual | V77: N/A | W77: N/A | X77: N/A | Y77: N/A | Z77: N/A | AA77: 11/04/2025---Cambios en: Precio. Casos GLPI: 1350691, 1350245, 1348489_archivo:Microsoft----Varios(actualizar sin descripcion)---ok.xlsx---
A78: PROPIO_Suite Corporativa_N/A_MICROSOFT_Enterprise Agreement-Educativo_1SA-00010AP | C78: PROPIO_1SA-00010AP | D78: 1SA-00010AP | E78: PROPIO | F78: USD | G78: 71 | H78: 1 | I78: Suite Corporativa | J78: N/A | K78: MICROSOFT | L78: Enterprise Agreement-Educativo | M78: Microsoft D365 Project Operations Edu Step-up D365 Team Members Per User_AP | N78: D365 Project Ops Edu | O78: Step Up | P78: N/A | Q78: N/A | R78: N/A | S78: N/A | T78: Acuerdos Microsoft: EES ACADEMICO Categoria: EDUCATIVO | U78: Suscripción mensual con pago anual | V78: N/A | W78: N/A | X78: N/A | Y78: N/A | Z78: N/A | AA78: 11/04/2025---Cambios en: Precio. Casos GLPI: 1350691, 1350245, 1348489_archivo:Microsoft----Varios(actualizar sin descripcion)---ok.xlsx---
A79: PROPIO_Suite Corporativa_N/A_MICROSOFT_Enterprise Agreement-Educativo_1SA-00010STU | C79: PROPIO_1SA-00010STU | D79: 1SA-00010STU | E79: PROPIO | F79: USD | G79: 52 | H79: 1 | I79: Suite Corporativa | J79: N/A | K79: MICROSOFT | L79: Enterprise Agreement-Educativo | M79: Microsoft D365 Project Operations Edu Step-up D365 Team Members Per User_STU | N79: D365 Project Ops Edu | O79: Step Up | P79: N/A | Q79: N/A | R79: N/A | S79: N/A | T79: Acuerdos Microsoft: EES ACADEMICO Categoria: EDUCATIVO | U79: Suscripción mensual con pago anual | V79: N/A | W79: N/A | X79: N/A | Y79: N/A | Z79: N/A | AA79: 11/04/2025---Cambios en: Precio. Casos GLPI: 1350691, 1350245, 1348489_archivo:Microsoft----Varios(actualizar sin descripcion)---ok.xlsx---
A80: PROPIO_Suite Corporativa_N/A_MICROSOFT_Enterprise Agreement-Educativo_1SA-00011AP | C80: PROPIO_1SA-00011AP | D80: 1SA-00011AP | E80: PROPIO | F80: USD | G80: 58 | H80: 1 | I80: Suite Corporativa | J80: N/A | K80: MICROSOFT | L80: Enterprise Agreement-Educativo | M80: Microsoft D365 Project Operations Edu Step-up D365 Project Operations Attach Per User_AP | N80: D365 Project Ops Edu | O80: Step Up | P80: N/A | Q80: N/A | R80: N/A | S80: N/A | T80: Acuerdos Microsoft: EES ACADEMICO Categoria: EDUCATIVO | U80: Suscripción mensual con pago anual | V80: N/A | W80: N/A | X80: N/A | Y80: N/A | Z80: N/A | AA80: 11/04/2025---Cambios en: Precio. Casos GLPI: 1350691, 1350245, 1348489_archivo:Microsoft----Varios(actualizar sin descripcion)---ok.xlsx---
A81: PROPIO_Suite Corporativa_N/A_MICROSOFT_Enterprise Agreement-Educativo_1SA-00011STU | C81: PROPIO_1SA-00011STU | D81: 1SA-00011STU | E81: PROPIO | F81: USD | G81: 43 | H81: 1 | I81: Suite Corporativa | J81: N/A | K81: MICROSOFT | L81: Enterprise Agreement-Educativo | M81: Microsoft D365 Project Operations Edu Step-up D365 Project Operations Attach Per User_STU | N81: D365 Project Ops Edu | O81: Step Up | P81: N/A | Q81: N/A | R81: N/A | S81: N/A | T81: Acuerdos Microsoft: EES ACADEMICO Categoria: EDUCATIVO | U81: Suscripción mensual con pago anual | V81: N/A | W81: N/A | X81: N/A | Y81: N/A | Z81: N/A | AA81: 11/04/2025---Cambios en: Precio. Casos GLPI: 1350691, 1350245, 1348489_archivo:Microsoft----Varios(actualizar sin descripcion)---ok.xlsx---
A82: PROPIO_Suite Corporativa_N/A_MICROSOFT_Enterprise Agreement-Educativo_1SD-00014EAEASAP | C82: PROPIO_1SD-00014EAEASAP | D82: 1SD-00014EAEASAP | E82: PROPIO | F82: USD | G82: 27.3 | H82: 1 | I82: Suite Corporativa | J82: N/A | K82: MICROSOFT | L82: Enterprise Agreement-Educativo | M82: Microsoft D365 Project Operations Attach Subscription Per User_EAEASAP | N82: D365 Project Ops Attach | O82: Monthly Subscriptions | P82: N/A | Q82: N/A | R82: N/A | S82: N/A | T82: Acuerdos Microsoft: EA/EAS GOBIERNO Categoria: ENTERPRISE | U82: Suscripción mensual con pago anual | V82: N/A | W82: N/A | X82: N/A | Y82: N/A | Z82: N/A
A83: PROPIO_Suite Corporativa_N/A_MICROSOFT_Enterprise Agreement-Educativo_1SG-00003EAEASAP | C83: PROPIO_1SG-00003EAEASAP | D83: 1SG-00003EAEASAP | E83: PROPIO | F83: USD | G83: 21.8 | H83: 1 | I83: Suite Corporativa | J83: N/A | K83: MICROSOFT | L83: Enterprise Agreement-Educativo | M83: Microsoft D365 Project Operations Attach FSA Renewal Subscription Per User FSA VL/DPL_EAEASAP | N83: D365 Project Ops Attach FSARenewal | O83: Monthly Subscriptions | P83: N/A | Q83: N/A | R83: N/A | S83: N/A | T83: Acuerdos Microsoft: EA/EAS GOBIERNO Categoria: ENTERPRISE | U83: Suscripción mensual con pago anual | V83: N/A | W83: N/A | X83: N/A | Y83: N/A | Z83: N/A
A84: PROPIO_Suite Corporativa_N/A_MICROSOFT_Enterprise Agreement-Educativo_1SH-00007AP | C84: PROPIO_1SH-00007AP | D84: 1SH-00007AP | E84: PROPIO | F84: USD | G84: 17 | H84: 1 | I84: Suite Corporativa | J84: N/A | K84: MICROSOFT | L84: Enterprise Agreement-Educativo | M84: Microsoft D365 Project Operations Attach Edu Subscription Per User_AP | N84: D365 Project Ops Attach Edu | O84: Monthly Subscriptions | P84: N/A | Q84: N/A | R84: N/A | S84: N/A | T84: Acuerdos Microsoft: EES ACADEMICO Categoria: EDUCATIVO | U84: Suscripción mensual con pago anual | V84: N/A | W84: N/A | X84: N/A | Y84: N/A | Z84: N/A | AA84: 11/04/2025---Cambios en: Precio. Casos GLPI: 1350691, 1350245, 1348489_archivo:Microsoft----Varios(actualizar sin descripcion)---ok.xlsx---
A85: PROPIO_Suite Corporativa_N/A_MICROSOFT_Enterprise Agreement-Educativo_1SH-00007STU | C85: PROPIO_1SH-00007STU | D85: 1SH-00007STU | E85: PROPIO | F85: USD | G85: 12 | H85: 1 | I85: Suite Corporativa | J85: N/A | K85: MICROSOFT | L85: Enterprise Agreement-Educativo | M85: Microsoft D365 Project Operations Attach Edu Subscription Per User_STU | N85: D365 Project Ops Attach Edu | O85: Monthly Subscriptions | P85: N/A | Q85: N/A | R85: N/A | S85: N/A | T85: Acuerdos Microsoft: EES ACADEMICO Categoria: EDUCATIVO | U85: Suscripción mensual con pago anual | V85: N/A | W85: N/A | X85: N/A | Y85: N/A | Z85: N/A
A86: PROPIO_Suite Corporativa_N/A_MICROSOFT_Enterprise Agreement-Educativo_1SM-00001AP | C86: PROPIO_1SM-00001AP | D86: 1SM-00001AP | E86: PROPIO | F86: USD | G86: 8.25 | H86: 1 | I86: Suite Corporativa | J86: N/A | K86: MICROSOFT | L86: Enterprise Agreement-Educativo | M86: Microsoft Power Automate Premium Edu Subscription Per User_AP | N86: Power Automate Premium Edu | O86: Monthly Subscriptions | P86: N/A | Q86: N/A | R86: N/A | S86: N/A | T86: Acuerdos Microsoft: EES ACADEMICO Categoria: EDUCATIVO | U86: Suscripción mensual con pago anual | V86: N/A | W86: N/A | X86: N/A | Y86: N/A | Z86: N/A
A87: PROPIO_Suite Corporativa_N/A_MICROSOFT_Enterprise Agreement-Educativo_1SM-00001STU | C87: PROPIO_1SM-00001STU | D87: 1SM-00001STU | E87: PROPIO | F87: USD | G87: 6 | H87: 1 | I87: Suite Corporativa | J87: N/A | K87: MICROSOFT | L87: Enterprise Agreement-Educativo | M87: Microsoft Power Automate Premium Edu Subscription Per User_STU | N87: Power Automate Premium Edu | O87: Monthly Subscriptions | P87: N/A | Q87: N/A | R87: N/A | S87: N/A | T87: Acuerdos Microsoft: EES ACADEMICO Categoria: EDUCATIVO | U87: Suscripción mensual con pago anual | V87: N/A | W87: N/A | X87: N/A | Y87: N/A | Z87: N/A
A88: PROPIO_Suite Corporativa_N/A_MICROSOFT_Enterprise Agreement-Educativo_1SO-00001AP | C88: PROPIO_1SO-00001AP | D88: 1SO-00001AP | E88: PROPIO | F88: USD | G88: 83 | H88: 1 | I88: Suite Corporativa | J88: N/A | K88: MICROSOFT | L88: Enterprise Agreement-Educativo | M88: Microsoft Power Automate Unattended RPA AO Edu Subscription Add-on Per Bot_AP | N88: Power Automate Unatnd RPA AO Edu | O88: Monthly Subscriptions | P88: N/A | Q88: N/A | R88: N/A | S88: N/A | T88: Acuerdos Microsoft: EES ACADEMICO Categoria: EDUCATIVO | U88: Suscripción mensual con pago anual | V88: N/A | W88: N/A | X88: N/A | Y88: N/A | Z88: N/A
A89: PROPIO_Suite Corporativa_N/A_MICROSOFT_Enterprise Agreement-Educativo_1SO-00001STU | C89: PROPIO_1SO-00001STU | D89: 1SO-00001STU | E89: PROPIO | F89: USD | G89: 60 | H89: 1 | I89: Suite Corporativa | J89: N/A | K89: MICROSOFT | L89: Enterprise Agreement-Educativo | M89: Microsoft Power Automate Unattended RPA AO Edu Subscription Add-on Per Bot_STU | N89: Power Automate Unatnd RPA AO Edu | O89: Monthly Subscriptions | P89: N/A | Q89: N/A | R89: N/A | S89: N/A | T89: Acuerdos Microsoft: EES ACADEMICO Categoria: EDUCATIVO | U89: Suscripción mensual con pago anual | V89: N/A | W89: N/A | X89: N/A | Y89: N/A | Z89: N/A
A90: PROPIO_Suite Corporativa_N/A_MICROSOFT_Enterprise Agreement-Educativo_1UC-00009EAEASAP | C90: PROPIO_1UC-00009EAEASAP | D90: 1UC-00009EAEASAP | E90: PROPIO | F90: USD | G90: 11 | H90: 1 | I90: Suite Corporativa | J90: N/A | K90: MICROSOFT | L90: Enterprise Agreement-Educativo | M90: Microsoft Advanced Communications Subscription Add-on_EAEASAP | N90: Advanced Communications | O90: Monthly Subscriptions | P90: N/A | Q90: N/A | R90: N/A | S90: N/A | T90: Acuerdos Microsoft: EA/EAS GOBIERNO Categoria: ENTERPRISE | U90: Suscripción mensual con pago anual | V90: N/A | W90: N/A | X90: N/A | Y90: N/A | Z90: N/A
A91: PROPIO_Suite Corporativa_N/A_MICROSOFT_Enterprise Agreement-Educativo_228-04433EAAP | C91: PROPIO_228-04433EAAP | D91: 228-04433EAAP | E91: PROPIO | F91: USD | G91: 208 | H91: 1 | I91: Suite Corporativa | J91: N/A | K91: MICROSOFT | L91: Enterprise Agreement-Educativo | M91: Microsoft SQL Server Standard All Languages Software Assurance_EAAP | N91: SQL Server Standard | O91: Software Assurance | P91: N/A | Q91: N/A | R91: N/A | S91: N/A | T91: Acuerdos Microsoft: EA GOBIERNO Categoria: ENTERPRISE | U91: Licencia | V91: N/A | W91: N/A | X91: N/A | Y91: N/A | Z91: N/A
A92: PROPIO_Suite Corporativa_N/A_MICROSOFT_Enterprise Agreement-Educativo_228-04433SCE | C92: PROPIO_228-04433SCE | D92: 228-04433SCE | E92: PROPIO | F92: USD | G92: 198 | H92: 1 | I92: Suite Corporativa | J92: N/A | K92: MICROSOFT | L92: Enterprise Agreement-Educativo | M92: Microsoft SQL Server Standard All Languages Software Assurance_SCE | N92: SQL Server Standard | O92: Software Assurance | P92: N/A | Q92: N/A | R92: N/A | S92: N/A | T92: Acuerdos Microsoft: SCE GOBIERNO Categoria: ENTERPRISE | U92: Licencia | V92: N/A | W92: N/A | X92: N/A | Y92: N/A | Z92: N/A
A93: PROPIO_Suite Corporativa_N/A_MICROSOFT_Enterprise Agreement-Educativo_228-04437AP | C93: PROPIO_228-04437AP | D93: 228-04437AP | E93: PROPIO | F93: USD | G93: 104 | H93: 1 | I93: Suite Corporativa | J93: N/A | K93: MICROSOFT | L93: Enterprise Agreement-Educativo | M93: Microsoft SQL Server Standard All Languages License & Software Assurance_AP | N93: SQL Server Standard | O93: License/Software Assurance Pack | P93: N/A | Q93: N/A | R93: N/A | S93: N/A | T93: Acuerdos Microsoft: EES ACADEMICO Categoria: EDUCATIVO | U93: Suscripción Anual | V93: N/A | W93: N/A | X93: N/A | Y93: N/A | Z93: N/A
A94: PROPIO_Suite Corporativa_N/A_MICROSOFT_Enterprise Agreement-Educativo_228-04437EAAP | C94: PROPIO_228-04437EAAP | D94: 228-04437EAAP | E94: PROPIO | F94: USD | G94: 1037.96 | H94: 1 | I94: Suite Corporativa | J94: N/A | K94: MICROSOFT | L94: Enterprise Agreement-Educativo | M94: Microsoft SQL Server Standard All Languages License & Software Assurance_EAAP | N94: SQL Server Standard | O94: License/Software Assurance Pack | P94: N/A | Q94: N/A | R94: N/A | S94: N/A | T94: Acuerdos Microsoft: EA GOBIERNO Categoria: ENTERPRISE | U94: Licencia | V94: N/A | W94: N/A | X94: N/A | Y94: N/A | Z94: N/A
A95: PROPIO_Suite Corporativa_N/A_MICROSOFT_Enterprise Agreement-Educativo_228-04437EAAPTUP | C95: PROPIO_228-04437EAAPTUP | D95: 228-04437EAAPTUP | E95: PROPIO | F95: USD | G95: 934 | H95: 1 | I95: Suite Corporativa | J95: N/A | K95: MICROSOFT | L95: Enterprise Agreement-Educativo | M95: Microsoft SQL Server Standard All Languages License & Software Assurance_EAAP_TUP | N95: SQL Server Standard | O95: License/Software Assurance Pack | P95: N/A | Q95: N/A | R95: N/A | S95: N/A | T95: Acuerdos Microsoft: EA GOBIERNO Categoria: ENTERPRISE | U95: Licencia | V95: N/A | W95: N/A | X95: N/A | Y95: N/A | Z95: N/A
A96: PROPIO_Suite Corporativa_N/A_MICROSOFT_Enterprise Agreement-Educativo_228-04437EASAPLICSUBS | C96: PROPIO_228-04437EASAPLICSUBS | D96: 228-04437EASAPLICSUBS | E96: PROPIO | F96: USD | G96: 327 | H96: 1 | I96: Suite Corporativa | J96: N/A | K96: MICROSOFT | L96: Enterprise Agreement-Educativo | M96: Microsoft SQL Server Standard All Languages License & Software Assurance_EASAP_LICSUBS | N96: SQL Server Standard | O96: License/Software Assurance Pack | P96: N/A | Q96: N/A | R96: N/A | S96: N/A | T96: Acuerdos Microsoft: EAS GOBIERNO Categoria: ENTERPRISE | U96: Suscripción Anual | V96: N/A | W96: N/A | X96: N/A | Y96: N/A | Z96: N/A
A97: PROPIO_Suite Corporativa_N/A_MICROSOFT_Enterprise Agreement-Educativo_228-04437SCE | C97: PROPIO_228-04437SCE | D97: 228-04437SCE | E97: PROPIO | F97: USD | G97: 904 | H97: 1 | I97: Suite Corporativa | J97: N/A | K97: MICROSOFT | L97: Enterprise Agreement-Educativo | M97: Microsoft SQL Server Standard All Languages License & Software Assurance_SCE | N97: SQL Server Standard | O97: License/Software Assurance Pack | P97: N/A | Q97: N/A | R97: N/A | S97: N/A | T97: Acuerdos Microsoft: SCE GOBIERNO Categoria: ENTERPRISE | U97: Licencia | V97: N/A | W97: N/A | X97: N/A | Y97: N/A | Z97: N/A
A98: PROPIO_Suite Corporativa_N/A_MICROSOFT_Enterprise Agreement-Educativo_228-04437SCETUP | C98: PROPIO_228-04437SCETUP | D98: 228-04437SCETUP | E98: PROPIO | F98: USD | G98: 794 | H98: 1 | I98: Suite Corporativa | J98: N/A | K98: MICROSOFT | L98: Enterprise Agreement-Educativo | M98: Microsoft SQL Server Standard All Languages License & Software Assurance_SCE_TUP | N98: SQL Server Standard | O98: License/Software Assurance Pack | P98: N/A | Q98: N/A | R98: N/A | S98: N/A | T98: Acuerdos Microsoft: SCE GOBIERNO Categoria: ENTERPRISE | U98: Licencia | V98: N/A | W98: N/A | X98: N/A | Y98: N/A | Z98: N/A
A99: PROPIO_Suite Corporativa_N/A_MICROSOFT_Enterprise Agreement-Educativo_228-10025SCELICSUBS | C99: PROPIO_228-10025SCELICSUBS | D99: 228-10025SCELICSUBS | E99: PROPIO | F99: USD | G99: 25 | H99: 1 | I99: Suite Corporativa | J99: N/A | K99: MICROSOFT | L99: Enterprise Agreement-Educativo | M99: Microsoft SQL Server Standard All Languages Subscription_SCE_LICSUBS | N99: SQL Server Standard | O99: Monthly Subscriptions | P99: N/A | Q99: N/A | R99: N/A | S99: N/A | T99: Acuerdos Microsoft: SCE GOBIERNO Categoria: ENTERPRISE | U99: Suscripción mensual con pago anual | V99: N/A | W99: N/A | X99: N/A | Y99: N/A | Z99: N/A
A100: PROPIO_Suite Corporativa_N/A_MICROSOFT_Enterprise Agreement-Educativo_269-05623EAENT | C100: PROPIO_269-05623EAENT | D100: 269-05623EAENT | E100: PROPIO | F100: USD | G100: 639 | H100: 1 | I100: Suite Corporativa | J100: N/A | K100: MICROSOFT | L100: Enterprise Agreement-Educativo | M100: Microsoft Office Professional Plus All Languages License & Software Assurance_EAENT | N100: Office Professional Plus | O100: License/Software Assurance Pack | P100: N/A | Q100: N/A | R100: N/A | S100: N/A | T100: Acuerdos Microsoft: EA GOBIERNO Categoria: ENTERPRISE | U100: Licencia | V100: N/A | W100: N/A | X100: N/A | Y100: N/A | Z100: N/A | AA100: 11/04/2025---Cambios en: Precio. Casos GLPI: 1350691, 1350245, 1348489_archivo:Microsoft----Varios(actualizar sin descripcion)---ok.xlsx---
A101: PROPIO_Suite Corporativa_N/A_MICROSOFT_Enterprise Agreement-Educativo_269-05623EAENTTUP | C101: PROPIO_269-05623EAENTTUP | D101: 269-05623EAENTTUP | E101: PROPIO | F101: USD | G101: 552 | H101: 1 | I101: Suite Corporativa | J101: N/A | K101: MICROSOFT | L101: Enterprise Agreement-Educativo | M101: Microsoft Office Professional Plus All Languages License & Software Assurance_EAENT_TUP | N101: Office Professional Plus | O101: License/Software Assurance Pack | P101: N/A | Q101: N/A | R101: N/A | S101: N/A | T101: Acuerdos Microsoft: EA GOBIERNO Categoria: ENTERPRISE | U101: Licencia | V101: N/A | W101: N/A | X101: N/A | Y101: N/A | Z101: N/A | AA101: 11/04/2025---Cambios en: Precio. Casos GLPI: 1350691, 1350245, 1348489_archivo:Microsoft----Varios(actualizar sin descripcion)---ok.xlsx---
A102: PROPIO_Suite Corporativa_N/A_MICROSOFT_Enterprise Agreement-Educativo_269-05623EASENTLICSUBS | C102: PROPIO_269-05623EASENTLICSUBS | D102: 269-05623EASENTLICSUBS | E102: PROPIO | F102: USD | G102: 190 | H102: 1 | I102: Suite Corporativa | J102: N/A | K102: MICROSOFT | L102: Enterprise Agreement-Educativo | M102: Microsoft Office Professional Plus All Languages License & Software Assurance_EASENT_LICSUBS | N102: Office Professional Plus | O102: License/Software Assurance Pack | P102: N/A | Q102: N/A | R102: N/A | S102: N/A | T102: Acuerdos Microsoft: EAS GOBIERNO Categoria: ENTERPRISE | U102: Suscripción Anual | V102: N/A | W102: N/A | X102: N/A | Y102: N/A | Z102: N/A | AA102: 11/04/2025---Cambios en: Precio. Casos GLPI: 1350691, 1350245, 1348489_archivo:Microsoft----Varios(actualizar sin descripcion)---ok.xlsx---
A103: PROPIO_Suite Corporativa_N/A_MICROSOFT_Enterprise Agreement-Educativo_269-05704EAENT | C103: PROPIO_269-05704EAENT | D103: 269-05704EAENT | E103: PROPIO | F103: USD | G103: 157 | H103: 1 | I103: Suite Corporativa | J103: N/A | K103: MICROSOFT | L103: Enterprise Agreement-Educativo | M103: Microsoft Office Professional Plus All Languages Software Assurance_EAENT | N103: Office Professional Plus | O103: Software Assurance | P103: N/A | Q103: N/A | R103: N/A | S103: N/A | T103: Acuerdos Microsoft: EA GOBIERNO Categoria: ENTERPRISE | U103: Licencia | V103: N/A | W103: N/A | X103: N/A | Y103: N/A | Z103: N/A | AA103: 11/04/2025---Cambios en: Precio. Casos GLPI: 1350691, 1350245, 1348489_archivo:Microsoft----Varios(actualizar sin descripcion)---ok.xlsx---
A104: PROPIO_Suite Corporativa_N/A_MICROSOFT_Enterprise Agreement-Educativo_2P8-00009AP | C104: PROPIO_2P8-00009AP | D104: 2P8-00009AP | E104: PROPIO | F104: USD | G104: 2.4 | H104: 1 | I104: Suite Corporativa | J104: N/A | K104: MICROSOFT | L104: Enterprise Agreement-Educativo | M104: Microsoft Advanced Communications Edu Subscription Add-on_AP | N104: Advanced Communications Edu | O104: Monthly Subscriptions | P104: N/A | Q104: N/A | R104: N/A | S104: N/A | T104: Acuerdos Microsoft: EES ACADEMICO Categoria: EDUCATIVO | U104: Suscripción mensual con pago anual | V104: N/A | W104: N/A | X104: N/A | Y104: N/A | Z104: N/A
A105: PROPIO_Suite Corporativa_N/A_MICROSOFT_Enterprise Agreement-Educativo_2P8-00009STU | C105: PROPIO_2P8-00009STU | D105: 2P8-00009STU | E105: PROPIO | F105: USD | G105: 1.79 | H105: 1 | I105: Suite Corporativa | J105: N/A | K105: MICROSOFT | L105: Enterprise Agreement-Educativo | M105: Microsoft Advanced Communications Edu Subscription Add-on_STU | N105: Advanced Communications Edu | O105: Monthly Subscriptions | P105: N/A | Q105: N/A | R105: N/A | S105: N/A | T105: Acuerdos Microsoft: EES ACADEMICO Categoria: EDUCATIVO | U105: Suscripción mensual con pago anual | V105: N/A | W105: N/A | X105: N/A | Y105: N/A | Z105: N/A
A106: PROPIO_Suite Corporativa_N/A_MICROSOFT_Enterprise Agreement-Educativo_2U1-00001EAEASAP | C106: PROPIO_2U1-00001EAEASAP | D106: 2U1-00001EAEASAP | E106: PROPIO | F106: USD | G106: 907.2 | H106: 1 | I106: Suite Corporativa | J106: N/A | K106: MICROSOFT | L106: Enterprise Agreement-Educativo | M106: Microsoft D365 Fraud Protection Account Protection Subscription_EAEASAP | N106: D365 Fraud Protect Acct | O106: Monthly Subscriptions | P106: N/A | Q106: N/A | R106: N/A | S106: N/A | T106: Acuerdos Microsoft: EA/EAS GOBIERNO Categoria: ENTERPRISE | U106: Suscripción mensual con pago anual | V106: N/A | W106: N/A | X106: N/A | Y106: N/A | Z106: N/A
A107: PROPIO_Suite Corporativa_N/A_MICROSOFT_Enterprise Agreement-Educativo_2U8-00001EAEASAP | C107: PROPIO_2U8-00001EAEASAP | D107: 2U8-00001EAEASAP | E107: PROPIO | F107: USD | G107: 907.2 | H107: 1 | I107: Suite Corporativa | J107: N/A | K107: MICROSOFT | L107: Enterprise Agreement-Educativo | M107: Microsoft D365 Fraud Protection Loss Prevention Subscription_EAEASAP | N107: D365 Fraud Protect Loss | O107: Monthly Subscriptions | P107: N/A | Q107: N/A | R107: N/A | S107: N/A | T107: Acuerdos Microsoft: EA/EAS GOBIERNO Categoria: ENTERPRISE | U107: Suscripción mensual con pago anual | V107: N/A | W107: N/A | X107: N/A | Y107: N/A | Z107: N/A
A108: PROPIO_Suite Corporativa_N/A_MICROSOFT_Enterprise Agreement-Educativo_2UB-00001EAEASAP | C108: PROPIO_2UB-00001EAEASAP | D108: 2UB-00001EAEASAP | E108: PROPIO | F108: USD | G108: 907.2 | H108: 1 | I108: Suite Corporativa | J108: N/A | K108: MICROSOFT | L108: Enterprise Agreement-Educativo | M108: Microsoft D365 Fraud Protection Purchase Protection Subscription_EAEASAP | N108: D365 Fraud Protect Purch | O108: Monthly Subscriptions | P108: N/A | Q108: N/A | R108: N/A | S108: N/A | T108: Acuerdos Microsoft: EA/EAS GOBIERNO Categoria: ENTERPRISE | U108: Suscripción mensual con pago anual | V108: N/A | W108: N/A | X108: N/A | Y108: N/A | Z108: N/A
A109: PROPIO_Suite Corporativa_N/A_MICROSOFT_Enterprise Agreement-Educativo_2UI-00001EAEASAP | C109: PROPIO_2UI-00001EAEASAP | D109: 2UI-00001EAEASAP | E109: PROPIO | F109: USD | G109: 136.1 | H109: 1 | I109: Suite Corporativa | J109: N/A | K109: MICROSOFT | L109: Enterprise Agreement-Educativo | M109: Microsoft D365 Fraud Protection Account Protection T1 AO Subscription_EAEASAP | N109: D365 Fraud Protect Acct T1 AO | O109: Monthly Subscriptions | P109: N/A | Q109: N/A | R109: N/A | S109: N/A | T109: Acuerdos Microsoft: EA/EAS GOBIERNO Categoria: ENTERPRISE | U109: Suscripción mensual con pago anual | V109: N/A | W109: N/A | X109: N/A | Y109: N/A | Z109: N/A
A110: PROPIO_Suite Corporativa_N/A_MICROSOFT_Enterprise Agreement-Educativo_2V1-00001EAEASAP | C110: PROPIO_2V1-00001EAEASAP | D110: 2V1-00001EAEASAP | E110: PROPIO | F110: USD | G110: 90.8 | H110: 1 | I110: Suite Corporativa | J110: N/A | K110: MICROSOFT | L110: Enterprise Agreement-Educativo | M110: Microsoft D365 Fraud Protection Account Protection T2 AO Subscription Minimum 100 Unit_EAEASAP | N110: D365 Fraud Protect Acct T2 AO | O110: Monthly Subscriptions | P110: N/A | Q110: N/A | R110: N/A | S110: N/A | T110: Acuerdos Microsoft: EA/EAS GOBIERNO Categoria: ENTERPRISE | U110: Suscripción mensual con pago anual | V110: N/A | W110: N/A | X110: N/A | Y110: N/A | Z110: N/A
A111: PROPIO_Suite Corporativa_N/A_MICROSOFT_Enterprise Agreement-Educativo_2V8-00001EAEASAP | C111: PROPIO_2V8-00001EAEASAP | D111: 2V8-00001EAEASAP | E111: PROPIO | F111: USD | G111: 136.1 | H111: 1 | I111: Suite Corporativa | J111: N/A | K111: MICROSOFT | L111: Enterprise Agreement-Educativo | M111: Microsoft D365 Fraud Protection Loss Prevention T1 AO Subscription_EAEASAP | N111: D365 Fraud Protect Loss T1 AO | O111: Monthly Subscriptions | P111: N/A | Q111: N/A | R111: N/A | S111: N/A | T111: Acuerdos Microsoft: EA/EAS GOBIERNO Categoria: ENTERPRISE | U111: Suscripción mensual con pago anual | V111: N/A | W111: N/A | X111: N/A | Y111: N/A | Z111: N/A
A112: PROPIO_Suite Corporativa_N/A_MICROSOFT_Enterprise Agreement-Educativo_2VB-00001EAEASAP | C112: PROPIO_2VB-00001EAEASAP | D112: 2VB-00001EAEASAP | E112: PROPIO | F112: USD | G112: 90.8 | H112: 1 | I112: Suite Corporativa | J112: N/A | K112: MICROSOFT | L112: Enterprise Agreement-Educativo | M112: Microsoft D365 Fraud Protection Loss Prevention T2 AO Subscription Minimum 62 Unit_EAEASAP | N112: D365 Fraud Protect Loss T2 AO | O112: Monthly Subscriptions | P112: N/A | Q112: N/A | R112: N/A | S112: N/A | T112: Acuerdos Microsoft: EA/EAS GOBIERNO Categoria: ENTERPRISE | U112: Suscripción mensual con pago anual | V112: N/A | W112: N/A | X112: N/A | Y112: N/A | Z112: N/A
A113: PROPIO_Suite Corporativa_N/A_MICROSOFT_Enterprise Agreement-Educativo_2VI-00001EAEASAP | C113: PROPIO_2VI-00001EAEASAP | D113: 2VI-00001EAEASAP | E113: PROPIO | F113: USD | G113: 136.1 | H113: 1 | I113: Suite Corporativa | J113: N/A | K113: MICROSOFT | L113: Enterprise Agreement-Educativo | M113: Microsoft D365 Fraud Protection Purchase Protection T1 AO Subscription_EAEASAP | N113: D365 Fraud Protect Purch T1 AO | O113: Monthly Subscriptions | P113: N/A | Q113: N/A | R113: N/A | S113: N/A | T113: Acuerdos Microsoft: EA/EAS GOBIERNO Categoria: ENTERPRISE | U113: Suscripción mensual con pago anual | V113: N/A | W113: N/A | X113: N/A | Y113: N/A | Z113: N/A
A114: PROPIO_Suite Corporativa_N/A_MICROSOFT_Enterprise Agreement-Educativo_2W1-00001EAEASAP | C114: PROPIO_2W1-00001EAEASAP | D114: 2W1-00001EAEASAP | E114: PROPIO | F114: USD | G114: 90.8 | H114: 1 | I114: Suite Corporativa | J114: N/A | K114: MICROSOFT | L114: Enterprise Agreement-Educativo | M114: Microsoft D365 Fraud Protection Purchase Protection T2 AO Subscription Minimum 250 Unit_EAEASAP | N114: D365 Fraud Protect Purch T2 AO | O114: Monthly Subscriptions | P114: N/A | Q114: N/A | R114: N/A | S114: N/A | T114: Acuerdos Microsoft: EA/EAS GOBIERNO Categoria: ENTERPRISE | U114: Suscripción mensual con pago anual | V114: N/A | W114: N/A | X114: N/A | Y114: N/A | Z114: N/A
A115: PROPIO_Suite Corporativa_N/A_MICROSOFT_Enterprise Agreement-Educativo_2ZA-00001SUB | C115: PROPIO_2ZA-00001SUB | D115: 2ZA-00001SUB | E115: PROPIO | F115: USD | G115: 0 | H115: 1 | I115: Suite Corporativa | J115: N/A | K115: MICROSOFT | L115: Enterprise Agreement-Educativo | M115: Microsoft Minecraft Education (M365 A5) Subscription Student Use Benefit Per User_SUB | N115: Minecraft Education (M365 A5) | O115: Monthly Subscriptions | P115: N/A | Q115: N/A | R115: N/A | S115: N/A | T115: Acuerdos Microsoft: EES ACADEMICO Categoria: EDUCATIVO | U115: Suscripción mensual con pago anual | V115: N/A | W115: N/A | X115: N/A | Y115: N/A | Z115: N/A
A116: PROPIO_Suite Corporativa_N/A_MICROSOFT_Enterprise Agreement-Educativo_2ZA-00002AP | C116: PROPIO_2ZA-00002AP | D116: 2ZA-00002AP | E116: PROPIO | F116: USD | G116: 0.42 | H116: 1 | I116: Suite Corporativa | J116: N/A | K116: MICROSOFT | L116: Enterprise Agreement-Educativo | M116: Microsoft Minecraft Education (M365 A5) Subscription Per User_AP | N116: Minecraft Education (M365 A5) | O116: Monthly Subscriptions | P116: N/A | Q116: N/A | R116: N/A | S116: N/A | T116: Acuerdos Microsoft: EES ACADEMICO Categoria: EDUCATIVO | U116: Suscripción mensual con pago anual | V116: N/A | W116: N/A | X116: N/A | Y116: N/A | Z116: N/A
A117: PROPIO_Suite Corporativa_N/A_MICROSOFT_Enterprise Agreement-Educativo_2ZA-00002FAC | C117: PROPIO_2ZA-00002FAC | D117: 2ZA-00002FAC | E117: PROPIO | F117: USD | G117: 1.1 | H117: 1 | I117: Suite Corporativa | J117: N/A | K117: MICROSOFT | L117: Enterprise Agreement-Educativo | M117: Microsoft Minecraft Education (M365 A5) Subscription Per User_FAC | N117: Minecraft Education (M365 A5) | O117: Monthly Subscriptions | P117: N/A | Q117: N/A | R117: N/A | S117: N/A | T117: Acuerdos Microsoft: EES ACADEMICO Categoria: EDUCATIVO | U117: Suscripción mensual con pago anual | V117: N/A | W117: N/A | X117: N/A | Y117: N/A | Z117: N/A
A118: PROPIO_Suite Corporativa_N/A_MICROSOFT_Enterprise Agreement-Educativo_2ZA-00002STU | C118: PROPIO_2ZA-00002STU | D118: 2ZA-00002STU | E118: PROPIO | F118: USD | G118: 0.42 | H118: 1 | I118: Suite Corporativa | J118: N/A | K118: MICROSOFT | L118: Enterprise Agreement-Educativo | M118: Microsoft Minecraft Education (M365 A5) Subscription Per User_STU | N118: Minecraft Education (M365 A5) | O118: Monthly Subscriptions | P118: N/A | Q118: N/A | R118: N/A | S118: N/A | T118: Acuerdos Microsoft: EES ACADEMICO Categoria: EDUCATIVO | U118: Suscripción mensual con pago anual | V118: N/A | W118: N/A | X118: N/A | Y118: N/A | Z118: N/A
A119: PROPIO_Suite Corporativa_N/A_MICROSOFT_Enterprise Agreement-Educativo_312-02177AP | C119: PROPIO_312-02177AP | D119: 312-02177AP | E119: PROPIO | F119: USD | G119: 75 | H119: 1 | I119: Suite Corporativa | J119: N/A | K119: MICROSOFT | L119: Enterprise Agreement-Educativo | M119: Microsoft Exchange Server Standard All Languages License & Software Assurance_AP | N119: Exchange Server - Standard | O119: License/Software Assurance Pack | P119: N/A | Q119: N/A | R119: N/A | S119: N/A | T119: Acuerdos Microsoft: EES ACADEMICO Categoria: EDUCATIVO | U119: Suscripción Anual | V119: N/A | W119: N/A | X119: N/A | Y119: N/A | Z119: N/A
A120: PROPIO_Suite Corporativa_N/A_MICROSOFT_Enterprise Agreement-Educativo_312-02177EAAP | C120: PROPIO_312-02177EAAP | D120: 312-02177EAAP | E120: PROPIO | F120: USD | G120: 818.04 | H120: 1 | I120: Suite Corporativa | J120: N/A | K120: MICROSOFT | L120: Enterprise Agreement-Educativo | M120: Microsoft Exchange Server Standard All Languages License & Software Assurance_EAAP | N120: Exchange Server - Standard | O120: License/Software Assurance Pack | P120: N/A | Q120: N/A | R120: N/A | S120: N/A | T120: Acuerdos Microsoft: EA GOBIERNO Categoria: ENTERPRISE | U120: Licencia | V120: N/A | W120: N/A | X120: N/A | Y120: N/A | Z120: N/A
A121: PROPIO_Suite Corporativa_N/A_MICROSOFT_Enterprise Agreement-Educativo_312-02177EAAPTUP | C121: PROPIO_312-02177EAAPTUP | D121: 312-02177EAAPTUP | E121: PROPIO | F121: USD | G121: 736 | H121: 1 | I121: Suite Corporativa | J121: N/A | K121: MICROSOFT | L121: Enterprise Agreement-Educativo | M121: Microsoft Exchange Server Standard All Languages License & Software Assurance_EAAP_TUP | N121: Exchange Server - Standard | O121: License/Software Assurance Pack | P121: N/A | Q121: N/A | R121: N/A | S121: N/A | T121: Acuerdos Microsoft: EA GOBIERNO Categoria: ENTERPRISE | U121: Licencia | V121: N/A | W121: N/A | X121: N/A | Y121: N/A | Z121: N/A
A122: PROPIO_Suite Corporativa_N/A_MICROSOFT_Enterprise Agreement-Educativo_312-02177EASAPLICSUBS | C122: PROPIO_312-02177EASAPLICSUBS | D122: 312-02177EASAPLICSUBS | E122: PROPIO | F122: USD | G122: 258 | H122: 1 | I122: Suite Corporativa | J122: N/A | K122: MICROSOFT | L122: Enterprise Agreement-Educativo | M122: Microsoft Exchange Server Standard All Languages License & Software Assurance_EASAP_LICSUBS | N122: Exchange Server - Standard | O122: License/Software Assurance Pack | P122: N/A | Q122: N/A | R122: N/A | S122: N/A | T122: Acuerdos Microsoft: EAS GOBIERNO Categoria: ENTERPRISE | U122: Suscripción Anual | V122: N/A | W122: N/A | X122: N/A | Y122: N/A | Z122: N/A
A123: PROPIO_Suite Corporativa_N/A_MICROSOFT_Enterprise Agreement-Educativo_312-02257EAAP | C123: PROPIO_312-02257EAAP | D123: 312-02257EAAP | E123: PROPIO | F123: USD | G123: 164 | H123: 1 | I123: Suite Corporativa | J123: N/A | K123: MICROSOFT | L123: Enterprise Agreement-Educativo | M123: Microsoft Exchange Server Standard All Languages Software Assurance_EAAP | N123: Exchange Server - Standard | O123: Software Assurance | P123: N/A | Q123: N/A | R123: N/A | S123: N/A | T123: Acuerdos Microsoft: EA GOBIERNO Categoria: ENTERPRISE | U123: Licencia | V123: N/A | W123: N/A | X123: N/A | Y123: N/A | Z123: N/A
A124: PROPIO_Suite Corporativa_N/A_MICROSOFT_Enterprise Agreement-Educativo_32M-00001AP | C124: PROPIO_32M-00001AP | D124: 32M-00001AP | E124: PROPIO | F124: USD | G124: 1.5 | H124: 1 | I124: Suite Corporativa | J124: N/A | K124: MICROSOFT | L124: Enterprise Agreement-Educativo | M124: Microsoft MyAnalytics Edu Subscription Per User_AP | N124: MyAnalytics Edu | O124: Monthly Subscriptions | P124: N/A | Q124: N/A | R124: N/A | S124: N/A | T124: Acuerdos Microsoft: EES ACADEMICO Categoria: EDUCATIVO | U124: Suscripción mensual con pago anual | V124: N/A | W124: N/A | X124: N/A | Y124: N/A | Z124: N/A
A125: PROPIO_Suite Corporativa_N/A_MICROSOFT_Enterprise Agreement-Educativo_32M-00001STU | C125: PROPIO_32M-00001STU | D125: 32M-00001STU | E125: PROPIO | F125: USD | G125: 1.12 | H125: 1 | I125: Suite Corporativa | J125: N/A | K125: MICROSOFT | L125: Enterprise Agreement-Educativo | M125: Microsoft MyAnalytics Edu Subscription Per User_STU | N125: MyAnalytics Edu | O125: Monthly Subscriptions | P125: N/A | Q125: N/A | R125: N/A | S125: N/A | T125: Acuerdos Microsoft: EES ACADEMICO Categoria: EDUCATIVO | U125: Suscripción mensual con pago anual | V125: N/A | W125: N/A | X125: N/A | Y125: N/A | Z125: N/A
A126: PROPIO_Suite Corporativa_N/A_MICROSOFT_Enterprise Agreement-Educativo_359-00765AP | C126: PROPIO_359-00765AP | D126: 359-00765AP | E126: PROPIO | F126: USD | G126: 25 | H126: 1 | I126: Suite Corporativa | J126: N/A | K126: MICROSOFT | L126: Enterprise Agreement-Educativo | M126: Microsoft SQL CAL All Languages License & Software Assurance Device CAL_AP | N126: SQL CAL | O126: License/Software Assurance Pack | P126: N/A | Q126: N/A | R126: N/A | S126: N/A | T126: Acuerdos Microsoft: EES ACADEMICO Categoria: EDUCATIVO | U126: Suscripción Anual | V126: N/A | W126: N/A | X126: N/A | Y126: N/A | Z126: N/A
A127: PROPIO_Suite Corporativa_N/A_MICROSOFT_Enterprise Agreement-Educativo_359-00765EAAP | C127: PROPIO_359-00765EAAP | D127: 359-00765EAAP | E127: PROPIO | F127: USD | G127: 242 | H127: 1 | I127: Suite Corporativa | J127: N/A | K127: MICROSOFT | L127: Enterprise Agreement-Educativo | M127: Microsoft SQL CAL All Languages License & Software Assurance Device CAL_EAAP | N127: SQL CAL | O127: License/Software Assurance Pack | P127: N/A | Q127: N/A | R127: N/A | S127: N/A | T127: Acuerdos Microsoft: EA GOBIERNO Categoria: ENTERPRISE | U127: Licencia | V127: N/A | W127: N/A | X127: N/A | Y127: N/A | Z127: N/A
A128: PROPIO_Suite Corporativa_N/A_MICROSOFT_Enterprise Agreement-Educativo_359-00765EAAPTUP | C128: PROPIO_359-00765EAAPTUP | D128: 359-00765EAAPTUP | E128: PROPIO | F128: USD | G128: 218 | H128: 1 | I128: Suite Corporativa | J128: N/A | K128: MICROSOFT | L128: Enterprise Agreement-Educativo | M128: Microsoft SQL CAL All Languages License & Software Assurance Device CAL_EAAP_TUP | N128: SQL CAL | O128: License/Software Assurance Pack | P128: N/A | Q128: N/A | R128: N/A | S128: N/A | T128: Acuerdos Microsoft: EA GOBIERNO Categoria: ENTERPRISE | U128: Licencia | V128: N/A | W128: N/A | X128: N/A | Y128: N/A | Z128: N/A
A129: PROPIO_Suite Corporativa_N/A_MICROSOFT_Enterprise Agreement-Educativo_359-00765EASAPLICSUBS | C129: PROPIO_359-00765EASAPLICSUBS | D129: 359-00765EASAPLICSUBS | E129: PROPIO | F129: USD | G129: 76 | H129: 1 | I129: Suite Corporativa | J129: N/A | K129: MICROSOFT | L129: Enterprise Agreement-Educativo | M129: Microsoft SQL CAL All Languages License & Software Assurance Device CAL_EASAP_LICSUBS | N129: SQL CAL | O129: License/Software Assurance Pack | P129: N/A | Q129: N/A | R129: N/A | S129: N/A | T129: Acuerdos Microsoft: EAS GOBIERNO Categoria: ENTERPRISE | U129: Suscripción Anual | V129: N/A | W129: N/A | X129: N/A | Y129: N/A | Z129: N/A
A130: PROPIO_Suite Corporativa_N/A_MICROSOFT_Enterprise Agreement-Educativo_359-00765FAC | C130: PROPIO_359-00765FAC | D130: 359-00765FAC | E130: PROPIO | F130: USD | G130: 9 | H130: 1 | I130: Suite Corporativa | J130: N/A | K130: MICROSOFT | L130: Enterprise Agreement-Educativo | M130: Microsoft SQL CAL All Languages License & Software Assurance Device CAL_FAC | N130: SQL CAL | O130: License/Software Assurance Pack | P130: N/A | Q130: N/A | R130: N/A | S130: N/A | T130: Acuerdos Microsoft: EES ACADEMICO Categoria: EDUCATIVO | U130: Suscripción Anual | V130: N/A | W130: N/A | X130: N/A | Y130: N/A | Z130: N/A
A131: PROPIO_Suite Corporativa_N/A_MICROSOFT_Enterprise Agreement-Educativo_359-00765SCE | C131: PROPIO_359-00765SCE | D131: 359-00765SCE | E131: PROPIO | F131: USD | G131: 210.5 | H131: 1 | I131: Suite Corporativa | J131: N/A | K131: MICROSOFT | L131: Enterprise Agreement-Educativo | M131: Microsoft SQL CAL All Languages License & Software Assurance Device CAL_SCE | N131: SQL CAL | O131: License/Software Assurance Pack | P131: N/A | Q131: N/A | R131: N/A | S131: N/A | T131: Acuerdos Microsoft: SCE GOBIERNO Categoria: ENTERPRISE | U131: Licencia | V131: N/A | W131: N/A | X131: N/A | Y131: N/A | Z131: N/A
A132: PROPIO_Suite Corporativa_N/A_MICROSOFT_Enterprise Agreement-Educativo_359-00765SCETUP | C132: PROPIO_359-00765SCETUP | D132: 359-00765SCETUP | E132: PROPIO | F132: USD | G132: 185 | H132: 1 | I132: Suite Corporativa | J132: N/A | K132: MICROSOFT | L132: Enterprise Agreement-Educativo | M132: Microsoft SQL CAL All Languages License & Software Assurance Device CAL_SCE_TUP | N132: SQL CAL | O132: License/Software Assurance Pack | P132: N/A | Q132: N/A | R132: N/A | S132: N/A | T132: Acuerdos Microsoft: SCE GOBIERNO Categoria: ENTERPRISE | U132: Licencia | V132: N/A | W132: N/A | X132: N/A | Y132: N/A | Z132: N/A
A133: PROPIO_Suite Corporativa_N/A_MICROSOFT_Enterprise Agreement-Educativo_359-00765STU | C133: PROPIO_359-00765STU | D133: 359-00765STU | E133: PROPIO | F133: USD | G133: 9 | H133: 1 | I133: Suite Corporativa | J133: N/A | K133: MICROSOFT | L133: Enterprise Agreement-Educativo | M133: Microsoft SQL CAL All Languages License & Software Assurance Device CAL_STU | N133: SQL CAL | O133: License/Software Assurance Pack | P133: N/A | Q133: N/A | R133: N/A | S133: N/A | T133: Acuerdos Microsoft: EES ACADEMICO Categoria: EDUCATIVO | U133: Suscripción Anual | V133: N/A | W133: N/A | X133: N/A | Y133: N/A | Z133: N/A
A134: PROPIO_Suite Corporativa_N/A_MICROSOFT_Enterprise Agreement-Educativo_359-00792EAAP | C134: PROPIO_359-00792EAAP | D134: 359-00792EAAP | E134: PROPIO | F134: USD | G134: 49 | H134: 1 | I134: Suite Corporativa | J134: N/A | K134: MICROSOFT | L134: Enterprise Agreement-Educativo | M134: Microsoft SQL CAL All Languages Software Assurance Device CAL_EAAP | N134: SQL CAL | O134: Software Assurance | P134: N/A | Q134: N/A | R134: N/A | S134: N/A | T134: Acuerdos Microsoft: EA GOBIERNO Categoria: ENTERPRISE | U134: Licencia | V134: N/A | W134: N/A | X134: N/A | Y134: N/A | Z134: N/A
A135: PROPIO_Suite Corporativa_N/A_MICROSOFT_Enterprise Agreement-Educativo_359-00792SCE | C135: PROPIO_359-00792SCE | D135: 359-00792SCE | E135: PROPIO | F135: USD | G135: 46 | H135: 1 | I135: Suite Corporativa | J135: N/A | K135: MICROSOFT | L135: Enterprise Agreement-Educativo | M135: Microsoft SQL CAL All Languages Software Assurance Device CAL_SCE | N135: SQL CAL | O135: Software Assurance | P135: N/A | Q135: N/A | R135: N/A | S135: N/A | T135: Acuerdos Microsoft: SCE GOBIERNO Categoria: ENTERPRISE | U135: Licencia | V135: N/A | W135: N/A | X135: N/A | Y135: N/A | Z135: N/A
A136: PROPIO_Suite Corporativa_N/A_MICROSOFT_Enterprise Agreement-Educativo_359-00960EAAP | C136: PROPIO_359-00960EAAP | D136: 359-00960EAAP | E136: PROPIO | F136: USD | G136: 242 | H136: 1 | I136: Suite Corporativa | J136: N/A | K136: MICROSOFT | L136: Enterprise Agreement-Educativo | M136: Microsoft SQL CAL All Languages License & Software Assurance User CAL_EAAP | N136: SQL CAL | O136: License/Software Assurance Pack | P136: N/A | Q136: N/A | R136: N/A | S136: N/A | T136: Acuerdos Microsoft: EA GOBIERNO Categoria: ENTERPRISE | U136: Licencia | V136: N/A | W136: N/A | X136: N/A | Y136: N/A | Z136: N/A
A137: PROPIO_Suite Corporativa_N/A_MICROSOFT_Enterprise Agreement-Educativo_359-00960EAAPTUP | C137: PROPIO_359-00960EAAPTUP | D137: 359-00960EAAPTUP | E137: PROPIO | F137: USD | G137: 218 | H137: 1 | I137: Suite Corporativa | J137: N/A | K137: MICROSOFT | L137: Enterprise Agreement-Educativo | M137: Microsoft SQL CAL All Languages License & Software Assurance User CAL_EAAP_TUP | N137: SQL CAL | O137: License/Software Assurance Pack | P137: N/A | Q137: N/A | R137: N/A | S137: N/A | T137: Acuerdos Microsoft: EA GOBIERNO Categoria: ENTERPRISE | U137: Licencia | V137: N/A | W137: N/A | X137: N/A | Y137: N/A | Z137: N/A
A138: PROPIO_Suite Corporativa_N/A_MICROSOFT_Enterprise Agreement-Educativo_359-00960EASAPLICSUBS | C138: PROPIO_359-00960EASAPLICSUBS | D138: 359-00960EASAPLICSUBS | E138: PROPIO | F138: USD | G138: 76 | H138: 1 | I138: Suite Corporativa | J138: N/A | K138: MICROSOFT | L138: Enterprise Agreement-Educativo | M138: Microsoft SQL CAL All Languages License & Software Assurance User CAL_EASAP_LICSUBS | N138: SQL CAL | O138: License/Software Assurance Pack | P138: N/A | Q138: N/A | R138: N/A | S138: N/A | T138: Acuerdos Microsoft: EAS GOBIERNO Categoria: ENTERPRISE | U138: Suscripción Anual | V138: N/A | W138: N/A | X138: N/A | Y138: N/A | Z138: N/A
A139: PROPIO_Suite Corporativa_N/A_MICROSOFT_Enterprise Agreement-Educativo_359-00960SCE | C139: PROPIO_359-00960SCE | D139: 359-00960SCE | E139: PROPIO | F139: USD | G139: 210.5 | H139: 1 | I139: Suite Corporativa | J139: N/A | K139: MICROSOFT | L139: Enterprise Agreement-Educativo | M139: Microsoft SQL CAL All Languages License & Software Assurance User CAL_SCE | N139: SQL CAL | O139: License/Software Assurance Pack | P139: N/A | Q139: N/A | R139: N/A | S139: N/A | T139: Acuerdos Microsoft: SCE GOBIERNO Categoria: ENTERPRISE | U139: Licencia | V139: N/A | W139: N/A | X139: N/A | Y139: N/A | Z139: N/A
A140: PROPIO_Suite Corporativa_N/A_MICROSOFT_Enterprise Agreement-Educativo_359-00960SCETUP | C140: PROPIO_359-00960SCETUP | D140: 359-00960SCETUP | E140: PROPIO | F140: USD | G140: 185 | H140: 1 | I140: Suite Corporativa | J140: N/A | K140: MICROSOFT | L140: Enterprise Agreement-Educativo | M140: Microsoft SQL CAL All Languages License & Software Assurance User CAL_SCE_TUP | N140: SQL CAL | O140: License/Software Assurance Pack | P140: N/A | Q140: N/A | R140: N/A | S140: N/A | T140: Acuerdos Microsoft: SCE GOBIERNO Categoria: ENTERPRISE | U140: Licencia | V140: N/A | W140: N/A | X140: N/A | Y140: N/A | Z140: N/A
A141: PROPIO_Suite Corporativa_N/A_MICROSOFT_Enterprise Agreement-Educativo_359-00961EAAP | C141: PROPIO_359-00961EAAP | D141: 359-00961EAAP | E141: PROPIO | F141: USD | G141: 49 | H141: 1 | I141: Suite Corporativa | J141: N/A | K141: MICROSOFT | L141: Enterprise Agreement-Educativo | M141: Microsoft SQL CAL All Languages Software Assurance User CAL_EAAP | N141: SQL CAL | O141: Software Assurance | P141: N/A | Q141: N/A | R141: N/A | S141: N/A | T141: Acuerdos Microsoft: EA GOBIERNO Categoria: ENTERPRISE | U141: Licencia | V141: N/A | W141: N/A | X141: N/A | Y141: N/A | Z141: N/A
A142: PROPIO_Suite Corporativa_N/A_MICROSOFT_Enterprise Agreement-Educativo_359-00961SCE | C142: PROPIO_359-00961SCE | D142: 359-00961SCE | E142: PROPIO | F142: USD | G142: 46 | H142: 1 | I142: Suite Corporativa | J142: N/A | K142: MICROSOFT | L142: Enterprise Agreement-Educativo | M142: Microsoft SQL CAL All Languages Software Assurance User CAL_SCE | N142: SQL CAL | O142: Software Assurance | P142: N/A | Q142: N/A | R142: N/A | S142: N/A | T142: Acuerdos Microsoft: SCE GOBIERNO Categoria: ENTERPRISE | U142: Licencia | V142: N/A | W142: N/A | X142: N/A | Y142: N/A | Z142: N/A
A143: PROPIO_Suite Corporativa_N/A_MICROSOFT_Enterprise Agreement-Educativo_359-05813SCELICSUBS | C143: PROPIO_359-05813SCELICSUBS | D143: 359-05813SCELICSUBS | E143: PROPIO | F143: USD | G143: 6 | H143: 1 | I143: Suite Corporativa | J143: N/A | K143: MICROSOFT | L143: Enterprise Agreement-Educativo | M143: Microsoft SQL CAL All Languages Subscription Device CAL_SCE_LICSUBS | N143: SQL CAL | O143: Monthly Subscriptions | P143: N/A | Q143: N/A | R143: N/A | S143: N/A | T143: Acuerdos Microsoft: SCE GOBIERNO Categoria: ENTERPRISE | U143: Suscripción mensual con pago anual | V143: N/A | W143: N/A | X143: N/A | Y143: N/A | Z143: N/A
A144: PROPIO_Suite Corporativa_N/A_MICROSOFT_Enterprise Agreement-Educativo_359-05814SCELICSUBS | C144: PROPIO_359-05814SCELICSUBS | D144: 359-05814SCELICSUBS | E144: PROPIO | F144: USD | G144: 6 | H144: 1 | I144: Suite Corporativa | J144: N/A | K144: MICROSOFT | L144: Enterprise Agreement-Educativo | M144: Microsoft SQL CAL All Languages Subscription User CAL_SCE_LICSUBS | N144: SQL CAL | O144: Monthly Subscriptions | P144: N/A | Q144: N/A | R144: N/A | S144: N/A | T144: Acuerdos Microsoft: SCE GOBIERNO Categoria: ENTERPRISE | U144: Suscripción mensual con pago anual | V144: N/A | W144: N/A | X144: N/A | Y144: N/A | Z144: N/A
A145: PROPIO_Suite Corporativa_N/A_MICROSOFT_Enterprise Agreement-Educativo_395-02412AP | C145: PROPIO_395-02412AP | D145: 395-02412AP | E145: PROPIO | F145: USD | G145: 426 | H145: 1 | I145: Suite Corporativa | J145: N/A | K145: MICROSOFT | L145: Enterprise Agreement-Educativo | M145: Microsoft Exchange Server Enterprise All Languages License & Software Assurance_AP | N145: Exchange Server Enterprise | O145: License/Software Assurance Pack | P145: N/A | Q145: N/A | R145: N/A | S145: N/A | T145: Acuerdos Microsoft: EES ACADEMICO Categoria: EDUCATIVO | U145: Suscripción Anual | V145: N/A | W145: N/A | X145: N/A | Y145: N/A | Z145: N/A
A146: PROPIO_Suite Corporativa_N/A_MICROSOFT_Enterprise Agreement-Educativo_395-02412EAAP | C146: PROPIO_395-02412EAAP | D146: 395-02412EAAP | E146: PROPIO | F146: USD | G146: 4678 | H146: 1 | I146: Suite Corporativa | J146: N/A | K146: MICROSOFT | L146: Enterprise Agreement-Educativo | M146: Microsoft Exchange Server Enterprise All Languages License & Software Assurance_EAAP | N146: Exchange Server Enterprise | O146: License/Software Assurance Pack | P146: N/A | Q146: N/A | R146: N/A | S146: N/A | T146: Acuerdos Microsoft: EA GOBIERNO Categoria: ENTERPRISE | U146: Licencia | V146: N/A | W146: N/A | X146: N/A | Y146: N/A | Z146: N/A
A147: PROPIO_Suite Corporativa_N/A_MICROSOFT_Enterprise Agreement-Educativo_395-02412EAAPTUP | C147: PROPIO_395-02412EAAPTUP | D147: 395-02412EAAPTUP | E147: PROPIO | F147: USD | G147: 4210 | H147: 1 | I147: Suite Corporativa | J147: N/A | K147: MICROSOFT | L147: Enterprise Agreement-Educativo | M147: Microsoft Exchange Server Enterprise All Languages License & Software Assurance_EAAP_TUP | N147: Exchange Server Enterprise | O147: License/Software Assurance Pack | P147: N/A | Q147: N/A | R147: N/A | S147: N/A | T147: Acuerdos Microsoft: EA GOBIERNO Categoria: ENTERPRISE | U147: Licencia | V147: N/A | W147: N/A | X147: N/A | Y147: N/A | Z147: N/A
A148: PROPIO_Suite Corporativa_N/A_MICROSOFT_Enterprise Agreement-Educativo_395-02412EASAPLICSUBS | C148: PROPIO_395-02412EASAPLICSUBS | D148: 395-02412EASAPLICSUBS | E148: PROPIO | F148: USD | G148: 1474 | H148: 1 | I148: Suite Corporativa | J148: N/A | K148: MICROSOFT | L148: Enterprise Agreement-Educativo | M148: Microsoft Exchange Server Enterprise All Languages License & Software Assurance_EASAP_LICSUBS | N148: Exchange Server Enterprise | O148: License/Software Assurance Pack | P148: N/A | Q148: N/A | R148: N/A | S148: N/A | T148: Acuerdos Microsoft: EAS GOBIERNO Categoria: ENTERPRISE | U148: Suscripción Anual | V148: N/A | W148: N/A | X148: N/A | Y148: N/A | Z148: N/A
A149: PROPIO_Suite Corporativa_N/A_MICROSOFT_Enterprise Agreement-Educativo_395-02504EAAP | C149: PROPIO_395-02504EAAP | D149: 395-02504EAAP | E149: PROPIO | F149: USD | G149: 936 | H149: 1 | I149: Suite Corporativa | J149: N/A | K149: MICROSOFT | L149: Enterprise Agreement-Educativo | M149: Microsoft Exchange Server Enterprise All Languages Software Assurance_EAAP | N149: Exchange Server Enterprise | O149: Software Assurance | P149: N/A | Q149: N/A | R149: N/A | S149: N/A | T149: Acuerdos Microsoft: EA GOBIERNO Categoria: ENTERPRISE | U149: Licencia | V149: N/A | W149: N/A | X149: N/A | Y149: N/A | Z149: N/A
A150: PROPIO_Suite Corporativa_N/A_MICROSOFT_Enterprise Agreement-Educativo_395-03039AP | C150: PROPIO_395-03039AP | D150: 395-03039AP | E150: PROPIO | F150: USD | G150: 352 | H150: 1 | I150: Suite Corporativa | J150: N/A | K150: MICROSOFT | L150: Enterprise Agreement-Educativo | M150: Microsoft Exchange Server Enterprise All Languages SA Step-up Exchg Svr - Std_AP | N150: Exchange Server Enterprise | O150: SA Step Up | P150: N/A | Q150: N/A | R150: N/A | S150: N/A | T150: Acuerdos Microsoft: EES ACADEMICO Categoria: EDUCATIVO | U150: Suscripción Anual | V150: N/A | W150: N/A | X150: N/A | Y150: N/A | Z150: N/A
A151: PROPIO_Suite Corporativa_N/A_MICROSOFT_Enterprise Agreement-Educativo_395-03039EAAP | C151: PROPIO_395-03039EAAP | D151: 395-03039EAAP | E151: PROPIO | F151: USD | G151: 3859.96 | H151: 1 | I151: Suite Corporativa | J151: N/A | K151: MICROSOFT | L151: Enterprise Agreement-Educativo | M151: Microsoft Exchange Server Enterprise All Languages SA Step-up Exchg Svr - Std_EAAP | N151: Exchange Server Enterprise | O151: SA Step Up | P151: N/A | Q151: N/A | R151: N/A | S151: N/A | T151: Acuerdos Microsoft: EA GOBIERNO Categoria: ENTERPRISE | U151: Licencia | V151: N/A | W151: N/A | X151: N/A | Y151: N/A | Z151: N/A
A152: PROPIO_Suite Corporativa_N/A_MICROSOFT_Enterprise Agreement-Educativo_3IC-00007EAEASAP | C152: PROPIO_3IC-00007EAEASAP | D152: 3IC-00007EAEASAP | E152: PROPIO | F152: USD | G152: 272.2 | H152: 1 | I152: Suite Corporativa | J152: N/A | K152: MICROSOFT | L152: Enterprise Agreement-Educativo | M152: Microsoft D365 eInvoicing Subscription_EAEASAP | N152: D365 eInvoicing | O152: Monthly Subscriptions | P152: N/A | Q152: N/A | R152: N/A | S152: N/A | T152: Acuerdos Microsoft: EA/EAS GOBIERNO Categoria: ENTERPRISE | U152: Suscripción mensual con pago anual | V152: N/A | W152: N/A | X152: N/A | Y152: N/A | Z152: N/A
A153: PROPIO_Suite Corporativa_N/A_MICROSOFT_Enterprise Agreement-Educativo_3IV-00007EAEASAP | C153: PROPIO_3IV-00007EAEASAP | D153: 3IV-00007EAEASAP | E153: PROPIO | F153: USD | G153: 3.6 | H153: 1 | I153: Suite Corporativa | J153: N/A | K153: MICROSOFT | L153: Enterprise Agreement-Educativo | M153: Microsoft Extended Dial-Out (USA,CAN) Subscription Per User_EAEASAP | N153: Extended Dial-Out (USA,CAN) | O153: Monthly Subscriptions | P153: N/A | Q153: N/A | R153: N/A | S153: N/A | T153: Acuerdos Microsoft: EA/EAS GOBIERNO Categoria: ENTERPRISE | U153: Suscripción mensual con pago anual | V153: N/A | W153: N/A | X153: N/A | Y153: N/A | Z153: N/A
A154: PROPIO_Suite Corporativa_N/A_MICROSOFT_Enterprise Agreement-Educativo_3JJ-00003EAEASENT | C154: PROPIO_3JJ-00003EAEASENT | D154: 3JJ-00003EAEASENT | E154: PROPIO | F154: USD | G154: 10.9 | H154: 1 | I154: Suite Corporativa | J154: N/A | K154: MICROSOFT | L154: Enterprise Agreement-Educativo | M154: Microsoft M365 Apps Enterprise Subscription Per User_EAEASENT | N154: M365 Apps Enterprise | O154: Monthly Subscriptions | P154: N/A | Q154: N/A | R154: N/A | S154: N/A | T154: Acuerdos Microsoft: EA/EAS GOBIERNO Categoria: ENTERPRISE | U154: Suscripción mensual con pago anual | V154: N/A | W154: N/A | X154: N/A | Y154: N/A | Z154: N/A
A155: PROPIO_Suite Corporativa_N/A_MICROSOFT_Enterprise Agreement-Educativo_3ND-00524EAAP | C155: PROPIO_3ND-00524EAAP | D155: 3ND-00524EAAP | E155: PROPIO | F155: USD | G155: 21.96 | H155: 1 | I155: Suite Corporativa | J155: N/A | K155: MICROSOFT | L155: Enterprise Agreement-Educativo | M155: Microsoft System Center Service Manager All Languages License & Software Assurance Per OSE_EAAP | N155: System Center Service Manager | O155: License/Software Assurance Pack | P155: N/A | Q155: N/A | R155: N/A | S155: N/A | T155: Acuerdos Microsoft: EA GOBIERNO Categoria: ENTERPRISE | U155: Licencia | V155: N/A | W155: N/A | X155: N/A | Y155: N/A | Z155: N/A | AA155: 11/04/2025---Cambios en: Precio. Casos GLPI: 1350691, 1350245, 1348489_archivo:Microsoft----Varios(actualizar sin descripcion)---ok.xlsx---
A156: PROPIO_Suite Corporativa_N/A_MICROSOFT_Enterprise Agreement-Educativo_3ND-00524EAAPTUP | C156: PROPIO_3ND-00524EAAPTUP | D156: 3ND-00524EAAPTUP | E156: PROPIO | F156: USD | G156: 20 | H156: 1 | I156: Suite Corporativa | J156: N/A | K156: MICROSOFT | L156: Enterprise Agreement-Educativo | M156: Microsoft System Center Service Manager All Languages License & Software Assurance Per OSE_EAAP_TUP | N156: System Center Service Manager | O156: License/Software Assurance Pack | P156: N/A | Q156: N/A | R156: N/A | S156: N/A | T156: Acuerdos Microsoft: EA GOBIERNO Categoria: ENTERPRISE | U156: Licencia | V156: N/A | W156: N/A | X156: N/A | Y156: N/A | Z156: N/A | AA156: 11/04/2025---Cambios en: Precio. Casos GLPI: 1350691, 1350245, 1348489_archivo:Microsoft----Varios(actualizar sin descripcion)---ok.xlsx---
A157: PROPIO_Suite Corporativa_N/A_MICROSOFT_Enterprise Agreement-Educativo_3ND-00524EASAPLICSUBS | C157: PROPIO_3ND-00524EASAPLICSUBS | D157: 3ND-00524EASAPLICSUBS | E157: PROPIO | F157: USD | G157: 7 | H157: 1 | I157: Suite Corporativa | J157: N/A | K157: MICROSOFT | L157: Enterprise Agreement-Educativo | M157: Microsoft System Center Service Manager All Languages License & Software Assurance Per OSE_EASAP_LICSUBS | N157: System Center Service Manager | O157: License/Software Assurance Pack | P157: N/A | Q157: N/A | R157: N/A | S157: N/A | T157: Acuerdos Microsoft: EAS GOBIERNO Categoria: ENTERPRISE | U157: Suscripción Anual | V157: N/A | W157: N/A | X157: N/A | Y157: N/A | Z157: N/A
A158: PROPIO_Suite Corporativa_N/A_MICROSOFT_Enterprise Agreement-Educativo_3ND-00524FAC | C158: PROPIO_3ND-00524FAC | D158: 3ND-00524FAC | E158: PROPIO | F158: USD | G158: 1.4 | H158: 1 | I158: Suite Corporativa | J158: N/A | K158: MICROSOFT | L158: Enterprise Agreement-Educativo | M158: Microsoft System Center Service Manager All Languages License & Software Assurance Per OSE_FAC | N158: System Center Service Manager | O158: License/Software Assurance Pack | P158: N/A | Q158: N/A | R158: N/A | S158: N/A | T158: Acuerdos Microsoft: EES ACADEMICO Categoria: EDUCATIVO | U158: Suscripción Anual | V158: N/A | W158: N/A | X158: N/A | Y158: N/A | Z158: N/A | AA158: 11/04/2025---Cambios en: Precio. Casos GLPI: 1350691, 1350245, 1348489_archivo:Microsoft----Varios(actualizar sin descripcion)---ok.xlsx---
A159: PROPIO_Suite Corporativa_N/A_MICROSOFT_Enterprise Agreement-Educativo_3ND-00524STU | C159: PROPIO_3ND-00524STU | D159: 3ND-00524STU | E159: PROPIO | F159: USD | G159: 1.09 | H159: 1 | I159: Suite Corporativa | J159: N/A | K159: MICROSOFT | L159: Enterprise Agreement-Educativo | M159: Microsoft System Center Service Manager All Languages License & Software Assurance Per OSE_STU | N159: System Center Service Manager | O159: License/Software Assurance Pack | P159: N/A | Q159: N/A | R159: N/A | S159: N/A | T159: Acuerdos Microsoft: EES ACADEMICO Categoria: EDUCATIVO | U159: Suscripción Anual | V159: N/A | W159: N/A | X159: N/A | Y159: N/A | Z159: N/A | AA159: 11/04/2025---Cambios en: Precio. Casos GLPI: 1350691, 1350245, 1348489_archivo:Microsoft----Varios(actualizar sin descripcion)---ok.xlsx---
A160: PROPIO_Suite Corporativa_N/A_MICROSOFT_Enterprise Agreement-Educativo_3ND-00525EAAP | C160: PROPIO_3ND-00525EAAP | D160: 3ND-00525EAAP | E160: PROPIO | F160: USD | G160: 27.96 | H160: 1 | I160: Suite Corporativa | J160: N/A | K160: MICROSOFT | L160: Enterprise Agreement-Educativo | M160: Microsoft System Center Service Manager All Languages License & Software Assurance Per User_EAAP | N160: System Center Service Manager | O160: License/Software Assurance Pack | P160: N/A | Q160: N/A | R160: N/A | S160: N/A | T160: Acuerdos Microsoft: EA GOBIERNO Categoria: ENTERPRISE | U160: Licencia | V160: N/A | W160: N/A | X160: N/A | Y160: N/A | Z160: N/A | AA160: 11/04/2025---Cambios en: Precio. Casos GLPI: 1350691, 1350245, 1348489_archivo:Microsoft----Varios(actualizar sin descripcion)---ok.xlsx---
A161: PROPIO_Suite Corporativa_N/A_MICROSOFT_Enterprise Agreement-Educativo_3ND-00525EAAPTUP | C161: PROPIO_3ND-00525EAAPTUP | D161: 3ND-00525EAAPTUP | E161: PROPIO | F161: USD | G161: 26 | H161: 1 | I161: Suite Corporativa | J161: N/A | K161: MICROSOFT | L161: Enterprise Agreement-Educativo | M161: Microsoft System Center Service Manager All Languages License & Software Assurance Per User_EAAP_TUP | N161: System Center Service Manager | O161: License/Software Assurance Pack | P161: N/A | Q161: N/A | R161: N/A | S161: N/A | T161: Acuerdos Microsoft: EA GOBIERNO Categoria: ENTERPRISE | U161: Licencia | V161: N/A | W161: N/A | X161: N/A | Y161: N/A | Z161: N/A | AA161: 11/04/2025---Cambios en: Precio. Casos GLPI: 1350691, 1350245, 1348489_archivo:Microsoft----Varios(actualizar sin descripcion)---ok.xlsx---
A162: PROPIO_Suite Corporativa_N/A_MICROSOFT_Enterprise Agreement-Educativo_3ND-00525EASAPLICSUBS | C162: PROPIO_3ND-00525EASAPLICSUBS | D162: 3ND-00525EASAPLICSUBS | E162: PROPIO | F162: USD | G162: 9 | H162: 1 | I162: Suite Corporativa | J162: N/A | K162: MICROSOFT | L162: Enterprise Agreement-Educativo | M162: Microsoft System Center Service Manager All Languages License & Software Assurance Per User_EASAP_LICSUBS | N162: System Center Service Manager | O162: License/Software Assurance Pack | P162: N/A | Q162: N/A | R162: N/A | S162: N/A | T162: Acuerdos Microsoft: EAS GOBIERNO Categoria: ENTERPRISE | U162: Suscripción Anual | V162: N/A | W162: N/A | X162: N/A | Y162: N/A | Z162: N/A
A163: PROPIO_Suite Corporativa_N/A_MICROSOFT_Enterprise Agreement-Educativo_3ND-00527EAAP | C163: PROPIO_3ND-00527EAAP | D163: 3ND-00527EAAP | E163: PROPIO | F163: USD | G163: 4.37 | H163: 1 | I163: Suite Corporativa | J163: N/A | K163: MICROSOFT | L163: Enterprise Agreement-Educativo | M163: Microsoft System Center Service Manager All Languages Software Assurance Per OSE_EAAP | N163: System Center Service Manager | O163: Software Assurance | P163: N/A | Q163: N/A | R163: N/A | S163: N/A | T163: Acuerdos Microsoft: EA GOBIERNO Categoria: ENTERPRISE | U163: Licencia | V163: N/A | W163: N/A | X163: N/A | Y163: N/A | Z163: N/A | AA163: 11/04/2025---Cambios en: Precio. Casos GLPI: 1350691, 1350245, 1348489_archivo:Microsoft----Varios(actualizar sin descripcion)---ok.xlsx---
A164: PROPIO_Suite Corporativa_N/A_MICROSOFT_Enterprise Agreement-Educativo_3ND-00528EAAP | C164: PROPIO_3ND-00528EAAP | D164: 3ND-00528EAAP | E164: PROPIO | F164: USD | G164: 6 | H164: 1 | I164: Suite Corporativa | J164: N/A | K164: MICROSOFT | L164: Enterprise Agreement-Educativo | M164: Microsoft System Center Service Manager All Languages Software Assurance Per User_EAAP | N164: System Center Service Manager | O164: Software Assurance | P164: N/A | Q164: N/A | R164: N/A | S164: N/A | T164: Acuerdos Microsoft: EA GOBIERNO Categoria: ENTERPRISE | U164: Licencia | V164: N/A | W164: N/A | X164: N/A | Y164: N/A | Z164: N/A
A165: PROPIO_Suite Corporativa_N/A_MICROSOFT_Enterprise Agreement-Educativo_3NM-00004EAEASAP | C165: PROPIO_3NM-00004EAEASAP | D165: 3NM-00004EAEASAP | E165: PROPIO | F165: USD | G165: 4.6 | H165: 1 | I165: Suite Corporativa | J165: N/A | K165: MICROSOFT | L165: Enterprise Agreement-Educativo | M165: Microsoft OneDrive business P1 Subscription Per User_EAEASAP | N165: OneDrive business P1 | O165: Monthly Subscriptions | P165: N/A | Q165: N/A | R165: N/A | S165: N/A | T165: Acuerdos Microsoft: EA/EAS GOBIERNO Categoria: ENTERPRISE | U165: Suscripción mensual con pago anual | V165: N/A | W165: N/A | X165: N/A | Y165: N/A | Z165: N/A
A166: PROPIO_Suite Corporativa_N/A_MICROSOFT_Enterprise Agreement-Educativo_3Q2-00002EAEASAP | C166: PROPIO_3Q2-00002EAEASAP | D166: 3Q2-00002EAEASAP | E166: PROPIO | F166: USD | G166: 6.4 | H166: 1 | I166: Suite Corporativa | J166: N/A | K166: MICROSOFT | L166: Enterprise Agreement-Educativo | M166: Microsoft Project Online Essentials Subscription Per User_EAEASAP | N166: Project Online Essentials | O166: Monthly Subscriptions | P166: N/A | Q166: N/A | R166: N/A | S166: N/A | T166: Acuerdos Microsoft: EA/EAS GOBIERNO Categoria: ENTERPRISE | U166: Suscripción mensual con pago anual | V166: N/A | W166: N/A | X166: N/A | Y166: N/A | Z166: N/A
A167: PROPIO_Suite Corporativa_N/A_MICROSOFT_Enterprise Agreement-Educativo_3R2-00002EAEASAP | C167: PROPIO_3R2-00002EAEASAP | D167: 3R2-00002EAEASAP | E167: PROPIO | F167: USD | G167: 5.5 | H167: 1 | I167: Suite Corporativa | J167: N/A | K167: MICROSOFT | L167: Enterprise Agreement-Educativo | M167: Microsoft Azure Active Directory Premium P1 Subscription Per User_EAEASAP | N167: Entra ID P1 | O167: Monthly Subscriptions | P167: N/A | Q167: N/A | R167: N/A | S167: N/A | T167: Acuerdos Microsoft: EA/EAS GOBIERNO Categoria: ENTERPRISE | U167: Suscripción mensual con pago anual | V167: N/A | W167: N/A | X167: N/A | Y167: N/A | Z167: N/A
A168: PROPIO_Suite Corporativa_N/A_MICROSOFT_Enterprise Agreement-Educativo_3R3-00001AP | C168: PROPIO_3R3-00001AP | D168: 3R3-00001AP | E168: PROPIO | F168: USD | G168: 0.55 | H168: 1 | I168: Suite Corporativa | J168: N/A | K168: MICROSOFT | L168: Enterprise Agreement-Educativo | M168: Microsoft Entra ID P1 Edu Subscription Per User_AP | N168: Entra ID P1 Edu | O168: Monthly Subscriptions | P168: N/A | Q168: N/A | R168: N/A | S168: N/A | T168: Acuerdos Microsoft: EES ACADEMICO Categoria: EDUCATIVO | U168: Suscripción mensual con pago anual | V168: N/A | W168: N/A | X168: N/A | Y168: N/A | Z168: N/A
A169: PROPIO_Suite Corporativa_N/A_MICROSOFT_Enterprise Agreement-Educativo_3R3-00001STU | C169: PROPIO_3R3-00001STU | D169: 3R3-00001STU | E169: PROPIO | F169: USD | G169: 0.22 | H169: 1 | I169: Suite Corporativa | J169: N/A | K169: MICROSOFT | L169: Enterprise Agreement-Educativo | M169: Microsoft Entra ID P1 Edu Subscription Per User_STU | N169: Entra ID P1 Edu | O169: Monthly Subscriptions | P169: N/A | Q169: N/A | R169: N/A | S169: N/A | T169: Acuerdos Microsoft: EES ACADEMICO Categoria: EDUCATIVO | U169: Suscripción mensual con pago anual | V169: N/A | W169: N/A | X169: N/A | Y169: N/A | Z169: N/A
A170: PROPIO_Suite Corporativa_N/A_MICROSOFT_Enterprise Agreement-Educativo_3R3-00004SUB | C170: PROPIO_3R3-00004SUB | D170: 3R3-00004SUB | E170: PROPIO | F170: USD | G170: 0 | H170: 1 | I170: Suite Corporativa | J170: N/A | K170: MICROSOFT | L170: Enterprise Agreement-Educativo | M170: Microsoft Entra ID P1 Edu Subscription Student Use Benefit Per User_SUB | N170: Entra ID P1 Edu | O170: Monthly Subscriptions | P170: N/A | Q170: N/A | R170: N/A | S170: N/A | T170: Acuerdos Microsoft: EES ACADEMICO Categoria: EDUCATIVO | U170: Suscripción mensual con pago anual | V170: N/A | W170: N/A | X170: N/A | Y170: N/A | Z170: N/A
A171: PROPIO_Suite Corporativa_N/A_MICROSOFT_Enterprise Agreement-Educativo_3VU-00043AP | C171: PROPIO_3VU-00043AP | D171: 3VU-00043AP | E171: PROPIO | F171: USD | G171: 156 | H171: 1 | I171: Suite Corporativa | J171: N/A | K171: MICROSOFT | L171: Enterprise Agreement-Educativo | M171: Microsoft MSDN Platforms All Languages License & Software Assurance_AP | N171: MSDN Platforms | O171: License/Software Assurance Pack | P171: N/A | Q171: N/A | R171: N/A | S171: N/A | T171: Acuerdos Microsoft: EES ACADEMICO Categoria: EDUCATIVO | U171: Suscripción Anual | V171: N/A | W171: N/A | X171: N/A | Y171: N/A | Z171: N/A
A172: PROPIO_Suite Corporativa_N/A_MICROSOFT_Enterprise Agreement-Educativo_3VU-00043EAAP | C172: PROPIO_3VU-00043EAAP | D172: 3VU-00043EAAP | E172: PROPIO | F172: USD | G172: 1015 | H172: 1 | I172: Suite Corporativa | J172: N/A | K172: MICROSOFT | L172: Enterprise Agreement-Educativo | M172: Microsoft MSDN Platforms All Languages License & Software Assurance_EAAP | N172: MSDN Platforms | O172: License/Software Assurance Pack | P172: N/A | Q172: N/A | R172: N/A | S172: N/A | T172: Acuerdos Microsoft: EA GOBIERNO Categoria: ENTERPRISE | U172: Licencia | V172: N/A | W172: N/A | X172: N/A | Y172: N/A | Z172: N/A
A173: PROPIO_Suite Corporativa_N/A_MICROSOFT_Enterprise Agreement-Educativo_3VU-00043EAAPTUP | C173: PROPIO_3VU-00043EAAPTUP | D173: 3VU-00043EAAPTUP | E173: PROPIO | F173: USD | G173: 508 | H173: 1 | I173: Suite Corporativa | J173: N/A | K173: MICROSOFT | L173: Enterprise Agreement-Educativo | M173: Microsoft MSDN Platforms All Languages License & Software Assurance_EAAP_TUP | N173: MSDN Platforms | O173: License/Software Assurance Pack | P173: N/A | Q173: N/A | R173: N/A | S173: N/A | T173: Acuerdos Microsoft: EA GOBIERNO Categoria: ENTERPRISE | U173: Licencia | V173: N/A | W173: N/A | X173: N/A | Y173: N/A | Z173: N/A
A174: PROPIO_Suite Corporativa_N/A_MICROSOFT_Enterprise Agreement-Educativo_3VU-00043EASAPLICSUBS | C174: PROPIO_3VU-00043EASAPLICSUBS | D174: 3VU-00043EASAPLICSUBS | E174: PROPIO | F174: USD | G174: 1073 | H174: 1 | I174: Suite Corporativa | J174: N/A | K174: MICROSOFT | L174: Enterprise Agreement-Educativo | M174: Microsoft MSDN Platforms All Languages License & Software Assurance_EASAP_LICSUBS | N174: MSDN Platforms | O174: License/Software Assurance Pack | P174: N/A | Q174: N/A | R174: N/A | S174: N/A | T174: Acuerdos Microsoft: EAS GOBIERNO Categoria: ENTERPRISE | U174: Suscripción Anual | V174: N/A | W174: N/A | X174: N/A | Y174: N/A | Z174: N/A
A175: PROPIO_Suite Corporativa_N/A_MICROSOFT_Enterprise Agreement-Educativo_3VU-00043SCE | C175: PROPIO_3VU-00043SCE | D175: 3VU-00043SCE | E175: PROPIO | F175: USD | G175: 864 | H175: 1 | I175: Suite Corporativa | J175: N/A | K175: MICROSOFT | L175: Enterprise Agreement-Educativo | M175: Microsoft MSDN Platforms All Languages License & Software Assurance_SCE | N175: MSDN Platforms | O175: License/Software Assurance Pack | P175: N/A | Q175: N/A | R175: N/A | S175: N/A | T175: Acuerdos Microsoft: SCE GOBIERNO Categoria: ENTERPRISE | U175: Licencia | V175: N/A | W175: N/A | X175: N/A | Y175: N/A | Z175: N/A
A176: PROPIO_Suite Corporativa_N/A_MICROSOFT_Enterprise Agreement-Educativo_3VU-00043SCETUP | C176: PROPIO_3VU-00043SCETUP | D176: 3VU-00043SCETUP | E176: PROPIO | F176: USD | G176: 432 | H176: 1 | I176: Suite Corporativa | J176: N/A | K176: MICROSOFT | L176: Enterprise Agreement-Educativo | M176: Microsoft MSDN Platforms All Languages License & Software Assurance_SCE_TUP | N176: MSDN Platforms | O176: License/Software Assurance Pack | P176: N/A | Q176: N/A | R176: N/A | S176: N/A | T176: Acuerdos Microsoft: SCE GOBIERNO Categoria: ENTERPRISE | U176: Licencia | V176: N/A | W176: N/A | X176: N/A | Y176: N/A | Z176: N/A
A177: PROPIO_Suite Corporativa_N/A_MICROSOFT_Enterprise Agreement-Educativo_3VU-00044EAAP | C177: PROPIO_3VU-00044EAAP | D177: 3VU-00044EAAP | E177: PROPIO | F177: USD | G177: 1015 | H177: 1 | I177: Suite Corporativa | J177: N/A | K177: MICROSOFT | L177: Enterprise Agreement-Educativo | M177: Microsoft MSDN Platforms All Languages Software Assurance_EAAP | N177: MSDN Platforms | O177: Software Assurance | P177: N/A | Q177: N/A | R177: N/A | S177: N/A | T177: Acuerdos Microsoft: EA GOBIERNO Categoria: ENTERPRISE | U177: Licencia | V177: N/A | W177: N/A | X177: N/A | Y177: N/A | Z177: N/A
A178: PROPIO_Suite Corporativa_N/A_MICROSOFT_Enterprise Agreement-Educativo_3VU-00044SCE | C178: PROPIO_3VU-00044SCE | D178: 3VU-00044SCE | E178: PROPIO | F178: USD | G178: 863 | H178: 1 | I178: Suite Corporativa | J178: N/A | K178: MICROSOFT | L178: Enterprise Agreement-Educativo | M178: Microsoft MSDN Platforms All Languages Software Assurance_SCE | N178: MSDN Platforms | O178: Software Assurance | P178: N/A | Q178: N/A | R178: N/A | S178: N/A | T178: Acuerdos Microsoft: SCE GOBIERNO Categoria: ENTERPRISE | U178: Licencia | V178: N/A | W178: N/A | X178: N/A | Y178: N/A | Z178: N/A
A179: PROPIO_Suite Corporativa_N/A_MICROSOFT_Enterprise Agreement-Educativo_3VU-00047SCELICSUBS | C179: PROPIO_3VU-00047SCELICSUBS | D179: 3VU-00047SCELICSUBS | E179: PROPIO | F179: USD | G179: 81 | H179: 1 | I179: Suite Corporativa | J179: N/A | K179: MICROSOFT | L179: Enterprise Agreement-Educativo | M179: Microsoft MSDN Platforms All Languages Subscription_SCE_LICSUBS | N179: MSDN Platforms | O179: Monthly Subscriptions | P179: N/A | Q179: N/A | R179: N/A | S179: N/A | T179: Acuerdos Microsoft: SCE GOBIERNO Categoria: ENTERPRISE | U179: Suscripción mensual con pago anual | V179: N/A | W179: N/A | X179: N/A | Y179: N/A | Z179: N/A
A180: PROPIO_Suite Corporativa_N/A_MICROSOFT_Enterprise Agreement-Educativo_3ZK-00193EAAP | C180: PROPIO_3ZK-00193EAAP | D180: 3ZK-00193EAAP | E180: PROPIO | F180: USD | G180: 21 | H180: 1 | I180: Suite Corporativa | J180: N/A | K180: MICROSOFT | L180: Enterprise Agreement-Educativo | M180: Microsoft System Center Orchestrator All Languages License & Software Assurance Per OSE_EAAP | N180: System Center Orchestrator | O180: License/Software Assurance Pack | P180: N/A | Q180: N/A | R180: N/A | S180: N/A | T180: Acuerdos Microsoft: EA GOBIERNO Categoria: ENTERPRISE | U180: Licencia | V180: N/A | W180: N/A | X180: N/A | Y180: N/A | Z180: N/A | AA180: 11/04/2025---Cambios en: Precio. Casos GLPI: 1350691, 1350245, 1348489_archivo:Microsoft----Varios(actualizar sin descripcion)---ok.xlsx---
A181: PROPIO_Suite Corporativa_N/A_MICROSOFT_Enterprise Agreement-Educativo_3ZK-00193EAAPTUP | C181: PROPIO_3ZK-00193EAAPTUP | D181: 3ZK-00193EAAPTUP | E181: PROPIO | F181: USD | G181: 20 | H181: 1 | I181: Suite Corporativa | J181: N/A | K181: MICROSOFT | L181: Enterprise Agreement-Educativo | M181: Microsoft System Center Orchestrator All Languages License & Software Assurance Per OSE_EAAP_TUP | N181: System Center Orchestrator | O181: License/Software Assurance Pack | P181: N/A | Q181: N/A | R181: N/A | S181: N/A | T181: Acuerdos Microsoft: EA GOBIERNO Categoria: ENTERPRISE | U181: Licencia | V181: N/A | W181: N/A | X181: N/A | Y181: N/A | Z181: N/A | AA181: 11/04/2025---Cambios en: Precio. Casos GLPI: 1350691, 1350245, 1348489_archivo:Microsoft----Varios(actualizar sin descripcion)---ok.xlsx---
A182: PROPIO_Suite Corporativa_N/A_MICROSOFT_Enterprise Agreement-Educativo_3ZK-00193EASAPLICSUBS | C182: PROPIO_3ZK-00193EASAPLICSUBS | D182: 3ZK-00193EASAPLICSUBS | E182: PROPIO | F182: USD | G182: 7 | H182: 1 | I182: Suite Corporativa | J182: N/A | K182: MICROSOFT | L182: Enterprise Agreement-Educativo | M182: Microsoft System Center Orchestrator All Languages License & Software Assurance Per OSE_EASAP_LICSUBS | N182: System Center Orchestrator | O182: License/Software Assurance Pack | P182: N/A | Q182: N/A | R182: N/A | S182: N/A | T182: Acuerdos Microsoft: EAS GOBIERNO Categoria: ENTERPRISE | U182: Suscripción Anual | V182: N/A | W182: N/A | X182: N/A | Y182: N/A | Z182: N/A
A183: PROPIO_Suite Corporativa_N/A_MICROSOFT_Enterprise Agreement-Educativo_3ZK-00193FAC | C183: PROPIO_3ZK-00193FAC | D183: 3ZK-00193FAC | E183: PROPIO | F183: USD | G183: 1.4 | H183: 1 | I183: Suite Corporativa | J183: N/A | K183: MICROSOFT | L183: Enterprise Agreement-Educativo | M183: Microsoft System Center Orchestrator All Languages License & Software Assurance Per OSE_FAC | N183: System Center Orchestrator | O183: License/Software Assurance Pack | P183: N/A | Q183: N/A | R183: N/A | S183: N/A | T183: Acuerdos Microsoft: EES ACADEMICO Categoria: EDUCATIVO | U183: Suscripción Anual | V183: N/A | W183: N/A | X183: N/A | Y183: N/A | Z183: N/A | AA183: 11/04/2025---Cambios en: Precio. Casos GLPI: 1350691, 1350245, 1348489_archivo:Microsoft----Varios(actualizar sin descripcion)---ok.xlsx---
A184: PROPIO_Suite Corporativa_N/A_MICROSOFT_Enterprise Agreement-Educativo_3ZK-00193STU | C184: PROPIO_3ZK-00193STU | D184: 3ZK-00193STU | E184: PROPIO | F184: USD | G184: 1.09 | H184: 1 | I184: Suite Corporativa | J184: N/A | K184: MICROSOFT | L184: Enterprise Agreement-Educativo | M184: Microsoft System Center Orchestrator All Languages License & Software Assurance Per OSE_STU | N184: System Center Orchestrator | O184: License/Software Assurance Pack | P184: N/A | Q184: N/A | R184: N/A | S184: N/A | T184: Acuerdos Microsoft: EES ACADEMICO Categoria: EDUCATIVO | U184: Suscripción Anual | V184: N/A | W184: N/A | X184: N/A | Y184: N/A | Z184: N/A | AA184: 11/04/2025---Cambios en: Precio. Casos GLPI: 1350691, 1350245, 1348489_archivo:Microsoft----Varios(actualizar sin descripcion)---ok.xlsx---
A185: PROPIO_Suite Corporativa_N/A_MICROSOFT_Enterprise Agreement-Educativo_3ZK-00194EAAP | C185: PROPIO_3ZK-00194EAAP | D185: 3ZK-00194EAAP | E185: PROPIO | F185: USD | G185: 29 | H185: 1 | I185: Suite Corporativa | J185: N/A | K185: MICROSOFT | L185: Enterprise Agreement-Educativo | M185: Microsoft System Center Orchestrator All Languages License & Software Assurance Per User_EAAP | N185: System Center Orchestrator | O185: License/Software Assurance Pack | P185: N/A | Q185: N/A | R185: N/A | S185: N/A | T185: Acuerdos Microsoft: EA GOBIERNO Categoria: ENTERPRISE | U185: Licencia | V185: N/A | W185: N/A | X185: N/A | Y185: N/A | Z185: N/A | AA185: 11/04/2025---Cambios en: Precio. Casos GLPI: 1350691, 1350245, 1348489_archivo:Microsoft----Varios(actualizar sin descripcion)---ok.xlsx---
A186: PROPIO_Suite Corporativa_N/A_MICROSOFT_Enterprise Agreement-Educativo_3ZK-00194EAAPTUP | C186: PROPIO_3ZK-00194EAAPTUP | D186: 3ZK-00194EAAPTUP | E186: PROPIO | F186: USD | G186: 26 | H186: 1 | I186: Suite Corporativa | J186: N/A | K186: MICROSOFT | L186: Enterprise Agreement-Educativo | M186: Microsoft System Center Orchestrator All Languages License & Software Assurance Per User_EAAP_TUP | N186: System Center Orchestrator | O186: License/Software Assurance Pack | P186: N/A | Q186: N/A | R186: N/A | S186: N/A | T186: Acuerdos Microsoft: EA GOBIERNO Categoria: ENTERPRISE | U186: Licencia | V186: N/A | W186: N/A | X186: N/A | Y186: N/A | Z186: N/A | AA186: 11/04/2025---Cambios en: Precio. Casos GLPI: 1350691, 1350245, 1348489_archivo:Microsoft----Varios(actualizar sin descripcion)---ok.xlsx---
A187: PROPIO_Suite Corporativa_N/A_MICROSOFT_Enterprise Agreement-Educativo_3ZK-00194EASAPLICSUBS | C187: PROPIO_3ZK-00194EASAPLICSUBS | D187: 3ZK-00194EASAPLICSUBS | E187: PROPIO | F187: USD | G187: 9 | H187: 1 | I187: Suite Corporativa | J187: N/A | K187: MICROSOFT | L187: Enterprise Agreement-Educativo | M187: Microsoft System Center Orchestrator All Languages License & Software Assurance Per User_EASAP_LICSUBS | N187: System Center Orchestrator | O187: License/Software Assurance Pack | P187: N/A | Q187: N/A | R187: N/A | S187: N/A | T187: Acuerdos Microsoft: EAS GOBIERNO Categoria: ENTERPRISE | U187: Suscripción Anual | V187: N/A | W187: N/A | X187: N/A | Y187: N/A | Z187: N/A
A188: PROPIO_Suite Corporativa_N/A_MICROSOFT_Enterprise Agreement-Educativo_3ZK-00195EAAP | C188: PROPIO_3ZK-00195EAAP | D188: 3ZK-00195EAAP | E188: PROPIO | F188: USD | G188: 4.37 | H188: 1 | I188: Suite Corporativa | J188: N/A | K188: MICROSOFT | L188: Enterprise Agreement-Educativo | M188: Microsoft System Center Orchestrator All Languages Software Assurance Per OSE_EAAP | N188: System Center Orchestrator | O188: Software Assurance | P188: N/A | Q188: N/A | R188: N/A | S188: N/A | T188: Acuerdos Microsoft: EA GOBIERNO Categoria: ENTERPRISE | U188: Licencia | V188: N/A | W188: N/A | X188: N/A | Y188: N/A | Z188: N/A | AA188: 11/04/2025---Cambios en: Precio. Casos GLPI: 1350691, 1350245, 1348489_archivo:Microsoft----Varios(actualizar sin descripcion)---ok.xlsx---
A189: PROPIO_Suite Corporativa_N/A_MICROSOFT_Enterprise Agreement-Educativo_3ZK-00196EAAP | C189: PROPIO_3ZK-00196EAAP | D189: 3ZK-00196EAAP | E189: PROPIO | F189: USD | G189: 6 | H189: 1 | I189: Suite Corporativa | J189: N/A | K189: MICROSOFT | L189: Enterprise Agreement-Educativo | M189: Microsoft System Center Orchestrator All Languages Software Assurance Per User_EAAP | N189: System Center Orchestrator | O189: Software Assurance | P189: N/A | Q189: N/A | R189: N/A | S189: N/A | T189: Acuerdos Microsoft: EA GOBIERNO Categoria: ENTERPRISE | U189: Licencia | V189: N/A | W189: N/A | X189: N/A | Y189: N/A | Z189: N/A
A190: PROPIO_Suite Corporativa_N/A_MICROSOFT_Enterprise Agreement-Educativo_41F-00007EAEASAP | C190: PROPIO_41F-00007EAEASAP | D190: 41F-00007EAEASAP | E190: PROPIO | F190: USD | G190: 136.08 | H190: 1 | I190: Suite Corporativa | J190: N/A | K190: MICROSOFT | L190: Enterprise Agreement-Educativo | M190: Microsoft D365 Sales Premium Subscription Per User_EAEASAP | N190: D365 Sales Premium | O190: Monthly Subscriptions | P190: N/A | Q190: N/A | R190: N/A | S190: N/A | T190: Acuerdos Microsoft: EA/EAS GOBIERNO Categoria: ENTERPRISE | U190: Suscripción mensual con pago anual | V190: N/A | W190: N/A | X190: N/A | Y190: N/A | Z190: N/A | AA190: 11/04/2025---Cambios en: Precio. Casos GLPI: 1350691, 1350245, 1348489_archivo:Microsoft----Varios(actualizar sin descripcion)---ok.xlsx---
A191: PROPIO_Suite Corporativa_N/A_MICROSOFT_Enterprise Agreement-Educativo_41F-00008EAEASAP | C191: PROPIO_41F-00008EAEASAP | D191: 41F-00008EAEASAP | E191: PROPIO | F191: USD | G191: 40.82 | H191: 1 | I191: Suite Corporativa | J191: N/A | K191: MICROSOFT | L191: Enterprise Agreement-Educativo | M191: Microsoft D365 Sales Premium Step-up D365 Sales Per User_EAEASAP | N191: D365 Sales Premium | O191: Step Up | P191: N/A | Q191: N/A | R191: N/A | S191: N/A | T191: Acuerdos Microsoft: EA/EAS GOBIERNO Categoria: ENTERPRISE | U191: Suscripción mensual con pago anual | V191: N/A | W191: N/A | X191: N/A | Y191: N/A | Z191: N/A | AA191: 11/04/2025---Cambios en: Precio. Casos GLPI: 1350691, 1350245, 1348489_archivo:Microsoft----Varios(actualizar sin descripcion)---ok.xlsx---
A192: PROPIO_Suite Corporativa_N/A_MICROSOFT_Enterprise Agreement-Educativo_41F-00009EAEASAP | C192: PROPIO_41F-00009EAEASAP | D192: 41F-00009EAEASAP | E192: PROPIO | F192: USD | G192: 67.13 | H192: 1 | I192: Suite Corporativa | J192: N/A | K192: MICROSOFT | L192: Enterprise Agreement-Educativo | M192: Microsoft D365 Sales Premium Step-up D365 Sales CRM Online Pro Qlfd Per User_EAEASAP | N192: D365 Sales Premium | O192: Step Up | P192: N/A | Q192: N/A | R192: N/A | S192: N/A | T192: Acuerdos Microsoft: EA/EAS GOBIERNO Categoria: ENTERPRISE | U192: Suscripción mensual con pago anual | V192: N/A | W192: N/A | X192: N/A | Y192: N/A | Z192: N/A | AA192: 11/04/2025---Cambios en: Precio. Casos GLPI: 1350691, 1350245, 1348489_archivo:Microsoft----Varios(actualizar sin descripcion)---ok.xlsx---
A193: PROPIO_Suite Corporativa_N/A_MICROSOFT_Enterprise Agreement-Educativo_41F-00010EAEASAP | C193: PROPIO_41F-00010EAEASAP | D193: 41F-00010EAEASAP | E193: PROPIO | F193: USD | G193: 72.58 | H193: 1 | I193: Suite Corporativa | J193: N/A | K193: MICROSOFT | L193: Enterprise Agreement-Educativo | M193: Microsoft D365 Sales Premium Step-up D365 Sales Qlfd Per User_EAEASAP | N193: D365 Sales Premium | O193: Step Up | P193: N/A | Q193: N/A | R193: N/A | S193: N/A | T193: Acuerdos Microsoft: EA/EAS GOBIERNO Categoria: ENTERPRISE | U193: Suscripción mensual con pago anual | V193: N/A | W193: N/A | X193: N/A | Y193: N/A | Z193: N/A | AA193: 11/04/2025---Cambios en: Precio. Casos GLPI: 1350691, 1350245, 1348489_archivo:Microsoft----Varios(actualizar sin descripcion)---ok.xlsx---
A194: PROPIO_Suite Corporativa_N/A_MICROSOFT_Enterprise Agreement-Educativo_41G-00007AP | C194: PROPIO_41G-00007AP | D194: 41G-00007AP | E194: PROPIO | F194: USD | G194: 83 | H194: 1 | I194: Suite Corporativa | J194: N/A | K194: MICROSOFT | L194: Enterprise Agreement-Educativo | M194: Microsoft D365 Sales Premium Edu Subscription Per User_AP | N194: D365 Sales Premium Edu | O194: Monthly Subscriptions | P194: N/A | Q194: N/A | R194: N/A | S194: N/A | T194: Acuerdos Microsoft: EES ACADEMICO Categoria: EDUCATIVO | U194: Suscripción mensual con pago anual | V194: N/A | W194: N/A | X194: N/A | Y194: N/A | Z194: N/A | AA194: 11/04/2025---Cambios en: Precio. Casos GLPI: 1350691, 1350245, 1348489_archivo:Microsoft----Varios(actualizar sin descripcion)---ok.xlsx---
A195: PROPIO_Suite Corporativa_N/A_MICROSOFT_Enterprise Agreement-Educativo_41G-00007STU | C195: PROPIO_41G-00007STU | D195: 41G-00007STU | E195: PROPIO | F195: USD | G195: 60 | H195: 1 | I195: Suite Corporativa | J195: N/A | K195: MICROSOFT | L195: Enterprise Agreement-Educativo | M195: Microsoft D365 Sales Premium Edu Subscription Per User_STU | N195: D365 Sales Premium Edu | O195: Monthly Subscriptions | P195: N/A | Q195: N/A | R195: N/A | S195: N/A | T195: Acuerdos Microsoft: EES ACADEMICO Categoria: EDUCATIVO | U195: Suscripción mensual con pago anual | V195: N/A | W195: N/A | X195: N/A | Y195: N/A | Z195: N/A | AA195: 11/04/2025---Cambios en: Precio. Casos GLPI: 1350691, 1350245, 1348489_archivo:Microsoft----Varios(actualizar sin descripcion)---ok.xlsx---
A196: PROPIO_Suite Corporativa_N/A_MICROSOFT_Enterprise Agreement-Educativo_41G-00008AP | C196: PROPIO_41G-00008AP | D196: 41G-00008AP | E196: PROPIO | F196: USD | G196: 37 | H196: 1 | I196: Suite Corporativa | J196: N/A | K196: MICROSOFT | L196: Enterprise Agreement-Educativo | M196: Microsoft D365 Sales Premium Edu Step-up D365 Sales Per User_AP | N196: D365 Sales Premium Edu | O196: Step Up | P196: N/A | Q196: N/A | R196: N/A | S196: N/A | T196: Acuerdos Microsoft: EES ACADEMICO Categoria: EDUCATIVO | U196: Suscripción mensual con pago anual | V196: N/A | W196: N/A | X196: N/A | Y196: N/A | Z196: N/A | AA196: 11/04/2025---Cambios en: Precio. Casos GLPI: 1350691, 1350245, 1348489_archivo:Microsoft----Varios(actualizar sin descripcion)---ok.xlsx---
A197: PROPIO_Suite Corporativa_N/A_MICROSOFT_Enterprise Agreement-Educativo_41G-00008STU | C197: PROPIO_41G-00008STU | D197: 41G-00008STU | E197: PROPIO | F197: USD | G197: 32 | H197: 1 | I197: Suite Corporativa | J197: N/A | K197: MICROSOFT | L197: Enterprise Agreement-Educativo | M197: Microsoft D365 Sales Premium Edu Step-up D365 Sales Per User_STU | N197: D365 Sales Premium Edu | O197: Step Up | P197: N/A | Q197: N/A | R197: N/A | S197: N/A | T197: Acuerdos Microsoft: EES ACADEMICO Categoria: EDUCATIVO | U197: Suscripción mensual con pago anual | V197: N/A | W197: N/A | X197: N/A | Y197: N/A | Z197: N/A | AA197: 11/04/2025---Cambios en: Precio. Casos GLPI: 1350691, 1350245, 1348489_archivo:Microsoft----Varios(actualizar sin descripcion)---ok.xlsx---
A198: PROPIO_Suite Corporativa_N/A_MICROSOFT_Enterprise Agreement-Educativo_438-00009AP | C198: PROPIO_438-00009AP | D198: 438-00009AP | E198: PROPIO | F198: USD | G198: 35 | H198: 1 | I198: Suite Corporativa | J198: N/A | K198: MICROSOFT | L198: Enterprise Agreement-Educativo | M198: Microsoft W365 Ent 2vCPU/4GB/128GB Subscription Per User_AP | N198: W365 Ent 2vCPU/4GB/128GB | O198: Monthly Subscriptions | P198: N/A | Q198: N/A | R198: N/A | S198: N/A | T198: Acuerdos Microsoft: EES ACADEMICO Categoria: EDUCATIVO | U198: Suscripción mensual con pago anual | V198: N/A | W198: N/A | X198: N/A | Y198: N/A | Z198: N/A
A199: PROPIO_Suite Corporativa_N/A_MICROSOFT_Enterprise Agreement-Educativo_438-00009EAEASAP | C199: PROPIO_438-00009EAEASAP | D199: 438-00009EAEASAP | E199: PROPIO | F199: USD | G199: 32 | H199: 1 | I199: Suite Corporativa | J199: N/A | K199: MICROSOFT | L199: Enterprise Agreement-Educativo | M199: Microsoft W365 Ent 2vCPU/4GB/128GB Subscription Per User_EAEASAP | N199: W365 Ent 2vCPU/4GB/128GB | O199: Monthly Subscriptions | P199: N/A | Q199: N/A | R199: N/A | S199: N/A | T199: Acuerdos Microsoft: EA/EAS GOBIERNO Categoria: ENTERPRISE | U199: Suscripción mensual con pago anual | V199: N/A | W199: N/A | X199: N/A | Y199: N/A | Z199: N/A
A200: PROPIO_Suite Corporativa_N/A_MICROSOFT_Enterprise Agreement-Educativo_438-00009STU | C200: PROPIO_438-00009STU | D200: 438-00009STU | E200: PROPIO | F200: USD | G200: 35 | H200: 1 | I200: Suite Corporativa | J200: N/A | K200: MICROSOFT | L200: Enterprise Agreement-Educativo | M200: Microsoft W365 Ent 2vCPU/4GB/128GB Subscription Per User_STU | N200: W365 Ent 2vCPU/4GB/128GB | O200: Monthly Subscriptions | P200: N/A | Q200: N/A | R200: N/A | S200: N/A | T200: Acuerdos Microsoft: EES ACADEMICO Categoria: EDUCATIVO | U200: Suscripción mensual con pago anual | V200: N/A | W200: N/A | X200: N/A | Y200: N/A | Z200: N/A
... 2623 more rows

Sheet Cat_Filtro2 (hidden)
A1: Llave disponible | B1: Llave Disponible 2 | C1: Llave | D1: Codigo | E1: Proveedor | F1: Moneda | G1: Precio | H1: Habilitado | I1: Segmento | J1: Propósito | K1: Catálogo/Fabricante | L1: Categoria | M1: Nombre | N1: Descripción | O1: Tipo | P1: Asistencia | Q1: Perfil | R1: Unidad | S1: Zona | T1: Información Adicional | U1: Forma de pago | V1: Tipo de Proveedor | W1: Tipo2 | X1: Enlace Web de Fabricante con los detalles de operación del Producto | Y1: No Oferta | Z1: Tamaño Proveedor | AA1: Observaciones
A2: PROPIO_Suite Corporativa_N/A_MICROSOFT_Enterprise Agreement-Educativo_4DS-00001EAEASAP | C2: PROPIO_4DS-00001EAEASAP | D2: 4DS-00001EAEASAP | E2: PROPIO | F2: USD | G2: 3.1 | H2: 1 | I2: Suite Corporativa | J2: N/A | K2: MICROSOFT | L2: Enterprise Agreement-Educativo | M2: Microsoft EOA Exchange Online Subscription Per User_EAEASAP | N2: EOA Exchange Online | O2: Monthly Subscriptions | P2: N/A | Q2: N/A | R2: N/A | S2: N/A | T2: Acuerdos Microsoft: EA/EAS GOBIERNO Categoria: ENTERPRISE | U2: Suscripción mensual con pago anual | V2: N/A | W2: N/A | X2: N/A | Y2: N/A | Z2: N/A
A3: PROPIO_Suite Corporativa_N/A_MICROSOFT_Enterprise Agreement-Educativo_7LS-00002EAEASAP | C3: PROPIO_7LS-00002EAEASAP | D3: 7LS-00002EAEASAP | E3: PROPIO | F3: USD | G3: 27.3 | H3: 1 | I3: Suite Corporativa | J3: N/A | K3: MICROSOFT | L3: Enterprise Agreement-Educativo | M3: Microsoft Planner & Project P3 Subsciption Per User_EAEASAP | N3: Planner & Project P3 | O3: Monthly Subscriptions | P3: N/A | Q3: N/A | R3: N/A | S3: N/A | T3: Acuerdos Microsoft: EA/EAS GOBIERNO Categoria: ENTERPRISE | U3: Suscripción mensual con pago anual | V3: N/A | W3: N/A | X3: N/A | Y3: N/A | Z3: N/A
A4: PROPIO_Suite Corporativa_N/A_MICROSOFT_Enterprise Agreement-Educativo_83I-00001EAEASAP | C4: PROPIO_83I-00001EAEASAP | D4: 83I-00001EAEASAP | E4: PROPIO | F4: USD | G4: 31 | H4: 1 | I4: Suite Corporativa | J4: N/A | K4: MICROSOFT | L4: Enterprise Agreement-Educativo | M4: Microsoft M365 Copilot Sub Add-on_EAEASAP | N4: M365 Copilot | O4: Monthly Subscriptions | P4: N/A | Q4: N/A | R4: N/A | S4: N/A | T4: Acuerdos Microsoft: EA/EAS GOBIERNO Categoria: ENTERPRISE | U4: Suscripción mensual con pago anual | V4: N/A | W4: N/A | X4: N/A | Y4: N/A | Z4: N/A
A5: PROPIO_Suite Corporativa_N/A_MICROSOFT_Enterprise Agreement-Educativo_9EA-00039EAAP | C5: PROPIO_9EA-00039EAAP | D5: 9EA-00039EAAP | E5: PROPIO | F5: USD | G5: 889.5 | H5: 1 | I5: Suite Corporativa | J5: N/A | K5: MICROSOFT | L5: Enterprise Agreement-Educativo | M5: Microsoft Win Server Datacenter Core All Languages License & Software Assurance 2 Licenses_EAAP | N5: Win Server Datacenter Core | O5: License/Software Assurance Pack | P5: N/A | Q5: N/A | R5: N/A | S5: N/A | T5: Acuerdos Microsoft: EA GOBIERNO Categoria: ENTERPRISE | U5: Licencia | V5: N/A | W5: N/A | X5: N/A | Y5: N/A | Z5: N/A | AA5: 11/04/2025---Cambios en: Precio. Casos GLPI: 1350691, 1350245, 1348489_archivo:Microsoft----Varios(actualizar sin descripcion)---ok.xlsx---
A6: PROPIO_Suite Corporativa_N/A_MICROSOFT_Enterprise Agreement-Educativo_9EA-00039EAAPTUP | C6: PROPIO_9EA-00039EAAPTUP | D6: 9EA-00039EAAPTUP | E6: PROPIO | F6: USD | G6: 801 | H6: 1 | I6: Suite Corporativa | J6: N/A | K6: MICROSOFT | L6: Enterprise Agreement-Educativo | M6: Microsoft Win Server Datacenter Core All Languages License & Software Assurance 2 Licenses_EAAP_TUP | N6: Win Server Datacenter Core | O6: License/Software Assurance Pack | P6: N/A | Q6: N/A | R6: N/A | S6: N/A | T6: Acuerdos Microsoft: EA GOBIERNO Categoria: ENTERPRISE | U6: Licencia | V6: N/A | W6: N/A | X6: N/A | Y6: N/A | Z6: N/A | AA6: 11/04/2025---Cambios en: Precio. Casos GLPI: 1350691, 1350245, 1348489_archivo:Microsoft----Varios(actualizar sin descripcion)---ok.xlsx---
A7: PROPIO_Suite Corporativa_N/A_MICROSOFT_Enterprise Agreement-Educativo_AAA-10842EAEASENT | C7: PROPIO_AAA-10842EAEASENT | D7: AAA-10842EAEASENT | E7: PROPIO | F7: USD | G7: 20.9 | H7: 1 | I7: Suite Corporativa | J7: N/A | K7: MICROSOFT | L7: Enterprise Agreement-Educativo | M7: Microsoft O365 E3 Exist Cust Subscription Per User_EAEASENT | N7: O365 E3 Exist Cust (Sujeto a condiciones. Validar con el Proveedor y/o Fabricante antes de publicar.) | O7: Monthly Subscriptions | P7: N/A | Q7: N/A | R7: N/A | S7: N/A | T7: Acuerdos Microsoft: EA/EAS GOBIERNO Categoria: ENTERPRISE | U7: Suscripción mensual con pago anual | V7: N/A | W7: N/A | X7: N/A | Y7: N/A | Z7: N/A | AA7: 11/04/2025---Cambios en: Producto/Servicio, Descripción. Casos GLPI: 1350691, 1350245, 1348489_archivo:Microsoft----Varios(actualizar sin descripcion)---ok.xlsx---
A8: PROPIO_Suite Corporativa_N/A_MICROSOFT_Enterprise Agreement-Educativo_AAA-10842EAEASENTB | C8: PROPIO_AAA-10842EAEASENTB | D8: AAA-10842EAEASENTB | E8: PROPIO | F8: USD | G8: 25.08 | H8: 1 | I8: Suite Corporativa | J8: N/A | K8: MICROSOFT | L8: Enterprise Agreement-Educativo | M8: Microsoft O365 E3 Exist Cust Subscription Per User_EAEASENTB | N8: O365 E3 Exist Cust (Sujeto a condiciones. Validar con el Proveedor y/o Fabricante antes de publicar.) | O8: Monthly Subscriptions | P8: N/A | Q8: N/A | R8: N/A | S8: N/A | T8: Acuerdos Microsoft: EA/EAS GOBIERNO Categoria: ENTERPRISE | U8: Suscripción mensual con pago anual | V8: N/A | W8: N/A | X8: N/A | Y8: N/A | Z8: N/A | AA8: 11/04/2025---Cambios en: Producto/Servicio, Descripción. Casos GLPI: 1350691, 1350245, 1348489_archivo:Microsoft----Varios(actualizar sin descripcion)---ok.xlsx---
A9: PROPIO_Suite Corporativa_N/A_MICROSOFT_Enterprise Agreement-Educativo_NK4-00002EAEASAP | C9: PROPIO_NK4-00002EAEASAP | D9: NK4-00002EAEASAP | E9: PROPIO | F9: USD | G9: 12.8 | H9: 1 | I9: Suite Corporativa | J9: N/A | K9: MICROSOFT | L9: Enterprise Agreement-Educativo | M9: Microsoft Power BI Pro Subscription Per User_EAEASAP | N9: Power BI Pro | O9: Monthly Subscriptions | P9: N/A | Q9: N/A | R9: N/A | S9: N/A | T9: Acuerdos Microsoft: EA/EAS GOBIERNO Categoria: ENTERPRISE | U9: Suscripción mensual con pago anual | V9: N/A | W9: N/A | X9: N/A | Y9: N/A | Z9: N/A | AA9: 11/04/2025---Cambios en: Precio. Casos GLPI: 1350691, 1350245, 1348489_archivo:Microsoft----Varios(actualizar sin descripcion)---ok.xlsx---
A10: PROPIO_Suite Corporativa_N/A_MICROSOFT_Enterprise Agreement-Educativo_T6A-00024EAEASENT | C10: PROPIO_T6A-00024EAEASENT | D10: T6A-00024EAEASENT | E10: PROPIO | F10: USD | G10: 9.1 | H10: 1 | I10: Suite Corporativa | J10: N/A | K10: MICROSOFT | L10: Enterprise Agreement-Educativo | M10: Microsoft O365 E1 Exist Cust Subscription Per User_EAEASENT | N10: O365 E1 Exist Cust (Sujeto a condiciones. Validar con el Proveedor y/o Fabricante antes de publicar.) | O10: Monthly Subscriptions | P10: N/A | Q10: N/A | R10: N/A | S10: N/A | T10: Acuerdos Microsoft: EA/EAS GOBIERNO Categoria: ENTERPRISE | U10: Suscripción mensual con pago anual | V10: N/A | W10: N/A | X10: N/A | Y10: N/A | Z10: N/A | AA10: 11/04/2025---Cambios en: Precio, Producto/Servicio, Descripción. Casos GLPI: 1350691, 1350245, 1348489_archivo:Microsoft----Varios(actualizar sin descripcion)---ok.xlsx---
A11: PROPIO_Suite Corporativa_N/A_MICROSOFT_Enterprise Agreement-Educativo_T6A-00024EAEASENTB | C11: PROPIO_T6A-00024EAEASENTB | D11: T6A-00024EAEASENTB | E11: PROPIO | F11: USD | G11: 11.73 | H11: 1 | I11: Suite Corporativa | J11: N/A | K11: MICROSOFT | L11: Enterprise Agreement-Educativo | M11: Microsoft O365 E1 Exist Cust Subscription Per User_EAEASENTB | N11: O365 E1 Exist Cust (Sujeto a condiciones. Validar con el Proveedor y/o Fabricante antes de publicar.) | O11: Monthly Subscriptions | P11: N/A | Q11: N/A | R11: N/A | S11: N/A | T11: Acuerdos Microsoft: EA/EAS GOBIERNO Categoria: ENTERPRISE | U11: Suscripción mensual con pago anual | V11: N/A | W11: N/A | X11: N/A | Y11: N/A | Z11: N/A | AA11: 11/04/2025---Cambios en: Producto/Servicio, Descripción. Casos GLPI: 1350691, 1350245, 1348489_archivo:Microsoft----Varios(actualizar sin descripcion)---ok.xlsx---
A12: ALFAPEOPLE ANDINO S.A.S_Suite Corporativa_N/A_MICROSOFT_Servicios Complementarios_IT-SW-01-01 | C12: ALFAPEOPLE ANDINO S.A.S_IT-SW-01-01 | D12: IT-SW-01-01 | E12: ALFAPEOPLE ANDINO S.A.S | F12: COP | G12: 3200000 | H12: 1 | I12: Suite Corporativa | J12: N/A | K12: MICROSOFT | L12: Servicios Complementarios | M12: Instalación de Licencia o Suscripción Anual, o afines. | N12: El Proveedor debe realizar las tareas necesarias para garantizar la Instalación y el funcionamiento de los Productos Adquiridos en el Sistema Dinámico de Adquisición (ver ficha tecnica) | O12: N/A | P12: Presencial | Q12: Profesional | R12: Unidad | S12: 1 | T12: Categoria: Servicios Complementarios | U12: N/A | Z12: GRANDE
A13: ALFAPEOPLE ANDINO S.A.S_Suite Corporativa_N/A_MICROSOFT_Servicios Complementarios_IT-SW-01-02 | C13: ALFAPEOPLE ANDINO S.A.S_IT-SW-01-02 | D13: IT-SW-01-02 | E13: ALFAPEOPLE ANDINO S.A.S | F13: COP | G13: 2700000 | H13: 1 | I13: Suite Corporativa | J13: N/A | K13: MICROSOFT | L13: Servicios Complementarios | M13: Instalación de Licencia o Suscripción Anual, o afines. | N13: El Proveedor debe realizar las tareas necesarias para garantizar la Instalación y el funcionamiento de los Productos Adquiridos en el Sistema Dinámico de Adquisición (ver ficha tecnica) | O13: N/A | P13: Remota | Q13: Profesional | R13: Unidad | S13: Todas las zonas | T13: Categoria: Servicios Complementarios | U13: N/A | Z13: GRANDE
A14: ALFAPEOPLE ANDINO S.A.S_Suite Corporativa_N/A_MICROSOFT_Servicios Complementarios_IT-SW-01-03 | C14: ALFAPEOPLE ANDINO S.A.S_IT-SW-01-03 | D14: IT-SW-01-03 | E14: ALFAPEOPLE ANDINO S.A.S | F14: COP | G14: 3900000 | H14: 1 | I14: Suite Corporativa | J14: N/A | K14: MICROSOFT | L14: Servicios Complementarios | M14: Instalación de Licencia o Suscripción Anual, o afines. | N14: El Proveedor debe realizar las tareas necesarias para garantizar la Instalación y el funcionamiento de los Productos Adquiridos en el Sistema Dinámico de Adquisición (ver ficha tecnica) | O14: N/A | P14: Presencial | Q14: Profesional | R14: Unidad | S14: 2 | T14: Categoria: Servicios Complementarios | U14: N/A | Z14: GRANDE
A15: ALFAPEOPLE ANDINO S.A.S_Suite Corporativa_N/A_MICROSOFT_Servicios Complementarios_IT-SW-01-04 | C15: ALFAPEOPLE ANDINO S.A.S_IT-SW-01-04 | D15: IT-SW-01-04 | E15: ALFAPEOPLE ANDINO S.A.S | F15: COP | G15: 4100000 | H15: 1 | I15: Suite Corporativa | J15: N/A | K15: MICROSOFT | L15: Servicios Complementarios | M15: Instalación de Licencia o Suscripción Anual, o afines. | N15: El Proveedor debe realizar las tareas necesarias para garantizar la Instalación y el funcionamiento de los Productos Adquiridos en el Sistema Dinámico de Adquisición (ver ficha tecnica) | O15: N/A | P15: Presencial | Q15: Profesional | R15: Unidad | S15: 3 | T15: Categoria: Servicios Complementarios | U15: N/A | Z15: GRANDE
A16: ALFAPEOPLE ANDINO S.A.S_Suite Corporativa_N/A_MICROSOFT_Servicios Complementarios_IT-SW-01-05 | C16: ALFAPEOPLE ANDINO S.A.S_IT-SW-01-05 | D16: IT-SW-01-05 | E16: ALFAPEOPLE ANDINO S.A.S | F16: COP | G16: 2800000 | H16: 1 | I16: Suite Corporativa | J16: N/A | K16: MICROSOFT | L16: Servicios Complementarios | M16: Instalación de Licencia o Suscripción Anual, o afines. | N16: El Proveedor debe realizar las tareas necesarias para garantizar la Instalación y el funcionamiento de los Productos Adquiridos en el Sistema Dinámico de Adquisición (ver ficha tecnica) | O16: N/A | P16: Presencial | Q16: Técnico o Tecnólogo | R16: Unidad | S16: 1 | T16: Categoria: Servicios Complementarios | U16: N/A | Z16: GRANDE
A17: ALFAPEOPLE ANDINO S.A.S_Suite Corporativa_N/A_MICROSOFT_Servicios Complementarios_IT-SW-01-06 | C17: ALFAPEOPLE ANDINO S.A.S_IT-SW-01-06 | D17: IT-SW-01-06 | E17: ALFAPEOPLE ANDINO S.A.S | F17: COP | G17: 2500000 | H17: 1 | I17: Suite Corporativa | J17: N/A | K17: MICROSOFT | L17: Servicios Complementarios | M17: Instalación de Licencia o Suscripción Anual, o afines. | N17: El Proveedor debe realizar las tareas necesarias para garantizar la Instalación y el funcionamiento de los Productos Adquiridos en el Sistema Dinámico de Adquisición (ver ficha tecnica) | O17: N/A | P17: Remota | Q17: Técnico o Tecnólogo | R17: Unidad | S17: Todas las zonas | T17: Categoria: Servicios Complementarios | U17: N/A | Z17: GRANDE
A18: ALFAPEOPLE ANDINO S.A.S_Suite Corporativa_N/A_MICROSOFT_Servicios Complementarios_IT-SW-01-07 | C18: ALFAPEOPLE ANDINO S.A.S_IT-SW-01-07 | D18: IT-SW-01-07 | E18: ALFAPEOPLE ANDINO S.A.S | F18: COP | G18: 3000000 | H18: 1 | I18: Suite Corporativa | J18: N/A | K18: MICROSOFT | L18: Servicios Complementarios | M18: Instalación de Licencia o Suscripción Anual, o afines. | N18: El Proveedor debe realizar las tareas necesarias para garantizar la Instalación y el funcionamiento de los Productos Adquiridos en el Sistema Dinámico de Adquisición (ver ficha tecnica) | O18: N/A | P18: Presencial | Q18: Técnico o Tecnólogo | R18: Unidad | S18: 2 | T18: Categoria: Servicios Complementarios | U18: N/A | Z18: GRANDE
A19: ALFAPEOPLE ANDINO S.A.S_Suite Corporativa_N/A_MICROSOFT_Servicios Complementarios_IT-SW-01-08 | C19: ALFAPEOPLE ANDINO S.A.S_IT-SW-01-08 | D19: IT-SW-01-08 | E19: ALFAPEOPLE ANDINO S.A.S | F19: COP | G19: 3300000 | H19: 1 | I19: Suite Corporativa | J19: N/A | K19: MICROSOFT | L19: Servicios Complementarios | M19: Instalación de Licencia o Suscripción Anual, o afines. | N19: El Proveedor debe realizar las tareas necesarias para garantizar la Instalación y el funcionamiento de los Productos Adquiridos en el Sistema Dinámico de Adquisición (ver ficha tecnica) | O19: N/A | P19: Presencial | Q19: Técnico o Tecnólogo | R19: Unidad | S19: 3 | T19: Categoria: Servicios Complementarios | U19: N/A | Z19: GRANDE
A20: ALFAPEOPLE ANDINO S.A.S_Suite Corporativa_N/A_MICROSOFT_Servicios Complementarios_IT-SW-02-01 | C20: ALFAPEOPLE ANDINO S.A.S_IT-SW-02-01 | D20: IT-SW-02-01 | E20: ALFAPEOPLE ANDINO S.A.S | F20: COP | G20: 52000000 | H20: 1 | I20: Suite Corporativa | J20: N/A | K20: MICROSOFT | L20: Servicios Complementarios | M20: Soporte técnico en sitio | N20: El Proveedor debe atender incidentes y consultas relacionadas con los Productos adquiridos por la Entidad Compradora. Los requerimientos deben ser formulados por los administradores de la plataforma o la mesa de ayuda de la Entidad Compradora (ver ficha tecnica) | O20: N/A | P20: Presencial | Q20: Profesional | R20: Mes | S20: 1 | T20: Categoria: Servicios Complementarios | U20: N/A | Z20: GRANDE
A21: ALFAPEOPLE ANDINO S.A.S_Suite Corporativa_N/A_MICROSOFT_Servicios Complementarios_IT-SW-02-02 | C21: ALFAPEOPLE ANDINO S.A.S_IT-SW-02-02 | D21: IT-SW-02-02 | E21: ALFAPEOPLE ANDINO S.A.S | F21: COP | G21: 54000000 | H21: 1 | I21: Suite Corporativa | J21: N/A | K21: MICROSOFT | L21: Servicios Complementarios | M21: Soporte técnico en sitio | N21: El Proveedor debe atender incidentes y consultas relacionadas con los Productos adquiridos por la Entidad Compradora. Los requerimientos deben ser formulados por los administradores de la plataforma o la mesa de ayuda de la Entidad Compradora (ver ficha tecnica) | O21: N/A | P21: Presencial | Q21: Profesional | R21: Mes | S21: 2 | T21: Categoria: Servicios Complementarios | U21: N/A | Z21: GRANDE
A22: ALFAPEOPLE ANDINO S.A.S_Suite Corporativa_N/A_MICROSOFT_Servicios Complementarios_IT-SW-02-03 | C22: ALFAPEOPLE ANDINO S.A.S_IT-SW-02-03 | D22: IT-SW-02-03 | E22: ALFAPEOPLE ANDINO S.A.S | F22: COP | G22: 54000000 | H22: 1 | I22: Suite Corporativa | J22: N/A | K22: MICROSOFT | L22: Servicios Complementarios | M22: Soporte técnico en sitio | N22: El Proveedor debe atender incidentes y consultas relacionadas con los Productos adquiridos por la Entidad Compradora. Los requerimientos deben ser formulados por los administradores de la plataforma o la mesa de ayuda de la Entidad Compradora (ver ficha tecnica) | O22: N/A | P22: Presencial | Q22: Profesional | R22: Mes | S22: 3 | T22: Categoria: Servicios Complementarios | U22: N/A | Z22: GRANDE
A23: ALFAPEOPLE ANDINO S.A.S_Suite Corporativa_N/A_MICROSOFT_Servicios Complementarios_IT-SW-02-04 | C23: ALFAPEOPLE ANDINO S.A.S_IT-SW-02-04 | D23: IT-SW-02-04 | E23: ALFAPEOPLE ANDINO S.A.S | F23: COP | G23: 45000000 | H23: 1 | I23: Suite Corporativa | J23: N/A | K23: MICROSOFT | L23: Servicios Complementarios | M23: Soporte técnico en sitio | N23: El Proveedor debe atender incidentes y consultas relacionadas con los Productos adquiridos por la Entidad Compradora. Los requerimientos deben ser formulados por los administradores de la plataforma o la mesa de ayuda de la Entidad Compradora (ver ficha tecnica) | O23: N/A | P23: Presencial | Q23: Técnico o Tecnólogo | R23: Mes | S23: 1 | T23: Categoria: Servicios Complementarios | U23: N/A | Z23: GRANDE
A24: ALFAPEOPLE ANDINO S.A.S_Suite Corporativa_N/A_MICROSOFT_Servicios Complementarios_IT-SW-02-05 | C24: ALFAPEOPLE ANDINO S.A.S_IT-SW-02-05 | D24: IT-SW-02-05 | E24: ALFAPEOPLE ANDINO S.A.S | F24: COP | G24: 48000000 | H24: 1 | I24: Suite Corporativa | J24: N/A | K24: MICROSOFT | L24: Servicios Complementarios | M24: Soporte técnico en sitio | N24: El Proveedor debe atender incidentes y consultas relacionadas con los Productos adquiridos por la Entidad Compradora. Los requerimientos deben ser formulados por los administradores de la plataforma o la mesa de ayuda de la Entidad Compradora (ver ficha tecnica) | O24: N/A | P24: Presencial | Q24: Técnico o Tecnólogo | R24: Mes | S24: 2 | T24: Categoria: Servicios Complementarios | U24: N/A | Z24: GRANDE
A25: ALFAPEOPLE ANDINO S.A.S_Suite Corporativa_N/A_MICROSOFT_Servicios Complementarios_IT-SW-02-06 | C25: ALFAPEOPLE ANDINO S.A.S_IT-SW-02-06 | D25: IT-SW-02-06 | E25: ALFAPEOPLE ANDINO S.A.S | F25: COP | G25: 49000000 | H25: 1 | I25: Suite Corporativa | J25: N/A | K25: MICROSOFT | L25: Servicios Complementarios | M25: Soporte técnico en sitio | N25: El Proveedor debe atender incidentes y consultas relacionadas con los Productos adquiridos por la Entidad Compradora. Los requerimientos deben ser formulados por los administradores de la plataforma o la mesa de ayuda de la Entidad Compradora (ver ficha tecnica) | O25: N/A | P25: Presencial | Q25: Técnico o Tecnólogo | R25: Mes | S25: 3 | T25: Categoria: Servicios Complementarios | U25: N/A | Z25: GRANDE
A26: ALFAPEOPLE ANDINO S.A.S_Suite Corporativa_N/A_MICROSOFT_Servicios Complementarios_IT-SW-03-01 | C26: ALFAPEOPLE ANDINO S.A.S_IT-SW-03-01 | D26: IT-SW-03-01 | E26: ALFAPEOPLE ANDINO S.A.S | F26: COP | G26: 310000 | H26: 1 | I26: Suite Corporativa | J26: N/A | K26: MICROSOFT | L26: Servicios Complementarios | M26: Soporte técnico proactivo | N26: El Proveedor debe llevar a cabo las actividades preventivas acordadas o solicitadas por la Entidad Compradora con el fin de evitar la interrupción del servicio y garantizar la operación correcta y permanente de los Productos (ver ficha tecnica) | O26: N/A | P26: Presencial | Q26: Profesional | R26: Hora | S26: 1 | T26: Categoria: Servicios Complementarios | U26: N/A | Z26: GRANDE
A27: ALFAPEOPLE ANDINO S.A.S_Suite Corporativa_N/A_MICROSOFT_Servicios Complementarios_IT-SW-03-02 | C27: ALFAPEOPLE ANDINO S.A.S_IT-SW-03-02 | D27: IT-SW-03-02 | E27: ALFAPEOPLE ANDINO S.A.S | F27: COP | G27: 265000 | H27: 1 | I27: Suite Corporativa | J27: N/A | K27: MICROSOFT | L27: Servicios Complementarios | M27: Soporte técnico proactivo | N27: El Proveedor debe llevar a cabo las actividades preventivas acordadas o solicitadas por la Entidad Compradora con el fin de evitar la interrupción del servicio y garantizar la operación correcta y permanente de los Productos (ver ficha tecnica) | O27: N/A | P27: Remota | Q27: Profesional | R27: Hora | S27: Todas las zonas | T27: Categoria: Servicios Complementarios | U27: N/A | Z27: GRANDE
A28: ALFAPEOPLE ANDINO S.A.S_Suite Corporativa_N/A_MICROSOFT_Servicios Complementarios_IT-SW-03-03 | C28: ALFAPEOPLE ANDINO S.A.S_IT-SW-03-03 | D28: IT-SW-03-03 | E28: ALFAPEOPLE ANDINO S.A.S | F28: COP | G28: 310000 | H28: 1 | I28: Suite Corporativa | J28: N/A | K28: MICROSOFT | L28: Servicios Complementarios | M28: Soporte técnico proactivo | N28: El Proveedor debe llevar a cabo las actividades preventivas acordadas o solicitadas por la Entidad Compradora con el fin de evitar la interrupción del servicio y garantizar la operación correcta y permanente de los Productos (ver ficha tecnica) | O28: N/A | P28: Presencial | Q28: Profesional | R28: Hora | S28: 2 | T28: Categoria: Servicios Complementarios | U28: N/A | Z28: GRANDE
A29: ALFAPEOPLE ANDINO S.A.S_Suite Corporativa_N/A_MICROSOFT_Servicios Complementarios_IT-SW-03-04 | C29: ALFAPEOPLE ANDINO S.A.S_IT-SW-03-04 | D29: IT-SW-03-04 | E29: ALFAPEOPLE ANDINO S.A.S | F29: COP | G29: 335000 | H29: 1 | I29: Suite Corporativa | J29: N/A | K29: MICROSOFT | L29: Servicios Complementarios | M29: Soporte técnico proactivo | N29: El Proveedor debe llevar a cabo las actividades preventivas acordadas o solicitadas por la Entidad Compradora con el fin de evitar la interrupción del servicio y garantizar la operación correcta y permanente de los Productos (ver ficha tecnica) | O29: N/A | P29: Presencial | Q29: Profesional | R29: Hora | S29: 3 | T29: Categoria: Servicios Complementarios | U29: N/A | Z29: GRANDE
A30: ALFAPEOPLE ANDINO S.A.S_Suite Corporativa_N/A_MICROSOFT_Servicios Complementarios_IT-SW-03-05 | C30: ALFAPEOPLE ANDINO S.A.S_IT-SW-03-05 | D30: IT-SW-03-05 | E30: ALFAPEOPLE ANDINO S.A.S | F30: COP | G30: 250000 | H30: 1 | I30: Suite Corporativa | J30: N/A | K30: MICROSOFT | L30: Servicios Complementarios | M30: Soporte técnico proactivo | N30: El Proveedor debe llevar a cabo las actividades preventivas acordadas o solicitadas por la Entidad Compradora con el fin de evitar la interrupción del servicio y garantizar la operación correcta y permanente de los Productos (ver ficha tecnica) | O30: N/A | P30: Presencial | Q30: Técnico o Tecnólogo | R30: Hora | S30: 1 | T30: Categoria: Servicios Complementarios | U30: N/A | Z30: GRANDE
A31: ALFAPEOPLE ANDINO S.A.S_Suite Corporativa_N/A_MICROSOFT_Servicios Complementarios_IT-SW-03-06 | C31: ALFAPEOPLE ANDINO S.A.S_IT-SW-03-06 | D31: IT-SW-03-06 | E31: ALFAPEOPLE ANDINO S.A.S | F31: COP | G31: 220000 | H31: 1 | I31: Suite Corporativa | J31: N/A | K31: MICROSOFT | L31: Servicios Complementarios | M31: Soporte técnico proactivo | N31: El Proveedor debe llevar a cabo las actividades preventivas acordadas o solicitadas por la Entidad Compradora con el fin de evitar la interrupción del servicio y garantizar la operación correcta y permanente de los Productos (ver ficha tecnica) | O31: N/A | P31: Remota | Q31: Técnico o Tecnólogo | R31: Hora | S31: Todas las zonas | T31: Categoria: Servicios Complementarios | U31: N/A | Z31: GRANDE
A32: ALFAPEOPLE ANDINO S.A.S_Suite Corporativa_N/A_MICROSOFT_Servicios Complementarios_IT-SW-03-07 | C32: ALFAPEOPLE ANDINO S.A.S_IT-SW-03-07 | D32: IT-SW-03-07 | E32: ALFAPEOPLE ANDINO S.A.S | F32: COP | G32: 270000 | H32: 1 | I32: Suite Corporativa | J32: N/A | K32: MICROSOFT | L32: Servicios Complementarios | M32: Soporte técnico proactivo | N32: El Proveedor debe llevar a cabo las actividades preventivas acordadas o solicitadas por la Entidad Compradora con el fin de evitar la interrupción del servicio y garantizar la operación correcta y permanente de los Productos (ver ficha tecnica) | O32: N/A | P32: Presencial | Q32: Técnico o Tecnólogo | R32: Hora | S32: 2 | T32: Categoria: Servicios Complementarios | U32: N/A | Z32: GRANDE
A33: ALFAPEOPLE ANDINO S.A.S_Suite Corporativa_N/A_MICROSOFT_Servicios Complementarios_IT-SW-03-08 | C33: ALFAPEOPLE ANDINO S.A.S_IT-SW-03-08 | D33: IT-SW-03-08 | E33: ALFAPEOPLE ANDINO S.A.S | F33: COP | G33: 290000 | H33: 1 | I33: Suite Corporativa | J33: N/A | K33: MICROSOFT | L33: Servicios Complementarios | M33: Soporte técnico proactivo | N33: El Proveedor debe llevar a cabo las actividades preventivas acordadas o solicitadas por la Entidad Compradora con el fin de evitar la interrupción del servicio y garantizar la operación correcta y permanente de los Productos (ver ficha tecnica) | O33: N/A | P33: Presencial | Q33: Técnico o Tecnólogo | R33: Hora | S33: 3 | T33: Categoria: Servicios Complementarios | U33: N/A | Z33: GRANDE
A34: ALFAPEOPLE ANDINO S.A.S_Suite Corporativa_N/A_MICROSOFT_Servicios Complementarios_IT-SW-04-01 | C34: ALFAPEOPLE ANDINO S.A.S_IT-SW-04-01 | D34: IT-SW-04-01 | E34: ALFAPEOPLE ANDINO S.A.S | F34: COP | G34: 310000 | H34: 1 | I34: Suite Corporativa | J34: N/A | K34: MICROSOFT | L34: Servicios Complementarios | M34: Soporte técnico reactivo | N34: El Proveedor debe llevar a cabo las actividades de soporte reactivo orientadas a la solución de cualquier problema que se presente sobre los Productos, reparación de los productos instalados, reconfiguración de las aplicaciones, indisponibilidad de los Productos y Servicios instalados, de acuerdo con los tiempos definidos (ver ficha tecnica) | O34: N/A | P34: Presencial | Q34: Profesional | R34: Hora | S34: 1 | T34: Categoria: Servicios Complementarios | U34: N/A | Z34: GRANDE
A35: ALFAPEOPLE ANDINO S.A.S_Suite Corporativa_N/A_MICROSOFT_Servicios Complementarios_IT-SW-04-02 | C35: ALFAPEOPLE ANDINO S.A.S_IT-SW-04-02 | D35: IT-SW-04-02 | E35: ALFAPEOPLE ANDINO S.A.S | F35: COP | G35: 265000 | H35: 1 | I35: Suite Corporativa | J35: N/A | K35: MICROSOFT | L35: Servicios Complementarios | M35: Soporte técnico reactivo | N35: El Proveedor debe llevar a cabo las actividades de soporte reactivo orientadas a la solución de cualquier problema que se presente sobre los Productos, reparación de los productos instalados, reconfiguración de las aplicaciones, indisponibilidad de los Productos y Servicios instalados, de acuerdo con los tiempos definidos (ver ficha tecnica) | O35: N/A | P35: Remota | Q35: Profesional | R35: Hora | S35: Todas las zonas | T35: Categoria: Servicios Complementarios | U35: N/A | Z35: GRANDE
A36: ALFAPEOPLE ANDINO S.A.S_Suite Corporativa_N/A_MICROSOFT_Servicios Complementarios_IT-SW-04-03 | C36: ALFAPEOPLE ANDINO S.A.S_IT-SW-04-03 | D36: IT-SW-04-03 | E36: ALFAPEOPLE ANDINO S.A.S | F36: COP | G36: 310000 | H36: 1 | I36: Suite Corporativa | J36: N/A | K36: MICROSOFT | L36: Servicios Complementarios | M36: Soporte técnico reactivo | N36: El Proveedor debe llevar a cabo las actividades de soporte reactivo orientadas a la solución de cualquier problema que se presente sobre los Productos, reparación de los productos instalados, reconfiguración de las aplicaciones, indisponibilidad de los Productos y Servicios instalados, de acuerdo con los tiempos definidos (ver ficha tecnica) | O36: N/A | P36: Presencial | Q36: Profesional | R36: Hora | S36: 2 | T36: Categoria: Servicios Complementarios | U36: N/A | Z36: GRANDE
A37: ALFAPEOPLE ANDINO S.A.S_Suite Corporativa_N/A_MICROSOFT_Servicios Complementarios_IT-SW-04-04 | C37: ALFAPEOPLE ANDINO S.A.S_IT-SW-04-04 | D37: IT-SW-04-04 | E37: ALFAPEOPLE ANDINO S.A.S | F37: COP | G37: 335000 | H37: 1 | I37: Suite Corporativa | J37: N/A | K37: MICROSOFT | L37: Servicios Complementarios | M37: Soporte técnico reactivo | N37: El Proveedor debe llevar a cabo las actividades de soporte reactivo orientadas a la solución de cualquier problema que se presente sobre los Productos, reparación de los productos instalados, reconfiguración de las aplicaciones, indisponibilidad de los Productos y Servicios instalados, de acuerdo con los tiempos definidos (ver ficha tecnica) | O37: N/A | P37: Presencial | Q37: Profesional | R37: Hora | S37: 3 | T37: Categoria: Servicios Complementarios | U37: N/A | Z37: GRANDE
A38: ALFAPEOPLE ANDINO S.A.S_Suite Corporativa_N/A_MICROSOFT_Servicios Complementarios_IT-SW-04-05 | C38: ALFAPEOPLE ANDINO S.A.S_IT-SW-04-05 | D38: IT-SW-04-05 | E38: ALFAPEOPLE ANDINO S.A.S | F38: COP | G38: 250000 | H38: 1 | I38: Suite Corporativa | J38: N/A | K38: MICROSOFT | L38: Servicios Complementarios | M38: Soporte técnico reactivo | N38: El Proveedor debe llevar a cabo las actividades de soporte reactivo orientadas a la solución de cualquier problema que se presente sobre los Productos, reparación de los productos instalados, reconfiguración de las aplicaciones, indisponibilidad de los Productos y Servicios instalados, de acuerdo con los tiempos definidos (ver ficha tecnica) | O38: N/A | P38: Presencial | Q38: Técnico o Tecnólogo | R38: Hora | S38: 1 | T38: Categoria: Servicios Complementarios | U38: N/A | Z38: GRANDE
A39: ALFAPEOPLE ANDINO S.A.S_Suite Corporativa_N/A_MICROSOFT_Servicios Complementarios_IT-SW-04-06 | C39: ALFAPEOPLE ANDINO S.A.S_IT-SW-04-06 | D39: IT-SW-04-06 | E39: ALFAPEOPLE ANDINO S.A.S | F39: COP | G39: 220000 | H39: 1 | I39: Suite Corporativa | J39: N/A | K39: MICROSOFT | L39: Servicios Complementarios | M39: Soporte técnico reactivo | N39: El Proveedor debe llevar a cabo las actividades de soporte reactivo orientadas a la solución de cualquier problema que se presente sobre los Productos, reparación de los productos instalados, reconfiguración de las aplicaciones, indisponibilidad de los Productos y Servicios instalados, de acuerdo con los tiempos definidos (ver ficha tecnica) | O39: N/A | P39: Remota | Q39: Técnico o Tecnólogo | R39: Hora | S39: Todas las zonas | T39: Categoria: Servicios Complementarios | U39: N/A | Z39: GRANDE
A40: ALFAPEOPLE ANDINO S.A.S_Suite Corporativa_N/A_MICROSOFT_Servicios Complementarios_IT-SW-04-07 | C40: ALFAPEOPLE ANDINO S.A.S_IT-SW-04-07 | D40: IT-SW-04-07 | E40: ALFAPEOPLE ANDINO S.A.S | F40: COP | G40: 270000 | H40: 1 | I40: Suite Corporativa | J40: N/A | K40: MICROSOFT | L40: Servicios Complementarios | M40: Soporte técnico reactivo | N40: El Proveedor debe llevar a cabo las actividades de soporte reactivo orientadas a la solución de cualquier problema que se presente sobre los Productos, reparación de los productos instalados, reconfiguración de las aplicaciones, indisponibilidad de los Productos y Servicios instalados, de acuerdo con los tiempos definidos (ver ficha tecnica) | O40: N/A | P40: Presencial | Q40: Técnico o Tecnólogo | R40: Hora | S40: 2 | T40: Categoria: Servicios Complementarios | U40: N/A | Z40: GRANDE
A41: ALFAPEOPLE ANDINO S.A.S_Suite Corporativa_N/A_MICROSOFT_Servicios Complementarios_IT-SW-04-08 | C41: ALFAPEOPLE ANDINO S.A.S_IT-SW-04-08 | D41: IT-SW-04-08 | E41: ALFAPEOPLE ANDINO S.A.S | F41: COP | G41: 290000 | H41: 1 | I41: Suite Corporativa | J41: N/A | K41: MICROSOFT | L41: Servicios Complementarios | M41: Soporte técnico reactivo | N41: El Proveedor debe llevar a cabo las actividades de soporte reactivo orientadas a la solución de cualquier problema que se presente sobre los Productos, reparación de los productos instalados, reconfiguración de las aplicaciones, indisponibilidad de los Productos y Servicios instalados, de acuerdo con los tiempos definidos (ver ficha tecnica) | O41: N/A | P41: Presencial | Q41: Técnico o Tecnólogo | R41: Hora | S41: 3 | T41: Categoria: Servicios Complementarios | U41: N/A | Z41: GRANDE
